{"text_format":"1","workbook":"xlsx","n_sheets":2,"sheets":["StreetLightingLight","Lookups"],"not_rendered":{"charts":0,"images":0,"macros":0,"external_links":0,"defined_names":41,"comments":0,"pivot_tables":0},"unopened":[],"bounds":{"document_bytes":16777216,"sheet_cells":100000,"rows_first":2000,"rows_last":500,"rows_between":2000,"halvings":0,"cell_chars":16384,"cell_head_chars":4096},"cells_cut":0,"cells_raw":0,"read":"whole","date_system":"1900"}

{"sheet":"StreetLightingLight","index":0,"n_rows":100,"n_cols":50,"rows_kept":100,"cut":false,"hidden":false,"merged":[]}
["15f221f1-c15e-4d8e-a679-81fade5c4405_road_id","sh-rs-d","15f221f1-c15e-4d8e-a679-81fade5c4404_start_m","db2bf372-956f-4e0a-a7d2-d4e64a9dd71e_light_make_desc","db2bf372-956f-4e0a-a7d2-d4e64a9dd71e_light_make","b88b341b-a10e-4e9b-89c9-fe4f3ebd045f_light_model_desc","b88b341b-a10e-4e9b-89c9-fe4f3ebd045f_light_model","a35385ee-d4bb-4b81-a07d-9f40a3be91df_supply_point_desc","a35385ee-d4bb-4b81-a07d-9f40a3be91df_supply_point","e8204d7f-23fa-4860-a12e-3c7838eef862_gear_make_desc","e8204d7f-23fa-4860-a12e-3c7838eef862_gear_make","6221eaff-8ce0-4f30-abd2-1e085b4f6b7a_gear_model_desc","6221eaff-8ce0-4f30-abd2-1e085b4f6b7a_gear_model","c516ab5a-233f-42fd-8ea7-c6c42d27d556_lamp_make_desc","c516ab5a-233f-42fd-8ea7-c6c42d27d556_lamp_make","fbf9bc34-c54c-4ea9-a991-b8064c8a2353_lamp_model_desc","fbf9bc34-c54c-4ea9-a991-b8064c8a2353_lamp_model","42c624ea-f272-4b35-be0b-ee61e524a3ab_light_tilt",null,"c1ace6ab-2f16-416d-b39e-7d92e1aac3be_light_install_date","6ab2aa78-e0db-47a4-bfec-c9c8cfced813_light_in_reason_desc","6ab2aa78-e0db-47a4-bfec-c9c8cfced813_light_in_reason","c80411ce-ef3f-4146-9a50-3b0c64b6875e_light_status_desc","c80411ce-ef3f-4146-9a50-3b0c64b6875e_light_status","ac8227b3-bb82-447c-bd84-ea5228e0ad2d_gear_install_date","cf6caebe-f4f9-4d03-a86a-92f067bbba13_gear_in_reason_desc","cf6caebe-f4f9-4d03-a86a-92f067bbba13_gear_in_reason","8e579a12-b778-4f3c-8c0c-5d76139df9f0_gear_status_desc","8e579a12-b778-4f3c-8c0c-5d76139df9f0_gear_status","084509ec-338b-45f4-8ffc-8c35bb6731bb_lamp_install_date","5f56796f-7e36-4a92-8ffa-bd6456397624_lamp_in_reason_desc","5f56796f-7e36-4a92-8ffa-bd6456397624_lamp_in_reason","3527c016-f065-42e0-a0e5-97cb867f9a45_owner_desc","3527c016-f065-42e0-a0e5-97cb867f9a45_owner","d6fd5061-1d0b-49fe-8f27-39a3b3b5149d_risk_likelihood_desc","d6fd5061-1d0b-49fe-8f27-39a3b3b5149d_risk_likelihood","383361dc-1535-4cdf-b43b-99b92a4d0b66_risk_consequence_desc","383361dc-1535-4cdf-b43b-99b92a4d0b66_risk_consequence","3a7e33d6-5434-4edc-bc27-55c53ca6718f_risk_desc","3a7e33d6-5434-4edc-bc27-55c53ca6718f_risk","9941ec9e-1ee3-4db7-8f74-c1419d71a0dc_rul_reset_desc","9941ec9e-1ee3-4db7-8f74-c1419d71a0dc_rul_reset","6ad3cecc-8e66-4dd2-93d7-0591a3122edc_use_default_rc_desc","6ad3cecc-8e66-4dd2-93d7-0591a3122edc_use_default_rc","d7906021-2bc9-4caa-9b52-82924fc689b2_condition_desc","d7906021-2bc9-4caa-9b52-82924fc689b2_condition","98fb9926-c15d-4dc8-88e9-bc2cfea04ea9_condition_date","6970f732-478c-4671-96cc-8e555d23e3a6_collect_name_desc","6970f732-478c-4671-96cc-8e555d23e3a6_collect_name","8319049e-07cc-4c0d-adcd-8ed753d9af37_light_notes"]
["road_id","sh-rs-d","start_m","light_make_desc","light_make","light_model_desc","light_model","supply_point_desc","supply_point","gear_make_desc","gear_make","gear_model_desc","gear_model","lamp_make_desc","lamp_make","lamp_model_desc","lamp_model","light_tilt","icp_group","light_install_date","light_in_reason_desc","light_in_reason","light_status_desc","light_status","gear_install_date","gear_in_reason_desc","gear_in_reason","gear_status_desc","gear_status","lamp_install_date","lamp_in_reason_desc","lamp_in_reason","owner_desc","owner","risk_likelihood_desc","risk_likelihood","risk_consequence_desc","risk_consequence","risk_desc","risk","rul_reset_desc","rul_reset","use_default_rc_desc","use_default_rc","condition_desc","condition","condition_date","collect_name_desc","collect_name","light_notes"]
["Road Id [location from Pole]","SH-RS-D (e.g. 016-0000-B) [location from Pole] letter must be uppercase and include leading 0","Start (m) [location from Pole]","Light Make Desc","Light Make","Light Model Desc","Light Model","Supply Point Desc","Supply Point","Gear Make Desc","Gear Make","Gear Model Desc","Gear Model","Lamp Make Desc","Lamp Make","Lamp Model Desc","Lamp Model","Tilt","ICP no ","Light Install Date (dd/mm/yyyy) Must include leading 0","Light Install Reason Desc","Light Install Reason","Light Status Desc","Light Status","Gear Install Date (dd/mm/yyyy) Must include leading 0","Gear Install Reason Desc","Gear Install Reason","Gear Status Desc","Gear Status","Lamp Install Date (dd/mm/yyyy) Must include leading 0","Lamp Install Reason Desc","Lamp Install Reason","Asset Owner Desc","Asset Owner","Likelihood Desc","Likelihood","Consequence Desc","Consequence","Risk Desc","Risk","RUL Reset Desc","RUL Reset","Use Default Desc","Use Default","Condition Desc","Condition","Condition Date (dd/mm/yyyy) Must include leading 0","Organisation Desc","Organisation","Notes"]
[{"$f":"_xlfn.FILTERXML(_xlfn.WEBSERVICE(\"https://nds-beta.mobileroad.org/xy_sh?rp=\"&B4&\"/\"&C4&\"&xml=true\"),\"/lrms/id_road\")","v":"null"},null,null,null,{"$f":"IF(D4=\"\",\"\",VLOOKUP(D4,light_make[],2,FALSE))","v":""},null,{"$f":"IF(F4=\"\",\"\",VLOOKUP(F4,light_model[],2,FALSE))","v":""},null,{"$f":"IF(H4=\"\",\"\",VLOOKUP(H4,supply_point[],2,FALSE))","v":""},null,{"$f":"IF(J4=\"\",\"\",VLOOKUP(J4,gear_make[],2,FALSE))","v":""},null,{"$f":"IF(L4=\"\",\"\",VLOOKUP(L4,gear_model[],2,FALSE))","v":""},null,{"$f":"IF(N4=\"\",\"\",VLOOKUP(N4,lamp_make[],2,FALSE))","v":""},null,{"$f":"IF(P4=\"\",\"\",VLOOKUP(P4,lamp_model[],2,FALSE))","v":""},null,null,null,null,{"$f":"IF(U4=\"\",\"\",VLOOKUP(U4,Light_install_reason[],2,FALSE))","v":""},null,{"$f":"IF(W4=\"\",\"\",VLOOKUP(W4,light_status[],2,FALSE))","v":""},null,null,{"$f":"IF(Z4=\"\",\"\",VLOOKUP(Z4,Gear_install_reason[],2,FALSE))","v":""},null,{"$f":"IF(AB4=\"\",\"\",VLOOKUP(AB4,gear_status[],2,FALSE))","v":""},null,null,{"$f":"IF(AE4=\"\",\"\",VLOOKUP(AE4,Lamp_install_reason[],2,FALSE))","v":""},null,{"$f":"IF(AG4=\"\",\"\",VLOOKUP(AG4,Asset_owner[],2,FALSE))","v":""},null,{"$f":"IF(AI4=\"\",\"\",VLOOKUP(AI4,risk_likelihood[],2,FALSE))","v":""},null,{"$f":"IF(AK4=\"\",\"\",VLOOKUP(AK4,risk_consequence[],2,FALSE))","v":""},null,{"$f":"IF(AM4=\"\",\"\",VLOOKUP(AM4,risk[],2,FALSE))","v":""},null,{"$f":"IF(AO4=\"\",\"\",VLOOKUP(AO4,rul_reset[],2,FALSE))","v":""},null,{"$f":"IF(AQ4=\"\",\"\",VLOOKUP(AQ4,use_default_rc[],2,FALSE))","v":""},null,{"$f":"IF(AS4=\"\",\"\",VLOOKUP(AS4,condition[],2,FALSE))","v":""},null,null,{"$f":"IF(AV4=\"\",\"\",VLOOKUP(AV4,Organisation[],2,FALSE))","v":""}]
[{"$f":"_xlfn.FILTERXML(_xlfn.WEBSERVICE(\"https://nds-beta.mobileroad.org/xy_sh?rp=\"&B5&\"/\"&C5&\"&xml=true\"),\"/lrms/id_road\")","v":"null"},null,null,null,{"$f":"IF(D5=\"\",\"\",VLOOKUP(D5,light_make[],2,FALSE))","v":""},null,{"$f":"IF(F5=\"\",\"\",VLOOKUP(F5,light_model[],2,FALSE))","v":""},null,{"$f":"IF(H5=\"\",\"\",VLOOKUP(H5,supply_point[],2,FALSE))","v":""},null,{"$f":"IF(J5=\"\",\"\",VLOOKUP(J5,gear_make[],2,FALSE))","v":""},null,{"$f":"IF(L5=\"\",\"\",VLOOKUP(L5,gear_model[],2,FALSE))","v":""},null,{"$f":"IF(N5=\"\",\"\",VLOOKUP(N5,lamp_make[],2,FALSE))","v":""},null,{"$f":"IF(P5=\"\",\"\",VLOOKUP(P5,lamp_model[],2,FALSE))","v":""},null,null,null,null,{"$f":"IF(U5=\"\",\"\",VLOOKUP(U5,Light_install_reason[],2,FALSE))","v":""},null,{"$f":"IF(W5=\"\",\"\",VLOOKUP(W5,light_status[],2,FALSE))","v":""},null,null,{"$f":"IF(Z5=\"\",\"\",VLOOKUP(Z5,Gear_install_reason[],2,FALSE))","v":""},null,{"$f":"IF(AB5=\"\",\"\",VLOOKUP(AB5,gear_status[],2,FALSE))","v":""},null,null,{"$f":"IF(AE5=\"\",\"\",VLOOKUP(AE5,Lamp_install_reason[],2,FALSE))","v":""},null,{"$f":"IF(AG5=\"\",\"\",VLOOKUP(AG5,Asset_owner[],2,FALSE))","v":""},null,{"$f":"IF(AI5=\"\",\"\",VLOOKUP(AI5,risk_likelihood[],2,FALSE))","v":""},null,{"$f":"IF(AK5=\"\",\"\",VLOOKUP(AK5,risk_consequence[],2,FALSE))","v":""},null,{"$f":"IF(AM5=\"\",\"\",VLOOKUP(AM5,risk[],2,FALSE))","v":""},null,{"$f":"IF(AO5=\"\",\"\",VLOOKUP(AO5,rul_reset[],2,FALSE))","v":""},null,{"$f":"IF(AQ5=\"\",\"\",VLOOKUP(AQ5,use_default_rc[],2,FALSE))","v":""},null,{"$f":"IF(AS5=\"\",\"\",VLOOKUP(AS5,condition[],2,FALSE))","v":""},null,null,{"$f":"IF(AV5=\"\",\"\",VLOOKUP(AV5,Organisation[],2,FALSE))","v":""}]
["null",null,null,null,{"$f":"IF(D6=\"\",\"\",VLOOKUP(D6,light_make[],2,FALSE))","v":""},null,{"$f":"IF(F6=\"\",\"\",VLOOKUP(F6,light_model[],2,FALSE))","v":""},null,{"$f":"IF(H6=\"\",\"\",VLOOKUP(H6,supply_point[],2,FALSE))","v":""},null,{"$f":"IF(J6=\"\",\"\",VLOOKUP(J6,gear_make[],2,FALSE))","v":""},null,{"$f":"IF(L6=\"\",\"\",VLOOKUP(L6,gear_model[],2,FALSE))","v":""},null,{"$f":"IF(N6=\"\",\"\",VLOOKUP(N6,lamp_make[],2,FALSE))","v":""},null,{"$f":"IF(P6=\"\",\"\",VLOOKUP(P6,lamp_model[],2,FALSE))","v":""},null,null,null,null,{"$f":"IF(U6=\"\",\"\",VLOOKUP(U6,Light_install_reason[],2,FALSE))","v":""},null,{"$f":"IF(W6=\"\",\"\",VLOOKUP(W6,light_status[],2,FALSE))","v":""},null,null,{"$f":"IF(Z6=\"\",\"\",VLOOKUP(Z6,Gear_install_reason[],2,FALSE))","v":""},null,{"$f":"IF(AB6=\"\",\"\",VLOOKUP(AB6,gear_status[],2,FALSE))","v":""},null,null,{"$f":"IF(AE6=\"\",\"\",VLOOKUP(AE6,Lamp_install_reason[],2,FALSE))","v":""},null,{"$f":"IF(AG6=\"\",\"\",VLOOKUP(AG6,Asset_owner[],2,FALSE))","v":""},null,{"$f":"IF(AI6=\"\",\"\",VLOOKUP(AI6,risk_likelihood[],2,FALSE))","v":""},null,{"$f":"IF(AK6=\"\",\"\",VLOOKUP(AK6,risk_consequence[],2,FALSE))","v":""},null,{"$f":"IF(AM6=\"\",\"\",VLOOKUP(AM6,risk[],2,FALSE))","v":""},null,{"$f":"IF(AO6=\"\",\"\",VLOOKUP(AO6,rul_reset[],2,FALSE))","v":""},null,{"$f":"IF(AQ6=\"\",\"\",VLOOKUP(AQ6,use_default_rc[],2,FALSE))","v":""},null,{"$f":"IF(AS6=\"\",\"\",VLOOKUP(AS6,condition[],2,FALSE))","v":""},null,null,{"$f":"IF(AV6=\"\",\"\",VLOOKUP(AV6,Organisation[],2,FALSE))","v":""}]
["null",null,null,null,{"$f":"IF(D7=\"\",\"\",VLOOKUP(D7,light_make[],2,FALSE))","v":""},null,{"$f":"IF(F7=\"\",\"\",VLOOKUP(F7,light_model[],2,FALSE))","v":""},null,{"$f":"IF(H7=\"\",\"\",VLOOKUP(H7,supply_point[],2,FALSE))","v":""},null,{"$f":"IF(J7=\"\",\"\",VLOOKUP(J7,gear_make[],2,FALSE))","v":""},null,{"$f":"IF(L7=\"\",\"\",VLOOKUP(L7,gear_model[],2,FALSE))","v":""},null,{"$f":"IF(N7=\"\",\"\",VLOOKUP(N7,lamp_make[],2,FALSE))","v":""},null,{"$f":"IF(P7=\"\",\"\",VLOOKUP(P7,lamp_model[],2,FALSE))","v":""},null,null,null,null,{"$f":"IF(U7=\"\",\"\",VLOOKUP(U7,Light_install_reason[],2,FALSE))","v":""},null,{"$f":"IF(W7=\"\",\"\",VLOOKUP(W7,light_status[],2,FALSE))","v":""},null,null,{"$f":"IF(Z7=\"\",\"\",VLOOKUP(Z7,Gear_install_reason[],2,FALSE))","v":""},null,{"$f":"IF(AB7=\"\",\"\",VLOOKUP(AB7,gear_status[],2,FALSE))","v":""},null,null,{"$f":"IF(AE7=\"\",\"\",VLOOKUP(AE7,Lamp_install_reason[],2,FALSE))","v":""},null,{"$f":"IF(AG7=\"\",\"\",VLOOKUP(AG7,Asset_owner[],2,FALSE))","v":""},null,{"$f":"IF(AI7=\"\",\"\",VLOOKUP(AI7,risk_likelihood[],2,FALSE))","v":""},null,{"$f":"IF(AK7=\"\",\"\",VLOOKUP(AK7,risk_consequence[],2,FALSE))","v":""},null,{"$f":"IF(AM7=\"\",\"\",VLOOKUP(AM7,risk[],2,FALSE))","v":""},null,{"$f":"IF(AO7=\"\",\"\",VLOOKUP(AO7,rul_reset[],2,FALSE))","v":""},null,{"$f":"IF(AQ7=\"\",\"\",VLOOKUP(AQ7,use_default_rc[],2,FALSE))","v":""},null,{"$f":"IF(AS7=\"\",\"\",VLOOKUP(AS7,condition[],2,FALSE))","v":""},null,null,{"$f":"IF(AV7=\"\",\"\",VLOOKUP(AV7,Organisation[],2,FALSE))","v":""}]
["null",null,null,null,{"$f":"IF(D8=\"\",\"\",VLOOKUP(D8,light_make[],2,FALSE))","v":""},null,{"$f":"IF(F8=\"\",\"\",VLOOKUP(F8,light_model[],2,FALSE))","v":""},null,{"$f":"IF(H8=\"\",\"\",VLOOKUP(H8,supply_point[],2,FALSE))","v":""},null,{"$f":"IF(J8=\"\",\"\",VLOOKUP(J8,gear_make[],2,FALSE))","v":""},null,{"$f":"IF(L8=\"\",\"\",VLOOKUP(L8,gear_model[],2,FALSE))","v":""},null,{"$f":"IF(N8=\"\",\"\",VLOOKUP(N8,lamp_make[],2,FALSE))","v":""},null,{"$f":"IF(P8=\"\",\"\",VLOOKUP(P8,lamp_model[],2,FALSE))","v":""},null,null,null,null,{"$f":"IF(U8=\"\",\"\",VLOOKUP(U8,Light_install_reason[],2,FALSE))","v":""},null,{"$f":"IF(W8=\"\",\"\",VLOOKUP(W8,light_status[],2,FALSE))","v":""},null,null,{"$f":"IF(Z8=\"\",\"\",VLOOKUP(Z8,Gear_install_reason[],2,FALSE))","v":""},null,{"$f":"IF(AB8=\"\",\"\",VLOOKUP(AB8,gear_status[],2,FALSE))","v":""},null,null,{"$f":"IF(AE8=\"\",\"\",VLOOKUP(AE8,Lamp_install_reason[],2,FALSE))","v":""},null,{"$f":"IF(AG8=\"\",\"\",VLOOKUP(AG8,Asset_owner[],2,FALSE))","v":""},null,{"$f":"IF(AI8=\"\",\"\",VLOOKUP(AI8,risk_likelihood[],2,FALSE))","v":""},null,{"$f":"IF(AK8=\"\",\"\",VLOOKUP(AK8,risk_consequence[],2,FALSE))","v":""},null,{"$f":"IF(AM8=\"\",\"\",VLOOKUP(AM8,risk[],2,FALSE))","v":""},null,{"$f":"IF(AO8=\"\",\"\",VLOOKUP(AO8,rul_reset[],2,FALSE))","v":""},null,{"$f":"IF(AQ8=\"\",\"\",VLOOKUP(AQ8,use_default_rc[],2,FALSE))","v":""},null,{"$f":"IF(AS8=\"\",\"\",VLOOKUP(AS8,condition[],2,FALSE))","v":""},null,null,{"$f":"IF(AV8=\"\",\"\",VLOOKUP(AV8,Organisation[],2,FALSE))","v":""}]
["null",null,null,null,{"$f":"IF(D9=\"\",\"\",VLOOKUP(D9,light_make[],2,FALSE))","v":""},null,{"$f":"IF(F9=\"\",\"\",VLOOKUP(F9,light_model[],2,FALSE))","v":""},null,{"$f":"IF(H9=\"\",\"\",VLOOKUP(H9,supply_point[],2,FALSE))","v":""},null,{"$f":"IF(J9=\"\",\"\",VLOOKUP(J9,gear_make[],2,FALSE))","v":""},null,{"$f":"IF(L9=\"\",\"\",VLOOKUP(L9,gear_model[],2,FALSE))","v":""},null,{"$f":"IF(N9=\"\",\"\",VLOOKUP(N9,lamp_make[],2,FALSE))","v":""},null,{"$f":"IF(P9=\"\",\"\",VLOOKUP(P9,lamp_model[],2,FALSE))","v":""},null,null,null,null,{"$f":"IF(U9=\"\",\"\",VLOOKUP(U9,Light_install_reason[],2,FALSE))","v":""},null,{"$f":"IF(W9=\"\",\"\",VLOOKUP(W9,light_status[],2,FALSE))","v":""},null,null,{"$f":"IF(Z9=\"\",\"\",VLOOKUP(Z9,Gear_install_reason[],2,FALSE))","v":""},null,{"$f":"IF(AB9=\"\",\"\",VLOOKUP(AB9,gear_status[],2,FALSE))","v":""},null,null,{"$f":"IF(AE9=\"\",\"\",VLOOKUP(AE9,Lamp_install_reason[],2,FALSE))","v":""},null,{"$f":"IF(AG9=\"\",\"\",VLOOKUP(AG9,Asset_owner[],2,FALSE))","v":""},null,{"$f":"IF(AI9=\"\",\"\",VLOOKUP(AI9,risk_likelihood[],2,FALSE))","v":""},null,{"$f":"IF(AK9=\"\",\"\",VLOOKUP(AK9,risk_consequence[],2,FALSE))","v":""},null,{"$f":"IF(AM9=\"\",\"\",VLOOKUP(AM9,risk[],2,FALSE))","v":""},null,{"$f":"IF(AO9=\"\",\"\",VLOOKUP(AO9,rul_reset[],2,FALSE))","v":""},null,{"$f":"IF(AQ9=\"\",\"\",VLOOKUP(AQ9,use_default_rc[],2,FALSE))","v":""},null,{"$f":"IF(AS9=\"\",\"\",VLOOKUP(AS9,condition[],2,FALSE))","v":""},null,null,{"$f":"IF(AV9=\"\",\"\",VLOOKUP(AV9,Organisation[],2,FALSE))","v":""}]
["null",null,null,null,{"$f":"IF(D10=\"\",\"\",VLOOKUP(D10,light_make[],2,FALSE))","v":""},null,{"$f":"IF(F10=\"\",\"\",VLOOKUP(F10,light_model[],2,FALSE))","v":""},null,{"$f":"IF(H10=\"\",\"\",VLOOKUP(H10,supply_point[],2,FALSE))","v":""},null,{"$f":"IF(J10=\"\",\"\",VLOOKUP(J10,gear_make[],2,FALSE))","v":""},null,{"$f":"IF(L10=\"\",\"\",VLOOKUP(L10,gear_model[],2,FALSE))","v":""},null,{"$f":"IF(N10=\"\",\"\",VLOOKUP(N10,lamp_make[],2,FALSE))","v":""},null,{"$f":"IF(P10=\"\",\"\",VLOOKUP(P10,lamp_model[],2,FALSE))","v":""},null,null,null,null,{"$f":"IF(U10=\"\",\"\",VLOOKUP(U10,Light_install_reason[],2,FALSE))","v":""},null,{"$f":"IF(W10=\"\",\"\",VLOOKUP(W10,light_status[],2,FALSE))","v":""},null,null,{"$f":"IF(Z10=\"\",\"\",VLOOKUP(Z10,Gear_install_reason[],2,FALSE))","v":""},null,{"$f":"IF(AB10=\"\",\"\",VLOOKUP(AB10,gear_status[],2,FALSE))","v":""},null,null,{"$f":"IF(AE10=\"\",\"\",VLOOKUP(AE10,Lamp_install_reason[],2,FALSE))","v":""},null,{"$f":"IF(AG10=\"\",\"\",VLOOKUP(AG10,Asset_owner[],2,FALSE))","v":""},null,{"$f":"IF(AI10=\"\",\"\",VLOOKUP(AI10,risk_likelihood[],2,FALSE))","v":""},null,{"$f":"IF(AK10=\"\",\"\",VLOOKUP(AK10,risk_consequence[],2,FALSE))","v":""},null,{"$f":"IF(AM10=\"\",\"\",VLOOKUP(AM10,risk[],2,FALSE))","v":""},null,{"$f":"IF(AO10=\"\",\"\",VLOOKUP(AO10,rul_reset[],2,FALSE))","v":""},null,{"$f":"IF(AQ10=\"\",\"\",VLOOKUP(AQ10,use_default_rc[],2,FALSE))","v":""},null,{"$f":"IF(AS10=\"\",\"\",VLOOKUP(AS10,condition[],2,FALSE))","v":""},null,null,{"$f":"IF(AV10=\"\",\"\",VLOOKUP(AV10,Organisation[],2,FALSE))","v":""}]
["null",null,null,null,{"$f":"IF(D11=\"\",\"\",VLOOKUP(D11,light_make[],2,FALSE))","v":""},null,{"$f":"IF(F11=\"\",\"\",VLOOKUP(F11,light_model[],2,FALSE))","v":""},null,{"$f":"IF(H11=\"\",\"\",VLOOKUP(H11,supply_point[],2,FALSE))","v":""},null,{"$f":"IF(J11=\"\",\"\",VLOOKUP(J11,gear_make[],2,FALSE))","v":""},null,{"$f":"IF(L11=\"\",\"\",VLOOKUP(L11,gear_model[],2,FALSE))","v":""},null,{"$f":"IF(N11=\"\",\"\",VLOOKUP(N11,lamp_make[],2,FALSE))","v":""},null,{"$f":"IF(P11=\"\",\"\",VLOOKUP(P11,lamp_model[],2,FALSE))","v":""},null,null,null,null,{"$f":"IF(U11=\"\",\"\",VLOOKUP(U11,Light_install_reason[],2,FALSE))","v":""},null,{"$f":"IF(W11=\"\",\"\",VLOOKUP(W11,light_status[],2,FALSE))","v":""},null,null,{"$f":"IF(Z11=\"\",\"\",VLOOKUP(Z11,Gear_install_reason[],2,FALSE))","v":""},null,{"$f":"IF(AB11=\"\",\"\",VLOOKUP(AB11,gear_status[],2,FALSE))","v":""},null,null,{"$f":"IF(AE11=\"\",\"\",VLOOKUP(AE11,Lamp_install_reason[],2,FALSE))","v":""},null,{"$f":"IF(AG11=\"\",\"\",VLOOKUP(AG11,Asset_owner[],2,FALSE))","v":""},null,{"$f":"IF(AI11=\"\",\"\",VLOOKUP(AI11,risk_likelihood[],2,FALSE))","v":""},null,{"$f":"IF(AK11=\"\",\"\",VLOOKUP(AK11,risk_consequence[],2,FALSE))","v":""},null,{"$f":"IF(AM11=\"\",\"\",VLOOKUP(AM11,risk[],2,FALSE))","v":""},null,{"$f":"IF(AO11=\"\",\"\",VLOOKUP(AO11,rul_reset[],2,FALSE))","v":""},null,{"$f":"IF(AQ11=\"\",\"\",VLOOKUP(AQ11,use_default_rc[],2,FALSE))","v":""},null,{"$f":"IF(AS11=\"\",\"\",VLOOKUP(AS11,condition[],2,FALSE))","v":""},null,null,{"$f":"IF(AV11=\"\",\"\",VLOOKUP(AV11,Organisation[],2,FALSE))","v":""}]
["null",null,null,null,{"$f":"IF(D12=\"\",\"\",VLOOKUP(D12,light_make[],2,FALSE))","v":""},null,{"$f":"IF(F12=\"\",\"\",VLOOKUP(F12,light_model[],2,FALSE))","v":""},null,{"$f":"IF(H12=\"\",\"\",VLOOKUP(H12,supply_point[],2,FALSE))","v":""},null,{"$f":"IF(J12=\"\",\"\",VLOOKUP(J12,gear_make[],2,FALSE))","v":""},null,{"$f":"IF(L12=\"\",\"\",VLOOKUP(L12,gear_model[],2,FALSE))","v":""},null,{"$f":"IF(N12=\"\",\"\",VLOOKUP(N12,lamp_make[],2,FALSE))","v":""},null,{"$f":"IF(P12=\"\",\"\",VLOOKUP(P12,lamp_model[],2,FALSE))","v":""},null,null,null,null,{"$f":"IF(U12=\"\",\"\",VLOOKUP(U12,Light_install_reason[],2,FALSE))","v":""},null,{"$f":"IF(W12=\"\",\"\",VLOOKUP(W12,light_status[],2,FALSE))","v":""},null,null,{"$f":"IF(Z12=\"\",\"\",VLOOKUP(Z12,Gear_install_reason[],2,FALSE))","v":""},null,{"$f":"IF(AB12=\"\",\"\",VLOOKUP(AB12,gear_status[],2,FALSE))","v":""},null,null,{"$f":"IF(AE12=\"\",\"\",VLOOKUP(AE12,Lamp_install_reason[],2,FALSE))","v":""},null,{"$f":"IF(AG12=\"\",\"\",VLOOKUP(AG12,Asset_owner[],2,FALSE))","v":""},null,{"$f":"IF(AI12=\"\",\"\",VLOOKUP(AI12,risk_likelihood[],2,FALSE))","v":""},null,{"$f":"IF(AK12=\"\",\"\",VLOOKUP(AK12,risk_consequence[],2,FALSE))","v":""},null,{"$f":"IF(AM12=\"\",\"\",VLOOKUP(AM12,risk[],2,FALSE))","v":""},null,{"$f":"IF(AO12=\"\",\"\",VLOOKUP(AO12,rul_reset[],2,FALSE))","v":""},null,{"$f":"IF(AQ12=\"\",\"\",VLOOKUP(AQ12,use_default_rc[],2,FALSE))","v":""},null,{"$f":"IF(AS12=\"\",\"\",VLOOKUP(AS12,condition[],2,FALSE))","v":""},null,null,{"$f":"IF(AV12=\"\",\"\",VLOOKUP(AV12,Organisation[],2,FALSE))","v":""}]
["null",null,null,null,{"$f":"IF(D13=\"\",\"\",VLOOKUP(D13,light_make[],2,FALSE))","v":""},null,{"$f":"IF(F13=\"\",\"\",VLOOKUP(F13,light_model[],2,FALSE))","v":""},null,{"$f":"IF(H13=\"\",\"\",VLOOKUP(H13,supply_point[],2,FALSE))","v":""},null,{"$f":"IF(J13=\"\",\"\",VLOOKUP(J13,gear_make[],2,FALSE))","v":""},null,{"$f":"IF(L13=\"\",\"\",VLOOKUP(L13,gear_model[],2,FALSE))","v":""},null,{"$f":"IF(N13=\"\",\"\",VLOOKUP(N13,lamp_make[],2,FALSE))","v":""},null,{"$f":"IF(P13=\"\",\"\",VLOOKUP(P13,lamp_model[],2,FALSE))","v":""},null,null,null,null,{"$f":"IF(U13=\"\",\"\",VLOOKUP(U13,Light_install_reason[],2,FALSE))","v":""},null,{"$f":"IF(W13=\"\",\"\",VLOOKUP(W13,light_status[],2,FALSE))","v":""},null,null,{"$f":"IF(Z13=\"\",\"\",VLOOKUP(Z13,Gear_install_reason[],2,FALSE))","v":""},null,{"$f":"IF(AB13=\"\",\"\",VLOOKUP(AB13,gear_status[],2,FALSE))","v":""},null,null,{"$f":"IF(AE13=\"\",\"\",VLOOKUP(AE13,Lamp_install_reason[],2,FALSE))","v":""},null,{"$f":"IF(AG13=\"\",\"\",VLOOKUP(AG13,Asset_owner[],2,FALSE))","v":""},null,{"$f":"IF(AI13=\"\",\"\",VLOOKUP(AI13,risk_likelihood[],2,FALSE))","v":""},null,{"$f":"IF(AK13=\"\",\"\",VLOOKUP(AK13,risk_consequence[],2,FALSE))","v":""},null,{"$f":"IF(AM13=\"\",\"\",VLOOKUP(AM13,risk[],2,FALSE))","v":""},null,{"$f":"IF(AO13=\"\",\"\",VLOOKUP(AO13,rul_reset[],2,FALSE))","v":""},null,{"$f":"IF(AQ13=\"\",\"\",VLOOKUP(AQ13,use_default_rc[],2,FALSE))","v":""},null,{"$f":"IF(AS13=\"\",\"\",VLOOKUP(AS13,condition[],2,FALSE))","v":""},null,null,{"$f":"IF(AV13=\"\",\"\",VLOOKUP(AV13,Organisation[],2,FALSE))","v":""}]
["null",null,null,null,{"$f":"IF(D14=\"\",\"\",VLOOKUP(D14,light_make[],2,FALSE))","v":""},null,{"$f":"IF(F14=\"\",\"\",VLOOKUP(F14,light_model[],2,FALSE))","v":""},null,{"$f":"IF(H14=\"\",\"\",VLOOKUP(H14,supply_point[],2,FALSE))","v":""},null,{"$f":"IF(J14=\"\",\"\",VLOOKUP(J14,gear_make[],2,FALSE))","v":""},null,{"$f":"IF(L14=\"\",\"\",VLOOKUP(L14,gear_model[],2,FALSE))","v":""},null,{"$f":"IF(N14=\"\",\"\",VLOOKUP(N14,lamp_make[],2,FALSE))","v":""},null,{"$f":"IF(P14=\"\",\"\",VLOOKUP(P14,lamp_model[],2,FALSE))","v":""},null,null,null,null,{"$f":"IF(U14=\"\",\"\",VLOOKUP(U14,Light_install_reason[],2,FALSE))","v":""},null,{"$f":"IF(W14=\"\",\"\",VLOOKUP(W14,light_status[],2,FALSE))","v":""},null,null,{"$f":"IF(Z14=\"\",\"\",VLOOKUP(Z14,Gear_install_reason[],2,FALSE))","v":""},null,{"$f":"IF(AB14=\"\",\"\",VLOOKUP(AB14,gear_status[],2,FALSE))","v":""},null,null,{"$f":"IF(AE14=\"\",\"\",VLOOKUP(AE14,Lamp_install_reason[],2,FALSE))","v":""},null,{"$f":"IF(AG14=\"\",\"\",VLOOKUP(AG14,Asset_owner[],2,FALSE))","v":""},null,{"$f":"IF(AI14=\"\",\"\",VLOOKUP(AI14,risk_likelihood[],2,FALSE))","v":""},null,{"$f":"IF(AK14=\"\",\"\",VLOOKUP(AK14,risk_consequence[],2,FALSE))","v":""},null,{"$f":"IF(AM14=\"\",\"\",VLOOKUP(AM14,risk[],2,FALSE))","v":""},null,{"$f":"IF(AO14=\"\",\"\",VLOOKUP(AO14,rul_reset[],2,FALSE))","v":""},null,{"$f":"IF(AQ14=\"\",\"\",VLOOKUP(AQ14,use_default_rc[],2,FALSE))","v":""},null,{"$f":"IF(AS14=\"\",\"\",VLOOKUP(AS14,condition[],2,FALSE))","v":""},null,null,{"$f":"IF(AV14=\"\",\"\",VLOOKUP(AV14,Organisation[],2,FALSE))","v":""}]
["null",null,null,null,{"$f":"IF(D15=\"\",\"\",VLOOKUP(D15,light_make[],2,FALSE))","v":""},null,{"$f":"IF(F15=\"\",\"\",VLOOKUP(F15,light_model[],2,FALSE))","v":""},null,{"$f":"IF(H15=\"\",\"\",VLOOKUP(H15,supply_point[],2,FALSE))","v":""},null,{"$f":"IF(J15=\"\",\"\",VLOOKUP(J15,gear_make[],2,FALSE))","v":""},null,{"$f":"IF(L15=\"\",\"\",VLOOKUP(L15,gear_model[],2,FALSE))","v":""},null,{"$f":"IF(N15=\"\",\"\",VLOOKUP(N15,lamp_make[],2,FALSE))","v":""},null,{"$f":"IF(P15=\"\",\"\",VLOOKUP(P15,lamp_model[],2,FALSE))","v":""},null,null,null,null,{"$f":"IF(U15=\"\",\"\",VLOOKUP(U15,Light_install_reason[],2,FALSE))","v":""},null,{"$f":"IF(W15=\"\",\"\",VLOOKUP(W15,light_status[],2,FALSE))","v":""},null,null,{"$f":"IF(Z15=\"\",\"\",VLOOKUP(Z15,Gear_install_reason[],2,FALSE))","v":""},null,{"$f":"IF(AB15=\"\",\"\",VLOOKUP(AB15,gear_status[],2,FALSE))","v":""},null,null,{"$f":"IF(AE15=\"\",\"\",VLOOKUP(AE15,Lamp_install_reason[],2,FALSE))","v":""},null,{"$f":"IF(AG15=\"\",\"\",VLOOKUP(AG15,Asset_owner[],2,FALSE))","v":""},null,{"$f":"IF(AI15=\"\",\"\",VLOOKUP(AI15,risk_likelihood[],2,FALSE))","v":""},null,{"$f":"IF(AK15=\"\",\"\",VLOOKUP(AK15,risk_consequence[],2,FALSE))","v":""},null,{"$f":"IF(AM15=\"\",\"\",VLOOKUP(AM15,risk[],2,FALSE))","v":""},null,{"$f":"IF(AO15=\"\",\"\",VLOOKUP(AO15,rul_reset[],2,FALSE))","v":""},null,{"$f":"IF(AQ15=\"\",\"\",VLOOKUP(AQ15,use_default_rc[],2,FALSE))","v":""},null,{"$f":"IF(AS15=\"\",\"\",VLOOKUP(AS15,condition[],2,FALSE))","v":""},null,null,{"$f":"IF(AV15=\"\",\"\",VLOOKUP(AV15,Organisation[],2,FALSE))","v":""}]
["null",null,null,null,{"$f":"IF(D16=\"\",\"\",VLOOKUP(D16,light_make[],2,FALSE))","v":""},null,{"$f":"IF(F16=\"\",\"\",VLOOKUP(F16,light_model[],2,FALSE))","v":""},null,{"$f":"IF(H16=\"\",\"\",VLOOKUP(H16,supply_point[],2,FALSE))","v":""},null,{"$f":"IF(J16=\"\",\"\",VLOOKUP(J16,gear_make[],2,FALSE))","v":""},null,{"$f":"IF(L16=\"\",\"\",VLOOKUP(L16,gear_model[],2,FALSE))","v":""},null,{"$f":"IF(N16=\"\",\"\",VLOOKUP(N16,lamp_make[],2,FALSE))","v":""},null,{"$f":"IF(P16=\"\",\"\",VLOOKUP(P16,lamp_model[],2,FALSE))","v":""},null,null,null,null,{"$f":"IF(U16=\"\",\"\",VLOOKUP(U16,Light_install_reason[],2,FALSE))","v":""},null,{"$f":"IF(W16=\"\",\"\",VLOOKUP(W16,light_status[],2,FALSE))","v":""},null,null,{"$f":"IF(Z16=\"\",\"\",VLOOKUP(Z16,Gear_install_reason[],2,FALSE))","v":""},null,{"$f":"IF(AB16=\"\",\"\",VLOOKUP(AB16,gear_status[],2,FALSE))","v":""},null,null,{"$f":"IF(AE16=\"\",\"\",VLOOKUP(AE16,Lamp_install_reason[],2,FALSE))","v":""},null,{"$f":"IF(AG16=\"\",\"\",VLOOKUP(AG16,Asset_owner[],2,FALSE))","v":""},null,{"$f":"IF(AI16=\"\",\"\",VLOOKUP(AI16,risk_likelihood[],2,FALSE))","v":""},null,{"$f":"IF(AK16=\"\",\"\",VLOOKUP(AK16,risk_consequence[],2,FALSE))","v":""},null,{"$f":"IF(AM16=\"\",\"\",VLOOKUP(AM16,risk[],2,FALSE))","v":""},null,{"$f":"IF(AO16=\"\",\"\",VLOOKUP(AO16,rul_reset[],2,FALSE))","v":""},null,{"$f":"IF(AQ16=\"\",\"\",VLOOKUP(AQ16,use_default_rc[],2,FALSE))","v":""},null,{"$f":"IF(AS16=\"\",\"\",VLOOKUP(AS16,condition[],2,FALSE))","v":""},null,null,{"$f":"IF(AV16=\"\",\"\",VLOOKUP(AV16,Organisation[],2,FALSE))","v":""}]
["null",null,null,null,{"$f":"IF(D17=\"\",\"\",VLOOKUP(D17,light_make[],2,FALSE))","v":""},null,{"$f":"IF(F17=\"\",\"\",VLOOKUP(F17,light_model[],2,FALSE))","v":""},null,{"$f":"IF(H17=\"\",\"\",VLOOKUP(H17,supply_point[],2,FALSE))","v":""},null,{"$f":"IF(J17=\"\",\"\",VLOOKUP(J17,gear_make[],2,FALSE))","v":""},null,{"$f":"IF(L17=\"\",\"\",VLOOKUP(L17,gear_model[],2,FALSE))","v":""},null,{"$f":"IF(N17=\"\",\"\",VLOOKUP(N17,lamp_make[],2,FALSE))","v":""},null,{"$f":"IF(P17=\"\",\"\",VLOOKUP(P17,lamp_model[],2,FALSE))","v":""},null,null,null,null,{"$f":"IF(U17=\"\",\"\",VLOOKUP(U17,Light_install_reason[],2,FALSE))","v":""},null,{"$f":"IF(W17=\"\",\"\",VLOOKUP(W17,light_status[],2,FALSE))","v":""},null,null,{"$f":"IF(Z17=\"\",\"\",VLOOKUP(Z17,Gear_install_reason[],2,FALSE))","v":""},null,{"$f":"IF(AB17=\"\",\"\",VLOOKUP(AB17,gear_status[],2,FALSE))","v":""},null,null,{"$f":"IF(AE17=\"\",\"\",VLOOKUP(AE17,Lamp_install_reason[],2,FALSE))","v":""},null,{"$f":"IF(AG17=\"\",\"\",VLOOKUP(AG17,Asset_owner[],2,FALSE))","v":""},null,{"$f":"IF(AI17=\"\",\"\",VLOOKUP(AI17,risk_likelihood[],2,FALSE))","v":""},null,{"$f":"IF(AK17=\"\",\"\",VLOOKUP(AK17,risk_consequence[],2,FALSE))","v":""},null,{"$f":"IF(AM17=\"\",\"\",VLOOKUP(AM17,risk[],2,FALSE))","v":""},null,{"$f":"IF(AO17=\"\",\"\",VLOOKUP(AO17,rul_reset[],2,FALSE))","v":""},null,{"$f":"IF(AQ17=\"\",\"\",VLOOKUP(AQ17,use_default_rc[],2,FALSE))","v":""},null,{"$f":"IF(AS17=\"\",\"\",VLOOKUP(AS17,condition[],2,FALSE))","v":""},null,null,{"$f":"IF(AV17=\"\",\"\",VLOOKUP(AV17,Organisation[],2,FALSE))","v":""}]
["null",null,null,null,{"$f":"IF(D18=\"\",\"\",VLOOKUP(D18,light_make[],2,FALSE))","v":""},null,{"$f":"IF(F18=\"\",\"\",VLOOKUP(F18,light_model[],2,FALSE))","v":""},null,{"$f":"IF(H18=\"\",\"\",VLOOKUP(H18,supply_point[],2,FALSE))","v":""},null,{"$f":"IF(J18=\"\",\"\",VLOOKUP(J18,gear_make[],2,FALSE))","v":""},null,{"$f":"IF(L18=\"\",\"\",VLOOKUP(L18,gear_model[],2,FALSE))","v":""},null,{"$f":"IF(N18=\"\",\"\",VLOOKUP(N18,lamp_make[],2,FALSE))","v":""},null,{"$f":"IF(P18=\"\",\"\",VLOOKUP(P18,lamp_model[],2,FALSE))","v":""},null,null,null,null,{"$f":"IF(U18=\"\",\"\",VLOOKUP(U18,Light_install_reason[],2,FALSE))","v":""},null,{"$f":"IF(W18=\"\",\"\",VLOOKUP(W18,light_status[],2,FALSE))","v":""},null,null,{"$f":"IF(Z18=\"\",\"\",VLOOKUP(Z18,Gear_install_reason[],2,FALSE))","v":""},null,{"$f":"IF(AB18=\"\",\"\",VLOOKUP(AB18,gear_status[],2,FALSE))","v":""},null,null,{"$f":"IF(AE18=\"\",\"\",VLOOKUP(AE18,Lamp_install_reason[],2,FALSE))","v":""},null,{"$f":"IF(AG18=\"\",\"\",VLOOKUP(AG18,Asset_owner[],2,FALSE))","v":""},null,{"$f":"IF(AI18=\"\",\"\",VLOOKUP(AI18,risk_likelihood[],2,FALSE))","v":""},null,{"$f":"IF(AK18=\"\",\"\",VLOOKUP(AK18,risk_consequence[],2,FALSE))","v":""},null,{"$f":"IF(AM18=\"\",\"\",VLOOKUP(AM18,risk[],2,FALSE))","v":""},null,{"$f":"IF(AO18=\"\",\"\",VLOOKUP(AO18,rul_reset[],2,FALSE))","v":""},null,{"$f":"IF(AQ18=\"\",\"\",VLOOKUP(AQ18,use_default_rc[],2,FALSE))","v":""},null,{"$f":"IF(AS18=\"\",\"\",VLOOKUP(AS18,condition[],2,FALSE))","v":""},null,null,{"$f":"IF(AV18=\"\",\"\",VLOOKUP(AV18,Organisation[],2,FALSE))","v":""}]
["null",null,null,null,{"$f":"IF(D19=\"\",\"\",VLOOKUP(D19,light_make[],2,FALSE))","v":""},null,{"$f":"IF(F19=\"\",\"\",VLOOKUP(F19,light_model[],2,FALSE))","v":""},null,{"$f":"IF(H19=\"\",\"\",VLOOKUP(H19,supply_point[],2,FALSE))","v":""},null,{"$f":"IF(J19=\"\",\"\",VLOOKUP(J19,gear_make[],2,FALSE))","v":""},null,{"$f":"IF(L19=\"\",\"\",VLOOKUP(L19,gear_model[],2,FALSE))","v":""},null,{"$f":"IF(N19=\"\",\"\",VLOOKUP(N19,lamp_make[],2,FALSE))","v":""},null,{"$f":"IF(P19=\"\",\"\",VLOOKUP(P19,lamp_model[],2,FALSE))","v":""},null,null,null,null,{"$f":"IF(U19=\"\",\"\",VLOOKUP(U19,Light_install_reason[],2,FALSE))","v":""},null,{"$f":"IF(W19=\"\",\"\",VLOOKUP(W19,light_status[],2,FALSE))","v":""},null,null,{"$f":"IF(Z19=\"\",\"\",VLOOKUP(Z19,Gear_install_reason[],2,FALSE))","v":""},null,{"$f":"IF(AB19=\"\",\"\",VLOOKUP(AB19,gear_status[],2,FALSE))","v":""},null,null,{"$f":"IF(AE19=\"\",\"\",VLOOKUP(AE19,Lamp_install_reason[],2,FALSE))","v":""},null,{"$f":"IF(AG19=\"\",\"\",VLOOKUP(AG19,Asset_owner[],2,FALSE))","v":""},null,{"$f":"IF(AI19=\"\",\"\",VLOOKUP(AI19,risk_likelihood[],2,FALSE))","v":""},null,{"$f":"IF(AK19=\"\",\"\",VLOOKUP(AK19,risk_consequence[],2,FALSE))","v":""},null,{"$f":"IF(AM19=\"\",\"\",VLOOKUP(AM19,risk[],2,FALSE))","v":""},null,{"$f":"IF(AO19=\"\",\"\",VLOOKUP(AO19,rul_reset[],2,FALSE))","v":""},null,{"$f":"IF(AQ19=\"\",\"\",VLOOKUP(AQ19,use_default_rc[],2,FALSE))","v":""},null,{"$f":"IF(AS19=\"\",\"\",VLOOKUP(AS19,condition[],2,FALSE))","v":""},null,null,{"$f":"IF(AV19=\"\",\"\",VLOOKUP(AV19,Organisation[],2,FALSE))","v":""}]
["null",null,null,null,{"$f":"IF(D20=\"\",\"\",VLOOKUP(D20,light_make[],2,FALSE))","v":""},null,{"$f":"IF(F20=\"\",\"\",VLOOKUP(F20,light_model[],2,FALSE))","v":""},null,{"$f":"IF(H20=\"\",\"\",VLOOKUP(H20,supply_point[],2,FALSE))","v":""},null,{"$f":"IF(J20=\"\",\"\",VLOOKUP(J20,gear_make[],2,FALSE))","v":""},null,{"$f":"IF(L20=\"\",\"\",VLOOKUP(L20,gear_model[],2,FALSE))","v":""},null,{"$f":"IF(N20=\"\",\"\",VLOOKUP(N20,lamp_make[],2,FALSE))","v":""},null,{"$f":"IF(P20=\"\",\"\",VLOOKUP(P20,lamp_model[],2,FALSE))","v":""},null,null,null,null,{"$f":"IF(U20=\"\",\"\",VLOOKUP(U20,Light_install_reason[],2,FALSE))","v":""},null,{"$f":"IF(W20=\"\",\"\",VLOOKUP(W20,light_status[],2,FALSE))","v":""},null,null,{"$f":"IF(Z20=\"\",\"\",VLOOKUP(Z20,Gear_install_reason[],2,FALSE))","v":""},null,{"$f":"IF(AB20=\"\",\"\",VLOOKUP(AB20,gear_status[],2,FALSE))","v":""},null,null,{"$f":"IF(AE20=\"\",\"\",VLOOKUP(AE20,Lamp_install_reason[],2,FALSE))","v":""},null,{"$f":"IF(AG20=\"\",\"\",VLOOKUP(AG20,Asset_owner[],2,FALSE))","v":""},null,{"$f":"IF(AI20=\"\",\"\",VLOOKUP(AI20,risk_likelihood[],2,FALSE))","v":""},null,{"$f":"IF(AK20=\"\",\"\",VLOOKUP(AK20,risk_consequence[],2,FALSE))","v":""},null,{"$f":"IF(AM20=\"\",\"\",VLOOKUP(AM20,risk[],2,FALSE))","v":""},null,{"$f":"IF(AO20=\"\",\"\",VLOOKUP(AO20,rul_reset[],2,FALSE))","v":""},null,{"$f":"IF(AQ20=\"\",\"\",VLOOKUP(AQ20,use_default_rc[],2,FALSE))","v":""},null,{"$f":"IF(AS20=\"\",\"\",VLOOKUP(AS20,condition[],2,FALSE))","v":""},null,null,{"$f":"IF(AV20=\"\",\"\",VLOOKUP(AV20,Organisation[],2,FALSE))","v":""}]
["null",null,null,null,{"$f":"IF(D21=\"\",\"\",VLOOKUP(D21,light_make[],2,FALSE))","v":""},null,{"$f":"IF(F21=\"\",\"\",VLOOKUP(F21,light_model[],2,FALSE))","v":""},null,{"$f":"IF(H21=\"\",\"\",VLOOKUP(H21,supply_point[],2,FALSE))","v":""},null,{"$f":"IF(J21=\"\",\"\",VLOOKUP(J21,gear_make[],2,FALSE))","v":""},null,{"$f":"IF(L21=\"\",\"\",VLOOKUP(L21,gear_model[],2,FALSE))","v":""},null,{"$f":"IF(N21=\"\",\"\",VLOOKUP(N21,lamp_make[],2,FALSE))","v":""},null,{"$f":"IF(P21=\"\",\"\",VLOOKUP(P21,lamp_model[],2,FALSE))","v":""},null,null,null,null,{"$f":"IF(U21=\"\",\"\",VLOOKUP(U21,Light_install_reason[],2,FALSE))","v":""},null,{"$f":"IF(W21=\"\",\"\",VLOOKUP(W21,light_status[],2,FALSE))","v":""},null,null,{"$f":"IF(Z21=\"\",\"\",VLOOKUP(Z21,Gear_install_reason[],2,FALSE))","v":""},null,{"$f":"IF(AB21=\"\",\"\",VLOOKUP(AB21,gear_status[],2,FALSE))","v":""},null,null,{"$f":"IF(AE21=\"\",\"\",VLOOKUP(AE21,Lamp_install_reason[],2,FALSE))","v":""},null,{"$f":"IF(AG21=\"\",\"\",VLOOKUP(AG21,Asset_owner[],2,FALSE))","v":""},null,{"$f":"IF(AI21=\"\",\"\",VLOOKUP(AI21,risk_likelihood[],2,FALSE))","v":""},null,{"$f":"IF(AK21=\"\",\"\",VLOOKUP(AK21,risk_consequence[],2,FALSE))","v":""},null,{"$f":"IF(AM21=\"\",\"\",VLOOKUP(AM21,risk[],2,FALSE))","v":""},null,{"$f":"IF(AO21=\"\",\"\",VLOOKUP(AO21,rul_reset[],2,FALSE))","v":""},null,{"$f":"IF(AQ21=\"\",\"\",VLOOKUP(AQ21,use_default_rc[],2,FALSE))","v":""},null,{"$f":"IF(AS21=\"\",\"\",VLOOKUP(AS21,condition[],2,FALSE))","v":""},null,null,{"$f":"IF(AV21=\"\",\"\",VLOOKUP(AV21,Organisation[],2,FALSE))","v":""}]
["null",null,null,null,{"$f":"IF(D22=\"\",\"\",VLOOKUP(D22,light_make[],2,FALSE))","v":""},null,{"$f":"IF(F22=\"\",\"\",VLOOKUP(F22,light_model[],2,FALSE))","v":""},null,{"$f":"IF(H22=\"\",\"\",VLOOKUP(H22,supply_point[],2,FALSE))","v":""},null,{"$f":"IF(J22=\"\",\"\",VLOOKUP(J22,gear_make[],2,FALSE))","v":""},null,{"$f":"IF(L22=\"\",\"\",VLOOKUP(L22,gear_model[],2,FALSE))","v":""},null,{"$f":"IF(N22=\"\",\"\",VLOOKUP(N22,lamp_make[],2,FALSE))","v":""},null,{"$f":"IF(P22=\"\",\"\",VLOOKUP(P22,lamp_model[],2,FALSE))","v":""},null,null,null,null,{"$f":"IF(U22=\"\",\"\",VLOOKUP(U22,Light_install_reason[],2,FALSE))","v":""},null,{"$f":"IF(W22=\"\",\"\",VLOOKUP(W22,light_status[],2,FALSE))","v":""},null,null,{"$f":"IF(Z22=\"\",\"\",VLOOKUP(Z22,Gear_install_reason[],2,FALSE))","v":""},null,{"$f":"IF(AB22=\"\",\"\",VLOOKUP(AB22,gear_status[],2,FALSE))","v":""},null,null,{"$f":"IF(AE22=\"\",\"\",VLOOKUP(AE22,Lamp_install_reason[],2,FALSE))","v":""},null,{"$f":"IF(AG22=\"\",\"\",VLOOKUP(AG22,Asset_owner[],2,FALSE))","v":""},null,{"$f":"IF(AI22=\"\",\"\",VLOOKUP(AI22,risk_likelihood[],2,FALSE))","v":""},null,{"$f":"IF(AK22=\"\",\"\",VLOOKUP(AK22,risk_consequence[],2,FALSE))","v":""},null,{"$f":"IF(AM22=\"\",\"\",VLOOKUP(AM22,risk[],2,FALSE))","v":""},null,{"$f":"IF(AO22=\"\",\"\",VLOOKUP(AO22,rul_reset[],2,FALSE))","v":""},null,{"$f":"IF(AQ22=\"\",\"\",VLOOKUP(AQ22,use_default_rc[],2,FALSE))","v":""},null,{"$f":"IF(AS22=\"\",\"\",VLOOKUP(AS22,condition[],2,FALSE))","v":""},null,null,{"$f":"IF(AV22=\"\",\"\",VLOOKUP(AV22,Organisation[],2,FALSE))","v":""}]
["null",null,null,null,{"$f":"IF(D23=\"\",\"\",VLOOKUP(D23,light_make[],2,FALSE))","v":""},null,{"$f":"IF(F23=\"\",\"\",VLOOKUP(F23,light_model[],2,FALSE))","v":""},null,{"$f":"IF(H23=\"\",\"\",VLOOKUP(H23,supply_point[],2,FALSE))","v":""},null,{"$f":"IF(J23=\"\",\"\",VLOOKUP(J23,gear_make[],2,FALSE))","v":""},null,{"$f":"IF(L23=\"\",\"\",VLOOKUP(L23,gear_model[],2,FALSE))","v":""},null,{"$f":"IF(N23=\"\",\"\",VLOOKUP(N23,lamp_make[],2,FALSE))","v":""},null,{"$f":"IF(P23=\"\",\"\",VLOOKUP(P23,lamp_model[],2,FALSE))","v":""},null,null,null,null,{"$f":"IF(U23=\"\",\"\",VLOOKUP(U23,Light_install_reason[],2,FALSE))","v":""},null,{"$f":"IF(W23=\"\",\"\",VLOOKUP(W23,light_status[],2,FALSE))","v":""},null,null,{"$f":"IF(Z23=\"\",\"\",VLOOKUP(Z23,Gear_install_reason[],2,FALSE))","v":""},null,{"$f":"IF(AB23=\"\",\"\",VLOOKUP(AB23,gear_status[],2,FALSE))","v":""},null,null,{"$f":"IF(AE23=\"\",\"\",VLOOKUP(AE23,Lamp_install_reason[],2,FALSE))","v":""},null,{"$f":"IF(AG23=\"\",\"\",VLOOKUP(AG23,Asset_owner[],2,FALSE))","v":""},null,{"$f":"IF(AI23=\"\",\"\",VLOOKUP(AI23,risk_likelihood[],2,FALSE))","v":""},null,{"$f":"IF(AK23=\"\",\"\",VLOOKUP(AK23,risk_consequence[],2,FALSE))","v":""},null,{"$f":"IF(AM23=\"\",\"\",VLOOKUP(AM23,risk[],2,FALSE))","v":""},null,{"$f":"IF(AO23=\"\",\"\",VLOOKUP(AO23,rul_reset[],2,FALSE))","v":""},null,{"$f":"IF(AQ23=\"\",\"\",VLOOKUP(AQ23,use_default_rc[],2,FALSE))","v":""},null,{"$f":"IF(AS23=\"\",\"\",VLOOKUP(AS23,condition[],2,FALSE))","v":""},null,null,{"$f":"IF(AV23=\"\",\"\",VLOOKUP(AV23,Organisation[],2,FALSE))","v":""}]
["null",null,null,null,{"$f":"IF(D24=\"\",\"\",VLOOKUP(D24,light_make[],2,FALSE))","v":""},null,{"$f":"IF(F24=\"\",\"\",VLOOKUP(F24,light_model[],2,FALSE))","v":""},null,{"$f":"IF(H24=\"\",\"\",VLOOKUP(H24,supply_point[],2,FALSE))","v":""},null,{"$f":"IF(J24=\"\",\"\",VLOOKUP(J24,gear_make[],2,FALSE))","v":""},null,{"$f":"IF(L24=\"\",\"\",VLOOKUP(L24,gear_model[],2,FALSE))","v":""},null,{"$f":"IF(N24=\"\",\"\",VLOOKUP(N24,lamp_make[],2,FALSE))","v":""},null,{"$f":"IF(P24=\"\",\"\",VLOOKUP(P24,lamp_model[],2,FALSE))","v":""},null,null,null,null,{"$f":"IF(U24=\"\",\"\",VLOOKUP(U24,Light_install_reason[],2,FALSE))","v":""},null,{"$f":"IF(W24=\"\",\"\",VLOOKUP(W24,light_status[],2,FALSE))","v":""},null,null,{"$f":"IF(Z24=\"\",\"\",VLOOKUP(Z24,Gear_install_reason[],2,FALSE))","v":""},null,{"$f":"IF(AB24=\"\",\"\",VLOOKUP(AB24,gear_status[],2,FALSE))","v":""},null,null,{"$f":"IF(AE24=\"\",\"\",VLOOKUP(AE24,Lamp_install_reason[],2,FALSE))","v":""},null,{"$f":"IF(AG24=\"\",\"\",VLOOKUP(AG24,Asset_owner[],2,FALSE))","v":""},null,{"$f":"IF(AI24=\"\",\"\",VLOOKUP(AI24,risk_likelihood[],2,FALSE))","v":""},null,{"$f":"IF(AK24=\"\",\"\",VLOOKUP(AK24,risk_consequence[],2,FALSE))","v":""},null,{"$f":"IF(AM24=\"\",\"\",VLOOKUP(AM24,risk[],2,FALSE))","v":""},null,{"$f":"IF(AO24=\"\",\"\",VLOOKUP(AO24,rul_reset[],2,FALSE))","v":""},null,{"$f":"IF(AQ24=\"\",\"\",VLOOKUP(AQ24,use_default_rc[],2,FALSE))","v":""},null,{"$f":"IF(AS24=\"\",\"\",VLOOKUP(AS24,condition[],2,FALSE))","v":""},null,null,{"$f":"IF(AV24=\"\",\"\",VLOOKUP(AV24,Organisation[],2,FALSE))","v":""}]
["null",null,null,null,{"$f":"IF(D25=\"\",\"\",VLOOKUP(D25,light_make[],2,FALSE))","v":""},null,{"$f":"IF(F25=\"\",\"\",VLOOKUP(F25,light_model[],2,FALSE))","v":""},null,{"$f":"IF(H25=\"\",\"\",VLOOKUP(H25,supply_point[],2,FALSE))","v":""},null,{"$f":"IF(J25=\"\",\"\",VLOOKUP(J25,gear_make[],2,FALSE))","v":""},null,{"$f":"IF(L25=\"\",\"\",VLOOKUP(L25,gear_model[],2,FALSE))","v":""},null,{"$f":"IF(N25=\"\",\"\",VLOOKUP(N25,lamp_make[],2,FALSE))","v":""},null,{"$f":"IF(P25=\"\",\"\",VLOOKUP(P25,lamp_model[],2,FALSE))","v":""},null,null,null,null,{"$f":"IF(U25=\"\",\"\",VLOOKUP(U25,Light_install_reason[],2,FALSE))","v":""},null,{"$f":"IF(W25=\"\",\"\",VLOOKUP(W25,light_status[],2,FALSE))","v":""},null,null,{"$f":"IF(Z25=\"\",\"\",VLOOKUP(Z25,Gear_install_reason[],2,FALSE))","v":""},null,{"$f":"IF(AB25=\"\",\"\",VLOOKUP(AB25,gear_status[],2,FALSE))","v":""},null,null,{"$f":"IF(AE25=\"\",\"\",VLOOKUP(AE25,Lamp_install_reason[],2,FALSE))","v":""},null,{"$f":"IF(AG25=\"\",\"\",VLOOKUP(AG25,Asset_owner[],2,FALSE))","v":""},null,{"$f":"IF(AI25=\"\",\"\",VLOOKUP(AI25,risk_likelihood[],2,FALSE))","v":""},null,{"$f":"IF(AK25=\"\",\"\",VLOOKUP(AK25,risk_consequence[],2,FALSE))","v":""},null,{"$f":"IF(AM25=\"\",\"\",VLOOKUP(AM25,risk[],2,FALSE))","v":""},null,{"$f":"IF(AO25=\"\",\"\",VLOOKUP(AO25,rul_reset[],2,FALSE))","v":""},null,{"$f":"IF(AQ25=\"\",\"\",VLOOKUP(AQ25,use_default_rc[],2,FALSE))","v":""},null,{"$f":"IF(AS25=\"\",\"\",VLOOKUP(AS25,condition[],2,FALSE))","v":""},null,null,{"$f":"IF(AV25=\"\",\"\",VLOOKUP(AV25,Organisation[],2,FALSE))","v":""}]
["null",null,null,null,{"$f":"IF(D26=\"\",\"\",VLOOKUP(D26,light_make[],2,FALSE))","v":""},null,{"$f":"IF(F26=\"\",\"\",VLOOKUP(F26,light_model[],2,FALSE))","v":""},null,{"$f":"IF(H26=\"\",\"\",VLOOKUP(H26,supply_point[],2,FALSE))","v":""},null,{"$f":"IF(J26=\"\",\"\",VLOOKUP(J26,gear_make[],2,FALSE))","v":""},null,{"$f":"IF(L26=\"\",\"\",VLOOKUP(L26,gear_model[],2,FALSE))","v":""},null,{"$f":"IF(N26=\"\",\"\",VLOOKUP(N26,lamp_make[],2,FALSE))","v":""},null,{"$f":"IF(P26=\"\",\"\",VLOOKUP(P26,lamp_model[],2,FALSE))","v":""},null,null,null,null,{"$f":"IF(U26=\"\",\"\",VLOOKUP(U26,Light_install_reason[],2,FALSE))","v":""},null,{"$f":"IF(W26=\"\",\"\",VLOOKUP(W26,light_status[],2,FALSE))","v":""},null,null,{"$f":"IF(Z26=\"\",\"\",VLOOKUP(Z26,Gear_install_reason[],2,FALSE))","v":""},null,{"$f":"IF(AB26=\"\",\"\",VLOOKUP(AB26,gear_status[],2,FALSE))","v":""},null,null,{"$f":"IF(AE26=\"\",\"\",VLOOKUP(AE26,Lamp_install_reason[],2,FALSE))","v":""},null,{"$f":"IF(AG26=\"\",\"\",VLOOKUP(AG26,Asset_owner[],2,FALSE))","v":""},null,{"$f":"IF(AI26=\"\",\"\",VLOOKUP(AI26,risk_likelihood[],2,FALSE))","v":""},null,{"$f":"IF(AK26=\"\",\"\",VLOOKUP(AK26,risk_consequence[],2,FALSE))","v":""},null,{"$f":"IF(AM26=\"\",\"\",VLOOKUP(AM26,risk[],2,FALSE))","v":""},null,{"$f":"IF(AO26=\"\",\"\",VLOOKUP(AO26,rul_reset[],2,FALSE))","v":""},null,{"$f":"IF(AQ26=\"\",\"\",VLOOKUP(AQ26,use_default_rc[],2,FALSE))","v":""},null,{"$f":"IF(AS26=\"\",\"\",VLOOKUP(AS26,condition[],2,FALSE))","v":""},null,null,{"$f":"IF(AV26=\"\",\"\",VLOOKUP(AV26,Organisation[],2,FALSE))","v":""}]
["null",null,null,null,{"$f":"IF(D27=\"\",\"\",VLOOKUP(D27,light_make[],2,FALSE))","v":""},null,{"$f":"IF(F27=\"\",\"\",VLOOKUP(F27,light_model[],2,FALSE))","v":""},null,{"$f":"IF(H27=\"\",\"\",VLOOKUP(H27,supply_point[],2,FALSE))","v":""},null,{"$f":"IF(J27=\"\",\"\",VLOOKUP(J27,gear_make[],2,FALSE))","v":""},null,{"$f":"IF(L27=\"\",\"\",VLOOKUP(L27,gear_model[],2,FALSE))","v":""},null,{"$f":"IF(N27=\"\",\"\",VLOOKUP(N27,lamp_make[],2,FALSE))","v":""},null,{"$f":"IF(P27=\"\",\"\",VLOOKUP(P27,lamp_model[],2,FALSE))","v":""},null,null,null,null,{"$f":"IF(U27=\"\",\"\",VLOOKUP(U27,Light_install_reason[],2,FALSE))","v":""},null,{"$f":"IF(W27=\"\",\"\",VLOOKUP(W27,light_status[],2,FALSE))","v":""},null,null,{"$f":"IF(Z27=\"\",\"\",VLOOKUP(Z27,Gear_install_reason[],2,FALSE))","v":""},null,{"$f":"IF(AB27=\"\",\"\",VLOOKUP(AB27,gear_status[],2,FALSE))","v":""},null,null,{"$f":"IF(AE27=\"\",\"\",VLOOKUP(AE27,Lamp_install_reason[],2,FALSE))","v":""},null,{"$f":"IF(AG27=\"\",\"\",VLOOKUP(AG27,Asset_owner[],2,FALSE))","v":""},null,{"$f":"IF(AI27=\"\",\"\",VLOOKUP(AI27,risk_likelihood[],2,FALSE))","v":""},null,{"$f":"IF(AK27=\"\",\"\",VLOOKUP(AK27,risk_consequence[],2,FALSE))","v":""},null,{"$f":"IF(AM27=\"\",\"\",VLOOKUP(AM27,risk[],2,FALSE))","v":""},null,{"$f":"IF(AO27=\"\",\"\",VLOOKUP(AO27,rul_reset[],2,FALSE))","v":""},null,{"$f":"IF(AQ27=\"\",\"\",VLOOKUP(AQ27,use_default_rc[],2,FALSE))","v":""},null,{"$f":"IF(AS27=\"\",\"\",VLOOKUP(AS27,condition[],2,FALSE))","v":""},null,null,{"$f":"IF(AV27=\"\",\"\",VLOOKUP(AV27,Organisation[],2,FALSE))","v":""}]
["null",null,null,null,{"$f":"IF(D28=\"\",\"\",VLOOKUP(D28,light_make[],2,FALSE))","v":""},null,{"$f":"IF(F28=\"\",\"\",VLOOKUP(F28,light_model[],2,FALSE))","v":""},null,{"$f":"IF(H28=\"\",\"\",VLOOKUP(H28,supply_point[],2,FALSE))","v":""},null,{"$f":"IF(J28=\"\",\"\",VLOOKUP(J28,gear_make[],2,FALSE))","v":""},null,{"$f":"IF(L28=\"\",\"\",VLOOKUP(L28,gear_model[],2,FALSE))","v":""},null,{"$f":"IF(N28=\"\",\"\",VLOOKUP(N28,lamp_make[],2,FALSE))","v":""},null,{"$f":"IF(P28=\"\",\"\",VLOOKUP(P28,lamp_model[],2,FALSE))","v":""},null,null,null,null,{"$f":"IF(U28=\"\",\"\",VLOOKUP(U28,Light_install_reason[],2,FALSE))","v":""},null,{"$f":"IF(W28=\"\",\"\",VLOOKUP(W28,light_status[],2,FALSE))","v":""},null,null,{"$f":"IF(Z28=\"\",\"\",VLOOKUP(Z28,Gear_install_reason[],2,FALSE))","v":""},null,{"$f":"IF(AB28=\"\",\"\",VLOOKUP(AB28,gear_status[],2,FALSE))","v":""},null,null,{"$f":"IF(AE28=\"\",\"\",VLOOKUP(AE28,Lamp_install_reason[],2,FALSE))","v":""},null,{"$f":"IF(AG28=\"\",\"\",VLOOKUP(AG28,Asset_owner[],2,FALSE))","v":""},null,{"$f":"IF(AI28=\"\",\"\",VLOOKUP(AI28,risk_likelihood[],2,FALSE))","v":""},null,{"$f":"IF(AK28=\"\",\"\",VLOOKUP(AK28,risk_consequence[],2,FALSE))","v":""},null,{"$f":"IF(AM28=\"\",\"\",VLOOKUP(AM28,risk[],2,FALSE))","v":""},null,{"$f":"IF(AO28=\"\",\"\",VLOOKUP(AO28,rul_reset[],2,FALSE))","v":""},null,{"$f":"IF(AQ28=\"\",\"\",VLOOKUP(AQ28,use_default_rc[],2,FALSE))","v":""},null,{"$f":"IF(AS28=\"\",\"\",VLOOKUP(AS28,condition[],2,FALSE))","v":""},null,null,{"$f":"IF(AV28=\"\",\"\",VLOOKUP(AV28,Organisation[],2,FALSE))","v":""}]
["null",null,null,null,{"$f":"IF(D29=\"\",\"\",VLOOKUP(D29,light_make[],2,FALSE))","v":""},null,{"$f":"IF(F29=\"\",\"\",VLOOKUP(F29,light_model[],2,FALSE))","v":""},null,{"$f":"IF(H29=\"\",\"\",VLOOKUP(H29,supply_point[],2,FALSE))","v":""},null,{"$f":"IF(J29=\"\",\"\",VLOOKUP(J29,gear_make[],2,FALSE))","v":""},null,{"$f":"IF(L29=\"\",\"\",VLOOKUP(L29,gear_model[],2,FALSE))","v":""},null,{"$f":"IF(N29=\"\",\"\",VLOOKUP(N29,lamp_make[],2,FALSE))","v":""},null,{"$f":"IF(P29=\"\",\"\",VLOOKUP(P29,lamp_model[],2,FALSE))","v":""},null,null,null,null,{"$f":"IF(U29=\"\",\"\",VLOOKUP(U29,Light_install_reason[],2,FALSE))","v":""},null,{"$f":"IF(W29=\"\",\"\",VLOOKUP(W29,light_status[],2,FALSE))","v":""},null,null,{"$f":"IF(Z29=\"\",\"\",VLOOKUP(Z29,Gear_install_reason[],2,FALSE))","v":""},null,{"$f":"IF(AB29=\"\",\"\",VLOOKUP(AB29,gear_status[],2,FALSE))","v":""},null,null,{"$f":"IF(AE29=\"\",\"\",VLOOKUP(AE29,Lamp_install_reason[],2,FALSE))","v":""},null,{"$f":"IF(AG29=\"\",\"\",VLOOKUP(AG29,Asset_owner[],2,FALSE))","v":""},null,{"$f":"IF(AI29=\"\",\"\",VLOOKUP(AI29,risk_likelihood[],2,FALSE))","v":""},null,{"$f":"IF(AK29=\"\",\"\",VLOOKUP(AK29,risk_consequence[],2,FALSE))","v":""},null,{"$f":"IF(AM29=\"\",\"\",VLOOKUP(AM29,risk[],2,FALSE))","v":""},null,{"$f":"IF(AO29=\"\",\"\",VLOOKUP(AO29,rul_reset[],2,FALSE))","v":""},null,{"$f":"IF(AQ29=\"\",\"\",VLOOKUP(AQ29,use_default_rc[],2,FALSE))","v":""},null,{"$f":"IF(AS29=\"\",\"\",VLOOKUP(AS29,condition[],2,FALSE))","v":""},null,null,{"$f":"IF(AV29=\"\",\"\",VLOOKUP(AV29,Organisation[],2,FALSE))","v":""}]
["null",null,null,null,{"$f":"IF(D30=\"\",\"\",VLOOKUP(D30,light_make[],2,FALSE))","v":""},null,{"$f":"IF(F30=\"\",\"\",VLOOKUP(F30,light_model[],2,FALSE))","v":""},null,{"$f":"IF(H30=\"\",\"\",VLOOKUP(H30,supply_point[],2,FALSE))","v":""},null,{"$f":"IF(J30=\"\",\"\",VLOOKUP(J30,gear_make[],2,FALSE))","v":""},null,{"$f":"IF(L30=\"\",\"\",VLOOKUP(L30,gear_model[],2,FALSE))","v":""},null,{"$f":"IF(N30=\"\",\"\",VLOOKUP(N30,lamp_make[],2,FALSE))","v":""},null,{"$f":"IF(P30=\"\",\"\",VLOOKUP(P30,lamp_model[],2,FALSE))","v":""},null,null,null,null,{"$f":"IF(U30=\"\",\"\",VLOOKUP(U30,Light_install_reason[],2,FALSE))","v":""},null,{"$f":"IF(W30=\"\",\"\",VLOOKUP(W30,light_status[],2,FALSE))","v":""},null,null,{"$f":"IF(Z30=\"\",\"\",VLOOKUP(Z30,Gear_install_reason[],2,FALSE))","v":""},null,{"$f":"IF(AB30=\"\",\"\",VLOOKUP(AB30,gear_status[],2,FALSE))","v":""},null,null,{"$f":"IF(AE30=\"\",\"\",VLOOKUP(AE30,Lamp_install_reason[],2,FALSE))","v":""},null,{"$f":"IF(AG30=\"\",\"\",VLOOKUP(AG30,Asset_owner[],2,FALSE))","v":""},null,{"$f":"IF(AI30=\"\",\"\",VLOOKUP(AI30,risk_likelihood[],2,FALSE))","v":""},null,{"$f":"IF(AK30=\"\",\"\",VLOOKUP(AK30,risk_consequence[],2,FALSE))","v":""},null,{"$f":"IF(AM30=\"\",\"\",VLOOKUP(AM30,risk[],2,FALSE))","v":""},null,{"$f":"IF(AO30=\"\",\"\",VLOOKUP(AO30,rul_reset[],2,FALSE))","v":""},null,{"$f":"IF(AQ30=\"\",\"\",VLOOKUP(AQ30,use_default_rc[],2,FALSE))","v":""},null,{"$f":"IF(AS30=\"\",\"\",VLOOKUP(AS30,condition[],2,FALSE))","v":""},null,null,{"$f":"IF(AV30=\"\",\"\",VLOOKUP(AV30,Organisation[],2,FALSE))","v":""}]
["null",null,null,null,{"$f":"IF(D31=\"\",\"\",VLOOKUP(D31,light_make[],2,FALSE))","v":""},null,{"$f":"IF(F31=\"\",\"\",VLOOKUP(F31,light_model[],2,FALSE))","v":""},null,{"$f":"IF(H31=\"\",\"\",VLOOKUP(H31,supply_point[],2,FALSE))","v":""},null,{"$f":"IF(J31=\"\",\"\",VLOOKUP(J31,gear_make[],2,FALSE))","v":""},null,{"$f":"IF(L31=\"\",\"\",VLOOKUP(L31,gear_model[],2,FALSE))","v":""},null,{"$f":"IF(N31=\"\",\"\",VLOOKUP(N31,lamp_make[],2,FALSE))","v":""},null,{"$f":"IF(P31=\"\",\"\",VLOOKUP(P31,lamp_model[],2,FALSE))","v":""},null,null,null,null,{"$f":"IF(U31=\"\",\"\",VLOOKUP(U31,Light_install_reason[],2,FALSE))","v":""},null,{"$f":"IF(W31=\"\",\"\",VLOOKUP(W31,light_status[],2,FALSE))","v":""},null,null,{"$f":"IF(Z31=\"\",\"\",VLOOKUP(Z31,Gear_install_reason[],2,FALSE))","v":""},null,{"$f":"IF(AB31=\"\",\"\",VLOOKUP(AB31,gear_status[],2,FALSE))","v":""},null,null,{"$f":"IF(AE31=\"\",\"\",VLOOKUP(AE31,Lamp_install_reason[],2,FALSE))","v":""},null,{"$f":"IF(AG31=\"\",\"\",VLOOKUP(AG31,Asset_owner[],2,FALSE))","v":""},null,{"$f":"IF(AI31=\"\",\"\",VLOOKUP(AI31,risk_likelihood[],2,FALSE))","v":""},null,{"$f":"IF(AK31=\"\",\"\",VLOOKUP(AK31,risk_consequence[],2,FALSE))","v":""},null,{"$f":"IF(AM31=\"\",\"\",VLOOKUP(AM31,risk[],2,FALSE))","v":""},null,{"$f":"IF(AO31=\"\",\"\",VLOOKUP(AO31,rul_reset[],2,FALSE))","v":""},null,{"$f":"IF(AQ31=\"\",\"\",VLOOKUP(AQ31,use_default_rc[],2,FALSE))","v":""},null,{"$f":"IF(AS31=\"\",\"\",VLOOKUP(AS31,condition[],2,FALSE))","v":""},null,null,{"$f":"IF(AV31=\"\",\"\",VLOOKUP(AV31,Organisation[],2,FALSE))","v":""}]
["null",null,null,null,{"$f":"IF(D32=\"\",\"\",VLOOKUP(D32,light_make[],2,FALSE))","v":""},null,{"$f":"IF(F32=\"\",\"\",VLOOKUP(F32,light_model[],2,FALSE))","v":""},null,{"$f":"IF(H32=\"\",\"\",VLOOKUP(H32,supply_point[],2,FALSE))","v":""},null,{"$f":"IF(J32=\"\",\"\",VLOOKUP(J32,gear_make[],2,FALSE))","v":""},null,{"$f":"IF(L32=\"\",\"\",VLOOKUP(L32,gear_model[],2,FALSE))","v":""},null,{"$f":"IF(N32=\"\",\"\",VLOOKUP(N32,lamp_make[],2,FALSE))","v":""},null,{"$f":"IF(P32=\"\",\"\",VLOOKUP(P32,lamp_model[],2,FALSE))","v":""},null,null,null,null,{"$f":"IF(U32=\"\",\"\",VLOOKUP(U32,Light_install_reason[],2,FALSE))","v":""},null,{"$f":"IF(W32=\"\",\"\",VLOOKUP(W32,light_status[],2,FALSE))","v":""},null,null,{"$f":"IF(Z32=\"\",\"\",VLOOKUP(Z32,Gear_install_reason[],2,FALSE))","v":""},null,{"$f":"IF(AB32=\"\",\"\",VLOOKUP(AB32,gear_status[],2,FALSE))","v":""},null,null,{"$f":"IF(AE32=\"\",\"\",VLOOKUP(AE32,Lamp_install_reason[],2,FALSE))","v":""},null,{"$f":"IF(AG32=\"\",\"\",VLOOKUP(AG32,Asset_owner[],2,FALSE))","v":""},null,{"$f":"IF(AI32=\"\",\"\",VLOOKUP(AI32,risk_likelihood[],2,FALSE))","v":""},null,{"$f":"IF(AK32=\"\",\"\",VLOOKUP(AK32,risk_consequence[],2,FALSE))","v":""},null,{"$f":"IF(AM32=\"\",\"\",VLOOKUP(AM32,risk[],2,FALSE))","v":""},null,{"$f":"IF(AO32=\"\",\"\",VLOOKUP(AO32,rul_reset[],2,FALSE))","v":""},null,{"$f":"IF(AQ32=\"\",\"\",VLOOKUP(AQ32,use_default_rc[],2,FALSE))","v":""},null,{"$f":"IF(AS32=\"\",\"\",VLOOKUP(AS32,condition[],2,FALSE))","v":""},null,null,{"$f":"IF(AV32=\"\",\"\",VLOOKUP(AV32,Organisation[],2,FALSE))","v":""}]
["null",null,null,null,{"$f":"IF(D33=\"\",\"\",VLOOKUP(D33,light_make[],2,FALSE))","v":""},null,{"$f":"IF(F33=\"\",\"\",VLOOKUP(F33,light_model[],2,FALSE))","v":""},null,{"$f":"IF(H33=\"\",\"\",VLOOKUP(H33,supply_point[],2,FALSE))","v":""},null,{"$f":"IF(J33=\"\",\"\",VLOOKUP(J33,gear_make[],2,FALSE))","v":""},null,{"$f":"IF(L33=\"\",\"\",VLOOKUP(L33,gear_model[],2,FALSE))","v":""},null,{"$f":"IF(N33=\"\",\"\",VLOOKUP(N33,lamp_make[],2,FALSE))","v":""},null,{"$f":"IF(P33=\"\",\"\",VLOOKUP(P33,lamp_model[],2,FALSE))","v":""},null,null,null,null,{"$f":"IF(U33=\"\",\"\",VLOOKUP(U33,Light_install_reason[],2,FALSE))","v":""},null,{"$f":"IF(W33=\"\",\"\",VLOOKUP(W33,light_status[],2,FALSE))","v":""},null,null,{"$f":"IF(Z33=\"\",\"\",VLOOKUP(Z33,Gear_install_reason[],2,FALSE))","v":""},null,{"$f":"IF(AB33=\"\",\"\",VLOOKUP(AB33,gear_status[],2,FALSE))","v":""},null,null,{"$f":"IF(AE33=\"\",\"\",VLOOKUP(AE33,Lamp_install_reason[],2,FALSE))","v":""},null,{"$f":"IF(AG33=\"\",\"\",VLOOKUP(AG33,Asset_owner[],2,FALSE))","v":""},null,{"$f":"IF(AI33=\"\",\"\",VLOOKUP(AI33,risk_likelihood[],2,FALSE))","v":""},null,{"$f":"IF(AK33=\"\",\"\",VLOOKUP(AK33,risk_consequence[],2,FALSE))","v":""},null,{"$f":"IF(AM33=\"\",\"\",VLOOKUP(AM33,risk[],2,FALSE))","v":""},null,{"$f":"IF(AO33=\"\",\"\",VLOOKUP(AO33,rul_reset[],2,FALSE))","v":""},null,{"$f":"IF(AQ33=\"\",\"\",VLOOKUP(AQ33,use_default_rc[],2,FALSE))","v":""},null,{"$f":"IF(AS33=\"\",\"\",VLOOKUP(AS33,condition[],2,FALSE))","v":""},null,null,{"$f":"IF(AV33=\"\",\"\",VLOOKUP(AV33,Organisation[],2,FALSE))","v":""}]
["null",null,null,null,{"$f":"IF(D34=\"\",\"\",VLOOKUP(D34,light_make[],2,FALSE))","v":""},null,{"$f":"IF(F34=\"\",\"\",VLOOKUP(F34,light_model[],2,FALSE))","v":""},null,{"$f":"IF(H34=\"\",\"\",VLOOKUP(H34,supply_point[],2,FALSE))","v":""},null,{"$f":"IF(J34=\"\",\"\",VLOOKUP(J34,gear_make[],2,FALSE))","v":""},null,{"$f":"IF(L34=\"\",\"\",VLOOKUP(L34,gear_model[],2,FALSE))","v":""},null,{"$f":"IF(N34=\"\",\"\",VLOOKUP(N34,lamp_make[],2,FALSE))","v":""},null,{"$f":"IF(P34=\"\",\"\",VLOOKUP(P34,lamp_model[],2,FALSE))","v":""},null,null,null,null,{"$f":"IF(U34=\"\",\"\",VLOOKUP(U34,Light_install_reason[],2,FALSE))","v":""},null,{"$f":"IF(W34=\"\",\"\",VLOOKUP(W34,light_status[],2,FALSE))","v":""},null,null,{"$f":"IF(Z34=\"\",\"\",VLOOKUP(Z34,Gear_install_reason[],2,FALSE))","v":""},null,{"$f":"IF(AB34=\"\",\"\",VLOOKUP(AB34,gear_status[],2,FALSE))","v":""},null,null,{"$f":"IF(AE34=\"\",\"\",VLOOKUP(AE34,Lamp_install_reason[],2,FALSE))","v":""},null,{"$f":"IF(AG34=\"\",\"\",VLOOKUP(AG34,Asset_owner[],2,FALSE))","v":""},null,{"$f":"IF(AI34=\"\",\"\",VLOOKUP(AI34,risk_likelihood[],2,FALSE))","v":""},null,{"$f":"IF(AK34=\"\",\"\",VLOOKUP(AK34,risk_consequence[],2,FALSE))","v":""},null,{"$f":"IF(AM34=\"\",\"\",VLOOKUP(AM34,risk[],2,FALSE))","v":""},null,{"$f":"IF(AO34=\"\",\"\",VLOOKUP(AO34,rul_reset[],2,FALSE))","v":""},null,{"$f":"IF(AQ34=\"\",\"\",VLOOKUP(AQ34,use_default_rc[],2,FALSE))","v":""},null,{"$f":"IF(AS34=\"\",\"\",VLOOKUP(AS34,condition[],2,FALSE))","v":""},null,null,{"$f":"IF(AV34=\"\",\"\",VLOOKUP(AV34,Organisation[],2,FALSE))","v":""}]
["null",null,null,null,{"$f":"IF(D35=\"\",\"\",VLOOKUP(D35,light_make[],2,FALSE))","v":""},null,{"$f":"IF(F35=\"\",\"\",VLOOKUP(F35,light_model[],2,FALSE))","v":""},null,{"$f":"IF(H35=\"\",\"\",VLOOKUP(H35,supply_point[],2,FALSE))","v":""},null,{"$f":"IF(J35=\"\",\"\",VLOOKUP(J35,gear_make[],2,FALSE))","v":""},null,{"$f":"IF(L35=\"\",\"\",VLOOKUP(L35,gear_model[],2,FALSE))","v":""},null,{"$f":"IF(N35=\"\",\"\",VLOOKUP(N35,lamp_make[],2,FALSE))","v":""},null,{"$f":"IF(P35=\"\",\"\",VLOOKUP(P35,lamp_model[],2,FALSE))","v":""},null,null,null,null,{"$f":"IF(U35=\"\",\"\",VLOOKUP(U35,Light_install_reason[],2,FALSE))","v":""},null,{"$f":"IF(W35=\"\",\"\",VLOOKUP(W35,light_status[],2,FALSE))","v":""},null,null,{"$f":"IF(Z35=\"\",\"\",VLOOKUP(Z35,Gear_install_reason[],2,FALSE))","v":""},null,{"$f":"IF(AB35=\"\",\"\",VLOOKUP(AB35,gear_status[],2,FALSE))","v":""},null,null,{"$f":"IF(AE35=\"\",\"\",VLOOKUP(AE35,Lamp_install_reason[],2,FALSE))","v":""},null,{"$f":"IF(AG35=\"\",\"\",VLOOKUP(AG35,Asset_owner[],2,FALSE))","v":""},null,{"$f":"IF(AI35=\"\",\"\",VLOOKUP(AI35,risk_likelihood[],2,FALSE))","v":""},null,{"$f":"IF(AK35=\"\",\"\",VLOOKUP(AK35,risk_consequence[],2,FALSE))","v":""},null,{"$f":"IF(AM35=\"\",\"\",VLOOKUP(AM35,risk[],2,FALSE))","v":""},null,{"$f":"IF(AO35=\"\",\"\",VLOOKUP(AO35,rul_reset[],2,FALSE))","v":""},null,{"$f":"IF(AQ35=\"\",\"\",VLOOKUP(AQ35,use_default_rc[],2,FALSE))","v":""},null,{"$f":"IF(AS35=\"\",\"\",VLOOKUP(AS35,condition[],2,FALSE))","v":""},null,null,{"$f":"IF(AV35=\"\",\"\",VLOOKUP(AV35,Organisation[],2,FALSE))","v":""}]
["null",null,null,null,{"$f":"IF(D36=\"\",\"\",VLOOKUP(D36,light_make[],2,FALSE))","v":""},null,{"$f":"IF(F36=\"\",\"\",VLOOKUP(F36,light_model[],2,FALSE))","v":""},null,{"$f":"IF(H36=\"\",\"\",VLOOKUP(H36,supply_point[],2,FALSE))","v":""},null,{"$f":"IF(J36=\"\",\"\",VLOOKUP(J36,gear_make[],2,FALSE))","v":""},null,{"$f":"IF(L36=\"\",\"\",VLOOKUP(L36,gear_model[],2,FALSE))","v":""},null,{"$f":"IF(N36=\"\",\"\",VLOOKUP(N36,lamp_make[],2,FALSE))","v":""},null,{"$f":"IF(P36=\"\",\"\",VLOOKUP(P36,lamp_model[],2,FALSE))","v":""},null,null,null,null,{"$f":"IF(U36=\"\",\"\",VLOOKUP(U36,Light_install_reason[],2,FALSE))","v":""},null,{"$f":"IF(W36=\"\",\"\",VLOOKUP(W36,light_status[],2,FALSE))","v":""},null,null,{"$f":"IF(Z36=\"\",\"\",VLOOKUP(Z36,Gear_install_reason[],2,FALSE))","v":""},null,{"$f":"IF(AB36=\"\",\"\",VLOOKUP(AB36,gear_status[],2,FALSE))","v":""},null,null,{"$f":"IF(AE36=\"\",\"\",VLOOKUP(AE36,Lamp_install_reason[],2,FALSE))","v":""},null,{"$f":"IF(AG36=\"\",\"\",VLOOKUP(AG36,Asset_owner[],2,FALSE))","v":""},null,{"$f":"IF(AI36=\"\",\"\",VLOOKUP(AI36,risk_likelihood[],2,FALSE))","v":""},null,{"$f":"IF(AK36=\"\",\"\",VLOOKUP(AK36,risk_consequence[],2,FALSE))","v":""},null,{"$f":"IF(AM36=\"\",\"\",VLOOKUP(AM36,risk[],2,FALSE))","v":""},null,{"$f":"IF(AO36=\"\",\"\",VLOOKUP(AO36,rul_reset[],2,FALSE))","v":""},null,{"$f":"IF(AQ36=\"\",\"\",VLOOKUP(AQ36,use_default_rc[],2,FALSE))","v":""},null,{"$f":"IF(AS36=\"\",\"\",VLOOKUP(AS36,condition[],2,FALSE))","v":""},null,null,{"$f":"IF(AV36=\"\",\"\",VLOOKUP(AV36,Organisation[],2,FALSE))","v":""}]
["null",null,null,null,{"$f":"IF(D37=\"\",\"\",VLOOKUP(D37,light_make[],2,FALSE))","v":""},null,{"$f":"IF(F37=\"\",\"\",VLOOKUP(F37,light_model[],2,FALSE))","v":""},null,{"$f":"IF(H37=\"\",\"\",VLOOKUP(H37,supply_point[],2,FALSE))","v":""},null,{"$f":"IF(J37=\"\",\"\",VLOOKUP(J37,gear_make[],2,FALSE))","v":""},null,{"$f":"IF(L37=\"\",\"\",VLOOKUP(L37,gear_model[],2,FALSE))","v":""},null,{"$f":"IF(N37=\"\",\"\",VLOOKUP(N37,lamp_make[],2,FALSE))","v":""},null,{"$f":"IF(P37=\"\",\"\",VLOOKUP(P37,lamp_model[],2,FALSE))","v":""},null,null,null,null,{"$f":"IF(U37=\"\",\"\",VLOOKUP(U37,Light_install_reason[],2,FALSE))","v":""},null,{"$f":"IF(W37=\"\",\"\",VLOOKUP(W37,light_status[],2,FALSE))","v":""},null,null,{"$f":"IF(Z37=\"\",\"\",VLOOKUP(Z37,Gear_install_reason[],2,FALSE))","v":""},null,{"$f":"IF(AB37=\"\",\"\",VLOOKUP(AB37,gear_status[],2,FALSE))","v":""},null,null,{"$f":"IF(AE37=\"\",\"\",VLOOKUP(AE37,Lamp_install_reason[],2,FALSE))","v":""},null,{"$f":"IF(AG37=\"\",\"\",VLOOKUP(AG37,Asset_owner[],2,FALSE))","v":""},null,{"$f":"IF(AI37=\"\",\"\",VLOOKUP(AI37,risk_likelihood[],2,FALSE))","v":""},null,{"$f":"IF(AK37=\"\",\"\",VLOOKUP(AK37,risk_consequence[],2,FALSE))","v":""},null,{"$f":"IF(AM37=\"\",\"\",VLOOKUP(AM37,risk[],2,FALSE))","v":""},null,{"$f":"IF(AO37=\"\",\"\",VLOOKUP(AO37,rul_reset[],2,FALSE))","v":""},null,{"$f":"IF(AQ37=\"\",\"\",VLOOKUP(AQ37,use_default_rc[],2,FALSE))","v":""},null,{"$f":"IF(AS37=\"\",\"\",VLOOKUP(AS37,condition[],2,FALSE))","v":""},null,null,{"$f":"IF(AV37=\"\",\"\",VLOOKUP(AV37,Organisation[],2,FALSE))","v":""}]
["null",null,null,null,{"$f":"IF(D38=\"\",\"\",VLOOKUP(D38,light_make[],2,FALSE))","v":""},null,{"$f":"IF(F38=\"\",\"\",VLOOKUP(F38,light_model[],2,FALSE))","v":""},null,{"$f":"IF(H38=\"\",\"\",VLOOKUP(H38,supply_point[],2,FALSE))","v":""},null,{"$f":"IF(J38=\"\",\"\",VLOOKUP(J38,gear_make[],2,FALSE))","v":""},null,{"$f":"IF(L38=\"\",\"\",VLOOKUP(L38,gear_model[],2,FALSE))","v":""},null,{"$f":"IF(N38=\"\",\"\",VLOOKUP(N38,lamp_make[],2,FALSE))","v":""},null,{"$f":"IF(P38=\"\",\"\",VLOOKUP(P38,lamp_model[],2,FALSE))","v":""},null,null,null,null,{"$f":"IF(U38=\"\",\"\",VLOOKUP(U38,Light_install_reason[],2,FALSE))","v":""},null,{"$f":"IF(W38=\"\",\"\",VLOOKUP(W38,light_status[],2,FALSE))","v":""},null,null,{"$f":"IF(Z38=\"\",\"\",VLOOKUP(Z38,Gear_install_reason[],2,FALSE))","v":""},null,{"$f":"IF(AB38=\"\",\"\",VLOOKUP(AB38,gear_status[],2,FALSE))","v":""},null,null,{"$f":"IF(AE38=\"\",\"\",VLOOKUP(AE38,Lamp_install_reason[],2,FALSE))","v":""},null,{"$f":"IF(AG38=\"\",\"\",VLOOKUP(AG38,Asset_owner[],2,FALSE))","v":""},null,{"$f":"IF(AI38=\"\",\"\",VLOOKUP(AI38,risk_likelihood[],2,FALSE))","v":""},null,{"$f":"IF(AK38=\"\",\"\",VLOOKUP(AK38,risk_consequence[],2,FALSE))","v":""},null,{"$f":"IF(AM38=\"\",\"\",VLOOKUP(AM38,risk[],2,FALSE))","v":""},null,{"$f":"IF(AO38=\"\",\"\",VLOOKUP(AO38,rul_reset[],2,FALSE))","v":""},null,{"$f":"IF(AQ38=\"\",\"\",VLOOKUP(AQ38,use_default_rc[],2,FALSE))","v":""},null,{"$f":"IF(AS38=\"\",\"\",VLOOKUP(AS38,condition[],2,FALSE))","v":""},null,null,{"$f":"IF(AV38=\"\",\"\",VLOOKUP(AV38,Organisation[],2,FALSE))","v":""}]
["null",null,null,null,{"$f":"IF(D39=\"\",\"\",VLOOKUP(D39,light_make[],2,FALSE))","v":""},null,{"$f":"IF(F39=\"\",\"\",VLOOKUP(F39,light_model[],2,FALSE))","v":""},null,{"$f":"IF(H39=\"\",\"\",VLOOKUP(H39,supply_point[],2,FALSE))","v":""},null,{"$f":"IF(J39=\"\",\"\",VLOOKUP(J39,gear_make[],2,FALSE))","v":""},null,{"$f":"IF(L39=\"\",\"\",VLOOKUP(L39,gear_model[],2,FALSE))","v":""},null,{"$f":"IF(N39=\"\",\"\",VLOOKUP(N39,lamp_make[],2,FALSE))","v":""},null,{"$f":"IF(P39=\"\",\"\",VLOOKUP(P39,lamp_model[],2,FALSE))","v":""},null,null,null,null,{"$f":"IF(U39=\"\",\"\",VLOOKUP(U39,Light_install_reason[],2,FALSE))","v":""},null,{"$f":"IF(W39=\"\",\"\",VLOOKUP(W39,light_status[],2,FALSE))","v":""},null,null,{"$f":"IF(Z39=\"\",\"\",VLOOKUP(Z39,Gear_install_reason[],2,FALSE))","v":""},null,{"$f":"IF(AB39=\"\",\"\",VLOOKUP(AB39,gear_status[],2,FALSE))","v":""},null,null,{"$f":"IF(AE39=\"\",\"\",VLOOKUP(AE39,Lamp_install_reason[],2,FALSE))","v":""},null,{"$f":"IF(AG39=\"\",\"\",VLOOKUP(AG39,Asset_owner[],2,FALSE))","v":""},null,{"$f":"IF(AI39=\"\",\"\",VLOOKUP(AI39,risk_likelihood[],2,FALSE))","v":""},null,{"$f":"IF(AK39=\"\",\"\",VLOOKUP(AK39,risk_consequence[],2,FALSE))","v":""},null,{"$f":"IF(AM39=\"\",\"\",VLOOKUP(AM39,risk[],2,FALSE))","v":""},null,{"$f":"IF(AO39=\"\",\"\",VLOOKUP(AO39,rul_reset[],2,FALSE))","v":""},null,{"$f":"IF(AQ39=\"\",\"\",VLOOKUP(AQ39,use_default_rc[],2,FALSE))","v":""},null,{"$f":"IF(AS39=\"\",\"\",VLOOKUP(AS39,condition[],2,FALSE))","v":""},null,null,{"$f":"IF(AV39=\"\",\"\",VLOOKUP(AV39,Organisation[],2,FALSE))","v":""}]
["null",null,null,null,{"$f":"IF(D40=\"\",\"\",VLOOKUP(D40,light_make[],2,FALSE))","v":""},null,{"$f":"IF(F40=\"\",\"\",VLOOKUP(F40,light_model[],2,FALSE))","v":""},null,{"$f":"IF(H40=\"\",\"\",VLOOKUP(H40,supply_point[],2,FALSE))","v":""},null,{"$f":"IF(J40=\"\",\"\",VLOOKUP(J40,gear_make[],2,FALSE))","v":""},null,{"$f":"IF(L40=\"\",\"\",VLOOKUP(L40,gear_model[],2,FALSE))","v":""},null,{"$f":"IF(N40=\"\",\"\",VLOOKUP(N40,lamp_make[],2,FALSE))","v":""},null,{"$f":"IF(P40=\"\",\"\",VLOOKUP(P40,lamp_model[],2,FALSE))","v":""},null,null,null,null,{"$f":"IF(U40=\"\",\"\",VLOOKUP(U40,Light_install_reason[],2,FALSE))","v":""},null,{"$f":"IF(W40=\"\",\"\",VLOOKUP(W40,light_status[],2,FALSE))","v":""},null,null,{"$f":"IF(Z40=\"\",\"\",VLOOKUP(Z40,Gear_install_reason[],2,FALSE))","v":""},null,{"$f":"IF(AB40=\"\",\"\",VLOOKUP(AB40,gear_status[],2,FALSE))","v":""},null,null,{"$f":"IF(AE40=\"\",\"\",VLOOKUP(AE40,Lamp_install_reason[],2,FALSE))","v":""},null,{"$f":"IF(AG40=\"\",\"\",VLOOKUP(AG40,Asset_owner[],2,FALSE))","v":""},null,{"$f":"IF(AI40=\"\",\"\",VLOOKUP(AI40,risk_likelihood[],2,FALSE))","v":""},null,{"$f":"IF(AK40=\"\",\"\",VLOOKUP(AK40,risk_consequence[],2,FALSE))","v":""},null,{"$f":"IF(AM40=\"\",\"\",VLOOKUP(AM40,risk[],2,FALSE))","v":""},null,{"$f":"IF(AO40=\"\",\"\",VLOOKUP(AO40,rul_reset[],2,FALSE))","v":""},null,{"$f":"IF(AQ40=\"\",\"\",VLOOKUP(AQ40,use_default_rc[],2,FALSE))","v":""},null,{"$f":"IF(AS40=\"\",\"\",VLOOKUP(AS40,condition[],2,FALSE))","v":""},null,null,{"$f":"IF(AV40=\"\",\"\",VLOOKUP(AV40,Organisation[],2,FALSE))","v":""}]
["null",null,null,null,{"$f":"IF(D41=\"\",\"\",VLOOKUP(D41,light_make[],2,FALSE))","v":""},null,{"$f":"IF(F41=\"\",\"\",VLOOKUP(F41,light_model[],2,FALSE))","v":""},null,{"$f":"IF(H41=\"\",\"\",VLOOKUP(H41,supply_point[],2,FALSE))","v":""},null,{"$f":"IF(J41=\"\",\"\",VLOOKUP(J41,gear_make[],2,FALSE))","v":""},null,{"$f":"IF(L41=\"\",\"\",VLOOKUP(L41,gear_model[],2,FALSE))","v":""},null,{"$f":"IF(N41=\"\",\"\",VLOOKUP(N41,lamp_make[],2,FALSE))","v":""},null,{"$f":"IF(P41=\"\",\"\",VLOOKUP(P41,lamp_model[],2,FALSE))","v":""},null,null,null,null,{"$f":"IF(U41=\"\",\"\",VLOOKUP(U41,Light_install_reason[],2,FALSE))","v":""},null,{"$f":"IF(W41=\"\",\"\",VLOOKUP(W41,light_status[],2,FALSE))","v":""},null,null,{"$f":"IF(Z41=\"\",\"\",VLOOKUP(Z41,Gear_install_reason[],2,FALSE))","v":""},null,{"$f":"IF(AB41=\"\",\"\",VLOOKUP(AB41,gear_status[],2,FALSE))","v":""},null,null,{"$f":"IF(AE41=\"\",\"\",VLOOKUP(AE41,Lamp_install_reason[],2,FALSE))","v":""},null,{"$f":"IF(AG41=\"\",\"\",VLOOKUP(AG41,Asset_owner[],2,FALSE))","v":""},null,{"$f":"IF(AI41=\"\",\"\",VLOOKUP(AI41,risk_likelihood[],2,FALSE))","v":""},null,{"$f":"IF(AK41=\"\",\"\",VLOOKUP(AK41,risk_consequence[],2,FALSE))","v":""},null,{"$f":"IF(AM41=\"\",\"\",VLOOKUP(AM41,risk[],2,FALSE))","v":""},null,{"$f":"IF(AO41=\"\",\"\",VLOOKUP(AO41,rul_reset[],2,FALSE))","v":""},null,{"$f":"IF(AQ41=\"\",\"\",VLOOKUP(AQ41,use_default_rc[],2,FALSE))","v":""},null,{"$f":"IF(AS41=\"\",\"\",VLOOKUP(AS41,condition[],2,FALSE))","v":""},null,null,{"$f":"IF(AV41=\"\",\"\",VLOOKUP(AV41,Organisation[],2,FALSE))","v":""}]
["null",null,null,null,{"$f":"IF(D42=\"\",\"\",VLOOKUP(D42,light_make[],2,FALSE))","v":""},null,{"$f":"IF(F42=\"\",\"\",VLOOKUP(F42,light_model[],2,FALSE))","v":""},null,{"$f":"IF(H42=\"\",\"\",VLOOKUP(H42,supply_point[],2,FALSE))","v":""},null,{"$f":"IF(J42=\"\",\"\",VLOOKUP(J42,gear_make[],2,FALSE))","v":""},null,{"$f":"IF(L42=\"\",\"\",VLOOKUP(L42,gear_model[],2,FALSE))","v":""},null,{"$f":"IF(N42=\"\",\"\",VLOOKUP(N42,lamp_make[],2,FALSE))","v":""},null,{"$f":"IF(P42=\"\",\"\",VLOOKUP(P42,lamp_model[],2,FALSE))","v":""},null,null,null,null,{"$f":"IF(U42=\"\",\"\",VLOOKUP(U42,Light_install_reason[],2,FALSE))","v":""},null,{"$f":"IF(W42=\"\",\"\",VLOOKUP(W42,light_status[],2,FALSE))","v":""},null,null,{"$f":"IF(Z42=\"\",\"\",VLOOKUP(Z42,Gear_install_reason[],2,FALSE))","v":""},null,{"$f":"IF(AB42=\"\",\"\",VLOOKUP(AB42,gear_status[],2,FALSE))","v":""},null,null,{"$f":"IF(AE42=\"\",\"\",VLOOKUP(AE42,Lamp_install_reason[],2,FALSE))","v":""},null,{"$f":"IF(AG42=\"\",\"\",VLOOKUP(AG42,Asset_owner[],2,FALSE))","v":""},null,{"$f":"IF(AI42=\"\",\"\",VLOOKUP(AI42,risk_likelihood[],2,FALSE))","v":""},null,{"$f":"IF(AK42=\"\",\"\",VLOOKUP(AK42,risk_consequence[],2,FALSE))","v":""},null,{"$f":"IF(AM42=\"\",\"\",VLOOKUP(AM42,risk[],2,FALSE))","v":""},null,{"$f":"IF(AO42=\"\",\"\",VLOOKUP(AO42,rul_reset[],2,FALSE))","v":""},null,{"$f":"IF(AQ42=\"\",\"\",VLOOKUP(AQ42,use_default_rc[],2,FALSE))","v":""},null,{"$f":"IF(AS42=\"\",\"\",VLOOKUP(AS42,condition[],2,FALSE))","v":""},null,null,{"$f":"IF(AV42=\"\",\"\",VLOOKUP(AV42,Organisation[],2,FALSE))","v":""}]
["null",null,null,null,{"$f":"IF(D43=\"\",\"\",VLOOKUP(D43,light_make[],2,FALSE))","v":""},null,{"$f":"IF(F43=\"\",\"\",VLOOKUP(F43,light_model[],2,FALSE))","v":""},null,{"$f":"IF(H43=\"\",\"\",VLOOKUP(H43,supply_point[],2,FALSE))","v":""},null,{"$f":"IF(J43=\"\",\"\",VLOOKUP(J43,gear_make[],2,FALSE))","v":""},null,{"$f":"IF(L43=\"\",\"\",VLOOKUP(L43,gear_model[],2,FALSE))","v":""},null,{"$f":"IF(N43=\"\",\"\",VLOOKUP(N43,lamp_make[],2,FALSE))","v":""},null,{"$f":"IF(P43=\"\",\"\",VLOOKUP(P43,lamp_model[],2,FALSE))","v":""},null,null,null,null,{"$f":"IF(U43=\"\",\"\",VLOOKUP(U43,Light_install_reason[],2,FALSE))","v":""},null,{"$f":"IF(W43=\"\",\"\",VLOOKUP(W43,light_status[],2,FALSE))","v":""},null,null,{"$f":"IF(Z43=\"\",\"\",VLOOKUP(Z43,Gear_install_reason[],2,FALSE))","v":""},null,{"$f":"IF(AB43=\"\",\"\",VLOOKUP(AB43,gear_status[],2,FALSE))","v":""},null,null,{"$f":"IF(AE43=\"\",\"\",VLOOKUP(AE43,Lamp_install_reason[],2,FALSE))","v":""},null,{"$f":"IF(AG43=\"\",\"\",VLOOKUP(AG43,Asset_owner[],2,FALSE))","v":""},null,{"$f":"IF(AI43=\"\",\"\",VLOOKUP(AI43,risk_likelihood[],2,FALSE))","v":""},null,{"$f":"IF(AK43=\"\",\"\",VLOOKUP(AK43,risk_consequence[],2,FALSE))","v":""},null,{"$f":"IF(AM43=\"\",\"\",VLOOKUP(AM43,risk[],2,FALSE))","v":""},null,{"$f":"IF(AO43=\"\",\"\",VLOOKUP(AO43,rul_reset[],2,FALSE))","v":""},null,{"$f":"IF(AQ43=\"\",\"\",VLOOKUP(AQ43,use_default_rc[],2,FALSE))","v":""},null,{"$f":"IF(AS43=\"\",\"\",VLOOKUP(AS43,condition[],2,FALSE))","v":""},null,null,{"$f":"IF(AV43=\"\",\"\",VLOOKUP(AV43,Organisation[],2,FALSE))","v":""}]
["null",null,null,null,{"$f":"IF(D44=\"\",\"\",VLOOKUP(D44,light_make[],2,FALSE))","v":""},null,{"$f":"IF(F44=\"\",\"\",VLOOKUP(F44,light_model[],2,FALSE))","v":""},null,{"$f":"IF(H44=\"\",\"\",VLOOKUP(H44,supply_point[],2,FALSE))","v":""},null,{"$f":"IF(J44=\"\",\"\",VLOOKUP(J44,gear_make[],2,FALSE))","v":""},null,{"$f":"IF(L44=\"\",\"\",VLOOKUP(L44,gear_model[],2,FALSE))","v":""},null,{"$f":"IF(N44=\"\",\"\",VLOOKUP(N44,lamp_make[],2,FALSE))","v":""},null,{"$f":"IF(P44=\"\",\"\",VLOOKUP(P44,lamp_model[],2,FALSE))","v":""},null,null,null,null,{"$f":"IF(U44=\"\",\"\",VLOOKUP(U44,Light_install_reason[],2,FALSE))","v":""},null,{"$f":"IF(W44=\"\",\"\",VLOOKUP(W44,light_status[],2,FALSE))","v":""},null,null,{"$f":"IF(Z44=\"\",\"\",VLOOKUP(Z44,Gear_install_reason[],2,FALSE))","v":""},null,{"$f":"IF(AB44=\"\",\"\",VLOOKUP(AB44,gear_status[],2,FALSE))","v":""},null,null,{"$f":"IF(AE44=\"\",\"\",VLOOKUP(AE44,Lamp_install_reason[],2,FALSE))","v":""},null,{"$f":"IF(AG44=\"\",\"\",VLOOKUP(AG44,Asset_owner[],2,FALSE))","v":""},null,{"$f":"IF(AI44=\"\",\"\",VLOOKUP(AI44,risk_likelihood[],2,FALSE))","v":""},null,{"$f":"IF(AK44=\"\",\"\",VLOOKUP(AK44,risk_consequence[],2,FALSE))","v":""},null,{"$f":"IF(AM44=\"\",\"\",VLOOKUP(AM44,risk[],2,FALSE))","v":""},null,{"$f":"IF(AO44=\"\",\"\",VLOOKUP(AO44,rul_reset[],2,FALSE))","v":""},null,{"$f":"IF(AQ44=\"\",\"\",VLOOKUP(AQ44,use_default_rc[],2,FALSE))","v":""},null,{"$f":"IF(AS44=\"\",\"\",VLOOKUP(AS44,condition[],2,FALSE))","v":""},null,null,{"$f":"IF(AV44=\"\",\"\",VLOOKUP(AV44,Organisation[],2,FALSE))","v":""}]
["null",null,null,null,{"$f":"IF(D45=\"\",\"\",VLOOKUP(D45,light_make[],2,FALSE))","v":""},null,{"$f":"IF(F45=\"\",\"\",VLOOKUP(F45,light_model[],2,FALSE))","v":""},null,{"$f":"IF(H45=\"\",\"\",VLOOKUP(H45,supply_point[],2,FALSE))","v":""},null,{"$f":"IF(J45=\"\",\"\",VLOOKUP(J45,gear_make[],2,FALSE))","v":""},null,{"$f":"IF(L45=\"\",\"\",VLOOKUP(L45,gear_model[],2,FALSE))","v":""},null,{"$f":"IF(N45=\"\",\"\",VLOOKUP(N45,lamp_make[],2,FALSE))","v":""},null,{"$f":"IF(P45=\"\",\"\",VLOOKUP(P45,lamp_model[],2,FALSE))","v":""},null,null,null,null,{"$f":"IF(U45=\"\",\"\",VLOOKUP(U45,Light_install_reason[],2,FALSE))","v":""},null,{"$f":"IF(W45=\"\",\"\",VLOOKUP(W45,light_status[],2,FALSE))","v":""},null,null,{"$f":"IF(Z45=\"\",\"\",VLOOKUP(Z45,Gear_install_reason[],2,FALSE))","v":""},null,{"$f":"IF(AB45=\"\",\"\",VLOOKUP(AB45,gear_status[],2,FALSE))","v":""},null,null,{"$f":"IF(AE45=\"\",\"\",VLOOKUP(AE45,Lamp_install_reason[],2,FALSE))","v":""},null,{"$f":"IF(AG45=\"\",\"\",VLOOKUP(AG45,Asset_owner[],2,FALSE))","v":""},null,{"$f":"IF(AI45=\"\",\"\",VLOOKUP(AI45,risk_likelihood[],2,FALSE))","v":""},null,{"$f":"IF(AK45=\"\",\"\",VLOOKUP(AK45,risk_consequence[],2,FALSE))","v":""},null,{"$f":"IF(AM45=\"\",\"\",VLOOKUP(AM45,risk[],2,FALSE))","v":""},null,{"$f":"IF(AO45=\"\",\"\",VLOOKUP(AO45,rul_reset[],2,FALSE))","v":""},null,{"$f":"IF(AQ45=\"\",\"\",VLOOKUP(AQ45,use_default_rc[],2,FALSE))","v":""},null,{"$f":"IF(AS45=\"\",\"\",VLOOKUP(AS45,condition[],2,FALSE))","v":""},null,null,{"$f":"IF(AV45=\"\",\"\",VLOOKUP(AV45,Organisation[],2,FALSE))","v":""}]
["null",null,null,null,{"$f":"IF(D46=\"\",\"\",VLOOKUP(D46,light_make[],2,FALSE))","v":""},null,{"$f":"IF(F46=\"\",\"\",VLOOKUP(F46,light_model[],2,FALSE))","v":""},null,{"$f":"IF(H46=\"\",\"\",VLOOKUP(H46,supply_point[],2,FALSE))","v":""},null,{"$f":"IF(J46=\"\",\"\",VLOOKUP(J46,gear_make[],2,FALSE))","v":""},null,{"$f":"IF(L46=\"\",\"\",VLOOKUP(L46,gear_model[],2,FALSE))","v":""},null,{"$f":"IF(N46=\"\",\"\",VLOOKUP(N46,lamp_make[],2,FALSE))","v":""},null,{"$f":"IF(P46=\"\",\"\",VLOOKUP(P46,lamp_model[],2,FALSE))","v":""},null,null,null,null,{"$f":"IF(U46=\"\",\"\",VLOOKUP(U46,Light_install_reason[],2,FALSE))","v":""},null,{"$f":"IF(W46=\"\",\"\",VLOOKUP(W46,light_status[],2,FALSE))","v":""},null,null,{"$f":"IF(Z46=\"\",\"\",VLOOKUP(Z46,Gear_install_reason[],2,FALSE))","v":""},null,{"$f":"IF(AB46=\"\",\"\",VLOOKUP(AB46,gear_status[],2,FALSE))","v":""},null,null,{"$f":"IF(AE46=\"\",\"\",VLOOKUP(AE46,Lamp_install_reason[],2,FALSE))","v":""},null,{"$f":"IF(AG46=\"\",\"\",VLOOKUP(AG46,Asset_owner[],2,FALSE))","v":""},null,{"$f":"IF(AI46=\"\",\"\",VLOOKUP(AI46,risk_likelihood[],2,FALSE))","v":""},null,{"$f":"IF(AK46=\"\",\"\",VLOOKUP(AK46,risk_consequence[],2,FALSE))","v":""},null,{"$f":"IF(AM46=\"\",\"\",VLOOKUP(AM46,risk[],2,FALSE))","v":""},null,{"$f":"IF(AO46=\"\",\"\",VLOOKUP(AO46,rul_reset[],2,FALSE))","v":""},null,{"$f":"IF(AQ46=\"\",\"\",VLOOKUP(AQ46,use_default_rc[],2,FALSE))","v":""},null,{"$f":"IF(AS46=\"\",\"\",VLOOKUP(AS46,condition[],2,FALSE))","v":""},null,null,{"$f":"IF(AV46=\"\",\"\",VLOOKUP(AV46,Organisation[],2,FALSE))","v":""}]
["null",null,null,null,{"$f":"IF(D47=\"\",\"\",VLOOKUP(D47,light_make[],2,FALSE))","v":""},null,{"$f":"IF(F47=\"\",\"\",VLOOKUP(F47,light_model[],2,FALSE))","v":""},null,{"$f":"IF(H47=\"\",\"\",VLOOKUP(H47,supply_point[],2,FALSE))","v":""},null,{"$f":"IF(J47=\"\",\"\",VLOOKUP(J47,gear_make[],2,FALSE))","v":""},null,{"$f":"IF(L47=\"\",\"\",VLOOKUP(L47,gear_model[],2,FALSE))","v":""},null,{"$f":"IF(N47=\"\",\"\",VLOOKUP(N47,lamp_make[],2,FALSE))","v":""},null,{"$f":"IF(P47=\"\",\"\",VLOOKUP(P47,lamp_model[],2,FALSE))","v":""},null,null,null,null,{"$f":"IF(U47=\"\",\"\",VLOOKUP(U47,Light_install_reason[],2,FALSE))","v":""},null,{"$f":"IF(W47=\"\",\"\",VLOOKUP(W47,light_status[],2,FALSE))","v":""},null,null,{"$f":"IF(Z47=\"\",\"\",VLOOKUP(Z47,Gear_install_reason[],2,FALSE))","v":""},null,{"$f":"IF(AB47=\"\",\"\",VLOOKUP(AB47,gear_status[],2,FALSE))","v":""},null,null,{"$f":"IF(AE47=\"\",\"\",VLOOKUP(AE47,Lamp_install_reason[],2,FALSE))","v":""},null,{"$f":"IF(AG47=\"\",\"\",VLOOKUP(AG47,Asset_owner[],2,FALSE))","v":""},null,{"$f":"IF(AI47=\"\",\"\",VLOOKUP(AI47,risk_likelihood[],2,FALSE))","v":""},null,{"$f":"IF(AK47=\"\",\"\",VLOOKUP(AK47,risk_consequence[],2,FALSE))","v":""},null,{"$f":"IF(AM47=\"\",\"\",VLOOKUP(AM47,risk[],2,FALSE))","v":""},null,{"$f":"IF(AO47=\"\",\"\",VLOOKUP(AO47,rul_reset[],2,FALSE))","v":""},null,{"$f":"IF(AQ47=\"\",\"\",VLOOKUP(AQ47,use_default_rc[],2,FALSE))","v":""},null,{"$f":"IF(AS47=\"\",\"\",VLOOKUP(AS47,condition[],2,FALSE))","v":""},null,null,{"$f":"IF(AV47=\"\",\"\",VLOOKUP(AV47,Organisation[],2,FALSE))","v":""}]
["null",null,null,null,{"$f":"IF(D48=\"\",\"\",VLOOKUP(D48,light_make[],2,FALSE))","v":""},null,{"$f":"IF(F48=\"\",\"\",VLOOKUP(F48,light_model[],2,FALSE))","v":""},null,{"$f":"IF(H48=\"\",\"\",VLOOKUP(H48,supply_point[],2,FALSE))","v":""},null,{"$f":"IF(J48=\"\",\"\",VLOOKUP(J48,gear_make[],2,FALSE))","v":""},null,{"$f":"IF(L48=\"\",\"\",VLOOKUP(L48,gear_model[],2,FALSE))","v":""},null,{"$f":"IF(N48=\"\",\"\",VLOOKUP(N48,lamp_make[],2,FALSE))","v":""},null,{"$f":"IF(P48=\"\",\"\",VLOOKUP(P48,lamp_model[],2,FALSE))","v":""},null,null,null,null,{"$f":"IF(U48=\"\",\"\",VLOOKUP(U48,Light_install_reason[],2,FALSE))","v":""},null,{"$f":"IF(W48=\"\",\"\",VLOOKUP(W48,light_status[],2,FALSE))","v":""},null,null,{"$f":"IF(Z48=\"\",\"\",VLOOKUP(Z48,Gear_install_reason[],2,FALSE))","v":""},null,{"$f":"IF(AB48=\"\",\"\",VLOOKUP(AB48,gear_status[],2,FALSE))","v":""},null,null,{"$f":"IF(AE48=\"\",\"\",VLOOKUP(AE48,Lamp_install_reason[],2,FALSE))","v":""},null,{"$f":"IF(AG48=\"\",\"\",VLOOKUP(AG48,Asset_owner[],2,FALSE))","v":""},null,{"$f":"IF(AI48=\"\",\"\",VLOOKUP(AI48,risk_likelihood[],2,FALSE))","v":""},null,{"$f":"IF(AK48=\"\",\"\",VLOOKUP(AK48,risk_consequence[],2,FALSE))","v":""},null,{"$f":"IF(AM48=\"\",\"\",VLOOKUP(AM48,risk[],2,FALSE))","v":""},null,{"$f":"IF(AO48=\"\",\"\",VLOOKUP(AO48,rul_reset[],2,FALSE))","v":""},null,{"$f":"IF(AQ48=\"\",\"\",VLOOKUP(AQ48,use_default_rc[],2,FALSE))","v":""},null,{"$f":"IF(AS48=\"\",\"\",VLOOKUP(AS48,condition[],2,FALSE))","v":""},null,null,{"$f":"IF(AV48=\"\",\"\",VLOOKUP(AV48,Organisation[],2,FALSE))","v":""}]
["null",null,null,null,{"$f":"IF(D49=\"\",\"\",VLOOKUP(D49,light_make[],2,FALSE))","v":""},null,{"$f":"IF(F49=\"\",\"\",VLOOKUP(F49,light_model[],2,FALSE))","v":""},null,{"$f":"IF(H49=\"\",\"\",VLOOKUP(H49,supply_point[],2,FALSE))","v":""},null,{"$f":"IF(J49=\"\",\"\",VLOOKUP(J49,gear_make[],2,FALSE))","v":""},null,{"$f":"IF(L49=\"\",\"\",VLOOKUP(L49,gear_model[],2,FALSE))","v":""},null,{"$f":"IF(N49=\"\",\"\",VLOOKUP(N49,lamp_make[],2,FALSE))","v":""},null,{"$f":"IF(P49=\"\",\"\",VLOOKUP(P49,lamp_model[],2,FALSE))","v":""},null,null,null,null,{"$f":"IF(U49=\"\",\"\",VLOOKUP(U49,Light_install_reason[],2,FALSE))","v":""},null,{"$f":"IF(W49=\"\",\"\",VLOOKUP(W49,light_status[],2,FALSE))","v":""},null,null,{"$f":"IF(Z49=\"\",\"\",VLOOKUP(Z49,Gear_install_reason[],2,FALSE))","v":""},null,{"$f":"IF(AB49=\"\",\"\",VLOOKUP(AB49,gear_status[],2,FALSE))","v":""},null,null,{"$f":"IF(AE49=\"\",\"\",VLOOKUP(AE49,Lamp_install_reason[],2,FALSE))","v":""},null,{"$f":"IF(AG49=\"\",\"\",VLOOKUP(AG49,Asset_owner[],2,FALSE))","v":""},null,{"$f":"IF(AI49=\"\",\"\",VLOOKUP(AI49,risk_likelihood[],2,FALSE))","v":""},null,{"$f":"IF(AK49=\"\",\"\",VLOOKUP(AK49,risk_consequence[],2,FALSE))","v":""},null,{"$f":"IF(AM49=\"\",\"\",VLOOKUP(AM49,risk[],2,FALSE))","v":""},null,{"$f":"IF(AO49=\"\",\"\",VLOOKUP(AO49,rul_reset[],2,FALSE))","v":""},null,{"$f":"IF(AQ49=\"\",\"\",VLOOKUP(AQ49,use_default_rc[],2,FALSE))","v":""},null,{"$f":"IF(AS49=\"\",\"\",VLOOKUP(AS49,condition[],2,FALSE))","v":""},null,null,{"$f":"IF(AV49=\"\",\"\",VLOOKUP(AV49,Organisation[],2,FALSE))","v":""}]
["null",null,null,null,{"$f":"IF(D50=\"\",\"\",VLOOKUP(D50,light_make[],2,FALSE))","v":""},null,{"$f":"IF(F50=\"\",\"\",VLOOKUP(F50,light_model[],2,FALSE))","v":""},null,{"$f":"IF(H50=\"\",\"\",VLOOKUP(H50,supply_point[],2,FALSE))","v":""},null,{"$f":"IF(J50=\"\",\"\",VLOOKUP(J50,gear_make[],2,FALSE))","v":""},null,{"$f":"IF(L50=\"\",\"\",VLOOKUP(L50,gear_model[],2,FALSE))","v":""},null,{"$f":"IF(N50=\"\",\"\",VLOOKUP(N50,lamp_make[],2,FALSE))","v":""},null,{"$f":"IF(P50=\"\",\"\",VLOOKUP(P50,lamp_model[],2,FALSE))","v":""},null,null,null,null,{"$f":"IF(U50=\"\",\"\",VLOOKUP(U50,Light_install_reason[],2,FALSE))","v":""},null,{"$f":"IF(W50=\"\",\"\",VLOOKUP(W50,light_status[],2,FALSE))","v":""},null,null,{"$f":"IF(Z50=\"\",\"\",VLOOKUP(Z50,Gear_install_reason[],2,FALSE))","v":""},null,{"$f":"IF(AB50=\"\",\"\",VLOOKUP(AB50,gear_status[],2,FALSE))","v":""},null,null,{"$f":"IF(AE50=\"\",\"\",VLOOKUP(AE50,Lamp_install_reason[],2,FALSE))","v":""},null,{"$f":"IF(AG50=\"\",\"\",VLOOKUP(AG50,Asset_owner[],2,FALSE))","v":""},null,{"$f":"IF(AI50=\"\",\"\",VLOOKUP(AI50,risk_likelihood[],2,FALSE))","v":""},null,{"$f":"IF(AK50=\"\",\"\",VLOOKUP(AK50,risk_consequence[],2,FALSE))","v":""},null,{"$f":"IF(AM50=\"\",\"\",VLOOKUP(AM50,risk[],2,FALSE))","v":""},null,{"$f":"IF(AO50=\"\",\"\",VLOOKUP(AO50,rul_reset[],2,FALSE))","v":""},null,{"$f":"IF(AQ50=\"\",\"\",VLOOKUP(AQ50,use_default_rc[],2,FALSE))","v":""},null,{"$f":"IF(AS50=\"\",\"\",VLOOKUP(AS50,condition[],2,FALSE))","v":""},null,null,{"$f":"IF(AV50=\"\",\"\",VLOOKUP(AV50,Organisation[],2,FALSE))","v":""}]
["null",null,null,null,{"$f":"IF(D51=\"\",\"\",VLOOKUP(D51,light_make[],2,FALSE))","v":""},null,{"$f":"IF(F51=\"\",\"\",VLOOKUP(F51,light_model[],2,FALSE))","v":""},null,{"$f":"IF(H51=\"\",\"\",VLOOKUP(H51,supply_point[],2,FALSE))","v":""},null,{"$f":"IF(J51=\"\",\"\",VLOOKUP(J51,gear_make[],2,FALSE))","v":""},null,{"$f":"IF(L51=\"\",\"\",VLOOKUP(L51,gear_model[],2,FALSE))","v":""},null,{"$f":"IF(N51=\"\",\"\",VLOOKUP(N51,lamp_make[],2,FALSE))","v":""},null,{"$f":"IF(P51=\"\",\"\",VLOOKUP(P51,lamp_model[],2,FALSE))","v":""},null,null,null,null,{"$f":"IF(U51=\"\",\"\",VLOOKUP(U51,Light_install_reason[],2,FALSE))","v":""},null,{"$f":"IF(W51=\"\",\"\",VLOOKUP(W51,light_status[],2,FALSE))","v":""},null,null,{"$f":"IF(Z51=\"\",\"\",VLOOKUP(Z51,Gear_install_reason[],2,FALSE))","v":""},null,{"$f":"IF(AB51=\"\",\"\",VLOOKUP(AB51,gear_status[],2,FALSE))","v":""},null,null,{"$f":"IF(AE51=\"\",\"\",VLOOKUP(AE51,Lamp_install_reason[],2,FALSE))","v":""},null,{"$f":"IF(AG51=\"\",\"\",VLOOKUP(AG51,Asset_owner[],2,FALSE))","v":""},null,{"$f":"IF(AI51=\"\",\"\",VLOOKUP(AI51,risk_likelihood[],2,FALSE))","v":""},null,{"$f":"IF(AK51=\"\",\"\",VLOOKUP(AK51,risk_consequence[],2,FALSE))","v":""},null,{"$f":"IF(AM51=\"\",\"\",VLOOKUP(AM51,risk[],2,FALSE))","v":""},null,{"$f":"IF(AO51=\"\",\"\",VLOOKUP(AO51,rul_reset[],2,FALSE))","v":""},null,{"$f":"IF(AQ51=\"\",\"\",VLOOKUP(AQ51,use_default_rc[],2,FALSE))","v":""},null,{"$f":"IF(AS51=\"\",\"\",VLOOKUP(AS51,condition[],2,FALSE))","v":""},null,null,{"$f":"IF(AV51=\"\",\"\",VLOOKUP(AV51,Organisation[],2,FALSE))","v":""}]
["null",null,null,null,{"$f":"IF(D52=\"\",\"\",VLOOKUP(D52,light_make[],2,FALSE))","v":""},null,{"$f":"IF(F52=\"\",\"\",VLOOKUP(F52,light_model[],2,FALSE))","v":""},null,{"$f":"IF(H52=\"\",\"\",VLOOKUP(H52,supply_point[],2,FALSE))","v":""},null,{"$f":"IF(J52=\"\",\"\",VLOOKUP(J52,gear_make[],2,FALSE))","v":""},null,{"$f":"IF(L52=\"\",\"\",VLOOKUP(L52,gear_model[],2,FALSE))","v":""},null,{"$f":"IF(N52=\"\",\"\",VLOOKUP(N52,lamp_make[],2,FALSE))","v":""},null,{"$f":"IF(P52=\"\",\"\",VLOOKUP(P52,lamp_model[],2,FALSE))","v":""},null,null,null,null,{"$f":"IF(U52=\"\",\"\",VLOOKUP(U52,Light_install_reason[],2,FALSE))","v":""},null,{"$f":"IF(W52=\"\",\"\",VLOOKUP(W52,light_status[],2,FALSE))","v":""},null,null,{"$f":"IF(Z52=\"\",\"\",VLOOKUP(Z52,Gear_install_reason[],2,FALSE))","v":""},null,{"$f":"IF(AB52=\"\",\"\",VLOOKUP(AB52,gear_status[],2,FALSE))","v":""},null,null,{"$f":"IF(AE52=\"\",\"\",VLOOKUP(AE52,Lamp_install_reason[],2,FALSE))","v":""},null,{"$f":"IF(AG52=\"\",\"\",VLOOKUP(AG52,Asset_owner[],2,FALSE))","v":""},null,{"$f":"IF(AI52=\"\",\"\",VLOOKUP(AI52,risk_likelihood[],2,FALSE))","v":""},null,{"$f":"IF(AK52=\"\",\"\",VLOOKUP(AK52,risk_consequence[],2,FALSE))","v":""},null,{"$f":"IF(AM52=\"\",\"\",VLOOKUP(AM52,risk[],2,FALSE))","v":""},null,{"$f":"IF(AO52=\"\",\"\",VLOOKUP(AO52,rul_reset[],2,FALSE))","v":""},null,{"$f":"IF(AQ52=\"\",\"\",VLOOKUP(AQ52,use_default_rc[],2,FALSE))","v":""},null,{"$f":"IF(AS52=\"\",\"\",VLOOKUP(AS52,condition[],2,FALSE))","v":""},null,null,{"$f":"IF(AV52=\"\",\"\",VLOOKUP(AV52,Organisation[],2,FALSE))","v":""}]
["null",null,null,null,{"$f":"IF(D53=\"\",\"\",VLOOKUP(D53,light_make[],2,FALSE))","v":""},null,{"$f":"IF(F53=\"\",\"\",VLOOKUP(F53,light_model[],2,FALSE))","v":""},null,{"$f":"IF(H53=\"\",\"\",VLOOKUP(H53,supply_point[],2,FALSE))","v":""},null,{"$f":"IF(J53=\"\",\"\",VLOOKUP(J53,gear_make[],2,FALSE))","v":""},null,{"$f":"IF(L53=\"\",\"\",VLOOKUP(L53,gear_model[],2,FALSE))","v":""},null,{"$f":"IF(N53=\"\",\"\",VLOOKUP(N53,lamp_make[],2,FALSE))","v":""},null,{"$f":"IF(P53=\"\",\"\",VLOOKUP(P53,lamp_model[],2,FALSE))","v":""},null,null,null,null,{"$f":"IF(U53=\"\",\"\",VLOOKUP(U53,Light_install_reason[],2,FALSE))","v":""},null,{"$f":"IF(W53=\"\",\"\",VLOOKUP(W53,light_status[],2,FALSE))","v":""},null,null,{"$f":"IF(Z53=\"\",\"\",VLOOKUP(Z53,Gear_install_reason[],2,FALSE))","v":""},null,{"$f":"IF(AB53=\"\",\"\",VLOOKUP(AB53,gear_status[],2,FALSE))","v":""},null,null,{"$f":"IF(AE53=\"\",\"\",VLOOKUP(AE53,Lamp_install_reason[],2,FALSE))","v":""},null,{"$f":"IF(AG53=\"\",\"\",VLOOKUP(AG53,Asset_owner[],2,FALSE))","v":""},null,{"$f":"IF(AI53=\"\",\"\",VLOOKUP(AI53,risk_likelihood[],2,FALSE))","v":""},null,{"$f":"IF(AK53=\"\",\"\",VLOOKUP(AK53,risk_consequence[],2,FALSE))","v":""},null,{"$f":"IF(AM53=\"\",\"\",VLOOKUP(AM53,risk[],2,FALSE))","v":""},null,{"$f":"IF(AO53=\"\",\"\",VLOOKUP(AO53,rul_reset[],2,FALSE))","v":""},null,{"$f":"IF(AQ53=\"\",\"\",VLOOKUP(AQ53,use_default_rc[],2,FALSE))","v":""},null,{"$f":"IF(AS53=\"\",\"\",VLOOKUP(AS53,condition[],2,FALSE))","v":""},null,null,{"$f":"IF(AV53=\"\",\"\",VLOOKUP(AV53,Organisation[],2,FALSE))","v":""}]
["null",null,null,null,{"$f":"IF(D54=\"\",\"\",VLOOKUP(D54,light_make[],2,FALSE))","v":""},null,{"$f":"IF(F54=\"\",\"\",VLOOKUP(F54,light_model[],2,FALSE))","v":""},null,{"$f":"IF(H54=\"\",\"\",VLOOKUP(H54,supply_point[],2,FALSE))","v":""},null,{"$f":"IF(J54=\"\",\"\",VLOOKUP(J54,gear_make[],2,FALSE))","v":""},null,{"$f":"IF(L54=\"\",\"\",VLOOKUP(L54,gear_model[],2,FALSE))","v":""},null,{"$f":"IF(N54=\"\",\"\",VLOOKUP(N54,lamp_make[],2,FALSE))","v":""},null,{"$f":"IF(P54=\"\",\"\",VLOOKUP(P54,lamp_model[],2,FALSE))","v":""},null,null,null,null,{"$f":"IF(U54=\"\",\"\",VLOOKUP(U54,Light_install_reason[],2,FALSE))","v":""},null,{"$f":"IF(W54=\"\",\"\",VLOOKUP(W54,light_status[],2,FALSE))","v":""},null,null,{"$f":"IF(Z54=\"\",\"\",VLOOKUP(Z54,Gear_install_reason[],2,FALSE))","v":""},null,{"$f":"IF(AB54=\"\",\"\",VLOOKUP(AB54,gear_status[],2,FALSE))","v":""},null,null,{"$f":"IF(AE54=\"\",\"\",VLOOKUP(AE54,Lamp_install_reason[],2,FALSE))","v":""},null,{"$f":"IF(AG54=\"\",\"\",VLOOKUP(AG54,Asset_owner[],2,FALSE))","v":""},null,{"$f":"IF(AI54=\"\",\"\",VLOOKUP(AI54,risk_likelihood[],2,FALSE))","v":""},null,{"$f":"IF(AK54=\"\",\"\",VLOOKUP(AK54,risk_consequence[],2,FALSE))","v":""},null,{"$f":"IF(AM54=\"\",\"\",VLOOKUP(AM54,risk[],2,FALSE))","v":""},null,{"$f":"IF(AO54=\"\",\"\",VLOOKUP(AO54,rul_reset[],2,FALSE))","v":""},null,{"$f":"IF(AQ54=\"\",\"\",VLOOKUP(AQ54,use_default_rc[],2,FALSE))","v":""},null,{"$f":"IF(AS54=\"\",\"\",VLOOKUP(AS54,condition[],2,FALSE))","v":""},null,null,{"$f":"IF(AV54=\"\",\"\",VLOOKUP(AV54,Organisation[],2,FALSE))","v":""}]
["null",null,null,null,{"$f":"IF(D55=\"\",\"\",VLOOKUP(D55,light_make[],2,FALSE))","v":""},null,{"$f":"IF(F55=\"\",\"\",VLOOKUP(F55,light_model[],2,FALSE))","v":""},null,{"$f":"IF(H55=\"\",\"\",VLOOKUP(H55,supply_point[],2,FALSE))","v":""},null,{"$f":"IF(J55=\"\",\"\",VLOOKUP(J55,gear_make[],2,FALSE))","v":""},null,{"$f":"IF(L55=\"\",\"\",VLOOKUP(L55,gear_model[],2,FALSE))","v":""},null,{"$f":"IF(N55=\"\",\"\",VLOOKUP(N55,lamp_make[],2,FALSE))","v":""},null,{"$f":"IF(P55=\"\",\"\",VLOOKUP(P55,lamp_model[],2,FALSE))","v":""},null,null,null,null,{"$f":"IF(U55=\"\",\"\",VLOOKUP(U55,Light_install_reason[],2,FALSE))","v":""},null,{"$f":"IF(W55=\"\",\"\",VLOOKUP(W55,light_status[],2,FALSE))","v":""},null,null,{"$f":"IF(Z55=\"\",\"\",VLOOKUP(Z55,Gear_install_reason[],2,FALSE))","v":""},null,{"$f":"IF(AB55=\"\",\"\",VLOOKUP(AB55,gear_status[],2,FALSE))","v":""},null,null,{"$f":"IF(AE55=\"\",\"\",VLOOKUP(AE55,Lamp_install_reason[],2,FALSE))","v":""},null,{"$f":"IF(AG55=\"\",\"\",VLOOKUP(AG55,Asset_owner[],2,FALSE))","v":""},null,{"$f":"IF(AI55=\"\",\"\",VLOOKUP(AI55,risk_likelihood[],2,FALSE))","v":""},null,{"$f":"IF(AK55=\"\",\"\",VLOOKUP(AK55,risk_consequence[],2,FALSE))","v":""},null,{"$f":"IF(AM55=\"\",\"\",VLOOKUP(AM55,risk[],2,FALSE))","v":""},null,{"$f":"IF(AO55=\"\",\"\",VLOOKUP(AO55,rul_reset[],2,FALSE))","v":""},null,{"$f":"IF(AQ55=\"\",\"\",VLOOKUP(AQ55,use_default_rc[],2,FALSE))","v":""},null,{"$f":"IF(AS55=\"\",\"\",VLOOKUP(AS55,condition[],2,FALSE))","v":""},null,null,{"$f":"IF(AV55=\"\",\"\",VLOOKUP(AV55,Organisation[],2,FALSE))","v":""}]
["null",null,null,null,{"$f":"IF(D56=\"\",\"\",VLOOKUP(D56,light_make[],2,FALSE))","v":""},null,{"$f":"IF(F56=\"\",\"\",VLOOKUP(F56,light_model[],2,FALSE))","v":""},null,{"$f":"IF(H56=\"\",\"\",VLOOKUP(H56,supply_point[],2,FALSE))","v":""},null,{"$f":"IF(J56=\"\",\"\",VLOOKUP(J56,gear_make[],2,FALSE))","v":""},null,{"$f":"IF(L56=\"\",\"\",VLOOKUP(L56,gear_model[],2,FALSE))","v":""},null,{"$f":"IF(N56=\"\",\"\",VLOOKUP(N56,lamp_make[],2,FALSE))","v":""},null,{"$f":"IF(P56=\"\",\"\",VLOOKUP(P56,lamp_model[],2,FALSE))","v":""},null,null,null,null,{"$f":"IF(U56=\"\",\"\",VLOOKUP(U56,Light_install_reason[],2,FALSE))","v":""},null,{"$f":"IF(W56=\"\",\"\",VLOOKUP(W56,light_status[],2,FALSE))","v":""},null,null,{"$f":"IF(Z56=\"\",\"\",VLOOKUP(Z56,Gear_install_reason[],2,FALSE))","v":""},null,{"$f":"IF(AB56=\"\",\"\",VLOOKUP(AB56,gear_status[],2,FALSE))","v":""},null,null,{"$f":"IF(AE56=\"\",\"\",VLOOKUP(AE56,Lamp_install_reason[],2,FALSE))","v":""},null,{"$f":"IF(AG56=\"\",\"\",VLOOKUP(AG56,Asset_owner[],2,FALSE))","v":""},null,{"$f":"IF(AI56=\"\",\"\",VLOOKUP(AI56,risk_likelihood[],2,FALSE))","v":""},null,{"$f":"IF(AK56=\"\",\"\",VLOOKUP(AK56,risk_consequence[],2,FALSE))","v":""},null,{"$f":"IF(AM56=\"\",\"\",VLOOKUP(AM56,risk[],2,FALSE))","v":""},null,{"$f":"IF(AO56=\"\",\"\",VLOOKUP(AO56,rul_reset[],2,FALSE))","v":""},null,{"$f":"IF(AQ56=\"\",\"\",VLOOKUP(AQ56,use_default_rc[],2,FALSE))","v":""},null,{"$f":"IF(AS56=\"\",\"\",VLOOKUP(AS56,condition[],2,FALSE))","v":""},null,null,{"$f":"IF(AV56=\"\",\"\",VLOOKUP(AV56,Organisation[],2,FALSE))","v":""}]
["null",null,null,null,{"$f":"IF(D57=\"\",\"\",VLOOKUP(D57,light_make[],2,FALSE))","v":""},null,{"$f":"IF(F57=\"\",\"\",VLOOKUP(F57,light_model[],2,FALSE))","v":""},null,{"$f":"IF(H57=\"\",\"\",VLOOKUP(H57,supply_point[],2,FALSE))","v":""},null,{"$f":"IF(J57=\"\",\"\",VLOOKUP(J57,gear_make[],2,FALSE))","v":""},null,{"$f":"IF(L57=\"\",\"\",VLOOKUP(L57,gear_model[],2,FALSE))","v":""},null,{"$f":"IF(N57=\"\",\"\",VLOOKUP(N57,lamp_make[],2,FALSE))","v":""},null,{"$f":"IF(P57=\"\",\"\",VLOOKUP(P57,lamp_model[],2,FALSE))","v":""},null,null,null,null,{"$f":"IF(U57=\"\",\"\",VLOOKUP(U57,Light_install_reason[],2,FALSE))","v":""},null,{"$f":"IF(W57=\"\",\"\",VLOOKUP(W57,light_status[],2,FALSE))","v":""},null,null,{"$f":"IF(Z57=\"\",\"\",VLOOKUP(Z57,Gear_install_reason[],2,FALSE))","v":""},null,{"$f":"IF(AB57=\"\",\"\",VLOOKUP(AB57,gear_status[],2,FALSE))","v":""},null,null,{"$f":"IF(AE57=\"\",\"\",VLOOKUP(AE57,Lamp_install_reason[],2,FALSE))","v":""},null,{"$f":"IF(AG57=\"\",\"\",VLOOKUP(AG57,Asset_owner[],2,FALSE))","v":""},null,{"$f":"IF(AI57=\"\",\"\",VLOOKUP(AI57,risk_likelihood[],2,FALSE))","v":""},null,{"$f":"IF(AK57=\"\",\"\",VLOOKUP(AK57,risk_consequence[],2,FALSE))","v":""},null,{"$f":"IF(AM57=\"\",\"\",VLOOKUP(AM57,risk[],2,FALSE))","v":""},null,{"$f":"IF(AO57=\"\",\"\",VLOOKUP(AO57,rul_reset[],2,FALSE))","v":""},null,{"$f":"IF(AQ57=\"\",\"\",VLOOKUP(AQ57,use_default_rc[],2,FALSE))","v":""},null,{"$f":"IF(AS57=\"\",\"\",VLOOKUP(AS57,condition[],2,FALSE))","v":""},null,null,{"$f":"IF(AV57=\"\",\"\",VLOOKUP(AV57,Organisation[],2,FALSE))","v":""}]
["null",null,null,null,{"$f":"IF(D58=\"\",\"\",VLOOKUP(D58,light_make[],2,FALSE))","v":""},null,{"$f":"IF(F58=\"\",\"\",VLOOKUP(F58,light_model[],2,FALSE))","v":""},null,{"$f":"IF(H58=\"\",\"\",VLOOKUP(H58,supply_point[],2,FALSE))","v":""},null,{"$f":"IF(J58=\"\",\"\",VLOOKUP(J58,gear_make[],2,FALSE))","v":""},null,{"$f":"IF(L58=\"\",\"\",VLOOKUP(L58,gear_model[],2,FALSE))","v":""},null,{"$f":"IF(N58=\"\",\"\",VLOOKUP(N58,lamp_make[],2,FALSE))","v":""},null,{"$f":"IF(P58=\"\",\"\",VLOOKUP(P58,lamp_model[],2,FALSE))","v":""},null,null,null,null,{"$f":"IF(U58=\"\",\"\",VLOOKUP(U58,Light_install_reason[],2,FALSE))","v":""},null,{"$f":"IF(W58=\"\",\"\",VLOOKUP(W58,light_status[],2,FALSE))","v":""},null,null,{"$f":"IF(Z58=\"\",\"\",VLOOKUP(Z58,Gear_install_reason[],2,FALSE))","v":""},null,{"$f":"IF(AB58=\"\",\"\",VLOOKUP(AB58,gear_status[],2,FALSE))","v":""},null,null,{"$f":"IF(AE58=\"\",\"\",VLOOKUP(AE58,Lamp_install_reason[],2,FALSE))","v":""},null,{"$f":"IF(AG58=\"\",\"\",VLOOKUP(AG58,Asset_owner[],2,FALSE))","v":""},null,{"$f":"IF(AI58=\"\",\"\",VLOOKUP(AI58,risk_likelihood[],2,FALSE))","v":""},null,{"$f":"IF(AK58=\"\",\"\",VLOOKUP(AK58,risk_consequence[],2,FALSE))","v":""},null,{"$f":"IF(AM58=\"\",\"\",VLOOKUP(AM58,risk[],2,FALSE))","v":""},null,{"$f":"IF(AO58=\"\",\"\",VLOOKUP(AO58,rul_reset[],2,FALSE))","v":""},null,{"$f":"IF(AQ58=\"\",\"\",VLOOKUP(AQ58,use_default_rc[],2,FALSE))","v":""},null,{"$f":"IF(AS58=\"\",\"\",VLOOKUP(AS58,condition[],2,FALSE))","v":""},null,null,{"$f":"IF(AV58=\"\",\"\",VLOOKUP(AV58,Organisation[],2,FALSE))","v":""}]
["null",null,null,null,{"$f":"IF(D59=\"\",\"\",VLOOKUP(D59,light_make[],2,FALSE))","v":""},null,{"$f":"IF(F59=\"\",\"\",VLOOKUP(F59,light_model[],2,FALSE))","v":""},null,{"$f":"IF(H59=\"\",\"\",VLOOKUP(H59,supply_point[],2,FALSE))","v":""},null,{"$f":"IF(J59=\"\",\"\",VLOOKUP(J59,gear_make[],2,FALSE))","v":""},null,{"$f":"IF(L59=\"\",\"\",VLOOKUP(L59,gear_model[],2,FALSE))","v":""},null,{"$f":"IF(N59=\"\",\"\",VLOOKUP(N59,lamp_make[],2,FALSE))","v":""},null,{"$f":"IF(P59=\"\",\"\",VLOOKUP(P59,lamp_model[],2,FALSE))","v":""},null,null,null,null,{"$f":"IF(U59=\"\",\"\",VLOOKUP(U59,Light_install_reason[],2,FALSE))","v":""},null,{"$f":"IF(W59=\"\",\"\",VLOOKUP(W59,light_status[],2,FALSE))","v":""},null,null,{"$f":"IF(Z59=\"\",\"\",VLOOKUP(Z59,Gear_install_reason[],2,FALSE))","v":""},null,{"$f":"IF(AB59=\"\",\"\",VLOOKUP(AB59,gear_status[],2,FALSE))","v":""},null,null,{"$f":"IF(AE59=\"\",\"\",VLOOKUP(AE59,Lamp_install_reason[],2,FALSE))","v":""},null,{"$f":"IF(AG59=\"\",\"\",VLOOKUP(AG59,Asset_owner[],2,FALSE))","v":""},null,{"$f":"IF(AI59=\"\",\"\",VLOOKUP(AI59,risk_likelihood[],2,FALSE))","v":""},null,{"$f":"IF(AK59=\"\",\"\",VLOOKUP(AK59,risk_consequence[],2,FALSE))","v":""},null,{"$f":"IF(AM59=\"\",\"\",VLOOKUP(AM59,risk[],2,FALSE))","v":""},null,{"$f":"IF(AO59=\"\",\"\",VLOOKUP(AO59,rul_reset[],2,FALSE))","v":""},null,{"$f":"IF(AQ59=\"\",\"\",VLOOKUP(AQ59,use_default_rc[],2,FALSE))","v":""},null,{"$f":"IF(AS59=\"\",\"\",VLOOKUP(AS59,condition[],2,FALSE))","v":""},null,null,{"$f":"IF(AV59=\"\",\"\",VLOOKUP(AV59,Organisation[],2,FALSE))","v":""}]
["null",null,null,null,{"$f":"IF(D60=\"\",\"\",VLOOKUP(D60,light_make[],2,FALSE))","v":""},null,{"$f":"IF(F60=\"\",\"\",VLOOKUP(F60,light_model[],2,FALSE))","v":""},null,{"$f":"IF(H60=\"\",\"\",VLOOKUP(H60,supply_point[],2,FALSE))","v":""},null,{"$f":"IF(J60=\"\",\"\",VLOOKUP(J60,gear_make[],2,FALSE))","v":""},null,{"$f":"IF(L60=\"\",\"\",VLOOKUP(L60,gear_model[],2,FALSE))","v":""},null,{"$f":"IF(N60=\"\",\"\",VLOOKUP(N60,lamp_make[],2,FALSE))","v":""},null,{"$f":"IF(P60=\"\",\"\",VLOOKUP(P60,lamp_model[],2,FALSE))","v":""},null,null,null,null,{"$f":"IF(U60=\"\",\"\",VLOOKUP(U60,Light_install_reason[],2,FALSE))","v":""},null,{"$f":"IF(W60=\"\",\"\",VLOOKUP(W60,light_status[],2,FALSE))","v":""},null,null,{"$f":"IF(Z60=\"\",\"\",VLOOKUP(Z60,Gear_install_reason[],2,FALSE))","v":""},null,{"$f":"IF(AB60=\"\",\"\",VLOOKUP(AB60,gear_status[],2,FALSE))","v":""},null,null,{"$f":"IF(AE60=\"\",\"\",VLOOKUP(AE60,Lamp_install_reason[],2,FALSE))","v":""},null,{"$f":"IF(AG60=\"\",\"\",VLOOKUP(AG60,Asset_owner[],2,FALSE))","v":""},null,{"$f":"IF(AI60=\"\",\"\",VLOOKUP(AI60,risk_likelihood[],2,FALSE))","v":""},null,{"$f":"IF(AK60=\"\",\"\",VLOOKUP(AK60,risk_consequence[],2,FALSE))","v":""},null,{"$f":"IF(AM60=\"\",\"\",VLOOKUP(AM60,risk[],2,FALSE))","v":""},null,{"$f":"IF(AO60=\"\",\"\",VLOOKUP(AO60,rul_reset[],2,FALSE))","v":""},null,{"$f":"IF(AQ60=\"\",\"\",VLOOKUP(AQ60,use_default_rc[],2,FALSE))","v":""},null,{"$f":"IF(AS60=\"\",\"\",VLOOKUP(AS60,condition[],2,FALSE))","v":""},null,null,{"$f":"IF(AV60=\"\",\"\",VLOOKUP(AV60,Organisation[],2,FALSE))","v":""}]
["null",null,null,null,{"$f":"IF(D61=\"\",\"\",VLOOKUP(D61,light_make[],2,FALSE))","v":""},null,{"$f":"IF(F61=\"\",\"\",VLOOKUP(F61,light_model[],2,FALSE))","v":""},null,{"$f":"IF(H61=\"\",\"\",VLOOKUP(H61,supply_point[],2,FALSE))","v":""},null,{"$f":"IF(J61=\"\",\"\",VLOOKUP(J61,gear_make[],2,FALSE))","v":""},null,{"$f":"IF(L61=\"\",\"\",VLOOKUP(L61,gear_model[],2,FALSE))","v":""},null,{"$f":"IF(N61=\"\",\"\",VLOOKUP(N61,lamp_make[],2,FALSE))","v":""},null,{"$f":"IF(P61=\"\",\"\",VLOOKUP(P61,lamp_model[],2,FALSE))","v":""},null,null,null,null,{"$f":"IF(U61=\"\",\"\",VLOOKUP(U61,Light_install_reason[],2,FALSE))","v":""},null,{"$f":"IF(W61=\"\",\"\",VLOOKUP(W61,light_status[],2,FALSE))","v":""},null,null,{"$f":"IF(Z61=\"\",\"\",VLOOKUP(Z61,Gear_install_reason[],2,FALSE))","v":""},null,{"$f":"IF(AB61=\"\",\"\",VLOOKUP(AB61,gear_status[],2,FALSE))","v":""},null,null,{"$f":"IF(AE61=\"\",\"\",VLOOKUP(AE61,Lamp_install_reason[],2,FALSE))","v":""},null,{"$f":"IF(AG61=\"\",\"\",VLOOKUP(AG61,Asset_owner[],2,FALSE))","v":""},null,{"$f":"IF(AI61=\"\",\"\",VLOOKUP(AI61,risk_likelihood[],2,FALSE))","v":""},null,{"$f":"IF(AK61=\"\",\"\",VLOOKUP(AK61,risk_consequence[],2,FALSE))","v":""},null,{"$f":"IF(AM61=\"\",\"\",VLOOKUP(AM61,risk[],2,FALSE))","v":""},null,{"$f":"IF(AO61=\"\",\"\",VLOOKUP(AO61,rul_reset[],2,FALSE))","v":""},null,{"$f":"IF(AQ61=\"\",\"\",VLOOKUP(AQ61,use_default_rc[],2,FALSE))","v":""},null,{"$f":"IF(AS61=\"\",\"\",VLOOKUP(AS61,condition[],2,FALSE))","v":""},null,null,{"$f":"IF(AV61=\"\",\"\",VLOOKUP(AV61,Organisation[],2,FALSE))","v":""}]
["null",null,null,null,{"$f":"IF(D62=\"\",\"\",VLOOKUP(D62,light_make[],2,FALSE))","v":""},null,{"$f":"IF(F62=\"\",\"\",VLOOKUP(F62,light_model[],2,FALSE))","v":""},null,{"$f":"IF(H62=\"\",\"\",VLOOKUP(H62,supply_point[],2,FALSE))","v":""},null,{"$f":"IF(J62=\"\",\"\",VLOOKUP(J62,gear_make[],2,FALSE))","v":""},null,{"$f":"IF(L62=\"\",\"\",VLOOKUP(L62,gear_model[],2,FALSE))","v":""},null,{"$f":"IF(N62=\"\",\"\",VLOOKUP(N62,lamp_make[],2,FALSE))","v":""},null,{"$f":"IF(P62=\"\",\"\",VLOOKUP(P62,lamp_model[],2,FALSE))","v":""},null,null,null,null,{"$f":"IF(U62=\"\",\"\",VLOOKUP(U62,Light_install_reason[],2,FALSE))","v":""},null,{"$f":"IF(W62=\"\",\"\",VLOOKUP(W62,light_status[],2,FALSE))","v":""},null,null,{"$f":"IF(Z62=\"\",\"\",VLOOKUP(Z62,Gear_install_reason[],2,FALSE))","v":""},null,{"$f":"IF(AB62=\"\",\"\",VLOOKUP(AB62,gear_status[],2,FALSE))","v":""},null,null,{"$f":"IF(AE62=\"\",\"\",VLOOKUP(AE62,Lamp_install_reason[],2,FALSE))","v":""},null,{"$f":"IF(AG62=\"\",\"\",VLOOKUP(AG62,Asset_owner[],2,FALSE))","v":""},null,{"$f":"IF(AI62=\"\",\"\",VLOOKUP(AI62,risk_likelihood[],2,FALSE))","v":""},null,{"$f":"IF(AK62=\"\",\"\",VLOOKUP(AK62,risk_consequence[],2,FALSE))","v":""},null,{"$f":"IF(AM62=\"\",\"\",VLOOKUP(AM62,risk[],2,FALSE))","v":""},null,{"$f":"IF(AO62=\"\",\"\",VLOOKUP(AO62,rul_reset[],2,FALSE))","v":""},null,{"$f":"IF(AQ62=\"\",\"\",VLOOKUP(AQ62,use_default_rc[],2,FALSE))","v":""},null,{"$f":"IF(AS62=\"\",\"\",VLOOKUP(AS62,condition[],2,FALSE))","v":""},null,null,{"$f":"IF(AV62=\"\",\"\",VLOOKUP(AV62,Organisation[],2,FALSE))","v":""}]
["null",null,null,null,{"$f":"IF(D63=\"\",\"\",VLOOKUP(D63,light_make[],2,FALSE))","v":""},null,{"$f":"IF(F63=\"\",\"\",VLOOKUP(F63,light_model[],2,FALSE))","v":""},null,{"$f":"IF(H63=\"\",\"\",VLOOKUP(H63,supply_point[],2,FALSE))","v":""},null,{"$f":"IF(J63=\"\",\"\",VLOOKUP(J63,gear_make[],2,FALSE))","v":""},null,{"$f":"IF(L63=\"\",\"\",VLOOKUP(L63,gear_model[],2,FALSE))","v":""},null,{"$f":"IF(N63=\"\",\"\",VLOOKUP(N63,lamp_make[],2,FALSE))","v":""},null,{"$f":"IF(P63=\"\",\"\",VLOOKUP(P63,lamp_model[],2,FALSE))","v":""},null,null,null,null,{"$f":"IF(U63=\"\",\"\",VLOOKUP(U63,Light_install_reason[],2,FALSE))","v":""},null,{"$f":"IF(W63=\"\",\"\",VLOOKUP(W63,light_status[],2,FALSE))","v":""},null,null,{"$f":"IF(Z63=\"\",\"\",VLOOKUP(Z63,Gear_install_reason[],2,FALSE))","v":""},null,{"$f":"IF(AB63=\"\",\"\",VLOOKUP(AB63,gear_status[],2,FALSE))","v":""},null,null,{"$f":"IF(AE63=\"\",\"\",VLOOKUP(AE63,Lamp_install_reason[],2,FALSE))","v":""},null,{"$f":"IF(AG63=\"\",\"\",VLOOKUP(AG63,Asset_owner[],2,FALSE))","v":""},null,{"$f":"IF(AI63=\"\",\"\",VLOOKUP(AI63,risk_likelihood[],2,FALSE))","v":""},null,{"$f":"IF(AK63=\"\",\"\",VLOOKUP(AK63,risk_consequence[],2,FALSE))","v":""},null,{"$f":"IF(AM63=\"\",\"\",VLOOKUP(AM63,risk[],2,FALSE))","v":""},null,{"$f":"IF(AO63=\"\",\"\",VLOOKUP(AO63,rul_reset[],2,FALSE))","v":""},null,{"$f":"IF(AQ63=\"\",\"\",VLOOKUP(AQ63,use_default_rc[],2,FALSE))","v":""},null,{"$f":"IF(AS63=\"\",\"\",VLOOKUP(AS63,condition[],2,FALSE))","v":""},null,null,{"$f":"IF(AV63=\"\",\"\",VLOOKUP(AV63,Organisation[],2,FALSE))","v":""}]
["null",null,null,null,{"$f":"IF(D64=\"\",\"\",VLOOKUP(D64,light_make[],2,FALSE))","v":""},null,{"$f":"IF(F64=\"\",\"\",VLOOKUP(F64,light_model[],2,FALSE))","v":""},null,{"$f":"IF(H64=\"\",\"\",VLOOKUP(H64,supply_point[],2,FALSE))","v":""},null,{"$f":"IF(J64=\"\",\"\",VLOOKUP(J64,gear_make[],2,FALSE))","v":""},null,{"$f":"IF(L64=\"\",\"\",VLOOKUP(L64,gear_model[],2,FALSE))","v":""},null,{"$f":"IF(N64=\"\",\"\",VLOOKUP(N64,lamp_make[],2,FALSE))","v":""},null,{"$f":"IF(P64=\"\",\"\",VLOOKUP(P64,lamp_model[],2,FALSE))","v":""},null,null,null,null,{"$f":"IF(U64=\"\",\"\",VLOOKUP(U64,Light_install_reason[],2,FALSE))","v":""},null,{"$f":"IF(W64=\"\",\"\",VLOOKUP(W64,light_status[],2,FALSE))","v":""},null,null,{"$f":"IF(Z64=\"\",\"\",VLOOKUP(Z64,Gear_install_reason[],2,FALSE))","v":""},null,{"$f":"IF(AB64=\"\",\"\",VLOOKUP(AB64,gear_status[],2,FALSE))","v":""},null,null,{"$f":"IF(AE64=\"\",\"\",VLOOKUP(AE64,Lamp_install_reason[],2,FALSE))","v":""},null,{"$f":"IF(AG64=\"\",\"\",VLOOKUP(AG64,Asset_owner[],2,FALSE))","v":""},null,{"$f":"IF(AI64=\"\",\"\",VLOOKUP(AI64,risk_likelihood[],2,FALSE))","v":""},null,{"$f":"IF(AK64=\"\",\"\",VLOOKUP(AK64,risk_consequence[],2,FALSE))","v":""},null,{"$f":"IF(AM64=\"\",\"\",VLOOKUP(AM64,risk[],2,FALSE))","v":""},null,{"$f":"IF(AO64=\"\",\"\",VLOOKUP(AO64,rul_reset[],2,FALSE))","v":""},null,{"$f":"IF(AQ64=\"\",\"\",VLOOKUP(AQ64,use_default_rc[],2,FALSE))","v":""},null,{"$f":"IF(AS64=\"\",\"\",VLOOKUP(AS64,condition[],2,FALSE))","v":""},null,null,{"$f":"IF(AV64=\"\",\"\",VLOOKUP(AV64,Organisation[],2,FALSE))","v":""}]
["null",null,null,null,{"$f":"IF(D65=\"\",\"\",VLOOKUP(D65,light_make[],2,FALSE))","v":""},null,{"$f":"IF(F65=\"\",\"\",VLOOKUP(F65,light_model[],2,FALSE))","v":""},null,{"$f":"IF(H65=\"\",\"\",VLOOKUP(H65,supply_point[],2,FALSE))","v":""},null,{"$f":"IF(J65=\"\",\"\",VLOOKUP(J65,gear_make[],2,FALSE))","v":""},null,{"$f":"IF(L65=\"\",\"\",VLOOKUP(L65,gear_model[],2,FALSE))","v":""},null,{"$f":"IF(N65=\"\",\"\",VLOOKUP(N65,lamp_make[],2,FALSE))","v":""},null,{"$f":"IF(P65=\"\",\"\",VLOOKUP(P65,lamp_model[],2,FALSE))","v":""},null,null,null,null,{"$f":"IF(U65=\"\",\"\",VLOOKUP(U65,Light_install_reason[],2,FALSE))","v":""},null,{"$f":"IF(W65=\"\",\"\",VLOOKUP(W65,light_status[],2,FALSE))","v":""},null,null,{"$f":"IF(Z65=\"\",\"\",VLOOKUP(Z65,Gear_install_reason[],2,FALSE))","v":""},null,{"$f":"IF(AB65=\"\",\"\",VLOOKUP(AB65,gear_status[],2,FALSE))","v":""},null,null,{"$f":"IF(AE65=\"\",\"\",VLOOKUP(AE65,Lamp_install_reason[],2,FALSE))","v":""},null,{"$f":"IF(AG65=\"\",\"\",VLOOKUP(AG65,Asset_owner[],2,FALSE))","v":""},null,{"$f":"IF(AI65=\"\",\"\",VLOOKUP(AI65,risk_likelihood[],2,FALSE))","v":""},null,{"$f":"IF(AK65=\"\",\"\",VLOOKUP(AK65,risk_consequence[],2,FALSE))","v":""},null,{"$f":"IF(AM65=\"\",\"\",VLOOKUP(AM65,risk[],2,FALSE))","v":""},null,{"$f":"IF(AO65=\"\",\"\",VLOOKUP(AO65,rul_reset[],2,FALSE))","v":""},null,{"$f":"IF(AQ65=\"\",\"\",VLOOKUP(AQ65,use_default_rc[],2,FALSE))","v":""},null,{"$f":"IF(AS65=\"\",\"\",VLOOKUP(AS65,condition[],2,FALSE))","v":""},null,null,{"$f":"IF(AV65=\"\",\"\",VLOOKUP(AV65,Organisation[],2,FALSE))","v":""}]
["null",null,null,null,{"$f":"IF(D66=\"\",\"\",VLOOKUP(D66,light_make[],2,FALSE))","v":""},null,{"$f":"IF(F66=\"\",\"\",VLOOKUP(F66,light_model[],2,FALSE))","v":""},null,{"$f":"IF(H66=\"\",\"\",VLOOKUP(H66,supply_point[],2,FALSE))","v":""},null,{"$f":"IF(J66=\"\",\"\",VLOOKUP(J66,gear_make[],2,FALSE))","v":""},null,{"$f":"IF(L66=\"\",\"\",VLOOKUP(L66,gear_model[],2,FALSE))","v":""},null,{"$f":"IF(N66=\"\",\"\",VLOOKUP(N66,lamp_make[],2,FALSE))","v":""},null,{"$f":"IF(P66=\"\",\"\",VLOOKUP(P66,lamp_model[],2,FALSE))","v":""},null,null,null,null,{"$f":"IF(U66=\"\",\"\",VLOOKUP(U66,Light_install_reason[],2,FALSE))","v":""},null,{"$f":"IF(W66=\"\",\"\",VLOOKUP(W66,light_status[],2,FALSE))","v":""},null,null,{"$f":"IF(Z66=\"\",\"\",VLOOKUP(Z66,Gear_install_reason[],2,FALSE))","v":""},null,{"$f":"IF(AB66=\"\",\"\",VLOOKUP(AB66,gear_status[],2,FALSE))","v":""},null,null,{"$f":"IF(AE66=\"\",\"\",VLOOKUP(AE66,Lamp_install_reason[],2,FALSE))","v":""},null,{"$f":"IF(AG66=\"\",\"\",VLOOKUP(AG66,Asset_owner[],2,FALSE))","v":""},null,{"$f":"IF(AI66=\"\",\"\",VLOOKUP(AI66,risk_likelihood[],2,FALSE))","v":""},null,{"$f":"IF(AK66=\"\",\"\",VLOOKUP(AK66,risk_consequence[],2,FALSE))","v":""},null,{"$f":"IF(AM66=\"\",\"\",VLOOKUP(AM66,risk[],2,FALSE))","v":""},null,{"$f":"IF(AO66=\"\",\"\",VLOOKUP(AO66,rul_reset[],2,FALSE))","v":""},null,{"$f":"IF(AQ66=\"\",\"\",VLOOKUP(AQ66,use_default_rc[],2,FALSE))","v":""},null,{"$f":"IF(AS66=\"\",\"\",VLOOKUP(AS66,condition[],2,FALSE))","v":""},null,null,{"$f":"IF(AV66=\"\",\"\",VLOOKUP(AV66,Organisation[],2,FALSE))","v":""}]
["null",null,null,null,{"$f":"IF(D67=\"\",\"\",VLOOKUP(D67,light_make[],2,FALSE))","v":""},null,{"$f":"IF(F67=\"\",\"\",VLOOKUP(F67,light_model[],2,FALSE))","v":""},null,{"$f":"IF(H67=\"\",\"\",VLOOKUP(H67,supply_point[],2,FALSE))","v":""},null,{"$f":"IF(J67=\"\",\"\",VLOOKUP(J67,gear_make[],2,FALSE))","v":""},null,{"$f":"IF(L67=\"\",\"\",VLOOKUP(L67,gear_model[],2,FALSE))","v":""},null,{"$f":"IF(N67=\"\",\"\",VLOOKUP(N67,lamp_make[],2,FALSE))","v":""},null,{"$f":"IF(P67=\"\",\"\",VLOOKUP(P67,lamp_model[],2,FALSE))","v":""},null,null,null,null,{"$f":"IF(U67=\"\",\"\",VLOOKUP(U67,Light_install_reason[],2,FALSE))","v":""},null,{"$f":"IF(W67=\"\",\"\",VLOOKUP(W67,light_status[],2,FALSE))","v":""},null,null,{"$f":"IF(Z67=\"\",\"\",VLOOKUP(Z67,Gear_install_reason[],2,FALSE))","v":""},null,{"$f":"IF(AB67=\"\",\"\",VLOOKUP(AB67,gear_status[],2,FALSE))","v":""},null,null,{"$f":"IF(AE67=\"\",\"\",VLOOKUP(AE67,Lamp_install_reason[],2,FALSE))","v":""},null,{"$f":"IF(AG67=\"\",\"\",VLOOKUP(AG67,Asset_owner[],2,FALSE))","v":""},null,{"$f":"IF(AI67=\"\",\"\",VLOOKUP(AI67,risk_likelihood[],2,FALSE))","v":""},null,{"$f":"IF(AK67=\"\",\"\",VLOOKUP(AK67,risk_consequence[],2,FALSE))","v":""},null,{"$f":"IF(AM67=\"\",\"\",VLOOKUP(AM67,risk[],2,FALSE))","v":""},null,{"$f":"IF(AO67=\"\",\"\",VLOOKUP(AO67,rul_reset[],2,FALSE))","v":""},null,{"$f":"IF(AQ67=\"\",\"\",VLOOKUP(AQ67,use_default_rc[],2,FALSE))","v":""},null,{"$f":"IF(AS67=\"\",\"\",VLOOKUP(AS67,condition[],2,FALSE))","v":""},null,null,{"$f":"IF(AV67=\"\",\"\",VLOOKUP(AV67,Organisation[],2,FALSE))","v":""}]
["null",null,null,null,{"$f":"IF(D68=\"\",\"\",VLOOKUP(D68,light_make[],2,FALSE))","v":""},null,{"$f":"IF(F68=\"\",\"\",VLOOKUP(F68,light_model[],2,FALSE))","v":""},null,{"$f":"IF(H68=\"\",\"\",VLOOKUP(H68,supply_point[],2,FALSE))","v":""},null,{"$f":"IF(J68=\"\",\"\",VLOOKUP(J68,gear_make[],2,FALSE))","v":""},null,{"$f":"IF(L68=\"\",\"\",VLOOKUP(L68,gear_model[],2,FALSE))","v":""},null,{"$f":"IF(N68=\"\",\"\",VLOOKUP(N68,lamp_make[],2,FALSE))","v":""},null,{"$f":"IF(P68=\"\",\"\",VLOOKUP(P68,lamp_model[],2,FALSE))","v":""},null,null,null,null,{"$f":"IF(U68=\"\",\"\",VLOOKUP(U68,Light_install_reason[],2,FALSE))","v":""},null,{"$f":"IF(W68=\"\",\"\",VLOOKUP(W68,light_status[],2,FALSE))","v":""},null,null,{"$f":"IF(Z68=\"\",\"\",VLOOKUP(Z68,Gear_install_reason[],2,FALSE))","v":""},null,{"$f":"IF(AB68=\"\",\"\",VLOOKUP(AB68,gear_status[],2,FALSE))","v":""},null,null,{"$f":"IF(AE68=\"\",\"\",VLOOKUP(AE68,Lamp_install_reason[],2,FALSE))","v":""},null,{"$f":"IF(AG68=\"\",\"\",VLOOKUP(AG68,Asset_owner[],2,FALSE))","v":""},null,{"$f":"IF(AI68=\"\",\"\",VLOOKUP(AI68,risk_likelihood[],2,FALSE))","v":""},null,{"$f":"IF(AK68=\"\",\"\",VLOOKUP(AK68,risk_consequence[],2,FALSE))","v":""},null,{"$f":"IF(AM68=\"\",\"\",VLOOKUP(AM68,risk[],2,FALSE))","v":""},null,{"$f":"IF(AO68=\"\",\"\",VLOOKUP(AO68,rul_reset[],2,FALSE))","v":""},null,{"$f":"IF(AQ68=\"\",\"\",VLOOKUP(AQ68,use_default_rc[],2,FALSE))","v":""},null,{"$f":"IF(AS68=\"\",\"\",VLOOKUP(AS68,condition[],2,FALSE))","v":""},null,null,{"$f":"IF(AV68=\"\",\"\",VLOOKUP(AV68,Organisation[],2,FALSE))","v":""}]
[{"$f":"_xlfn.FILTERXML(_xlfn.WEBSERVICE(\"https://nds-beta.mobileroad.org/xy_sh?rp=\"&B69&\"/\"&C69&\"&xml=true\"),\"/lrms/id_road\")","v":"null"},null,null,null,{"$f":"IF(D69=\"\",\"\",VLOOKUP(D69,light_make[],2,FALSE))","v":""},null,{"$f":"IF(F69=\"\",\"\",VLOOKUP(F69,light_model[],2,FALSE))","v":""},null,{"$f":"IF(H69=\"\",\"\",VLOOKUP(H69,supply_point[],2,FALSE))","v":""},null,{"$f":"IF(J69=\"\",\"\",VLOOKUP(J69,gear_make[],2,FALSE))","v":""},null,{"$f":"IF(L69=\"\",\"\",VLOOKUP(L69,gear_model[],2,FALSE))","v":""},null,{"$f":"IF(N69=\"\",\"\",VLOOKUP(N69,lamp_make[],2,FALSE))","v":""},null,{"$f":"IF(P69=\"\",\"\",VLOOKUP(P69,lamp_model[],2,FALSE))","v":""},null,null,null,null,{"$f":"IF(U69=\"\",\"\",VLOOKUP(U69,Light_install_reason[],2,FALSE))","v":""},null,{"$f":"IF(W69=\"\",\"\",VLOOKUP(W69,light_status[],2,FALSE))","v":""},null,null,{"$f":"IF(Z69=\"\",\"\",VLOOKUP(Z69,Gear_install_reason[],2,FALSE))","v":""},null,{"$f":"IF(AB69=\"\",\"\",VLOOKUP(AB69,gear_status[],2,FALSE))","v":""},null,null,{"$f":"IF(AE69=\"\",\"\",VLOOKUP(AE69,Lamp_install_reason[],2,FALSE))","v":""},null,{"$f":"IF(AG69=\"\",\"\",VLOOKUP(AG69,Asset_owner[],2,FALSE))","v":""},null,{"$f":"IF(AI69=\"\",\"\",VLOOKUP(AI69,risk_likelihood[],2,FALSE))","v":""},null,{"$f":"IF(AK69=\"\",\"\",VLOOKUP(AK69,risk_consequence[],2,FALSE))","v":""},null,{"$f":"IF(AM69=\"\",\"\",VLOOKUP(AM69,risk[],2,FALSE))","v":""},null,{"$f":"IF(AO69=\"\",\"\",VLOOKUP(AO69,rul_reset[],2,FALSE))","v":""},null,{"$f":"IF(AQ69=\"\",\"\",VLOOKUP(AQ69,use_default_rc[],2,FALSE))","v":""},null,{"$f":"IF(AS69=\"\",\"\",VLOOKUP(AS69,condition[],2,FALSE))","v":""},null,null,{"$f":"IF(AV69=\"\",\"\",VLOOKUP(AV69,Organisation[],2,FALSE))","v":""}]
["null",null,null,null,{"$f":"IF(D70=\"\",\"\",VLOOKUP(D70,light_make[],2,FALSE))","v":""},null,{"$f":"IF(F70=\"\",\"\",VLOOKUP(F70,light_model[],2,FALSE))","v":""},null,{"$f":"IF(H70=\"\",\"\",VLOOKUP(H70,supply_point[],2,FALSE))","v":""},null,{"$f":"IF(J70=\"\",\"\",VLOOKUP(J70,gear_make[],2,FALSE))","v":""},null,{"$f":"IF(L70=\"\",\"\",VLOOKUP(L70,gear_model[],2,FALSE))","v":""},null,{"$f":"IF(N70=\"\",\"\",VLOOKUP(N70,lamp_make[],2,FALSE))","v":""},null,{"$f":"IF(P70=\"\",\"\",VLOOKUP(P70,lamp_model[],2,FALSE))","v":""},null,null,null,null,{"$f":"IF(U70=\"\",\"\",VLOOKUP(U70,Light_install_reason[],2,FALSE))","v":""},null,{"$f":"IF(W70=\"\",\"\",VLOOKUP(W70,light_status[],2,FALSE))","v":""},null,null,{"$f":"IF(Z70=\"\",\"\",VLOOKUP(Z70,Gear_install_reason[],2,FALSE))","v":""},null,{"$f":"IF(AB70=\"\",\"\",VLOOKUP(AB70,gear_status[],2,FALSE))","v":""},null,null,{"$f":"IF(AE70=\"\",\"\",VLOOKUP(AE70,Lamp_install_reason[],2,FALSE))","v":""},null,{"$f":"IF(AG70=\"\",\"\",VLOOKUP(AG70,Asset_owner[],2,FALSE))","v":""},null,{"$f":"IF(AI70=\"\",\"\",VLOOKUP(AI70,risk_likelihood[],2,FALSE))","v":""},null,{"$f":"IF(AK70=\"\",\"\",VLOOKUP(AK70,risk_consequence[],2,FALSE))","v":""},null,{"$f":"IF(AM70=\"\",\"\",VLOOKUP(AM70,risk[],2,FALSE))","v":""},null,{"$f":"IF(AO70=\"\",\"\",VLOOKUP(AO70,rul_reset[],2,FALSE))","v":""},null,{"$f":"IF(AQ70=\"\",\"\",VLOOKUP(AQ70,use_default_rc[],2,FALSE))","v":""},null,{"$f":"IF(AS70=\"\",\"\",VLOOKUP(AS70,condition[],2,FALSE))","v":""},null,null,{"$f":"IF(AV70=\"\",\"\",VLOOKUP(AV70,Organisation[],2,FALSE))","v":""}]
["null",null,null,null,{"$f":"IF(D71=\"\",\"\",VLOOKUP(D71,light_make[],2,FALSE))","v":""},null,{"$f":"IF(F71=\"\",\"\",VLOOKUP(F71,light_model[],2,FALSE))","v":""},null,{"$f":"IF(H71=\"\",\"\",VLOOKUP(H71,supply_point[],2,FALSE))","v":""},null,{"$f":"IF(J71=\"\",\"\",VLOOKUP(J71,gear_make[],2,FALSE))","v":""},null,{"$f":"IF(L71=\"\",\"\",VLOOKUP(L71,gear_model[],2,FALSE))","v":""},null,{"$f":"IF(N71=\"\",\"\",VLOOKUP(N71,lamp_make[],2,FALSE))","v":""},null,{"$f":"IF(P71=\"\",\"\",VLOOKUP(P71,lamp_model[],2,FALSE))","v":""},null,null,null,null,{"$f":"IF(U71=\"\",\"\",VLOOKUP(U71,Light_install_reason[],2,FALSE))","v":""},null,{"$f":"IF(W71=\"\",\"\",VLOOKUP(W71,light_status[],2,FALSE))","v":""},null,null,{"$f":"IF(Z71=\"\",\"\",VLOOKUP(Z71,Gear_install_reason[],2,FALSE))","v":""},null,{"$f":"IF(AB71=\"\",\"\",VLOOKUP(AB71,gear_status[],2,FALSE))","v":""},null,null,{"$f":"IF(AE71=\"\",\"\",VLOOKUP(AE71,Lamp_install_reason[],2,FALSE))","v":""},null,{"$f":"IF(AG71=\"\",\"\",VLOOKUP(AG71,Asset_owner[],2,FALSE))","v":""},null,{"$f":"IF(AI71=\"\",\"\",VLOOKUP(AI71,risk_likelihood[],2,FALSE))","v":""},null,{"$f":"IF(AK71=\"\",\"\",VLOOKUP(AK71,risk_consequence[],2,FALSE))","v":""},null,{"$f":"IF(AM71=\"\",\"\",VLOOKUP(AM71,risk[],2,FALSE))","v":""},null,{"$f":"IF(AO71=\"\",\"\",VLOOKUP(AO71,rul_reset[],2,FALSE))","v":""},null,{"$f":"IF(AQ71=\"\",\"\",VLOOKUP(AQ71,use_default_rc[],2,FALSE))","v":""},null,{"$f":"IF(AS71=\"\",\"\",VLOOKUP(AS71,condition[],2,FALSE))","v":""},null,null,{"$f":"IF(AV71=\"\",\"\",VLOOKUP(AV71,Organisation[],2,FALSE))","v":""}]
["null",null,null,null,{"$f":"IF(D72=\"\",\"\",VLOOKUP(D72,light_make[],2,FALSE))","v":""},null,{"$f":"IF(F72=\"\",\"\",VLOOKUP(F72,light_model[],2,FALSE))","v":""},null,{"$f":"IF(H72=\"\",\"\",VLOOKUP(H72,supply_point[],2,FALSE))","v":""},null,{"$f":"IF(J72=\"\",\"\",VLOOKUP(J72,gear_make[],2,FALSE))","v":""},null,{"$f":"IF(L72=\"\",\"\",VLOOKUP(L72,gear_model[],2,FALSE))","v":""},null,{"$f":"IF(N72=\"\",\"\",VLOOKUP(N72,lamp_make[],2,FALSE))","v":""},null,{"$f":"IF(P72=\"\",\"\",VLOOKUP(P72,lamp_model[],2,FALSE))","v":""},null,null,null,null,{"$f":"IF(U72=\"\",\"\",VLOOKUP(U72,Light_install_reason[],2,FALSE))","v":""},null,{"$f":"IF(W72=\"\",\"\",VLOOKUP(W72,light_status[],2,FALSE))","v":""},null,null,{"$f":"IF(Z72=\"\",\"\",VLOOKUP(Z72,Gear_install_reason[],2,FALSE))","v":""},null,{"$f":"IF(AB72=\"\",\"\",VLOOKUP(AB72,gear_status[],2,FALSE))","v":""},null,null,{"$f":"IF(AE72=\"\",\"\",VLOOKUP(AE72,Lamp_install_reason[],2,FALSE))","v":""},null,{"$f":"IF(AG72=\"\",\"\",VLOOKUP(AG72,Asset_owner[],2,FALSE))","v":""},null,{"$f":"IF(AI72=\"\",\"\",VLOOKUP(AI72,risk_likelihood[],2,FALSE))","v":""},null,{"$f":"IF(AK72=\"\",\"\",VLOOKUP(AK72,risk_consequence[],2,FALSE))","v":""},null,{"$f":"IF(AM72=\"\",\"\",VLOOKUP(AM72,risk[],2,FALSE))","v":""},null,{"$f":"IF(AO72=\"\",\"\",VLOOKUP(AO72,rul_reset[],2,FALSE))","v":""},null,{"$f":"IF(AQ72=\"\",\"\",VLOOKUP(AQ72,use_default_rc[],2,FALSE))","v":""},null,{"$f":"IF(AS72=\"\",\"\",VLOOKUP(AS72,condition[],2,FALSE))","v":""},null,null,{"$f":"IF(AV72=\"\",\"\",VLOOKUP(AV72,Organisation[],2,FALSE))","v":""}]
["null",null,null,null,{"$f":"IF(D73=\"\",\"\",VLOOKUP(D73,light_make[],2,FALSE))","v":""},null,{"$f":"IF(F73=\"\",\"\",VLOOKUP(F73,light_model[],2,FALSE))","v":""},null,{"$f":"IF(H73=\"\",\"\",VLOOKUP(H73,supply_point[],2,FALSE))","v":""},null,{"$f":"IF(J73=\"\",\"\",VLOOKUP(J73,gear_make[],2,FALSE))","v":""},null,{"$f":"IF(L73=\"\",\"\",VLOOKUP(L73,gear_model[],2,FALSE))","v":""},null,{"$f":"IF(N73=\"\",\"\",VLOOKUP(N73,lamp_make[],2,FALSE))","v":""},null,{"$f":"IF(P73=\"\",\"\",VLOOKUP(P73,lamp_model[],2,FALSE))","v":""},null,null,null,null,{"$f":"IF(U73=\"\",\"\",VLOOKUP(U73,Light_install_reason[],2,FALSE))","v":""},null,{"$f":"IF(W73=\"\",\"\",VLOOKUP(W73,light_status[],2,FALSE))","v":""},null,null,{"$f":"IF(Z73=\"\",\"\",VLOOKUP(Z73,Gear_install_reason[],2,FALSE))","v":""},null,{"$f":"IF(AB73=\"\",\"\",VLOOKUP(AB73,gear_status[],2,FALSE))","v":""},null,null,{"$f":"IF(AE73=\"\",\"\",VLOOKUP(AE73,Lamp_install_reason[],2,FALSE))","v":""},null,{"$f":"IF(AG73=\"\",\"\",VLOOKUP(AG73,Asset_owner[],2,FALSE))","v":""},null,{"$f":"IF(AI73=\"\",\"\",VLOOKUP(AI73,risk_likelihood[],2,FALSE))","v":""},null,{"$f":"IF(AK73=\"\",\"\",VLOOKUP(AK73,risk_consequence[],2,FALSE))","v":""},null,{"$f":"IF(AM73=\"\",\"\",VLOOKUP(AM73,risk[],2,FALSE))","v":""},null,{"$f":"IF(AO73=\"\",\"\",VLOOKUP(AO73,rul_reset[],2,FALSE))","v":""},null,{"$f":"IF(AQ73=\"\",\"\",VLOOKUP(AQ73,use_default_rc[],2,FALSE))","v":""},null,{"$f":"IF(AS73=\"\",\"\",VLOOKUP(AS73,condition[],2,FALSE))","v":""},null,null,{"$f":"IF(AV73=\"\",\"\",VLOOKUP(AV73,Organisation[],2,FALSE))","v":""}]
["null",null,null,null,{"$f":"IF(D74=\"\",\"\",VLOOKUP(D74,light_make[],2,FALSE))","v":""},null,{"$f":"IF(F74=\"\",\"\",VLOOKUP(F74,light_model[],2,FALSE))","v":""},null,{"$f":"IF(H74=\"\",\"\",VLOOKUP(H74,supply_point[],2,FALSE))","v":""},null,{"$f":"IF(J74=\"\",\"\",VLOOKUP(J74,gear_make[],2,FALSE))","v":""},null,{"$f":"IF(L74=\"\",\"\",VLOOKUP(L74,gear_model[],2,FALSE))","v":""},null,{"$f":"IF(N74=\"\",\"\",VLOOKUP(N74,lamp_make[],2,FALSE))","v":""},null,{"$f":"IF(P74=\"\",\"\",VLOOKUP(P74,lamp_model[],2,FALSE))","v":""},null,null,null,null,{"$f":"IF(U74=\"\",\"\",VLOOKUP(U74,Light_install_reason[],2,FALSE))","v":""},null,{"$f":"IF(W74=\"\",\"\",VLOOKUP(W74,light_status[],2,FALSE))","v":""},null,null,{"$f":"IF(Z74=\"\",\"\",VLOOKUP(Z74,Gear_install_reason[],2,FALSE))","v":""},null,{"$f":"IF(AB74=\"\",\"\",VLOOKUP(AB74,gear_status[],2,FALSE))","v":""},null,null,{"$f":"IF(AE74=\"\",\"\",VLOOKUP(AE74,Lamp_install_reason[],2,FALSE))","v":""},null,{"$f":"IF(AG74=\"\",\"\",VLOOKUP(AG74,Asset_owner[],2,FALSE))","v":""},null,{"$f":"IF(AI74=\"\",\"\",VLOOKUP(AI74,risk_likelihood[],2,FALSE))","v":""},null,{"$f":"IF(AK74=\"\",\"\",VLOOKUP(AK74,risk_consequence[],2,FALSE))","v":""},null,{"$f":"IF(AM74=\"\",\"\",VLOOKUP(AM74,risk[],2,FALSE))","v":""},null,{"$f":"IF(AO74=\"\",\"\",VLOOKUP(AO74,rul_reset[],2,FALSE))","v":""},null,{"$f":"IF(AQ74=\"\",\"\",VLOOKUP(AQ74,use_default_rc[],2,FALSE))","v":""},null,{"$f":"IF(AS74=\"\",\"\",VLOOKUP(AS74,condition[],2,FALSE))","v":""},null,null,{"$f":"IF(AV74=\"\",\"\",VLOOKUP(AV74,Organisation[],2,FALSE))","v":""}]
["null",null,null,null,{"$f":"IF(D75=\"\",\"\",VLOOKUP(D75,light_make[],2,FALSE))","v":""},null,{"$f":"IF(F75=\"\",\"\",VLOOKUP(F75,light_model[],2,FALSE))","v":""},null,{"$f":"IF(H75=\"\",\"\",VLOOKUP(H75,supply_point[],2,FALSE))","v":""},null,{"$f":"IF(J75=\"\",\"\",VLOOKUP(J75,gear_make[],2,FALSE))","v":""},null,{"$f":"IF(L75=\"\",\"\",VLOOKUP(L75,gear_model[],2,FALSE))","v":""},null,{"$f":"IF(N75=\"\",\"\",VLOOKUP(N75,lamp_make[],2,FALSE))","v":""},null,{"$f":"IF(P75=\"\",\"\",VLOOKUP(P75,lamp_model[],2,FALSE))","v":""},null,null,null,null,{"$f":"IF(U75=\"\",\"\",VLOOKUP(U75,Light_install_reason[],2,FALSE))","v":""},null,{"$f":"IF(W75=\"\",\"\",VLOOKUP(W75,light_status[],2,FALSE))","v":""},null,null,{"$f":"IF(Z75=\"\",\"\",VLOOKUP(Z75,Gear_install_reason[],2,FALSE))","v":""},null,{"$f":"IF(AB75=\"\",\"\",VLOOKUP(AB75,gear_status[],2,FALSE))","v":""},null,null,{"$f":"IF(AE75=\"\",\"\",VLOOKUP(AE75,Lamp_install_reason[],2,FALSE))","v":""},null,{"$f":"IF(AG75=\"\",\"\",VLOOKUP(AG75,Asset_owner[],2,FALSE))","v":""},null,{"$f":"IF(AI75=\"\",\"\",VLOOKUP(AI75,risk_likelihood[],2,FALSE))","v":""},null,{"$f":"IF(AK75=\"\",\"\",VLOOKUP(AK75,risk_consequence[],2,FALSE))","v":""},null,{"$f":"IF(AM75=\"\",\"\",VLOOKUP(AM75,risk[],2,FALSE))","v":""},null,{"$f":"IF(AO75=\"\",\"\",VLOOKUP(AO75,rul_reset[],2,FALSE))","v":""},null,{"$f":"IF(AQ75=\"\",\"\",VLOOKUP(AQ75,use_default_rc[],2,FALSE))","v":""},null,{"$f":"IF(AS75=\"\",\"\",VLOOKUP(AS75,condition[],2,FALSE))","v":""},null,null,{"$f":"IF(AV75=\"\",\"\",VLOOKUP(AV75,Organisation[],2,FALSE))","v":""}]
["null",null,null,null,{"$f":"IF(D76=\"\",\"\",VLOOKUP(D76,light_make[],2,FALSE))","v":""},null,{"$f":"IF(F76=\"\",\"\",VLOOKUP(F76,light_model[],2,FALSE))","v":""},null,{"$f":"IF(H76=\"\",\"\",VLOOKUP(H76,supply_point[],2,FALSE))","v":""},null,{"$f":"IF(J76=\"\",\"\",VLOOKUP(J76,gear_make[],2,FALSE))","v":""},null,{"$f":"IF(L76=\"\",\"\",VLOOKUP(L76,gear_model[],2,FALSE))","v":""},null,{"$f":"IF(N76=\"\",\"\",VLOOKUP(N76,lamp_make[],2,FALSE))","v":""},null,{"$f":"IF(P76=\"\",\"\",VLOOKUP(P76,lamp_model[],2,FALSE))","v":""},null,null,null,null,{"$f":"IF(U76=\"\",\"\",VLOOKUP(U76,Light_install_reason[],2,FALSE))","v":""},null,{"$f":"IF(W76=\"\",\"\",VLOOKUP(W76,light_status[],2,FALSE))","v":""},null,null,{"$f":"IF(Z76=\"\",\"\",VLOOKUP(Z76,Gear_install_reason[],2,FALSE))","v":""},null,{"$f":"IF(AB76=\"\",\"\",VLOOKUP(AB76,gear_status[],2,FALSE))","v":""},null,null,{"$f":"IF(AE76=\"\",\"\",VLOOKUP(AE76,Lamp_install_reason[],2,FALSE))","v":""},null,{"$f":"IF(AG76=\"\",\"\",VLOOKUP(AG76,Asset_owner[],2,FALSE))","v":""},null,{"$f":"IF(AI76=\"\",\"\",VLOOKUP(AI76,risk_likelihood[],2,FALSE))","v":""},null,{"$f":"IF(AK76=\"\",\"\",VLOOKUP(AK76,risk_consequence[],2,FALSE))","v":""},null,{"$f":"IF(AM76=\"\",\"\",VLOOKUP(AM76,risk[],2,FALSE))","v":""},null,{"$f":"IF(AO76=\"\",\"\",VLOOKUP(AO76,rul_reset[],2,FALSE))","v":""},null,{"$f":"IF(AQ76=\"\",\"\",VLOOKUP(AQ76,use_default_rc[],2,FALSE))","v":""},null,{"$f":"IF(AS76=\"\",\"\",VLOOKUP(AS76,condition[],2,FALSE))","v":""},null,null,{"$f":"IF(AV76=\"\",\"\",VLOOKUP(AV76,Organisation[],2,FALSE))","v":""}]
["null",null,null,null,{"$f":"IF(D77=\"\",\"\",VLOOKUP(D77,light_make[],2,FALSE))","v":""},null,{"$f":"IF(F77=\"\",\"\",VLOOKUP(F77,light_model[],2,FALSE))","v":""},null,{"$f":"IF(H77=\"\",\"\",VLOOKUP(H77,supply_point[],2,FALSE))","v":""},null,{"$f":"IF(J77=\"\",\"\",VLOOKUP(J77,gear_make[],2,FALSE))","v":""},null,{"$f":"IF(L77=\"\",\"\",VLOOKUP(L77,gear_model[],2,FALSE))","v":""},null,{"$f":"IF(N77=\"\",\"\",VLOOKUP(N77,lamp_make[],2,FALSE))","v":""},null,{"$f":"IF(P77=\"\",\"\",VLOOKUP(P77,lamp_model[],2,FALSE))","v":""},null,null,null,null,{"$f":"IF(U77=\"\",\"\",VLOOKUP(U77,Light_install_reason[],2,FALSE))","v":""},null,{"$f":"IF(W77=\"\",\"\",VLOOKUP(W77,light_status[],2,FALSE))","v":""},null,null,{"$f":"IF(Z77=\"\",\"\",VLOOKUP(Z77,Gear_install_reason[],2,FALSE))","v":""},null,{"$f":"IF(AB77=\"\",\"\",VLOOKUP(AB77,gear_status[],2,FALSE))","v":""},null,null,{"$f":"IF(AE77=\"\",\"\",VLOOKUP(AE77,Lamp_install_reason[],2,FALSE))","v":""},null,{"$f":"IF(AG77=\"\",\"\",VLOOKUP(AG77,Asset_owner[],2,FALSE))","v":""},null,{"$f":"IF(AI77=\"\",\"\",VLOOKUP(AI77,risk_likelihood[],2,FALSE))","v":""},null,{"$f":"IF(AK77=\"\",\"\",VLOOKUP(AK77,risk_consequence[],2,FALSE))","v":""},null,{"$f":"IF(AM77=\"\",\"\",VLOOKUP(AM77,risk[],2,FALSE))","v":""},null,{"$f":"IF(AO77=\"\",\"\",VLOOKUP(AO77,rul_reset[],2,FALSE))","v":""},null,{"$f":"IF(AQ77=\"\",\"\",VLOOKUP(AQ77,use_default_rc[],2,FALSE))","v":""},null,{"$f":"IF(AS77=\"\",\"\",VLOOKUP(AS77,condition[],2,FALSE))","v":""},null,null,{"$f":"IF(AV77=\"\",\"\",VLOOKUP(AV77,Organisation[],2,FALSE))","v":""}]
["null",null,null,null,{"$f":"IF(D78=\"\",\"\",VLOOKUP(D78,light_make[],2,FALSE))","v":""},null,{"$f":"IF(F78=\"\",\"\",VLOOKUP(F78,light_model[],2,FALSE))","v":""},null,{"$f":"IF(H78=\"\",\"\",VLOOKUP(H78,supply_point[],2,FALSE))","v":""},null,{"$f":"IF(J78=\"\",\"\",VLOOKUP(J78,gear_make[],2,FALSE))","v":""},null,{"$f":"IF(L78=\"\",\"\",VLOOKUP(L78,gear_model[],2,FALSE))","v":""},null,{"$f":"IF(N78=\"\",\"\",VLOOKUP(N78,lamp_make[],2,FALSE))","v":""},null,{"$f":"IF(P78=\"\",\"\",VLOOKUP(P78,lamp_model[],2,FALSE))","v":""},null,null,null,null,{"$f":"IF(U78=\"\",\"\",VLOOKUP(U78,Light_install_reason[],2,FALSE))","v":""},null,{"$f":"IF(W78=\"\",\"\",VLOOKUP(W78,light_status[],2,FALSE))","v":""},null,null,{"$f":"IF(Z78=\"\",\"\",VLOOKUP(Z78,Gear_install_reason[],2,FALSE))","v":""},null,{"$f":"IF(AB78=\"\",\"\",VLOOKUP(AB78,gear_status[],2,FALSE))","v":""},null,null,{"$f":"IF(AE78=\"\",\"\",VLOOKUP(AE78,Lamp_install_reason[],2,FALSE))","v":""},null,{"$f":"IF(AG78=\"\",\"\",VLOOKUP(AG78,Asset_owner[],2,FALSE))","v":""},null,{"$f":"IF(AI78=\"\",\"\",VLOOKUP(AI78,risk_likelihood[],2,FALSE))","v":""},null,{"$f":"IF(AK78=\"\",\"\",VLOOKUP(AK78,risk_consequence[],2,FALSE))","v":""},null,{"$f":"IF(AM78=\"\",\"\",VLOOKUP(AM78,risk[],2,FALSE))","v":""},null,{"$f":"IF(AO78=\"\",\"\",VLOOKUP(AO78,rul_reset[],2,FALSE))","v":""},null,{"$f":"IF(AQ78=\"\",\"\",VLOOKUP(AQ78,use_default_rc[],2,FALSE))","v":""},null,{"$f":"IF(AS78=\"\",\"\",VLOOKUP(AS78,condition[],2,FALSE))","v":""},null,null,{"$f":"IF(AV78=\"\",\"\",VLOOKUP(AV78,Organisation[],2,FALSE))","v":""}]
["null",null,null,null,{"$f":"IF(D79=\"\",\"\",VLOOKUP(D79,light_make[],2,FALSE))","v":""},null,{"$f":"IF(F79=\"\",\"\",VLOOKUP(F79,light_model[],2,FALSE))","v":""},null,{"$f":"IF(H79=\"\",\"\",VLOOKUP(H79,supply_point[],2,FALSE))","v":""},null,{"$f":"IF(J79=\"\",\"\",VLOOKUP(J79,gear_make[],2,FALSE))","v":""},null,{"$f":"IF(L79=\"\",\"\",VLOOKUP(L79,gear_model[],2,FALSE))","v":""},null,{"$f":"IF(N79=\"\",\"\",VLOOKUP(N79,lamp_make[],2,FALSE))","v":""},null,{"$f":"IF(P79=\"\",\"\",VLOOKUP(P79,lamp_model[],2,FALSE))","v":""},null,null,null,null,{"$f":"IF(U79=\"\",\"\",VLOOKUP(U79,Light_install_reason[],2,FALSE))","v":""},null,{"$f":"IF(W79=\"\",\"\",VLOOKUP(W79,light_status[],2,FALSE))","v":""},null,null,{"$f":"IF(Z79=\"\",\"\",VLOOKUP(Z79,Gear_install_reason[],2,FALSE))","v":""},null,{"$f":"IF(AB79=\"\",\"\",VLOOKUP(AB79,gear_status[],2,FALSE))","v":""},null,null,{"$f":"IF(AE79=\"\",\"\",VLOOKUP(AE79,Lamp_install_reason[],2,FALSE))","v":""},null,{"$f":"IF(AG79=\"\",\"\",VLOOKUP(AG79,Asset_owner[],2,FALSE))","v":""},null,{"$f":"IF(AI79=\"\",\"\",VLOOKUP(AI79,risk_likelihood[],2,FALSE))","v":""},null,{"$f":"IF(AK79=\"\",\"\",VLOOKUP(AK79,risk_consequence[],2,FALSE))","v":""},null,{"$f":"IF(AM79=\"\",\"\",VLOOKUP(AM79,risk[],2,FALSE))","v":""},null,{"$f":"IF(AO79=\"\",\"\",VLOOKUP(AO79,rul_reset[],2,FALSE))","v":""},null,{"$f":"IF(AQ79=\"\",\"\",VLOOKUP(AQ79,use_default_rc[],2,FALSE))","v":""},null,{"$f":"IF(AS79=\"\",\"\",VLOOKUP(AS79,condition[],2,FALSE))","v":""},null,null,{"$f":"IF(AV79=\"\",\"\",VLOOKUP(AV79,Organisation[],2,FALSE))","v":""}]
["null",null,null,null,{"$f":"IF(D80=\"\",\"\",VLOOKUP(D80,light_make[],2,FALSE))","v":""},null,{"$f":"IF(F80=\"\",\"\",VLOOKUP(F80,light_model[],2,FALSE))","v":""},null,{"$f":"IF(H80=\"\",\"\",VLOOKUP(H80,supply_point[],2,FALSE))","v":""},null,{"$f":"IF(J80=\"\",\"\",VLOOKUP(J80,gear_make[],2,FALSE))","v":""},null,{"$f":"IF(L80=\"\",\"\",VLOOKUP(L80,gear_model[],2,FALSE))","v":""},null,{"$f":"IF(N80=\"\",\"\",VLOOKUP(N80,lamp_make[],2,FALSE))","v":""},null,{"$f":"IF(P80=\"\",\"\",VLOOKUP(P80,lamp_model[],2,FALSE))","v":""},null,null,null,null,{"$f":"IF(U80=\"\",\"\",VLOOKUP(U80,Light_install_reason[],2,FALSE))","v":""},null,{"$f":"IF(W80=\"\",\"\",VLOOKUP(W80,light_status[],2,FALSE))","v":""},null,null,{"$f":"IF(Z80=\"\",\"\",VLOOKUP(Z80,Gear_install_reason[],2,FALSE))","v":""},null,{"$f":"IF(AB80=\"\",\"\",VLOOKUP(AB80,gear_status[],2,FALSE))","v":""},null,null,{"$f":"IF(AE80=\"\",\"\",VLOOKUP(AE80,Lamp_install_reason[],2,FALSE))","v":""},null,{"$f":"IF(AG80=\"\",\"\",VLOOKUP(AG80,Asset_owner[],2,FALSE))","v":""},null,{"$f":"IF(AI80=\"\",\"\",VLOOKUP(AI80,risk_likelihood[],2,FALSE))","v":""},null,{"$f":"IF(AK80=\"\",\"\",VLOOKUP(AK80,risk_consequence[],2,FALSE))","v":""},null,{"$f":"IF(AM80=\"\",\"\",VLOOKUP(AM80,risk[],2,FALSE))","v":""},null,{"$f":"IF(AO80=\"\",\"\",VLOOKUP(AO80,rul_reset[],2,FALSE))","v":""},null,{"$f":"IF(AQ80=\"\",\"\",VLOOKUP(AQ80,use_default_rc[],2,FALSE))","v":""},null,{"$f":"IF(AS80=\"\",\"\",VLOOKUP(AS80,condition[],2,FALSE))","v":""},null,null,{"$f":"IF(AV80=\"\",\"\",VLOOKUP(AV80,Organisation[],2,FALSE))","v":""}]
["null",null,null,null,{"$f":"IF(D81=\"\",\"\",VLOOKUP(D81,light_make[],2,FALSE))","v":""},null,{"$f":"IF(F81=\"\",\"\",VLOOKUP(F81,light_model[],2,FALSE))","v":""},null,{"$f":"IF(H81=\"\",\"\",VLOOKUP(H81,supply_point[],2,FALSE))","v":""},null,{"$f":"IF(J81=\"\",\"\",VLOOKUP(J81,gear_make[],2,FALSE))","v":""},null,{"$f":"IF(L81=\"\",\"\",VLOOKUP(L81,gear_model[],2,FALSE))","v":""},null,{"$f":"IF(N81=\"\",\"\",VLOOKUP(N81,lamp_make[],2,FALSE))","v":""},null,{"$f":"IF(P81=\"\",\"\",VLOOKUP(P81,lamp_model[],2,FALSE))","v":""},null,null,null,null,{"$f":"IF(U81=\"\",\"\",VLOOKUP(U81,Light_install_reason[],2,FALSE))","v":""},null,{"$f":"IF(W81=\"\",\"\",VLOOKUP(W81,light_status[],2,FALSE))","v":""},null,null,{"$f":"IF(Z81=\"\",\"\",VLOOKUP(Z81,Gear_install_reason[],2,FALSE))","v":""},null,{"$f":"IF(AB81=\"\",\"\",VLOOKUP(AB81,gear_status[],2,FALSE))","v":""},null,null,{"$f":"IF(AE81=\"\",\"\",VLOOKUP(AE81,Lamp_install_reason[],2,FALSE))","v":""},null,{"$f":"IF(AG81=\"\",\"\",VLOOKUP(AG81,Asset_owner[],2,FALSE))","v":""},null,{"$f":"IF(AI81=\"\",\"\",VLOOKUP(AI81,risk_likelihood[],2,FALSE))","v":""},null,{"$f":"IF(AK81=\"\",\"\",VLOOKUP(AK81,risk_consequence[],2,FALSE))","v":""},null,{"$f":"IF(AM81=\"\",\"\",VLOOKUP(AM81,risk[],2,FALSE))","v":""},null,{"$f":"IF(AO81=\"\",\"\",VLOOKUP(AO81,rul_reset[],2,FALSE))","v":""},null,{"$f":"IF(AQ81=\"\",\"\",VLOOKUP(AQ81,use_default_rc[],2,FALSE))","v":""},null,{"$f":"IF(AS81=\"\",\"\",VLOOKUP(AS81,condition[],2,FALSE))","v":""},null,null,{"$f":"IF(AV81=\"\",\"\",VLOOKUP(AV81,Organisation[],2,FALSE))","v":""}]
["null",null,null,null,{"$f":"IF(D82=\"\",\"\",VLOOKUP(D82,light_make[],2,FALSE))","v":""},null,{"$f":"IF(F82=\"\",\"\",VLOOKUP(F82,light_model[],2,FALSE))","v":""},null,{"$f":"IF(H82=\"\",\"\",VLOOKUP(H82,supply_point[],2,FALSE))","v":""},null,{"$f":"IF(J82=\"\",\"\",VLOOKUP(J82,gear_make[],2,FALSE))","v":""},null,{"$f":"IF(L82=\"\",\"\",VLOOKUP(L82,gear_model[],2,FALSE))","v":""},null,{"$f":"IF(N82=\"\",\"\",VLOOKUP(N82,lamp_make[],2,FALSE))","v":""},null,{"$f":"IF(P82=\"\",\"\",VLOOKUP(P82,lamp_model[],2,FALSE))","v":""},null,null,null,null,{"$f":"IF(U82=\"\",\"\",VLOOKUP(U82,Light_install_reason[],2,FALSE))","v":""},null,{"$f":"IF(W82=\"\",\"\",VLOOKUP(W82,light_status[],2,FALSE))","v":""},null,null,{"$f":"IF(Z82=\"\",\"\",VLOOKUP(Z82,Gear_install_reason[],2,FALSE))","v":""},null,{"$f":"IF(AB82=\"\",\"\",VLOOKUP(AB82,gear_status[],2,FALSE))","v":""},null,null,{"$f":"IF(AE82=\"\",\"\",VLOOKUP(AE82,Lamp_install_reason[],2,FALSE))","v":""},null,{"$f":"IF(AG82=\"\",\"\",VLOOKUP(AG82,Asset_owner[],2,FALSE))","v":""},null,{"$f":"IF(AI82=\"\",\"\",VLOOKUP(AI82,risk_likelihood[],2,FALSE))","v":""},null,{"$f":"IF(AK82=\"\",\"\",VLOOKUP(AK82,risk_consequence[],2,FALSE))","v":""},null,{"$f":"IF(AM82=\"\",\"\",VLOOKUP(AM82,risk[],2,FALSE))","v":""},null,{"$f":"IF(AO82=\"\",\"\",VLOOKUP(AO82,rul_reset[],2,FALSE))","v":""},null,{"$f":"IF(AQ82=\"\",\"\",VLOOKUP(AQ82,use_default_rc[],2,FALSE))","v":""},null,{"$f":"IF(AS82=\"\",\"\",VLOOKUP(AS82,condition[],2,FALSE))","v":""},null,null,{"$f":"IF(AV82=\"\",\"\",VLOOKUP(AV82,Organisation[],2,FALSE))","v":""}]
["null",null,null,null,{"$f":"IF(D83=\"\",\"\",VLOOKUP(D83,light_make[],2,FALSE))","v":""},null,{"$f":"IF(F83=\"\",\"\",VLOOKUP(F83,light_model[],2,FALSE))","v":""},null,{"$f":"IF(H83=\"\",\"\",VLOOKUP(H83,supply_point[],2,FALSE))","v":""},null,{"$f":"IF(J83=\"\",\"\",VLOOKUP(J83,gear_make[],2,FALSE))","v":""},null,{"$f":"IF(L83=\"\",\"\",VLOOKUP(L83,gear_model[],2,FALSE))","v":""},null,{"$f":"IF(N83=\"\",\"\",VLOOKUP(N83,lamp_make[],2,FALSE))","v":""},null,{"$f":"IF(P83=\"\",\"\",VLOOKUP(P83,lamp_model[],2,FALSE))","v":""},null,null,null,null,{"$f":"IF(U83=\"\",\"\",VLOOKUP(U83,Light_install_reason[],2,FALSE))","v":""},null,{"$f":"IF(W83=\"\",\"\",VLOOKUP(W83,light_status[],2,FALSE))","v":""},null,null,{"$f":"IF(Z83=\"\",\"\",VLOOKUP(Z83,Gear_install_reason[],2,FALSE))","v":""},null,{"$f":"IF(AB83=\"\",\"\",VLOOKUP(AB83,gear_status[],2,FALSE))","v":""},null,null,{"$f":"IF(AE83=\"\",\"\",VLOOKUP(AE83,Lamp_install_reason[],2,FALSE))","v":""},null,{"$f":"IF(AG83=\"\",\"\",VLOOKUP(AG83,Asset_owner[],2,FALSE))","v":""},null,{"$f":"IF(AI83=\"\",\"\",VLOOKUP(AI83,risk_likelihood[],2,FALSE))","v":""},null,{"$f":"IF(AK83=\"\",\"\",VLOOKUP(AK83,risk_consequence[],2,FALSE))","v":""},null,{"$f":"IF(AM83=\"\",\"\",VLOOKUP(AM83,risk[],2,FALSE))","v":""},null,{"$f":"IF(AO83=\"\",\"\",VLOOKUP(AO83,rul_reset[],2,FALSE))","v":""},null,{"$f":"IF(AQ83=\"\",\"\",VLOOKUP(AQ83,use_default_rc[],2,FALSE))","v":""},null,{"$f":"IF(AS83=\"\",\"\",VLOOKUP(AS83,condition[],2,FALSE))","v":""},null,null,{"$f":"IF(AV83=\"\",\"\",VLOOKUP(AV83,Organisation[],2,FALSE))","v":""}]
["null",null,null,null,{"$f":"IF(D84=\"\",\"\",VLOOKUP(D84,light_make[],2,FALSE))","v":""},null,{"$f":"IF(F84=\"\",\"\",VLOOKUP(F84,light_model[],2,FALSE))","v":""},null,{"$f":"IF(H84=\"\",\"\",VLOOKUP(H84,supply_point[],2,FALSE))","v":""},null,{"$f":"IF(J84=\"\",\"\",VLOOKUP(J84,gear_make[],2,FALSE))","v":""},null,{"$f":"IF(L84=\"\",\"\",VLOOKUP(L84,gear_model[],2,FALSE))","v":""},null,{"$f":"IF(N84=\"\",\"\",VLOOKUP(N84,lamp_make[],2,FALSE))","v":""},null,{"$f":"IF(P84=\"\",\"\",VLOOKUP(P84,lamp_model[],2,FALSE))","v":""},null,null,null,null,{"$f":"IF(U84=\"\",\"\",VLOOKUP(U84,Light_install_reason[],2,FALSE))","v":""},null,{"$f":"IF(W84=\"\",\"\",VLOOKUP(W84,light_status[],2,FALSE))","v":""},null,null,{"$f":"IF(Z84=\"\",\"\",VLOOKUP(Z84,Gear_install_reason[],2,FALSE))","v":""},null,{"$f":"IF(AB84=\"\",\"\",VLOOKUP(AB84,gear_status[],2,FALSE))","v":""},null,null,{"$f":"IF(AE84=\"\",\"\",VLOOKUP(AE84,Lamp_install_reason[],2,FALSE))","v":""},null,{"$f":"IF(AG84=\"\",\"\",VLOOKUP(AG84,Asset_owner[],2,FALSE))","v":""},null,{"$f":"IF(AI84=\"\",\"\",VLOOKUP(AI84,risk_likelihood[],2,FALSE))","v":""},null,{"$f":"IF(AK84=\"\",\"\",VLOOKUP(AK84,risk_consequence[],2,FALSE))","v":""},null,{"$f":"IF(AM84=\"\",\"\",VLOOKUP(AM84,risk[],2,FALSE))","v":""},null,{"$f":"IF(AO84=\"\",\"\",VLOOKUP(AO84,rul_reset[],2,FALSE))","v":""},null,{"$f":"IF(AQ84=\"\",\"\",VLOOKUP(AQ84,use_default_rc[],2,FALSE))","v":""},null,{"$f":"IF(AS84=\"\",\"\",VLOOKUP(AS84,condition[],2,FALSE))","v":""},null,null,{"$f":"IF(AV84=\"\",\"\",VLOOKUP(AV84,Organisation[],2,FALSE))","v":""}]
["null",null,null,null,{"$f":"IF(D85=\"\",\"\",VLOOKUP(D85,light_make[],2,FALSE))","v":""},null,{"$f":"IF(F85=\"\",\"\",VLOOKUP(F85,light_model[],2,FALSE))","v":""},null,{"$f":"IF(H85=\"\",\"\",VLOOKUP(H85,supply_point[],2,FALSE))","v":""},null,{"$f":"IF(J85=\"\",\"\",VLOOKUP(J85,gear_make[],2,FALSE))","v":""},null,{"$f":"IF(L85=\"\",\"\",VLOOKUP(L85,gear_model[],2,FALSE))","v":""},null,{"$f":"IF(N85=\"\",\"\",VLOOKUP(N85,lamp_make[],2,FALSE))","v":""},null,{"$f":"IF(P85=\"\",\"\",VLOOKUP(P85,lamp_model[],2,FALSE))","v":""},null,null,null,null,{"$f":"IF(U85=\"\",\"\",VLOOKUP(U85,Light_install_reason[],2,FALSE))","v":""},null,{"$f":"IF(W85=\"\",\"\",VLOOKUP(W85,light_status[],2,FALSE))","v":""},null,null,{"$f":"IF(Z85=\"\",\"\",VLOOKUP(Z85,Gear_install_reason[],2,FALSE))","v":""},null,{"$f":"IF(AB85=\"\",\"\",VLOOKUP(AB85,gear_status[],2,FALSE))","v":""},null,null,{"$f":"IF(AE85=\"\",\"\",VLOOKUP(AE85,Lamp_install_reason[],2,FALSE))","v":""},null,{"$f":"IF(AG85=\"\",\"\",VLOOKUP(AG85,Asset_owner[],2,FALSE))","v":""},null,{"$f":"IF(AI85=\"\",\"\",VLOOKUP(AI85,risk_likelihood[],2,FALSE))","v":""},null,{"$f":"IF(AK85=\"\",\"\",VLOOKUP(AK85,risk_consequence[],2,FALSE))","v":""},null,{"$f":"IF(AM85=\"\",\"\",VLOOKUP(AM85,risk[],2,FALSE))","v":""},null,{"$f":"IF(AO85=\"\",\"\",VLOOKUP(AO85,rul_reset[],2,FALSE))","v":""},null,{"$f":"IF(AQ85=\"\",\"\",VLOOKUP(AQ85,use_default_rc[],2,FALSE))","v":""},null,{"$f":"IF(AS85=\"\",\"\",VLOOKUP(AS85,condition[],2,FALSE))","v":""},null,null,{"$f":"IF(AV85=\"\",\"\",VLOOKUP(AV85,Organisation[],2,FALSE))","v":""}]
["null",null,null,null,{"$f":"IF(D86=\"\",\"\",VLOOKUP(D86,light_make[],2,FALSE))","v":""},null,{"$f":"IF(F86=\"\",\"\",VLOOKUP(F86,light_model[],2,FALSE))","v":""},null,{"$f":"IF(H86=\"\",\"\",VLOOKUP(H86,supply_point[],2,FALSE))","v":""},null,{"$f":"IF(J86=\"\",\"\",VLOOKUP(J86,gear_make[],2,FALSE))","v":""},null,{"$f":"IF(L86=\"\",\"\",VLOOKUP(L86,gear_model[],2,FALSE))","v":""},null,{"$f":"IF(N86=\"\",\"\",VLOOKUP(N86,lamp_make[],2,FALSE))","v":""},null,{"$f":"IF(P86=\"\",\"\",VLOOKUP(P86,lamp_model[],2,FALSE))","v":""},null,null,null,null,{"$f":"IF(U86=\"\",\"\",VLOOKUP(U86,Light_install_reason[],2,FALSE))","v":""},null,{"$f":"IF(W86=\"\",\"\",VLOOKUP(W86,light_status[],2,FALSE))","v":""},null,null,{"$f":"IF(Z86=\"\",\"\",VLOOKUP(Z86,Gear_install_reason[],2,FALSE))","v":""},null,{"$f":"IF(AB86=\"\",\"\",VLOOKUP(AB86,gear_status[],2,FALSE))","v":""},null,null,{"$f":"IF(AE86=\"\",\"\",VLOOKUP(AE86,Lamp_install_reason[],2,FALSE))","v":""},null,{"$f":"IF(AG86=\"\",\"\",VLOOKUP(AG86,Asset_owner[],2,FALSE))","v":""},null,{"$f":"IF(AI86=\"\",\"\",VLOOKUP(AI86,risk_likelihood[],2,FALSE))","v":""},null,{"$f":"IF(AK86=\"\",\"\",VLOOKUP(AK86,risk_consequence[],2,FALSE))","v":""},null,{"$f":"IF(AM86=\"\",\"\",VLOOKUP(AM86,risk[],2,FALSE))","v":""},null,{"$f":"IF(AO86=\"\",\"\",VLOOKUP(AO86,rul_reset[],2,FALSE))","v":""},null,{"$f":"IF(AQ86=\"\",\"\",VLOOKUP(AQ86,use_default_rc[],2,FALSE))","v":""},null,{"$f":"IF(AS86=\"\",\"\",VLOOKUP(AS86,condition[],2,FALSE))","v":""},null,null,{"$f":"IF(AV86=\"\",\"\",VLOOKUP(AV86,Organisation[],2,FALSE))","v":""}]
["null",null,null,null,{"$f":"IF(D87=\"\",\"\",VLOOKUP(D87,light_make[],2,FALSE))","v":""},null,{"$f":"IF(F87=\"\",\"\",VLOOKUP(F87,light_model[],2,FALSE))","v":""},null,{"$f":"IF(H87=\"\",\"\",VLOOKUP(H87,supply_point[],2,FALSE))","v":""},null,{"$f":"IF(J87=\"\",\"\",VLOOKUP(J87,gear_make[],2,FALSE))","v":""},null,{"$f":"IF(L87=\"\",\"\",VLOOKUP(L87,gear_model[],2,FALSE))","v":""},null,{"$f":"IF(N87=\"\",\"\",VLOOKUP(N87,lamp_make[],2,FALSE))","v":""},null,{"$f":"IF(P87=\"\",\"\",VLOOKUP(P87,lamp_model[],2,FALSE))","v":""},null,null,null,null,{"$f":"IF(U87=\"\",\"\",VLOOKUP(U87,Light_install_reason[],2,FALSE))","v":""},null,{"$f":"IF(W87=\"\",\"\",VLOOKUP(W87,light_status[],2,FALSE))","v":""},null,null,{"$f":"IF(Z87=\"\",\"\",VLOOKUP(Z87,Gear_install_reason[],2,FALSE))","v":""},null,{"$f":"IF(AB87=\"\",\"\",VLOOKUP(AB87,gear_status[],2,FALSE))","v":""},null,null,{"$f":"IF(AE87=\"\",\"\",VLOOKUP(AE87,Lamp_install_reason[],2,FALSE))","v":""},null,{"$f":"IF(AG87=\"\",\"\",VLOOKUP(AG87,Asset_owner[],2,FALSE))","v":""},null,{"$f":"IF(AI87=\"\",\"\",VLOOKUP(AI87,risk_likelihood[],2,FALSE))","v":""},null,{"$f":"IF(AK87=\"\",\"\",VLOOKUP(AK87,risk_consequence[],2,FALSE))","v":""},null,{"$f":"IF(AM87=\"\",\"\",VLOOKUP(AM87,risk[],2,FALSE))","v":""},null,{"$f":"IF(AO87=\"\",\"\",VLOOKUP(AO87,rul_reset[],2,FALSE))","v":""},null,{"$f":"IF(AQ87=\"\",\"\",VLOOKUP(AQ87,use_default_rc[],2,FALSE))","v":""},null,{"$f":"IF(AS87=\"\",\"\",VLOOKUP(AS87,condition[],2,FALSE))","v":""},null,null,{"$f":"IF(AV87=\"\",\"\",VLOOKUP(AV87,Organisation[],2,FALSE))","v":""}]
["null",null,null,null,{"$f":"IF(D88=\"\",\"\",VLOOKUP(D88,light_make[],2,FALSE))","v":""},null,{"$f":"IF(F88=\"\",\"\",VLOOKUP(F88,light_model[],2,FALSE))","v":""},null,{"$f":"IF(H88=\"\",\"\",VLOOKUP(H88,supply_point[],2,FALSE))","v":""},null,{"$f":"IF(J88=\"\",\"\",VLOOKUP(J88,gear_make[],2,FALSE))","v":""},null,{"$f":"IF(L88=\"\",\"\",VLOOKUP(L88,gear_model[],2,FALSE))","v":""},null,{"$f":"IF(N88=\"\",\"\",VLOOKUP(N88,lamp_make[],2,FALSE))","v":""},null,{"$f":"IF(P88=\"\",\"\",VLOOKUP(P88,lamp_model[],2,FALSE))","v":""},null,null,null,null,{"$f":"IF(U88=\"\",\"\",VLOOKUP(U88,Light_install_reason[],2,FALSE))","v":""},null,{"$f":"IF(W88=\"\",\"\",VLOOKUP(W88,light_status[],2,FALSE))","v":""},null,null,{"$f":"IF(Z88=\"\",\"\",VLOOKUP(Z88,Gear_install_reason[],2,FALSE))","v":""},null,{"$f":"IF(AB88=\"\",\"\",VLOOKUP(AB88,gear_status[],2,FALSE))","v":""},null,null,{"$f":"IF(AE88=\"\",\"\",VLOOKUP(AE88,Lamp_install_reason[],2,FALSE))","v":""},null,{"$f":"IF(AG88=\"\",\"\",VLOOKUP(AG88,Asset_owner[],2,FALSE))","v":""},null,{"$f":"IF(AI88=\"\",\"\",VLOOKUP(AI88,risk_likelihood[],2,FALSE))","v":""},null,{"$f":"IF(AK88=\"\",\"\",VLOOKUP(AK88,risk_consequence[],2,FALSE))","v":""},null,{"$f":"IF(AM88=\"\",\"\",VLOOKUP(AM88,risk[],2,FALSE))","v":""},null,{"$f":"IF(AO88=\"\",\"\",VLOOKUP(AO88,rul_reset[],2,FALSE))","v":""},null,{"$f":"IF(AQ88=\"\",\"\",VLOOKUP(AQ88,use_default_rc[],2,FALSE))","v":""},null,{"$f":"IF(AS88=\"\",\"\",VLOOKUP(AS88,condition[],2,FALSE))","v":""},null,null,{"$f":"IF(AV88=\"\",\"\",VLOOKUP(AV88,Organisation[],2,FALSE))","v":""}]
["null",null,null,null,{"$f":"IF(D89=\"\",\"\",VLOOKUP(D89,light_make[],2,FALSE))","v":""},null,{"$f":"IF(F89=\"\",\"\",VLOOKUP(F89,light_model[],2,FALSE))","v":""},null,{"$f":"IF(H89=\"\",\"\",VLOOKUP(H89,supply_point[],2,FALSE))","v":""},null,{"$f":"IF(J89=\"\",\"\",VLOOKUP(J89,gear_make[],2,FALSE))","v":""},null,{"$f":"IF(L89=\"\",\"\",VLOOKUP(L89,gear_model[],2,FALSE))","v":""},null,{"$f":"IF(N89=\"\",\"\",VLOOKUP(N89,lamp_make[],2,FALSE))","v":""},null,{"$f":"IF(P89=\"\",\"\",VLOOKUP(P89,lamp_model[],2,FALSE))","v":""},null,null,null,null,{"$f":"IF(U89=\"\",\"\",VLOOKUP(U89,Light_install_reason[],2,FALSE))","v":""},null,{"$f":"IF(W89=\"\",\"\",VLOOKUP(W89,light_status[],2,FALSE))","v":""},null,null,{"$f":"IF(Z89=\"\",\"\",VLOOKUP(Z89,Gear_install_reason[],2,FALSE))","v":""},null,{"$f":"IF(AB89=\"\",\"\",VLOOKUP(AB89,gear_status[],2,FALSE))","v":""},null,null,{"$f":"IF(AE89=\"\",\"\",VLOOKUP(AE89,Lamp_install_reason[],2,FALSE))","v":""},null,{"$f":"IF(AG89=\"\",\"\",VLOOKUP(AG89,Asset_owner[],2,FALSE))","v":""},null,{"$f":"IF(AI89=\"\",\"\",VLOOKUP(AI89,risk_likelihood[],2,FALSE))","v":""},null,{"$f":"IF(AK89=\"\",\"\",VLOOKUP(AK89,risk_consequence[],2,FALSE))","v":""},null,{"$f":"IF(AM89=\"\",\"\",VLOOKUP(AM89,risk[],2,FALSE))","v":""},null,{"$f":"IF(AO89=\"\",\"\",VLOOKUP(AO89,rul_reset[],2,FALSE))","v":""},null,{"$f":"IF(AQ89=\"\",\"\",VLOOKUP(AQ89,use_default_rc[],2,FALSE))","v":""},null,{"$f":"IF(AS89=\"\",\"\",VLOOKUP(AS89,condition[],2,FALSE))","v":""},null,null,{"$f":"IF(AV89=\"\",\"\",VLOOKUP(AV89,Organisation[],2,FALSE))","v":""}]
["null",null,null,null,{"$f":"IF(D90=\"\",\"\",VLOOKUP(D90,light_make[],2,FALSE))","v":""},null,{"$f":"IF(F90=\"\",\"\",VLOOKUP(F90,light_model[],2,FALSE))","v":""},null,{"$f":"IF(H90=\"\",\"\",VLOOKUP(H90,supply_point[],2,FALSE))","v":""},null,{"$f":"IF(J90=\"\",\"\",VLOOKUP(J90,gear_make[],2,FALSE))","v":""},null,{"$f":"IF(L90=\"\",\"\",VLOOKUP(L90,gear_model[],2,FALSE))","v":""},null,{"$f":"IF(N90=\"\",\"\",VLOOKUP(N90,lamp_make[],2,FALSE))","v":""},null,{"$f":"IF(P90=\"\",\"\",VLOOKUP(P90,lamp_model[],2,FALSE))","v":""},null,null,null,null,{"$f":"IF(U90=\"\",\"\",VLOOKUP(U90,Light_install_reason[],2,FALSE))","v":""},null,{"$f":"IF(W90=\"\",\"\",VLOOKUP(W90,light_status[],2,FALSE))","v":""},null,null,{"$f":"IF(Z90=\"\",\"\",VLOOKUP(Z90,Gear_install_reason[],2,FALSE))","v":""},null,{"$f":"IF(AB90=\"\",\"\",VLOOKUP(AB90,gear_status[],2,FALSE))","v":""},null,null,{"$f":"IF(AE90=\"\",\"\",VLOOKUP(AE90,Lamp_install_reason[],2,FALSE))","v":""},null,{"$f":"IF(AG90=\"\",\"\",VLOOKUP(AG90,Asset_owner[],2,FALSE))","v":""},null,{"$f":"IF(AI90=\"\",\"\",VLOOKUP(AI90,risk_likelihood[],2,FALSE))","v":""},null,{"$f":"IF(AK90=\"\",\"\",VLOOKUP(AK90,risk_consequence[],2,FALSE))","v":""},null,{"$f":"IF(AM90=\"\",\"\",VLOOKUP(AM90,risk[],2,FALSE))","v":""},null,{"$f":"IF(AO90=\"\",\"\",VLOOKUP(AO90,rul_reset[],2,FALSE))","v":""},null,{"$f":"IF(AQ90=\"\",\"\",VLOOKUP(AQ90,use_default_rc[],2,FALSE))","v":""},null,{"$f":"IF(AS90=\"\",\"\",VLOOKUP(AS90,condition[],2,FALSE))","v":""},null,null,{"$f":"IF(AV90=\"\",\"\",VLOOKUP(AV90,Organisation[],2,FALSE))","v":""}]
["null",null,null,null,{"$f":"IF(D91=\"\",\"\",VLOOKUP(D91,light_make[],2,FALSE))","v":""},null,{"$f":"IF(F91=\"\",\"\",VLOOKUP(F91,light_model[],2,FALSE))","v":""},null,{"$f":"IF(H91=\"\",\"\",VLOOKUP(H91,supply_point[],2,FALSE))","v":""},null,{"$f":"IF(J91=\"\",\"\",VLOOKUP(J91,gear_make[],2,FALSE))","v":""},null,{"$f":"IF(L91=\"\",\"\",VLOOKUP(L91,gear_model[],2,FALSE))","v":""},null,{"$f":"IF(N91=\"\",\"\",VLOOKUP(N91,lamp_make[],2,FALSE))","v":""},null,{"$f":"IF(P91=\"\",\"\",VLOOKUP(P91,lamp_model[],2,FALSE))","v":""},null,null,null,null,{"$f":"IF(U91=\"\",\"\",VLOOKUP(U91,Light_install_reason[],2,FALSE))","v":""},null,{"$f":"IF(W91=\"\",\"\",VLOOKUP(W91,light_status[],2,FALSE))","v":""},null,null,{"$f":"IF(Z91=\"\",\"\",VLOOKUP(Z91,Gear_install_reason[],2,FALSE))","v":""},null,{"$f":"IF(AB91=\"\",\"\",VLOOKUP(AB91,gear_status[],2,FALSE))","v":""},null,null,{"$f":"IF(AE91=\"\",\"\",VLOOKUP(AE91,Lamp_install_reason[],2,FALSE))","v":""},null,{"$f":"IF(AG91=\"\",\"\",VLOOKUP(AG91,Asset_owner[],2,FALSE))","v":""},null,{"$f":"IF(AI91=\"\",\"\",VLOOKUP(AI91,risk_likelihood[],2,FALSE))","v":""},null,{"$f":"IF(AK91=\"\",\"\",VLOOKUP(AK91,risk_consequence[],2,FALSE))","v":""},null,{"$f":"IF(AM91=\"\",\"\",VLOOKUP(AM91,risk[],2,FALSE))","v":""},null,{"$f":"IF(AO91=\"\",\"\",VLOOKUP(AO91,rul_reset[],2,FALSE))","v":""},null,{"$f":"IF(AQ91=\"\",\"\",VLOOKUP(AQ91,use_default_rc[],2,FALSE))","v":""},null,{"$f":"IF(AS91=\"\",\"\",VLOOKUP(AS91,condition[],2,FALSE))","v":""},null,null,{"$f":"IF(AV91=\"\",\"\",VLOOKUP(AV91,Organisation[],2,FALSE))","v":""}]
["null",null,null,null,{"$f":"IF(D92=\"\",\"\",VLOOKUP(D92,light_make[],2,FALSE))","v":""},null,{"$f":"IF(F92=\"\",\"\",VLOOKUP(F92,light_model[],2,FALSE))","v":""},null,{"$f":"IF(H92=\"\",\"\",VLOOKUP(H92,supply_point[],2,FALSE))","v":""},null,{"$f":"IF(J92=\"\",\"\",VLOOKUP(J92,gear_make[],2,FALSE))","v":""},null,{"$f":"IF(L92=\"\",\"\",VLOOKUP(L92,gear_model[],2,FALSE))","v":""},null,{"$f":"IF(N92=\"\",\"\",VLOOKUP(N92,lamp_make[],2,FALSE))","v":""},null,{"$f":"IF(P92=\"\",\"\",VLOOKUP(P92,lamp_model[],2,FALSE))","v":""},null,null,null,null,{"$f":"IF(U92=\"\",\"\",VLOOKUP(U92,Light_install_reason[],2,FALSE))","v":""},null,{"$f":"IF(W92=\"\",\"\",VLOOKUP(W92,light_status[],2,FALSE))","v":""},null,null,{"$f":"IF(Z92=\"\",\"\",VLOOKUP(Z92,Gear_install_reason[],2,FALSE))","v":""},null,{"$f":"IF(AB92=\"\",\"\",VLOOKUP(AB92,gear_status[],2,FALSE))","v":""},null,null,{"$f":"IF(AE92=\"\",\"\",VLOOKUP(AE92,Lamp_install_reason[],2,FALSE))","v":""},null,{"$f":"IF(AG92=\"\",\"\",VLOOKUP(AG92,Asset_owner[],2,FALSE))","v":""},null,{"$f":"IF(AI92=\"\",\"\",VLOOKUP(AI92,risk_likelihood[],2,FALSE))","v":""},null,{"$f":"IF(AK92=\"\",\"\",VLOOKUP(AK92,risk_consequence[],2,FALSE))","v":""},null,{"$f":"IF(AM92=\"\",\"\",VLOOKUP(AM92,risk[],2,FALSE))","v":""},null,{"$f":"IF(AO92=\"\",\"\",VLOOKUP(AO92,rul_reset[],2,FALSE))","v":""},null,{"$f":"IF(AQ92=\"\",\"\",VLOOKUP(AQ92,use_default_rc[],2,FALSE))","v":""},null,{"$f":"IF(AS92=\"\",\"\",VLOOKUP(AS92,condition[],2,FALSE))","v":""},null,null,{"$f":"IF(AV92=\"\",\"\",VLOOKUP(AV92,Organisation[],2,FALSE))","v":""}]
["null",null,null,null,{"$f":"IF(D93=\"\",\"\",VLOOKUP(D93,light_make[],2,FALSE))","v":""},null,{"$f":"IF(F93=\"\",\"\",VLOOKUP(F93,light_model[],2,FALSE))","v":""},null,{"$f":"IF(H93=\"\",\"\",VLOOKUP(H93,supply_point[],2,FALSE))","v":""},null,{"$f":"IF(J93=\"\",\"\",VLOOKUP(J93,gear_make[],2,FALSE))","v":""},null,{"$f":"IF(L93=\"\",\"\",VLOOKUP(L93,gear_model[],2,FALSE))","v":""},null,{"$f":"IF(N93=\"\",\"\",VLOOKUP(N93,lamp_make[],2,FALSE))","v":""},null,{"$f":"IF(P93=\"\",\"\",VLOOKUP(P93,lamp_model[],2,FALSE))","v":""},null,null,null,null,{"$f":"IF(U93=\"\",\"\",VLOOKUP(U93,Light_install_reason[],2,FALSE))","v":""},null,{"$f":"IF(W93=\"\",\"\",VLOOKUP(W93,light_status[],2,FALSE))","v":""},null,null,{"$f":"IF(Z93=\"\",\"\",VLOOKUP(Z93,Gear_install_reason[],2,FALSE))","v":""},null,{"$f":"IF(AB93=\"\",\"\",VLOOKUP(AB93,gear_status[],2,FALSE))","v":""},null,null,{"$f":"IF(AE93=\"\",\"\",VLOOKUP(AE93,Lamp_install_reason[],2,FALSE))","v":""},null,{"$f":"IF(AG93=\"\",\"\",VLOOKUP(AG93,Asset_owner[],2,FALSE))","v":""},null,{"$f":"IF(AI93=\"\",\"\",VLOOKUP(AI93,risk_likelihood[],2,FALSE))","v":""},null,{"$f":"IF(AK93=\"\",\"\",VLOOKUP(AK93,risk_consequence[],2,FALSE))","v":""},null,{"$f":"IF(AM93=\"\",\"\",VLOOKUP(AM93,risk[],2,FALSE))","v":""},null,{"$f":"IF(AO93=\"\",\"\",VLOOKUP(AO93,rul_reset[],2,FALSE))","v":""},null,{"$f":"IF(AQ93=\"\",\"\",VLOOKUP(AQ93,use_default_rc[],2,FALSE))","v":""},null,{"$f":"IF(AS93=\"\",\"\",VLOOKUP(AS93,condition[],2,FALSE))","v":""},null,null,{"$f":"IF(AV93=\"\",\"\",VLOOKUP(AV93,Organisation[],2,FALSE))","v":""}]
["null",null,null,null,{"$f":"IF(D94=\"\",\"\",VLOOKUP(D94,light_make[],2,FALSE))","v":""},null,{"$f":"IF(F94=\"\",\"\",VLOOKUP(F94,light_model[],2,FALSE))","v":""},null,{"$f":"IF(H94=\"\",\"\",VLOOKUP(H94,supply_point[],2,FALSE))","v":""},null,{"$f":"IF(J94=\"\",\"\",VLOOKUP(J94,gear_make[],2,FALSE))","v":""},null,{"$f":"IF(L94=\"\",\"\",VLOOKUP(L94,gear_model[],2,FALSE))","v":""},null,{"$f":"IF(N94=\"\",\"\",VLOOKUP(N94,lamp_make[],2,FALSE))","v":""},null,{"$f":"IF(P94=\"\",\"\",VLOOKUP(P94,lamp_model[],2,FALSE))","v":""},null,null,null,null,{"$f":"IF(U94=\"\",\"\",VLOOKUP(U94,Light_install_reason[],2,FALSE))","v":""},null,{"$f":"IF(W94=\"\",\"\",VLOOKUP(W94,light_status[],2,FALSE))","v":""},null,null,{"$f":"IF(Z94=\"\",\"\",VLOOKUP(Z94,Gear_install_reason[],2,FALSE))","v":""},null,{"$f":"IF(AB94=\"\",\"\",VLOOKUP(AB94,gear_status[],2,FALSE))","v":""},null,null,{"$f":"IF(AE94=\"\",\"\",VLOOKUP(AE94,Lamp_install_reason[],2,FALSE))","v":""},null,{"$f":"IF(AG94=\"\",\"\",VLOOKUP(AG94,Asset_owner[],2,FALSE))","v":""},null,{"$f":"IF(AI94=\"\",\"\",VLOOKUP(AI94,risk_likelihood[],2,FALSE))","v":""},null,{"$f":"IF(AK94=\"\",\"\",VLOOKUP(AK94,risk_consequence[],2,FALSE))","v":""},null,{"$f":"IF(AM94=\"\",\"\",VLOOKUP(AM94,risk[],2,FALSE))","v":""},null,{"$f":"IF(AO94=\"\",\"\",VLOOKUP(AO94,rul_reset[],2,FALSE))","v":""},null,{"$f":"IF(AQ94=\"\",\"\",VLOOKUP(AQ94,use_default_rc[],2,FALSE))","v":""},null,{"$f":"IF(AS94=\"\",\"\",VLOOKUP(AS94,condition[],2,FALSE))","v":""},null,null,{"$f":"IF(AV94=\"\",\"\",VLOOKUP(AV94,Organisation[],2,FALSE))","v":""}]
["null",null,null,null,{"$f":"IF(D95=\"\",\"\",VLOOKUP(D95,light_make[],2,FALSE))","v":""},null,{"$f":"IF(F95=\"\",\"\",VLOOKUP(F95,light_model[],2,FALSE))","v":""},null,{"$f":"IF(H95=\"\",\"\",VLOOKUP(H95,supply_point[],2,FALSE))","v":""},null,{"$f":"IF(J95=\"\",\"\",VLOOKUP(J95,gear_make[],2,FALSE))","v":""},null,{"$f":"IF(L95=\"\",\"\",VLOOKUP(L95,gear_model[],2,FALSE))","v":""},null,{"$f":"IF(N95=\"\",\"\",VLOOKUP(N95,lamp_make[],2,FALSE))","v":""},null,{"$f":"IF(P95=\"\",\"\",VLOOKUP(P95,lamp_model[],2,FALSE))","v":""},null,null,null,null,{"$f":"IF(U95=\"\",\"\",VLOOKUP(U95,Light_install_reason[],2,FALSE))","v":""},null,{"$f":"IF(W95=\"\",\"\",VLOOKUP(W95,light_status[],2,FALSE))","v":""},null,null,{"$f":"IF(Z95=\"\",\"\",VLOOKUP(Z95,Gear_install_reason[],2,FALSE))","v":""},null,{"$f":"IF(AB95=\"\",\"\",VLOOKUP(AB95,gear_status[],2,FALSE))","v":""},null,null,{"$f":"IF(AE95=\"\",\"\",VLOOKUP(AE95,Lamp_install_reason[],2,FALSE))","v":""},null,{"$f":"IF(AG95=\"\",\"\",VLOOKUP(AG95,Asset_owner[],2,FALSE))","v":""},null,{"$f":"IF(AI95=\"\",\"\",VLOOKUP(AI95,risk_likelihood[],2,FALSE))","v":""},null,{"$f":"IF(AK95=\"\",\"\",VLOOKUP(AK95,risk_consequence[],2,FALSE))","v":""},null,{"$f":"IF(AM95=\"\",\"\",VLOOKUP(AM95,risk[],2,FALSE))","v":""},null,{"$f":"IF(AO95=\"\",\"\",VLOOKUP(AO95,rul_reset[],2,FALSE))","v":""},null,{"$f":"IF(AQ95=\"\",\"\",VLOOKUP(AQ95,use_default_rc[],2,FALSE))","v":""},null,{"$f":"IF(AS95=\"\",\"\",VLOOKUP(AS95,condition[],2,FALSE))","v":""},null,null,{"$f":"IF(AV95=\"\",\"\",VLOOKUP(AV95,Organisation[],2,FALSE))","v":""}]
["null",null,null,null,{"$f":"IF(D96=\"\",\"\",VLOOKUP(D96,light_make[],2,FALSE))","v":""},null,{"$f":"IF(F96=\"\",\"\",VLOOKUP(F96,light_model[],2,FALSE))","v":""},null,{"$f":"IF(H96=\"\",\"\",VLOOKUP(H96,supply_point[],2,FALSE))","v":""},null,{"$f":"IF(J96=\"\",\"\",VLOOKUP(J96,gear_make[],2,FALSE))","v":""},null,{"$f":"IF(L96=\"\",\"\",VLOOKUP(L96,gear_model[],2,FALSE))","v":""},null,{"$f":"IF(N96=\"\",\"\",VLOOKUP(N96,lamp_make[],2,FALSE))","v":""},null,{"$f":"IF(P96=\"\",\"\",VLOOKUP(P96,lamp_model[],2,FALSE))","v":""},null,null,null,null,{"$f":"IF(U96=\"\",\"\",VLOOKUP(U96,Light_install_reason[],2,FALSE))","v":""},null,{"$f":"IF(W96=\"\",\"\",VLOOKUP(W96,light_status[],2,FALSE))","v":""},null,null,{"$f":"IF(Z96=\"\",\"\",VLOOKUP(Z96,Gear_install_reason[],2,FALSE))","v":""},null,{"$f":"IF(AB96=\"\",\"\",VLOOKUP(AB96,gear_status[],2,FALSE))","v":""},null,null,{"$f":"IF(AE96=\"\",\"\",VLOOKUP(AE96,Lamp_install_reason[],2,FALSE))","v":""},null,{"$f":"IF(AG96=\"\",\"\",VLOOKUP(AG96,Asset_owner[],2,FALSE))","v":""},null,{"$f":"IF(AI96=\"\",\"\",VLOOKUP(AI96,risk_likelihood[],2,FALSE))","v":""},null,{"$f":"IF(AK96=\"\",\"\",VLOOKUP(AK96,risk_consequence[],2,FALSE))","v":""},null,{"$f":"IF(AM96=\"\",\"\",VLOOKUP(AM96,risk[],2,FALSE))","v":""},null,{"$f":"IF(AO96=\"\",\"\",VLOOKUP(AO96,rul_reset[],2,FALSE))","v":""},null,{"$f":"IF(AQ96=\"\",\"\",VLOOKUP(AQ96,use_default_rc[],2,FALSE))","v":""},null,{"$f":"IF(AS96=\"\",\"\",VLOOKUP(AS96,condition[],2,FALSE))","v":""},null,null,{"$f":"IF(AV96=\"\",\"\",VLOOKUP(AV96,Organisation[],2,FALSE))","v":""}]
["null",null,null,null,{"$f":"IF(D97=\"\",\"\",VLOOKUP(D97,light_make[],2,FALSE))","v":""},null,{"$f":"IF(F97=\"\",\"\",VLOOKUP(F97,light_model[],2,FALSE))","v":""},null,{"$f":"IF(H97=\"\",\"\",VLOOKUP(H97,supply_point[],2,FALSE))","v":""},null,{"$f":"IF(J97=\"\",\"\",VLOOKUP(J97,gear_make[],2,FALSE))","v":""},null,{"$f":"IF(L97=\"\",\"\",VLOOKUP(L97,gear_model[],2,FALSE))","v":""},null,{"$f":"IF(N97=\"\",\"\",VLOOKUP(N97,lamp_make[],2,FALSE))","v":""},null,{"$f":"IF(P97=\"\",\"\",VLOOKUP(P97,lamp_model[],2,FALSE))","v":""},null,null,null,null,{"$f":"IF(U97=\"\",\"\",VLOOKUP(U97,Light_install_reason[],2,FALSE))","v":""},null,{"$f":"IF(W97=\"\",\"\",VLOOKUP(W97,light_status[],2,FALSE))","v":""},null,null,{"$f":"IF(Z97=\"\",\"\",VLOOKUP(Z97,Gear_install_reason[],2,FALSE))","v":""},null,{"$f":"IF(AB97=\"\",\"\",VLOOKUP(AB97,gear_status[],2,FALSE))","v":""},null,null,{"$f":"IF(AE97=\"\",\"\",VLOOKUP(AE97,Lamp_install_reason[],2,FALSE))","v":""},null,{"$f":"IF(AG97=\"\",\"\",VLOOKUP(AG97,Asset_owner[],2,FALSE))","v":""},null,{"$f":"IF(AI97=\"\",\"\",VLOOKUP(AI97,risk_likelihood[],2,FALSE))","v":""},null,{"$f":"IF(AK97=\"\",\"\",VLOOKUP(AK97,risk_consequence[],2,FALSE))","v":""},null,{"$f":"IF(AM97=\"\",\"\",VLOOKUP(AM97,risk[],2,FALSE))","v":""},null,{"$f":"IF(AO97=\"\",\"\",VLOOKUP(AO97,rul_reset[],2,FALSE))","v":""},null,{"$f":"IF(AQ97=\"\",\"\",VLOOKUP(AQ97,use_default_rc[],2,FALSE))","v":""},null,{"$f":"IF(AS97=\"\",\"\",VLOOKUP(AS97,condition[],2,FALSE))","v":""},null,null,{"$f":"IF(AV97=\"\",\"\",VLOOKUP(AV97,Organisation[],2,FALSE))","v":""}]
["null",null,null,null,{"$f":"IF(D98=\"\",\"\",VLOOKUP(D98,light_make[],2,FALSE))","v":""},null,{"$f":"IF(F98=\"\",\"\",VLOOKUP(F98,light_model[],2,FALSE))","v":""},null,{"$f":"IF(H98=\"\",\"\",VLOOKUP(H98,supply_point[],2,FALSE))","v":""},null,{"$f":"IF(J98=\"\",\"\",VLOOKUP(J98,gear_make[],2,FALSE))","v":""},null,{"$f":"IF(L98=\"\",\"\",VLOOKUP(L98,gear_model[],2,FALSE))","v":""},null,{"$f":"IF(N98=\"\",\"\",VLOOKUP(N98,lamp_make[],2,FALSE))","v":""},null,{"$f":"IF(P98=\"\",\"\",VLOOKUP(P98,lamp_model[],2,FALSE))","v":""},null,null,null,null,{"$f":"IF(U98=\"\",\"\",VLOOKUP(U98,Light_install_reason[],2,FALSE))","v":""},null,{"$f":"IF(W98=\"\",\"\",VLOOKUP(W98,light_status[],2,FALSE))","v":""},null,null,{"$f":"IF(Z98=\"\",\"\",VLOOKUP(Z98,Gear_install_reason[],2,FALSE))","v":""},null,{"$f":"IF(AB98=\"\",\"\",VLOOKUP(AB98,gear_status[],2,FALSE))","v":""},null,null,{"$f":"IF(AE98=\"\",\"\",VLOOKUP(AE98,Lamp_install_reason[],2,FALSE))","v":""},null,{"$f":"IF(AG98=\"\",\"\",VLOOKUP(AG98,Asset_owner[],2,FALSE))","v":""},null,{"$f":"IF(AI98=\"\",\"\",VLOOKUP(AI98,risk_likelihood[],2,FALSE))","v":""},null,{"$f":"IF(AK98=\"\",\"\",VLOOKUP(AK98,risk_consequence[],2,FALSE))","v":""},null,{"$f":"IF(AM98=\"\",\"\",VLOOKUP(AM98,risk[],2,FALSE))","v":""},null,{"$f":"IF(AO98=\"\",\"\",VLOOKUP(AO98,rul_reset[],2,FALSE))","v":""},null,{"$f":"IF(AQ98=\"\",\"\",VLOOKUP(AQ98,use_default_rc[],2,FALSE))","v":""},null,{"$f":"IF(AS98=\"\",\"\",VLOOKUP(AS98,condition[],2,FALSE))","v":""},null,null,{"$f":"IF(AV98=\"\",\"\",VLOOKUP(AV98,Organisation[],2,FALSE))","v":""}]
["null",null,null,null,{"$f":"IF(D99=\"\",\"\",VLOOKUP(D99,light_make[],2,FALSE))","v":""},null,{"$f":"IF(F99=\"\",\"\",VLOOKUP(F99,light_model[],2,FALSE))","v":""},null,{"$f":"IF(H99=\"\",\"\",VLOOKUP(H99,supply_point[],2,FALSE))","v":""},null,{"$f":"IF(J99=\"\",\"\",VLOOKUP(J99,gear_make[],2,FALSE))","v":""},null,{"$f":"IF(L99=\"\",\"\",VLOOKUP(L99,gear_model[],2,FALSE))","v":""},null,{"$f":"IF(N99=\"\",\"\",VLOOKUP(N99,lamp_make[],2,FALSE))","v":""},null,{"$f":"IF(P99=\"\",\"\",VLOOKUP(P99,lamp_model[],2,FALSE))","v":""},null,null,null,null,{"$f":"IF(U99=\"\",\"\",VLOOKUP(U99,Light_install_reason[],2,FALSE))","v":""},null,{"$f":"IF(W99=\"\",\"\",VLOOKUP(W99,light_status[],2,FALSE))","v":""},null,null,{"$f":"IF(Z99=\"\",\"\",VLOOKUP(Z99,Gear_install_reason[],2,FALSE))","v":""},null,{"$f":"IF(AB99=\"\",\"\",VLOOKUP(AB99,gear_status[],2,FALSE))","v":""},null,null,{"$f":"IF(AE99=\"\",\"\",VLOOKUP(AE99,Lamp_install_reason[],2,FALSE))","v":""},null,{"$f":"IF(AG99=\"\",\"\",VLOOKUP(AG99,Asset_owner[],2,FALSE))","v":""},null,{"$f":"IF(AI99=\"\",\"\",VLOOKUP(AI99,risk_likelihood[],2,FALSE))","v":""},null,{"$f":"IF(AK99=\"\",\"\",VLOOKUP(AK99,risk_consequence[],2,FALSE))","v":""},null,{"$f":"IF(AM99=\"\",\"\",VLOOKUP(AM99,risk[],2,FALSE))","v":""},null,{"$f":"IF(AO99=\"\",\"\",VLOOKUP(AO99,rul_reset[],2,FALSE))","v":""},null,{"$f":"IF(AQ99=\"\",\"\",VLOOKUP(AQ99,use_default_rc[],2,FALSE))","v":""},null,{"$f":"IF(AS99=\"\",\"\",VLOOKUP(AS99,condition[],2,FALSE))","v":""},null,null,{"$f":"IF(AV99=\"\",\"\",VLOOKUP(AV99,Organisation[],2,FALSE))","v":""}]
["null",null,null,null,{"$f":"IF(D100=\"\",\"\",VLOOKUP(D100,light_make[],2,FALSE))","v":""},null,{"$f":"IF(F100=\"\",\"\",VLOOKUP(F100,light_model[],2,FALSE))","v":""},null,{"$f":"IF(H100=\"\",\"\",VLOOKUP(H100,supply_point[],2,FALSE))","v":""},null,{"$f":"IF(J100=\"\",\"\",VLOOKUP(J100,gear_make[],2,FALSE))","v":""},null,{"$f":"IF(L100=\"\",\"\",VLOOKUP(L100,gear_model[],2,FALSE))","v":""},null,{"$f":"IF(N100=\"\",\"\",VLOOKUP(N100,lamp_make[],2,FALSE))","v":""},null,{"$f":"IF(P100=\"\",\"\",VLOOKUP(P100,lamp_model[],2,FALSE))","v":""},null,null,null,null,{"$f":"IF(U100=\"\",\"\",VLOOKUP(U100,Light_install_reason[],2,FALSE))","v":""},null,{"$f":"IF(W100=\"\",\"\",VLOOKUP(W100,light_status[],2,FALSE))","v":""},null,null,{"$f":"IF(Z100=\"\",\"\",VLOOKUP(Z100,Gear_install_reason[],2,FALSE))","v":""},null,{"$f":"IF(AB100=\"\",\"\",VLOOKUP(AB100,gear_status[],2,FALSE))","v":""},null,null,{"$f":"IF(AE100=\"\",\"\",VLOOKUP(AE100,Lamp_install_reason[],2,FALSE))","v":""},null,{"$f":"IF(AG100=\"\",\"\",VLOOKUP(AG100,Asset_owner[],2,FALSE))","v":""},null,{"$f":"IF(AI100=\"\",\"\",VLOOKUP(AI100,risk_likelihood[],2,FALSE))","v":""},null,{"$f":"IF(AK100=\"\",\"\",VLOOKUP(AK100,risk_consequence[],2,FALSE))","v":""},null,{"$f":"IF(AM100=\"\",\"\",VLOOKUP(AM100,risk[],2,FALSE))","v":""},null,{"$f":"IF(AO100=\"\",\"\",VLOOKUP(AO100,rul_reset[],2,FALSE))","v":""},null,{"$f":"IF(AQ100=\"\",\"\",VLOOKUP(AQ100,use_default_rc[],2,FALSE))","v":""},null,{"$f":"IF(AS100=\"\",\"\",VLOOKUP(AS100,condition[],2,FALSE))","v":""},null,null,{"$f":"IF(AV100=\"\",\"\",VLOOKUP(AV100,Organisation[],2,FALSE))","v":""}]

{"sheet":"Lookups","index":1,"n_rows":857,"n_cols":62,"rows_kept":857,"cut":false,"hidden":false,"merged":[]}
["light_make.description","light_make.code",null,"light_model.description","light_model.code",null,"supply_point.description","supply_point.code",null,"ICP Number","ICP Group",null,"gear_make.description","gear_make.code",null,"gear_model.description","gear_model.code",null,"lamp_make.description","lamp_make.code",null,"lamp_model.description","lamp_model.code",null,"Light install reason.description","Light install reason.code",null,"light_status.description","light_status.code",null,"Gear install reason.description","Gear install reason.code",null,"gear_status.description","gear_status.code",null,"Lamp install reason.description","Lamp install reason.code",null,"Asset owner.description","Asset owner.code",null,"condition.description","condition.code",null,"Organisation.description","Organisation.code",null,"risk_likelihood.description","risk_likelihood.code",null,"risk_consequence.description","risk_consequence.code",null,"risk.description","risk.code",null,"rul_reset.code","Column1.code",null,"use_default_rc.description","use_default_rc.code"]
["AEC","AEC",null,"A2 LED","A2",null,"Montrose Box","MB",null,"0000806850WA-C3E",1,null,"AEC","AEC",null,"1000w Metal Halide","100H",null,"AEC","AEC",null,"LED A2 LED","A2",null,"Removed","99",null,"New","N",null,"Removed","99",null,"New","N",null,"Removed","99",null,"Local Authority","LA",null,"Excellent","1",null,"3M","3M",null,"Rare","1",null,"Insignificant","1",null,"Very Low","1",null,"Not Reset","N",null,"Default","D"]
["Corysal","COR",null,"ITALO 1 - 7SS","IT17",null,"Overhead","OH",null,"0000806950WA-53A",2,null,"ARC","ARC",null,"100w Metal Halide","10MH",null,"Betacom","BETA",null,"LED COMPASS 1","COM1",null,"Accident Damage","AD",null,"Reconditioned","R",null,"Accident Damage","AD",null,"Reconditioned","R",null,"Accident Damage","AD",null,"NZTA","NZ",null,"Good","2",null,"Automobile Association","AA",null,"Unlikely","2",null,"Minor","2",null,"Low","2",null,"Reset to Zero","R",null,"User","U"]
["Cree","CREE",null,"ITALO 1-Peds Cross","IT1C",null,"Solar","SO",null,"0000808803WA-036",3,null,"Betacom","BT",null,"100w HPS Electronic Ballast","10SB",null,"Cree","CREE",null,"LED COMPASS 2","COM2",null,"Aged - bulb blown","AG",null,null,null,null,"Aged - bulb blown","AG",null,"Not Applicable","X",null,"Aged - bulb blown","AG",null,"Power Board","PB",null,"Average","3",null,"Auckland Council","ACC",null,"Possible","3",null,"Moderate","3",null,"Medium","3"]
["DLEDS","DLED",null,"ITALO 1 - STA 1","IT1S",null,"Underground","UG",null,"0000028039WE-FC3",4,null,"Corysal","COR",null,"110w High Pressure Sodium","110S",null,"DLEDS","DLED",null," ITALO 1 - 7SS","IT17",null,"Block Change","BC",null,null,null,null,"Block Change","BC",null,null,null,null,"Block Change","BC",null,null,null,null,"Poor","4",null,"Alarm Centre Installation Ltd","ACI",null,"Likely","4",null,"Major","4",null,"High","4"]
["ETI Solid State Lighting (Zuha","ETI",null,"ITALO 1- Veh","IT1V",null,null,null,null,"0000028082WE-3A5",5,null,"GEC","GEC",null,"110w Metal Halide","11MH",null,"DW Windsor","DWW",null,"ITALO 1-Peds Cross","IT1C",null,"Bulk Lamp Replacement","BL",null,null,null,null,"Bulk Lamp Replacement","BL",null,null,null,null,"Bulk Lamp Replacement","BL",null,null,null,null,"Very poor","5",null,"Agfirst","AGF",null,"Almost Certain","5",null,"Extreme","5",null,"Extreme","5"]
["GEC","GEC",null,"ITALO 2-Peds Cross","IT2C",null,null,null,null,"0000028101WE-32B",6,null,"Gough","GO",null,"120w Mercury Vapour","120M",null,"ETI Solid State Lighting (Zuhai)","ETI",null,"ITALO 1 - STA 1","IT1S",null,"Corrosion","CO",null,null,null,null,"Corrosion","CO",null,null,null,null,"Corrosion","CO",null,null,null,null,null,null,null,"Abley Ltd","AL",null,"Unknown","U",null,"Unknown","U",null,"Unknown","U"]
["Gerard","GERD",null,"ITALO 2-Veh","IT2V",null,null,null,null,"0000026695WE-A04",7,null,"Kendelier","KE",null,"120w High Pressure Sodium","120S",null,"EYE","EYE",null,"ITALO 1-- Veh","IT1V",null,"Damaged","D",null,null,null,null,"Damaged","D",null,null,null,null,"Damaged","D",null,null,null,null,null,null,null,"Auckland Motorway Alliance","AMA"]
["Gough (Betacom)","GO",null,"ITALO 3","IT3V",null,null,null,null,"0000028269WEDCC",8,null,"No Gear","NA",null,"125w Low Pressure Sodium (SOX)","125L",null,"Felicity Smart Infrastructure","FELI",null,"ITALO 2-Peds Cross","IT2C",null,"Deliberate damage","DM",null,null,null,null,"Deliberate damage","DM",null,null,null,null,"Deliberate damage","DM",null,null,null,null,null,null,null,"Asset Management Engineers Ltd","AME"]
["iGuzzini","IGUZ",null,"KAOS1","K1",null,null,null,null,"0007285236WA-F07",9,null,"Phillips","PH",null,"125w Mercury Vapour","125M",null,"GEC","GEC",null,"ITALO 2-Veh","IT2V",null,"Fault","F",null,null,null,null,"Fault","F",null,null,null,null,"Fault","F",null,null,null,null,null,null,null,"Asset Management Technicians Ltd","AMT"]
["KIM Lighting","KIM",null,"KAOS2","K2",null,null,null,null,"0000028268WE-189",10,null,"Rudd","RU",null,"125w High Pressure Sodium","125S",null,"Gerard","GERD",null,"ITALO 3","IT3",null,"Lightning","LN",null,null,null,null,"Lightning","LN",null,null,null,null,"Lightning","LN",null,null,null,null,null,null,null,"Armitage Systems","ARM"]
["Kendelier Lighting","KL",null,"LED-in (OC) 4.5","LO45",null,null,null,null,"0000028271WE-575",11,null,"Schreder","SCH",null,"135w Low Pressure Sodium (SOX)","135L",null,"GOUGH","GO",null,"LED-in (OC) 4.5","LO45",null,"Minor safety project","MS",null,null,null,null,"Minor safety project","MS",null,null,null,null,"Minor safety project","MS",null,null,null,null,null,null,null,"Aspect Solutions Ltd","ASL"]
["KTL","KTL",null,"LED-in (OC) 4.7","LO47",null,null,null,null,"0000026694WE-641",12,null,"Sylvania","SYLV",null,"140w Low Pressure Sodium (SOX)","140L",null,"Holophane","HOLO",null,"LED-in (OC) 4.7","LO47",null,"New Subdivision","NS",null,null,null,null,"New Subdivision","NS",null,null,null,null,"New Subdivision","NS",null,null,null,null,null,null,null,"Auckland System Management","ASM"]
["LED Roadway Lighting","LRL",null,"LED-in (ST) 4.5","LS45",null,null,null,null,"0000958090TU-283",13,null,"Thorn","TH",null,"1500w Metal Halide","150H",null,"HPS","HPS",null,"LED-in (ST) 4.5","LS45",null,"Removed","RM",null,null,null,null,"Removed","RM",null,null,null,null,"Removed","RM",null,null,null,null,null,null,null,"Auckland Transport","AT2"]
["OrangeTek","OTEK",null,"LED-in (ST) 4.7","LS47",null,null,null,null,"0007705235WA-131",14,null,null,null,null,"150w Low Pressure Sodium (SOX)","150L",null,"iGuzzini","IGUZ",null,"LED-in (ST) 4.7","LS47",null,"Safety Issues","SF",null,null,null,null,"Safety Issues","SF",null,null,null,null,"Safety Issues","SF",null,null,null,null,null,null,null,"Aspect Technology and Equipment Ltd","ATE"]
["Panhost Ltd","PANH",null,"I-Tron 1","TON1",null,null,null,null,"1099568783CNF46",15,null,null,null,null,"150w Metal Halide","150M",null,"KIM Lighting","KIM",null,"MOD 2.0 PRO","MO2P",null,"Upgrade","UG",null,null,null,null,"Upgrade","UG",null,null,null,null,"Upgrade","UG",null,null,null,null,null,null,null,"ARRB Transport Research Ltd","ATR"]
["Philips","PHIL",null,"I-Tron Zero OC6","TON6",null,null,null,null,"1099568782CN303",16,null,null,null,null,"150w High Pressure Sodium","150S",null,"KTL","KTL",null,"MOD 2.0 URBAN","MO2U",null,"Vehicle Collision","VC",null,null,null,null,"Vehicle Collision","VC",null,null,null,null,"Vehicle Collision","VC",null,null,null,null,null,null,null,"Auckland University","AUN"]
["CU Phosco Lighting","PHOS",null,"I-Tron Zero OC8","TON8",null,null,null,null,"1099568780CN386",17,null,null,null,null,"150w Mercury Vapour","150V",null,"Ligman","LIGM",null,"LED I-Tron 1 OC8","TON1",null,"Vandalised","VD",null,null,null,null,"Vandalised","VD",null,null,null,null,"Vandalised","VD",null,null,null,null,null,null,null,"Broadspectrum (NZ) Ltd","B(L"]
["Ruud","RD",null,"Corysal","COR",null,null,null,null,"1099568779CNDC0",18,null,null,null,null,"150w HPS Electronic Ballast","15SB",null,"LED Roadway","LRL",null,"LED I-Tron Zero OC6","TON6",null,null,null,null,null,null,null,null,null,null,null,null,null,null,null,null,null,null,null,null,null,null,"Bri-Ken and Associates Ltd","BAA"]
["Schreder","SCH",null,"LEDway XIL10","LED1",null,null,null,null,"1099568778CN185",19,null,null,null,null,"160w Low Pressure Sodium (SOX)","160L",null,"Neri S.P.A.","NERI",null,"LED I-Tron Zero OC8","TON8",null,null,null,null,null,null,null,null,null,null,null,null,null,null,null,null,null,null,null,null,null,null,"Bartley Consultants Ltd","BAR"]
["Sylvania","SYLV",null,"LEDway XIL02","LED2",null,null,null,null,"1099568777CNE5B",20,null,null,null,null,"160w Mercury Vapour","160M",null,"NVC Lighting New Zealand Ltd","NVC",null,"GL520","GL5",null,null,null,null,null,null,null,null,null,null,null,null,null,null,null,null,null,null,null,null,null,null,"Bloxam Burnett & Olliver Ltd","BB&"]
["Le Tehnika","TEHN",null,"LEDway XIL04","LED4",null,null,null,null,"1099568781CNFC3",21,null,null,null,null,"175w Mercury Vapour","175M",null,"OSRAM","OSRA",null,"LEDway XIL10","LED1",null,null,null,null,null,null,null,null,null,null,null,null,null,null,null,null,null,null,null,null,null,null,"Beca Infrastructure","BCF"]
["Thorn","THN",null,"LEDway XIL07","LED7",null,null,null,null,"1099568883CN049",22,null,null,null,null,"175w Metal Halide","17MH",null,"OrangeTek","OTEK",null,"LEDway XIL02","LED2",null,null,null,null,null,null,null,null,null,null,null,null,null,null,null,null,null,null,null,null,null,null,"Buller District Council","BDC"]
["VC","VC",null,"LEDway XSL0204D-4D","LEDD",null,null,null,null,"0000272879WE-887",23,null,null,null,null,"180w Low Pressure Sodium (SOX)","180L",null,"Panhost Ltd","PANH",null,"LEDway XIL04","LED4",null,null,null,null,null,null,null,null,null,null,null,null,null,null,null,null,null,null,null,null,null,null,"Blacktop","BLA"]
["Vizulo","VIZU",null,"EDGE Round","RND",null,null,null,null,"1000522082PC25E",24,null,null,null,null,"18w Low Pressure Sodium (SOX)","18L",null,"Philips","PHIL",null,"LEDway XIL07","LED7",null,null,null,null,null,null,null,null,null,null,null,null,null,null,null,null,null,null,null,null,null,null,"Beca Ltd.","BLT"]
["WE-EF","WE",null,"EDGE Square","SQR",null,null,null,null,"1000521964PC282",25,null,null,null,null,"2000w Metal Halide","200H",null,"CU Phosco Lighting","PHOS",null,"LEDway XSL0204D-4D","LEDD",null,null,null,null,null,null,null,null,null,null,null,null,null,null,null,null,null,null,null,null,null,null,"Civil Assist Ltd","CAL"]
["Hangzhou Technology Co. Ltd","ZGSM",null,"(P1) XSP1 T2 Med 52","XSP1",null,null,null,null,"0000016431WE-83A",26,null,null,null,null,"250w Metal Halide","250M",null,"Ruud","RUUD",null,"LED EDGE Round","RND",null,null,null,null,null,null,null,null,null,null,null,null,null,null,null,null,null,null,null,null,null,null,"Christchurch City Council","CCC"]
[null,null,null,"(P2) XSP2 T2 Med 102","XSP2",null,null,null,null,"0000016433WE-8BF",27,null,null,null,null,"250w High Pressure Sodium","250S",null,"Schreder","SCH",null,"LED EDGE Square","SQR",null,null,null,null,null,null,null,null,null,null,null,null,null,null,null,null,null,null,null,null,null,null,"City Care Ltd","CCL"]
[null,null,null,"XSP1 3M","XSP3",null,null,null,null,"0000016435WE-930",28,null,null,null,null,"250w Mercury Vapour","250V",null,"Signify","SIGN",null,"XSP1 HO Series D","XP1H",null,null,null,null,null,null,null,null,null,null,null,null,null,null,null,null,null,null,null,null,null,null,"Currie Electrical Ltd.","CEL"]
[null,null,null,"Stratos N 6M","STRA",null,null,null,null,"0000016434WE-575",29,null,null,null,null,"26w Low Pressure Sodium (SOX)","26L",null,"Simon Electric Co Ltd","SIM",null,"LED XSP2 Series C","XP2C",null,null,null,null,null,null,null,null,null,null,null,null,null,null,null,null,null,null,null,null,null,null,"Company-X Ltd.","CL"]
[null,null,null,"Tasman- Peds","TASP",null,null,null,null,"0000016432WE-4FA",30,null,null,null,null,"310w Low Pressure Sodium (SOX)","310L",null,"Sylvania","SYLV",null,"XSP2 HO Series D","XP2H",null,null,null,null,null,null,null,null,null,null,null,null,null,null,null,null,null,null,null,null,null,null,"Critchlow Limited","CL2"]
[null,null,null,"Tasman- Veh","TASV",null,null,null,null,"0000021096WE-4A2",31,null,null,null,null,"35w Low Pressure Sodium (SOX)","35L",null,"Le Tehnika","TEHN",null,"LED XSP1 C Series","XSP1",null,null,null,null,null,null,null,null,null,null,null,null,null,null,null,null,null,null,null,null,null,null,"Coastline Markers Ltd","CML"]
[null,null,null,"Floodlight","FLDL",null,null,null,null,"0000021094WE-427",32,null,null,null,null,"35w Metal Halide","35MH",null,"THORN","TH",null,"LED XSP2","XSP2",null,null,null,null,null,null,null,null,null,null,null,null,null,null,null,null,null,null,null,null,null,null,"CoreLogic NZ Ltd.","CNL"]
[null,null,null,"Himast","HM",null,null,null,null,"0000021097WE-8E7",33,null,null,null,null,"35w High Pressure Sodium","35S",null,"Vizulo","VIZU",null,"LED XSP1 3M","XSP3",null,null,null,null,null,null,null,null,null,null,null,null,null,null,null,null,null,null,null,null,null,null,"Central Otago District Council","COD"]
[null,null,null,"Optimum","OM",null,null,null,null,"0000021095WE-862",34,null,null,null,null,"3745w Metal Halide","374H",null,"Vulkan","VULK",null,"LED Stratos N 6M","STRA",null,null,null,null,null,null,null,null,null,null,null,null,null,null,null,null,null,null,null,null,null,null,"Other Contractor","CON"]
[null,null,null,"Optispan","OP",null,null,null,null,"0000021399WE-87F",35,null,null,null,null,"400w Mercury Vapour","400M",null,"WE-EF","WE",null,"Kirium Pro 2","DWWK",null,null,null,null,null,null,null,null,null,null,null,null,null,null,null,null,null,null,null,null,null,null,"CSL Traffic","CSL"]
[null,null,null,"Optima (intermediate road)","OPTA",null,null,null,null,"0000021398WE-43A",36,null,null,null,null,"400w High Pressure Sodium","400S",null,"Windsor Urban","WINU",null,"Kirium Midi","KMID",null,null,null,null,null,null,null,null,null,null,null,null,null,null,null,null,null,null,null,null,null,null,"Connell Wagner Ltd","CWL"]
[null,null,null,"Optimum (minor road)","OPTM",null,null,null,null,"0000021478WE-182",37,null,null,null,null,"400w Metal Halide","40MH",null,"Hangzhou Technology Co. Ltd","ZGSM",null,"LED Tasman- Peds","TASP",null,null,null,null,null,null,null,null,null,null,null,null,null,null,null,null,null,null,null,null,null,null,"Dunedin City Council","DCC"]
[null,null,null,"Optispan (main road)","OPTS",null,null,null,null,"0000021479WE-DC7",38,null,null,null,null,"500w Metal Halide","500H",null,null,null,null,"LED Tasman- Veh","TASV",null,null,null,null,null,null,null,null,null,null,null,null,null,null,null,null,null,null,null,null,null,null,"D & L Crowe Ltd","DLC"]
[null,null,null,"SastaLED - Size 1 SL99234 (Small)","SAS1",null,null,null,null,"0000021481WE-FC4",39,null,null,null,null,"500w Mercury Vapour","500M",null,null,null,null,"NHT660 HPS SONT/T",660,null,null,null,null,null,null,null,null,null,null,null,null,null,null,null,null,null,null,null,null,null,null,"Spiire NZ Ltd","DWK"]
[null,null,null,"SastaLED - Size 2 SL99234 (Large)","SAS2",null,null,null,null,"0000021619WE-830",40,null,null,null,null,"50w Mercury Vapour","50M",null,null,null,null,"NHT960 HPS SONT/T",960,null,null,null,null,null,null,null,null,null,null,null,null,null,null,null,null,null,null,null,null,null,null,"Excell Corporation","ECL"]
[null,null,null,"StreetLED Aero TMC1 (aeroscreen only)","TMC1",null,null,null,null,"0000021620WE-199",41,null,null,null,null,"50w Metal Halide","50MH",null,null,null,null,"LED GYRO","GYRO",null,null,null,null,null,null,null,null,null,null,null,null,null,null,null,null,null,null,null,null,null,null,"Ferguson Ind","FGI"]
[null,null,null,"StreetLED Aero TMC2 (aeroscreen only)","TMC2",null,null,null,null,"0000021754WE-CCA",42,null,null,null,null,"50w High Pressure Sodium","50S",null,null,null,null,"RAZO-M","RAZM",null,null,null,null,null,null,null,null,null,null,null,null,null,null,null,null,null,null,null,null,null,null,"Fulton Hogan (NZ) Ltd.","FUL"]
[null,null,null,"Diadem","DM",null,null,null,null,"0000021480WE-381",43,null,null,null,null,"50w HPS Electronic Ballast","50SB",null,null,null,null,"RAZO-S","RAZS",null,null,null,null,null,null,null,null,null,null,null,null,null,null,null,null,null,null,null,null,null,null,"Gisborne District Council","GDC"]
[null,null,null,"Goughlite EC","EC",null,null,null,null,"Not used now",44,null,null,null,null,"55w Low Pressure Sodium (SOX)","55L",null,null,null,null,"Belisha Beacon 100W","BB",null,null,null,null,null,null,null,null,null,null,null,null,null,null,null,null,null,null,null,null,null,null,"Geosolve Ltd","GEO"]
[null,null,null,"Goughlite EC (aeroscreen)","ECA",null,null,null,null,"0000016896WE-1E3",45,null,null,null,null,"60w LED Italo 2","60I2",null,null,null,null,"Fluorescent compact PL11W","FC11",null,null,null,null,null,null,null,null,null,null,null,null,null,null,null,null,null,null,null,null,null,null,"GHD Ltd.","GHD"]
[null,null,null,"Goughlite 500","G500",null,null,null,null,"0000021659WE-A95",46,null,null,null,null,"60w Low Pressure Sodium (SOX)","60L",null,null,null,null,"Fluorescent 2 x 20W","FT20",null,null,null,null,null,null,null,null,null,null,null,null,null,null,null,null,null,null,null,null,null,null,"Hamilton City Council","HCC"]
[null,null,null,"GL520","G520",null,null,null,null,"0000022579WE-623",47,null,null,null,null,"60w High Pressure Sodium","60S",null,null,null,null,"Fluorescent 2 x 30W","FT30",null,null,null,null,null,null,null,null,null,null,null,null,null,null,null,null,null,null,null,null,null,null,"Hauraki District Council","HDC"]
[null,null,null,"Goughlite 600","G600",null,null,null,null,"0009784230CN-887",48,null,null,null,null,"700w Mercury Vapour","700M",null,null,null,null,"Halogen 400W","H400",null,null,null,null,null,null,null,null,null,null,null,null,null,null,null,null,null,null,null,null,null,null,"HEB Construction Ltd","HEB"]
[null,null,null,"Goughlite 630","G630",null,null,null,null,"0009801510CN-CAF",49,null,null,null,null,"70w Metal Halide","70MH",null,null,null,null,"Halogen 50W","H50",null,null,null,null,null,null,null,null,null,null,null,null,null,null,null,null,null,null,null,null,null,null,"Higgins Contractors Ltd.","HIG"]
[null,null,null,"Goughlite 700","G700",null,null,null,null,"0099550237CN-998",50,null,null,null,null,"70w High Pressure Sodium","70S",null,null,null,null,"Halogen 500W","H500",null,null,null,null,null,null,null,null,null,null,null,null,null,null,null,null,null,null,null,null,null,null,"HMI Technologies","HMI"]
[null,null,null,"GL500","GL5",null,null,null,null,"0099550314CN-109",51,null,null,null,null,"70w HPS Electronic Ballast","70SB",null,null,null,null,"Incandescent 100W","I100",null,null,null,null,null,null,null,null,null,null,null,null,null,null,null,null,null,null,null,null,null,null,"HERE New Zealand Ltd","HNZ"]
[null,null,null,"GL600","GL6",null,null,null,null,"0099550315CN-D4C",52,null,null,null,null,"75w Metal Halide","75MH",null,null,null,null,"Incandescent 150W","I150",null,null,null,null,null,null,null,null,null,null,null,null,null,null,null,null,null,null,null,null,null,null,"Horizon Services Ltd","HSL"]
[null,null,null,"GL700","GL7",null,null,null,null,"0099550316CN-18C",53,null,null,null,null,"80w Mercury Vapour","80M",null,null,null,null,"Incandescent 60W","I60",null,null,null,null,null,null,null,null,null,null,null,null,null,null,null,null,null,null,null,null,null,null,"HTS Group","HTS"]
[null,null,null,"GLEC","GLEC",null,null,null,null,"0099550547CN-3C7",54,null,null,null,null,"80w High Pressure Sodium","80S",null,null,null,null,"Incandescent 75W","I75",null,null,null,null,null,null,null,null,null,null,null,null,null,null,null,null,null,null,null,null,null,null,"Inframix Construction Ltd","IMX"]
[null,null,null,"Heron (twin fluorescent)","HER",null,null,null,null,"0099550548CN-C19",55,null,null,null,null,"90w Low Pressure Sodium (SOX)","90L",null,null,null,null,"Mercury vapour 125W","M125",null,null,null,null,null,null,null,null,null,null,null,null,null,null,null,null,null,null,null,null,null,null,"Inzone","INZ"]
[null,null,null,"Kowhai (90W SOX Lamp)","K100",null,null,null,null,"0099550629CN-CAF",56,null,null,null,null,"Compact Fluorescent 26w","CF26",null,null,null,null,"Mercury vapour 250W","M250",null,null,null,null,null,null,null,null,null,null,null,null,null,null,null,null,null,null,null,null,null,null,"Isaac Construction","ISC"]
[null,null,null,"Kowhai (135W SOX Lamp)","K200",null,null,null,null,"0099550630CN-853",57,null,null,null,null,"Compact Fluorescent 32w","CF32",null,null,null,null,"Mercury vapour 400W","M400",null,null,null,null,null,null,null,null,null,null,null,null,null,null,null,null,null,null,null,null,null,null,"Island Asphalts","ISL"]
[null,null,null,"Kowai","KO",null,null,null,null,"0099553808CN-954",58,null,null,null,null,"Compact Fluorescent 42w","CF42",null,null,null,null,"Mercury vapour 50W","M50",null,null,null,null,null,null,null,null,null,null,null,null,null,null,null,null,null,null,null,null,null,null,"ITS","ITS"]
[null,null,null,"Pedestrian GL700","PGL7",null,null,null,null,"0099553884CN-F00",59,null,null,null,null,"Compact Fluorescent 57w","CF57",null,null,null,null,"Mercury vapour 80W","M80",null,null,null,null,null,null,null,null,null,null,null,null,null,null,null,null,null,null,null,null,null,null,"Jacobs New Zealand Ltd","JAC"]
[null,null,null,"Pole Top Light","PTL",null,null,null,null,"0099553885CN-345",60,null,null,null,null,"Fluorescent 14w","F14",null,null,null,null,"Sodium vapour SON 100W","S100",null,null,null,null,null,null,null,null,null,null,null,null,null,null,null,null,null,null,null,null,null,null,"JCW Consultant","JC"]
[null,null,null,"Rama / Radiata","RR",null,null,null,null,"1099565058CN-9F2",61,null,null,null,null,"Fluorescent 176w","F176",null,null,null,null,"Sodium vapour SON 100W,tubular","S10T",null,null,null,null,null,null,null,null,null,null,null,null,null,null,null,null,null,null,null,null,null,null,"JCL Asphalt subcontractor","JCL"]
[null,null,null,"LED Woody Street","WOOD",null,null,null,null,"1099564912CN-16F",62,null,null,null,null,"Fluorescent 20w","F20",null,null,null,null,"Sodium vapour SON 150W","S150",null,null,null,null,null,null,null,null,null,null,null,null,null,null,null,null,null,null,null,null,null,null,"JJ Walters","JJW"]
[null,null,null,"Wow Large (807 x 505)","WOWL",null,null,null,null,"1099564911CN-DAF",63,null,null,null,null,"Fluorescent 236w","F236",null,null,null,null,"Sodium vapour SON 150W,tubular","S15T",null,null,null,null,null,null,null,null,null,null,null,null,null,null,null,null,null,null,null,null,null,null,"Johnstone & Masters Ltd","JM"]
[null,null,null,"Wow Mini (620 x 307)","WOWM",null,null,null,null,"1099564910CN-1EA",64,null,null,null,null,"Fluorescent 25w","F25",null,null,null,null,"Sodium vapour SON 250W","S250",null,null,null,null,null,null,null,null,null,null,null,null,null,null,null,null,null,null,null,null,null,null,"NZTA (JTOC)","JTO"]
[null,null,null,"Wow Small (758 x 415)","WOWS",null,null,null,null,"1099564909CN-516",65,null,null,null,null,"Fluorescent 32w","F32",null,null,null,null,"Sodium vapour SON 250W,tubular","S25T",null,null,null,null,null,null,null,null,null,null,null,null,null,null,null,null,null,null,null,null,null,null,"Juno Services Ltd","JUN"]
[null,null,null,"Warp 9 LED","WARP",null,null,null,null,"0000550722WE-ED2",66,null,null,null,null,"Fluorescent 36w","F36",null,null,null,null,"Sodium vapour SON 400W","S400",null,null,null,null,null,null,null,null,null,null,null,null,null,null,null,null,null,null,null,null,null,null,"Kapiti Coast District Council","KCD"]
[null,null,null,"Architectural / decorative","ADEC",null,null,null,null,"0000012550WE-40B",67,null,null,null,null,"Fluorescent 40w","F40",null,null,null,null,"Sodium vapour SON 400W,tubular","S40T",null,null,null,null,null,null,null,null,null,null,null,null,null,null,null,null,null,null,null,null,null,null,"Kampung Consulting Ltd.","KCL"]
[null,null,null,"Belisha Beacon","BB",null,null,null,null,"0006102075WE-200",68,null,null,null,null,"Fluorescent 42w","F42",null,null,null,null,"Sodium vapour SON 50W","S50",null,null,null,null,null,null,null,null,null,null,null,null,null,null,null,null,null,null,null,null,null,null,"Kelcroft Engineering","KEL"]
[null,null,null,"Coronet Pedestrian Flood Light","CPF",null,null,null,null,"0000011095WE-94E",69,null,null,null,null,"Fluorescent 48w","F48",null,null,null,null,"Sodium vapour SON 50W,tubular","S50T",null,null,null,null,null,null,null,null,null,null,null,null,null,null,null,null,null,null,null,null,null,null,"Local Authority","LA"]
[null,null,null,"Pedestrian spot light","SL",null,null,null,null,"0000028269WE-DCC",70,null,null,null,null,"Fluorescent 58w","F58",null,null,null,null,"Sodium vapour SON 70W","S70",null,null,null,null,null,null,null,null,null,null,null,null,null,null,null,null,null,null,null,null,null,null,"Lonrix Ltd","LL"]
[null,null,null,"Shard-P B28-F","B28F",null,null,null,null,"1000520855PC-19B",71,null,null,null,null,"Fluorescent 65w","F65",null,null,null,null,"Sodium vapour SON 70W - E","S70E",null,null,null,null,null,null,null,null,null,null,null,null,null,null,null,null,null,null,null,null,null,null,"McKays Consultants","MCC"]
[null,null,null,"NXT-12S","NX12",null,null,null,null,"0007690300WA-60A",72,null,null,null,null,"Fluorescent 7w","F7",null,null,null,null,"Sodium vapour SON 70W - I","S70I",null,null,null,null,null,null,null,null,null,null,null,null,null,null,null,null,null,null,null,null,null,null,"Matamata-Piako District Council","MD2"]
[null,null,null,"NXT-24S - 4AH","NX24",null,null,null,null,"0000806950WA53A",73,null,null,null,null,"Fluorescent 80w","F80",null,null,null,null,"Sodium vapour SON 70W,tubular","S70T",null,null,null,null,null,null,null,null,null,null,null,null,null,null,null,null,null,null,null,null,null,null,"Manawatu District Council","MDC"]
[null,null,null,"NXT-36S","NX36",null,null,null,null,"0000808803WA036",74,null,null,null,null,"Typical for Fluorescent (2 x 20)","TF",null,null,null,null,"Sodium vapour SOX 135W","X135",null,null,null,null,null,null,null,null,null,null,null,null,null,null,null,null,null,null,null,null,null,null,"McKay Electrical Ltd","MEL"]
[null,null,null,"NXT-48M","NX48",null,null,null,null,"0000806850WAC3E",75,null,null,null,null,"Typical for Fluorescent (2 x 30)","TF30",null,null,null,null,"Sodium vapour SOX 90W","X90",null,null,null,null,null,null,null,null,null,null,null,null,null,null,null,null,null,null,null,null,null,null,"Aecom NZ Ltd","MER"]
[null,null,null,"NXT-60M","NX60",null,null,null,null,"0000400320WAD63",76,null,null,null,null,"1000w Metal Halide","100H",null,null,null,null,"SastaLED Size 1 (Small)","SAS1",null,null,null,null,null,null,null,null,null,null,null,null,null,null,null,null,null,null,null,null,null,null,"MetService","MET"]
[null,null,null,"NXT-72M","NX72",null,null,null,null,"0000400343WAE52",77,null,null,null,null,"100w Metal Halide","10MH",null,null,null,null,"SastaLED Size 2 (Large)","SAS2",null,null,null,null,null,null,null,null,null,null,null,null,null,null,null,null,null,null,null,null,null,null,"Marlborough NOC JV","MJV"]
[null,null,null,"Satellite SAT-24S","ST24",null,null,null,null,"0000400344WA399",78,null,null,null,null,"100w HPS Electronic Ballast","10SB",null,null,null,null,"StreetLED Aero TMC1 (aeroscreen only)","TMC1",null,null,null,null,null,null,null,null,null,null,null,null,null,null,null,null,null,null,null,null,null,null,"McKay Ltd.","ML"]
[null,null,null,"Satellite SAT-48S","ST48",null,null,null,null,"HDCR",79,null,null,null,null,"110w High Pressure Sodium","110S",null,null,null,null,"StreetLED Aero TMC2 (aeroscreen only)","TMC2",null,null,null,null,null,null,null,null,null,null,null,null,null,null,null,null,null,null,null,null,null,null,"Marlborough Roads","MR"]
[null,null,null,"Satellite SAT-72M","ST72",null,null,null,null,"HDCU",80,null,null,null,null,"110w Metal Halide","11MH",null,null,null,null,"Belisha Beacon 100W","BB",null,null,null,null,null,null,null,null,null,null,null,null,null,null,null,null,null,null,null,null,null,null,"MWH NZ Ltd.","MWH"]
[null,null,null,"Satellite SAT-96M","ST96",null,null,null,null,"MPDCR",81,null,null,null,null,"120w Mercury Vapour","120M",null,null,null,null,"Fluorescent compact PL11W","FC11",null,null,null,null,null,null,null,null,null,null,null,null,null,null,null,null,null,null,null,null,null,null,"Napier City Council","NCC"]
[null,null,null,"Arialed","ARIA",null,null,null,null,"MPDCU",82,null,null,null,null,"120w High Pressure Sodium","120S",null,null,null,null,"Fluorescent 2 x 20W","FT20",null,null,null,null,null,null,null,null,null,null,null,null,null,null,null,null,null,null,null,null,null,null,"NZ Transport Agency - Highway Programme","NTA"]
[null,null,null,"Terraled Mini MX1","MX1",null,null,null,null,"TCDCR",83,null,null,null,null,"125w Low Pressure Sodium (SOX)","125L",null,null,null,null,"Fluorescent 2 x 30W","FT30",null,null,null,null,null,null,null,null,null,null,null,null,null,null,null,null,null,null,null,null,null,null,"NZ Transport Agency - Funding","NTF"]
[null,null,null,"Ignis 1-Peds Cross","NG1C",null,null,null,null,"TCDCU",84,null,null,null,null,"125w Mercury Vapour","125M",null,null,null,null,"LED - GL520","G520",null,null,null,null,null,null,null,null,null,null,null,null,null,null,null,null,null,null,null,null,null,null,"North Power","NTH"]
[null,null,null,"Ignis 1 -Veh","NG1V",null,null,null,null,"EWMETERED",85,null,null,null,null,"135w Low Pressure Sodium (SOX)","135L",null,null,null,null,"Halogen 400W","H400",null,null,null,null,null,null,null,null,null,null,null,null,null,null,null,null,null,null,null,null,null,null,"Nutech Security","NUT"]
[null,null,null,"Ignis 2","NG2V",null,null,null,null,"1000023049BP3E6",86,null,null,null,null,"140w Low Pressure Sodium (SOX)","140L",null,null,null,null,"Halogen 50W","H50",null,null,null,null,null,null,null,null,null,null,null,null,null,null,null,null,null,null,null,null,null,null,"Odyssey Energy (2009) Ltd.","OE("]
[null,null,null,"Terraled Mini PX1","PX1",null,null,null,null,"1000020179BPFFA",87,null,null,null,null,"1500w Metal Halide","150H",null,null,null,null,"Halogen 500W","H500",null,null,null,null,null,null,null,null,null,null,null,null,null,null,null,null,null,null,null,null,null,null,"Opus International Consultants Ltd (NZ)","OI2"]
[null,null,null,"TransLEDer- Peds","TRN1",null,null,null,null,"1000023034BP9E0",88,null,null,null,null,"150w Low Pressure Sodium (SOX)","150L",null,null,null,null,"Incandescent 100W","I100",null,null,null,null,null,null,null,null,null,null,null,null,null,null,null,null,null,null,null,null,null,null,"Opus International Consultants Ltd.","OIC"]
[null,null,null,"TransLEDer-Veh","TRN2",null,null,null,null,"1000024610BP7D9",89,null,null,null,null,"150w Metal Halide","150M",null,null,null,null,"Incandescent 150W","I150",null,null,null,null,null,null,null,null,null,null,null,null,null,null,null,null,null,null,null,null,null,null,"Oldfields","OLD"]
[null,null,null,"Floodlight (at weighstations)","FLOO",null,null,null,null,"1000025587BP757",90,null,null,null,null,"150w High Pressure Sodium","150S",null,null,null,null,"Incandescent 60W","I60",null,null,null,null,null,null,null,null,null,null,null,null,null,null,null,null,null,null,null,null,null,null,"Porirua City Council","PCC"]
[null,null,null,"Roadstar GPLM","GPLM",null,null,null,null,"1000023037BP520",91,null,null,null,null,"150w Mercury Vapour","150V",null,null,null,null,"Incandescent 75W","I75",null,null,null,null,null,null,null,null,null,null,null,null,null,null,null,null,null,null,null,null,null,null,"Pinnacles Civil Group Ltd.","PCG"]
[null,null,null,"Roadstar GPLS","GPLS",null,null,null,null,"1000025420BPB86",92,null,null,null,null,"150w HPS Electronic Ballast","15SB",null,null,null,null,"Mercury vapour 125W","M125",null,null,null,null,null,null,null,null,null,null,null,null,null,null,null,null,null,null,null,null,null,null,"Pope Electrical Ltd","PE2"]
[null,null,null,"Stela+ (gen2)","STEL",null,null,null,null,"1000023035BP5A5",93,null,null,null,null,"160w Low Pressure Sodium (SOX)","160L",null,null,null,null,"Mercury vapour 250W","M250",null,null,null,null,null,null,null,null,null,null,null,null,null,null,null,null,null,null,null,null,null,null,"Pope Electrical Limited","PEL"]
[null,null,null,"Tango","TANG",null,null,null,null,"0000031366WE-F57",94,null,null,null,null,"160w Mercury Vapour","160M",null,null,null,null,"Mercury vapour 400W","M400",null,null,null,null,null,null,null,null,null,null,null,null,null,null,null,null,null,null,null,null,null,null,"Pavement Management Services","PMS"]
[null,null,null,"P862 (32 LED)","C862",null,null,null,null,"0000031529WE-42A",95,null,null,null,null,"175w Mercury Vapour","175M",null,null,null,null,"Mercury vapour 50W","M50",null,null,null,null,null,null,null,null,null,null,null,null,null,null,null,null,null,null,null,null,null,null,"Power Solutions Ltd","PSL"]
[null,null,null,"P863 (32 LED)","C863",null,null,null,null,"0000806955WA-875",96,null,null,null,null,"175w Metal Halide","17MH",null,null,null,null,"Mercury vapour 80W","M80",null,null,null,null,null,null,null,null,null,null,null,null,null,null,null,null,null,null,null,null,null,null,"Queenstown-Lakes District Council","QDC"]
[null,null,null,"P860","P860",null,null,null,null,"0001111170WM-D3F",97,null,null,null,null,"180w Low Pressure Sodium (SOX)","180L",null,null,null,null,"Sodium vapour SON 100W","S100",null,null,null,null,null,null,null,null,null,null,null,null,null,null,null,null,null,null,null,null,null,null,"Quality Roading and Services","QRS"]
[null,null,null,"P861","P861",null,null,null,null,"0001261171UN-363",98,null,null,null,null,"18w Low Pressure Sodium (SOX)","18L",null,null,null,null,"Sodium vapour SON 100W,tubular","S10T",null,null,null,null,null,null,null,null,null,null,null,null,null,null,null,null,null,null,null,null,null,null,"Read-only access for Tenderers","RAF"]
[null,null,null,"P863 (16 LED)","P863",null,null,null,null,"0001261173UN-3E6",99,null,null,null,null,"2000w Metal Halide","200H",null,null,null,null,"Sodium vapour SON 150W","S150",null,null,null,null,null,null,null,null,null,null,null,null,null,null,null,null,null,null,null,null,null,null,"Rangitikei District Council","RDC"]
[null,null,null,"P862 (32/64 LED)","V862",null,null,null,null,"0001261174UN-E2C",100,null,null,null,null,"250w Metal Halide","250M",null,null,null,null,"Sodium vapour SON 150W,tubular","S15T",null,null,null,null,null,null,null,null,null,null,null,null,null,null,null,null,null,null,null,null,null,null,"Roadex","RDX"]
[null,null,null,"P863 (16/32 LED)","V863",null,null,null,null,"0001261175UN-269",101,null,null,null,null,"250w High Pressure Sodium","250S",null,null,null,null,"Sodium vapour SON 250W","S250",null,null,null,null,null,null,null,null,null,null,null,null,null,null,null,null,null,null,null,null,null,null,"Rotorua Lakes Council","RLC"]
[null,null,null,"Floodlight","FLDL",null,null,null,null,"0003080119WM-3E4",102,null,null,null,null,"250w Mercury Vapour","250V",null,null,null,null,"Sodium vapour SON 250W,tubular","S25T",null,null,null,null,null,null,null,null,null,null,null,null,null,null,null,null,null,null,null,null,null,null,"Roading Logistics Ltd","RLL"]
[null,null,null,"Floodlight e.g. like at ICB","FLOA",null,null,null,null,"0003100525WM-04A",103,null,null,null,null,"26w Low Pressure Sodium (SOX)","26L",null,null,null,null,"Sodium vapour SON 400W","S400",null,null,null,null,null,null,null,null,null,null,null,null,null,null,null,null,null,null,null,null,null,null,"Rationale Ltd","RLT"]
[null,null,null,"Pedestrian spot light","SL",null,null,null,null,"1000523844PC-593",104,null,null,null,null,"310w Low Pressure Sodium (SOX)","310L",null,null,null,null,"Sodium vapour SON 400W,tubular","S40T",null,null,null,null,null,null,null,null,null,null,null,null,null,null,null,null,null,null,null,null,null,null,"Rotorua District Council","ROT"]
[null,null,null,"WAC415 150 underbridge","UB15",null,null,null,null,"1000550463PC-159",105,null,null,null,null,"35w Low Pressure Sodium (SOX)","35L",null,null,null,null,"Sodium vapour SON 50W","S50",null,null,null,null,null,null,null,null,null,null,null,null,null,null,null,null,null,null,null,null,null,null,"RAMM Software Limited","RSL"]
[null,null,null,"PR525 250 underbridge","UB25",null,null,null,null,"1000576230PC-F9A",106,null,null,null,null,"35w Metal Halide","35MH",null,null,null,null,"Sodium vapour SON 50W,tubular","S50T",null,null,null,null,null,null,null,null,null,null,null,null,null,null,null,null,null,null,null,null,null,null,"Road Signs & Traffic Control Equipment Limited","RTL"]
[null,null,null,"Ambar 150 Curved","AMB1",null,null,null,null,"1000580097PC-014",107,null,null,null,null,"35w High Pressure Sodium","35S",null,null,null,null,"Sodium vapour SON 70W","S70",null,null,null,null,null,null,null,null,null,null,null,null,null,null,null,null,null,null,null,null,null,null,"Russell Roads","RUS"]
[null,null,null,"Ambar 250 Curved","AMB2",null,null,null,null,"1099568780CN-386",108,null,null,null,null,"3745w Metal Halide","374H",null,null,null,null,"Sodium vapour SON 70W - E","S70E",null,null,null,null,null,null,null,null,null,null,null,null,null,null,null,null,null,null,null,null,null,null,"Salient Consultants","SAL"]
[null,null,null,"LED PIANO 1","PNO1",null,null,null,null,"1099568781CN-FC3",109,null,null,null,null,"400w Mercury Vapour","400M",null,null,null,null,"Sodium vapour SON 70W - I","S70I",null,null,null,null,null,null,null,null,null,null,null,null,null,null,null,null,null,null,null,null,null,null,"Sealcoat Central Ltd.","SCL"]
[null,null,null,"LED PIANO 2","PNO2",null,null,null,null,"1099568782CN-303",110,null,null,null,null,"400w Metal Halide","40MH",null,null,null,null,"Sodium vapour SON 70W,tubular","S70T",null,null,null,null,null,null,null,null,null,null,null,null,null,null,null,null,null,null,null,null,null,null,"Shaw's Consulting Services Ltd","SCS"]
[null,null,null,"TECEO 1","TCO1",null,null,null,null,"1099568783CN-F46",111,null,null,null,null,"500w Metal Halide","500H",null,null,null,null,"Sodium vapour SOX 135W","X135",null,null,null,null,null,null,null,null,null,null,null,null,null,null,null,null,null,null,null,null,null,null,"Southland District Council","SDC"]
[null,null,null,"TECEO 2","TCO2",null,null,null,null,"0001425638UNCE7",112,null,null,null,null,"500w Mercury Vapour","500M",null,null,null,null,"Sodium vapour SOX 90W","X90",null,null,null,null,null,null,null,null,null,null,null,null,null,null,null,null,null,null,null,null,null,null,"Signopsys Electronic Signs","SES"]
[null,null,null,"B2222",2222,null,null,null,null,"1000525039PCA58",113,null,null,null,null,"50w Mercury Vapour","50M",null,null,null,null,"S-Line","SLIN",null,null,null,null,null,null,null,null,null,null,null,null,null,null,null,null,null,null,null,null,null,null,"Sicon Ltd.","SL2"]
[null,null,null,"B2224",2224,null,null,null,null,"1000525040PC154",114,null,null,null,null,"50w Metal Halide","50MH",null,null,null,null,"150w High Pressure Sodium","150S",null,null,null,null,null,null,null,null,null,null,null,null,null,null,null,null,null,null,null,null,null,null,"Stantec New Zealand","SN2"]
[null,null,null,"B2229",2229,null,null,null,null,"1000525041PCD11",115,null,null,null,null,"50w High Pressure Sodium","50S",null,null,null,null,"250w High Pressure Sodium","250S",null,null,null,null,null,null,null,null,null,null,null,null,null,null,null,null,null,null,null,null,null,null,"Stantec New Zealand Ltd","SNZ"]
[null,null,null,"Architectural / decorative","ADEC",null,null,null,null,"1000525042PC1D1",116,null,null,null,null,"50w HPS Electronic Ballast","50SB",null,null,null,null,"400w High Pressure Sodium","400S",null,null,null,null,null,null,null,null,null,null,null,null,null,null,null,null,null,null,null,null,null,null,"SouthRoads Ltd.","SOU"]
[null,null,null,"B3000","B0",null,null,null,null,"1000524102PCBD0",117,null,null,null,null,"55w Low Pressure Sodium (SOX)","55L",null,null,null,null,"660w High Pressure Sodium","660S",null,null,null,null,null,null,null,null,null,null,null,null,null,null,null,null,null,null,null,null,null,null,"Safe Roads Alliance","SRA"]
[null,null,null,"B2227","B7",null,null,null,null,"1000545752PC626",118,null,null,null,null,"60w Low Pressure Sodium (SOX)","60L",null,null,null,null,"940w High Pressure Sodium",940,null,null,null,null,null,null,null,null,null,null,null,null,null,null,null,null,null,null,null,null,null,null,"Services South East (NZ) Ltd.","SS2"]
[null,null,null,"Briteline Floodlight","BFL",null,null,null,null,"1000527758PC5AF",119,null,null,null,null,"700w Mercury Vapour","700M",null,null,null,null,"150w Twinarc","T150",null,null,null,null,null,null,null,null,null,null,null,null,null,null,null,null,null,null,null,null,null,null,"Services South East Pty Ltd","SSE"]
[null,null,null,"Floodlight","FLDL",null,null,null,null,"1000564236PC5B4",120,null,null,null,null,"70w Metal Halide","70MH",null,null,null,null,"250w Twinarc","T250",null,null,null,null,null,null,null,null,null,null,null,null,null,null,null,null,null,null,null,null,null,null,"Tonkin & Taylor Ltd","T&T"]
[null,null,null,"Maxi urban","MU",null,null,null,null,"1000527759PC9EA",121,null,null,null,null,"70w High Pressure Sodium","70S",null,null,null,null,"400w Twinarc","T400",null,null,null,null,null,null,null,null,null,null,null,null,null,null,null,null,null,null,null,null,null,null,"Tasman Howey","TAS"]
[null,null,null,"Cobra","R47",null,null,null,null,"0000156159CK-71E",122,null,null,null,null,"70w HPS Electronic Ballast","70SB",null,null,null,null,"LED Woody Street","WOOD",null,null,null,null,null,null,null,null,null,null,null,null,null,null,null,null,null,null,null,null,null,null,"NZTA and WDM","TAW"]
[null,null,null,"Roadster","RD",null,null,null,null,"0020909000WR-49A",123,null,null,null,null,"75w Metal Halide","75MH",null,null,null,null,"LED Wow","WOW",null,null,null,null,null,null,null,null,null,null,null,null,null,null,null,null,null,null,null,null,null,null,"Tauranga City Council","TC2"]
[null,null,null,"Roadster Forward Throw","RDF",null,null,null,null,"0001418889UN-F17",124,null,null,null,null,"80w Mercury Vapour","80M",null,null,null,null,"Wow Large (807 x 505)","WOWL",null,null,null,null,null,null,null,null,null,null,null,null,null,null,null,null,null,null,null,null,null,null,"Taranaki Civil Construction","TCC"]
[null,null,null,"Pedestrian spot light","SL",null,null,null,null,"0001419160UN-355",125,null,null,null,null,"80w High Pressure Sodium","80S",null,null,null,null,"Wow Mini (620 x 307)","WOWM",null,null,null,null,null,null,null,null,null,null,null,null,null,null,null,null,null,null,null,null,null,null,"TC Nicholls","TCN"]
[null,null,null,"StreetLED","STL",null,null,null,null,"0110003395EL-566",126,null,null,null,null,"90w Low Pressure Sodium (SOX)","90L",null,null,null,null,"Wow Small (758 x 415)","WOWS",null,null,null,null,null,null,null,null,null,null,null,null,null,null,null,null,null,null,null,null,null,null,"Traffic Control Systems","TCS"]
[null,null,null,"Urban","UR",null,null,null,null,"0666002555PC-35F",127,null,null,null,null,"Compact Fluorescent 26w","CF26",null,null,null,null,"Warp 9 LED","WARP",null,null,null,null,null,null,null,null,null,null,null,null,null,null,null,null,null,null,null,null,null,null,"Taupo District Council","TD2"]
[null,null,null,"Luxtella S12XPL-20AT","LX12",null,null,null,null,"1001102046UN-016",128,null,null,null,null,"Compact Fluorescent 32w","CF32",null,null,null,null,"LED Shard-P B28-F","B28F",null,null,null,null,null,null,null,null,null,null,null,null,null,null,null,null,null,null,null,null,null,null,"Tasman District Council","TDC"]
[null,null,null,"Beta 79","B79",null,null,null,null,"1001102047UN-C53",129,null,null,null,null,"Compact Fluorescent 42w","CF42",null,null,null,null,"Atlantic","ATL",null,null,null,null,null,null,null,null,null,null,null,null,null,null,null,null,null,null,null,null,null,null,"The Datastack Ltd","TDL"]
[null,null,null,"Floodlight (at weighstations)","FLOO",null,null,null,null,"1001102049UN-FC8",130,null,null,null,null,"Compact Fluorescent 57w","CF57",null,null,null,null,"LED NXT-12S","NX12",null,null,null,null,null,null,null,null,null,null,null,null,null,null,null,null,null,null,null,null,null,null,"Taupo East Traffic Services Contractor","TET"]
[null,null,null,"VC 450",450,null,null,null,null,"1001105788UN-F00",131,null,null,null,null,"Fluorescent 14w","F14",null,null,null,null,"LED NXT-24S - 4AH","NX24",null,null,null,null,null,null,null,null,null,null,null,null,null,null,null,null,null,null,null,null,null,null,"Broadspectrum (NZ) Ltd","TFD"]
[null,null,null,"Bollard","B",null,null,null,null,"1001117616UN-1D9",132,null,null,null,null,"Fluorescent 176w","F176",null,null,null,null,"LED NXT-36S","NX36",null,null,null,null,null,null,null,null,null,null,null,null,null,null,null,null,null,null,null,null,null,null,"Waka Kotahi NZ Transport Agency","TNZ"]
[null,null,null,"Mini Martin 12 LED","MARN",null,null,null,null,"1001140542UN-CCC",133,null,null,null,null,"Fluorescent 20w","F20",null,null,null,null,"LED NXT-48M","NX48",null,null,null,null,null,null,null,null,null,null,null,null,null,null,null,null,null,null,null,null,null,null,"Top Energy","TOP"]
[null,null,null,"PFL 540-SE","P540",null,null,null,null,"1001157492CK-076",134,null,null,null,null,"Fluorescent 236w","F236",null,null,null,null,"LED NXT-60M","NX60",null,null,null,null,null,null,null,null,null,null,null,null,null,null,null,null,null,null,null,null,null,null,"The Roading Company","TRC"]
[null,null,null,"WE-EF VFL530","V530",null,null,null,null,"0000156161CK-2F2",135,null,null,null,null,"Fluorescent 25w","F25",null,null,null,null,"LED NXT-72M","NX72",null,null,null,null,null,null,null,null,null,null,null,null,null,null,null,null,null,null,null,null,null,null,"Transfield Services (NZ) Ltd","TS("]
[null,null,null,"WE-EF VFL540","V540",null,null,null,null,"0000156162CK-E32",136,null,null,null,null,"Fluorescent 32w","F32",null,null,null,null,"LED NXT- C","NXTC",null,null,null,null,null,null,null,null,null,null,null,null,null,null,null,null,null,null,null,null,null,null,"Tonkin and Taylor Ltd","TT"]
[null,null,null,"CRUX PLUS [NB-SL-CRUX-P] Peds","PCRX",null,null,null,null,"0000156165CK-3F8",137,null,null,null,null,"Fluorescent 36w","F36",null,null,null,null,"LED NXT - M","NXTM",null,null,null,null,null,null,null,null,null,null,null,null,null,null,null,null,null,null,null,null,null,null,"Tyco Traffic and Transportation","TYC"]
[null,null,null,"CRUX PLUS [NB-SL-CRUX-P] Veh","VCRX",null,null,null,null,"0020903000WR-ADA",138,null,null,null,null,"Fluorescent 40w","F40",null,null,null,null,"LED NXT- S","NXTS",null,null,null,null,null,null,null,null,null,null,null,null,null,null,null,null,null,null,null,null,null,null,"Urban Connection Ltd","UCL"]
[null,null,null,null,null,null,null,null,null,"0110009937EL-9B6",140,null,null,null,null,"Fluorescent 42w","F42",null,null,null,null,"LED Satellite SAT-24S","ST24",null,null,null,null,null,null,null,null,null,null,null,null,null,null,null,null,null,null,null,null,null,null,"Unknown","UKN"]
[null,null,null,null,null,null,null,null,null,"0110009938EL-668",141,null,null,null,null,"Fluorescent 48w","F48",null,null,null,null,"LED Satellite SAT-48S","ST48",null,null,null,null,null,null,null,null,null,null,null,null,null,null,null,null,null,null,null,null,null,null,"University of Canterbury","UOC"]
[null,null,null,null,null,null,null,null,null,"0110009732EL-2F2",139,null,null,null,null,"Fluorescent 58w","F58",null,null,null,null,"LED Satellite SAT-72M","ST72",null,null,null,null,null,null,null,null,null,null,null,null,null,null,null,null,null,null,null,null,null,null,"Ventia NZ Operations Limited","VNO"]
[null,null,null,null,null,null,null,null,null,"0110009957EL-646",142,null,null,null,null,"Fluorescent 65w","F65",null,null,null,null,"LED Satellite SAT-96M","ST96",null,null,null,null,null,null,null,null,null,null,null,null,null,null,null,null,null,null,null,null,null,null,"Ventia Pty Ltd","VPL"]
[null,null,null,null,null,null,null,null,null,"0110000417EL-D4B",143,null,null,null,null,"Fluorescent 7w","F7",null,null,null,null,"Light Antares MNAN1L","LTAN",null,null,null,null,null,null,null,null,null,null,null,null,null,null,null,null,null,null,null,null,null,null,"Western Bay of Plenty District Council","WBO"]
[null,null,null,null,null,null,null,null,null,"0110001368EL-96A",144,null,null,null,null,"Fluorescent 80w","F80",null,null,null,null,"ISCO1","ISC1",null,null,null,null,null,null,null,null,null,null,null,null,null,null,null,null,null,null,null,null,null,null,"Wellington City Council","WCC"]
[null,null,null,null,null,null,null,null,null,"0110002241EL-18A",145,null,null,null,null,"Typical for Fluorescent (2 x 20)","TF",null,null,null,null,"ISCO2","ISC2",null,null,null,null,null,null,null,null,null,null,null,null,null,null,null,null,null,null,null,null,null,null,"Waimakariri District Council","WD2"]
[null,null,null,null,null,null,null,null,null,"0110003628EL-D8A",146,null,null,null,null,"Typical for Fluorescent (2 x 30)","TF30",null,null,null,null,"Tasman - L","TMAL",null,null,null,null,null,null,null,null,null,null,null,null,null,null,null,null,null,null,null,null,null,null,"Whakatane District Council","WD3"]
[null,null,null,null,null,null,null,null,null,"0110004920EL-4F1",147,null,null,null,null,"Typical for 13w","T13",null,null,null,null,"Tasman - S","TMAS",null,null,null,null,null,null,null,null,null,null,null,null,null,null,null,null,null,null,null,null,null,null,"Wairoa District Council","WD4"]
[null,null,null,null,null,null,null,null,null,"0110005546EL-722",148,null,null,null,null,"1000w Metal Halide","100H",null,null,null,null,"Tasman - LO","TMLO",null,null,null,null,null,null,null,null,null,null,null,null,null,null,null,null,null,null,null,null,null,null,"Waipa District Council","WD5"]
[null,null,null,null,null,null,null,null,null,"0110009912EL-9AC",149,null,null,null,null,"100w Metal Halide","10MH",null,null,null,null,"Tasman - SO","TMSO",null,null,null,null,null,null,null,null,null,null,null,null,null,null,null,null,null,null,null,null,null,null,"Waikato District Council","WD6"]
[null,null,null,null,null,null,null,null,null,"0110009933EL-8BC",150,null,null,null,null,"100w HPS Electronic Ballast","10SB",null,null,null,null,"100w High Pressure Sodium","100S",null,null,null,null,null,null,null,null,null,null,null,null,null,null,null,null,null,null,null,null,null,null,"Whangarei District Council","WDC"]
[null,null,null,null,null,null,null,null,null,"0110009935EL-933",151,null,null,null,null,"110w High Pressure Sodium","110S",null,null,null,null,"250w High Pressure Sodium","250S",null,null,null,null,null,null,null,null,null,null,null,null,null,null,null,null,null,null,null,null,null,null,"WDM","WDM"]
[null,null,null,null,null,null,null,null,null,"0110009936EL-5F3",152,null,null,null,null,"110w Metal Halide","11MH",null,null,null,null,"30w Sodium Vapour","30S",null,null,null,null,null,null,null,null,null,null,null,null,null,null,null,null,null,null,null,null,null,null,"WSP-Opus International Consultants Ltd","WIC"]
[null,null,null,null,null,null,null,null,null,"0110010157EL-20A",153,null,null,null,null,"120w Mercury Vapour","120M",null,null,null,null,"35w Low Pressure Sodium","35L",null,null,null,null,null,null,null,null,null,null,null,null,null,null,null,null,null,null,null,null,null,null,"Downer New Zealand Limited","WIL"]
[null,null,null,null,null,null,null,null,null,"0110010231EL-F76",154,null,null,null,null,"120w High Pressure Sodium","120S",null,null,null,null,"400w High Pressure Sodium","400S",null,null,null,null,null,null,null,null,null,null,null,null,null,null,null,null,null,null,null,null,null,null,"W J Ashton Service Ltd","WJA"]
[null,null,null,null,null,null,null,null,null,"1000559916PC-0E3",155,null,null,null,null,"125w Low Pressure Sodium (SOX)","125L",null,null,null,null,"55w Sodium Vapour","55S",null,null,null,null,null,null,null,null,null,null,null,null,null,null,null,null,null,null,null,null,null,null,"Waka Kotahi NZ Transport Agency - Highways","WK2"]
[null,null,null,null,null,null,null,null,null,"1001102038UN-6D0",156,null,null,null,null,"125w Mercury Vapour","125M",null,null,null,null,"Belisha Beacon 100W","BB",null,null,null,null,null,null,null,null,null,null,null,null,null,null,null,null,null,null,null,null,null,null,"Waka Kotahi NZ Transport Agency","WKN"]
[null,null,null,null,null,null,null,null,null,"1001102039UN-A95",157,null,null,null,null,"125w High Pressure Sodium","125S",null,null,null,null,"Fluorescent compact PL11W","FC11",null,null,null,null,null,null,null,null,null,null,null,null,null,null,null,null,null,null,null,null,null,null,"WSP New Zealand Ltd","WNZ"]
[null,null,null,null,null,null,null,null,null,"1001102041UN-DDC",158,null,null,null,null,"135w Low Pressure Sodium (SOX)","135L",null,null,null,null,"Fluorescent 2 x 20W","FT20"]
[null,null,null,null,null,null,null,null,null,"1001157386CK-4D3",159,null,null,null,null,"140w Low Pressure Sodium (SOX)","140L",null,null,null,null,"Fluorescent 2 x 30W","FT30"]
[null,null,null,null,null,null,null,null,null,"1001157387CK-896",160,null,null,null,null,"1500w Metal Halide","150H",null,null,null,null,"Fluorescent Tube","FT58"]
[null,null,null,null,null,null,null,null,null,"1001157795CK-EBF",161,null,null,null,null,"150w Low Pressure Sodium (SOX)","150L",null,null,null,null,"Halogen 400W","H400"]
[null,null,null,null,null,null,null,null,null,"0110009754EL-C8D",162,null,null,null,null,"150w Mercury Vapour","150M",null,null,null,null,"Halogen 50W","H50"]
[null,null,null,null,null,null,null,null,null,"0110009939EL-A2D",163,null,null,null,null,"150w Metal Halide","15MH",null,null,null,null,"Halogen 500W","H500"]
[null,null,null,null,null,null,null,null,null,"0110010049EL-238",164,null,null,null,null,"150w HPS Electronic Ballast","15SB",null,null,null,null,"Incandescent 100W","I100"]
[null,null,null,null,null,null,null,null,null,"0110010050EL-6C4",165,null,null,null,null,"160w Low Pressure Sodium (SOX)","160L",null,null,null,null,"Incandescent 150W","I150"]
[null,null,null,null,null,null,null,null,null,"0110010138EL-224",166,null,null,null,null,"160w Mercury Vapour","160M",null,null,null,null,"Incandescent 60W","I60"]
[null,null,null,null,null,null,null,null,null,"0110010196EL9A0",167,null,null,null,null,"175w Mercury Vapour","175M",null,null,null,null,"Incandescent 75W","I75"]
[null,null,null,null,null,null,null,null,null,"0020902000WR-B7A",168,null,null,null,null,"175w Metal Halide","17MH",null,null,null,null,"Mercury vapour 125W","M125"]
[null,null,null,null,null,null,null,null,null,"0012462493EL6CE",169,null,null,null,null,"180w Low Pressure Sodium (SOX)","180L",null,null,null,null,"Mercury vapour 250W","M250"]
[null,null,null,null,null,null,null,null,null,"0110009449ELA78",170,null,null,null,null,"18w Low Pressure Sodium (SOX)","18L",null,null,null,null,"Mercury vapour 400W","M400"]
[null,null,null,null,null,null,null,null,null,"0012471014EL84E",171,null,null,null,null,"2000w Metal Halide","200H",null,null,null,null,"Mercury vapour 50W","M50"]
[null,null,null,null,null,null,null,null,null,"0110007409EL01D",172,null,null,null,null,"250w Mercury Vapour","250M",null,null,null,null,"Mercury vapour 80W","M80"]
[null,null,null,null,null,null,null,null,null,"0020906000WR-DFA",173,null,null,null,null,"250w Metal Halide","25MH",null,null,null,null,"Metal halide 175W","MH17"]
[null,null,null,null,null,null,null,null,null,"1001102040UN-199",174,null,null,null,null,"26w Low Pressure Sodium (SOX)","26L",null,null,null,null,"Sodium vapour SON 100W","S100"]
[null,null,null,null,null,null,null,null,null,"0110008725EL-435",175,null,null,null,null,"310w Low Pressure Sodium (SOX)","310L",null,null,null,null,"Sodium vapour SON 100W,tubular","S10T"]
[null,null,null,null,null,null,null,null,null,"1000592735PCC2D",176,null,null,null,null,"35w Low Pressure Sodium (SOX)","35L",null,null,null,null,"Sodium vapour SON 150W","S150"]
[null,null,null,null,null,null,null,null,null,"1000592736PC0ED",177,null,null,null,null,"35w Metal Halide","35MH",null,null,null,null,"Sodium vapour SON 150W,tubular","S15T"]
[null,null,null,null,null,null,null,null,null,"1000592737PCCA8",178,null,null,null,null,"35w High Pressure Sodium","35S",null,null,null,null,"Sodium vapour SON 250W","S250"]
[null,null,null,null,null,null,null,null,null,"1000592738PC376",179,null,null,null,null,"3745w Metal Halide","374H",null,null,null,null,"Sodium vapour SON 250W,tubular","S25T"]
[null,null,null,null,null,null,null,null,null,"1000592739PCF33",180,null,null,null,null,"400w Mercury Vapour","400M",null,null,null,null,"Sodium vapour SON 400W","S400"]
[null,null,null,null,null,null,null,null,null,"0008801019TP7D4",189,null,null,null,null,"400w Metal Halide","40MH",null,null,null,null,"Sodium vapour SON 400W,tubular","S40T"]
[null,null,null,null,null,null,null,null,null,"0008801031TP895",190,null,null,null,null,"500w Metal Halide","500H",null,null,null,null,"Sodium vapour SON 50W","S50"]
[null,null,null,null,null,null,null,null,null,"0000041339HB476",191,null,null,null,null,"500w Mercury Vapour","500M",null,null,null,null,"Sodium vapour SON 50W,tubular","S50T"]
[null,null,null,null,null,null,null,null,null,"0000048330HB687",192,null,null,null,null,"50w Mercury Vapour","50M",null,null,null,null,"Sodium vapour SON 70W","S70"]
[null,null,null,null,null,null,null,null,null,"0000048331HBAC2",193,null,null,null,null,"50w Metal Halide","50MH",null,null,null,null,"Sodium vapour SON 70W - E","S70E"]
[null,null,null,null,null,null,null,null,null,"0000939905HB23E",194,null,null,null,null,"50w High Pressure Sodium","50S",null,null,null,null,"Sodium vapour SON 70W - I","S70I"]
[null,null,null,null,null,null,null,null,null,"7012031000CH80C",195,null,null,null,null,"50w HPS Electronic Ballast","50SB",null,null,null,null,"Sodium vapour SON 70W,tubular","S70T"]
[null,null,null,null,null,null,null,null,null,"0009109000CA17C",196,null,null,null,null,"55w Low Pressure Sodium (SOX)","55L",null,null,null,null,"Sodium vapour SOX 135W","X135"]
[null,null,null,null,null,null,null,null,null,"0000042968HB8D1",197,null,null,null,null,"60w Low Pressure Sodium (SOX)","60L",null,null,null,null,"Sodium vapour SOX 90W","X90"]
[null,null,null,null,null,null,null,null,null,"0009104000CAB5C",198,null,null,null,null,"60w High Pressure Sodium","60S",null,null,null,null,"LED Arialed","ARIA"]
[null,null,null,null,null,null,null,null,null,"0042251339PCB78",199,null,null,null,null,"700w Mercury Vapour","700M",null,null,null,null,"LED Terraled Mini MX1","MX1"]
[null,null,null,null,null,null,null,null,null,"0080011463PC6A7",200,null,null,null,null,"70w Metal Halide","70MH",null,null,null,null,"LED Ignis 1-Peds Cross","NG1C"]
[null,null,null,null,null,null,null,null,null,"0011002676PC926",201,null,null,null,null,"70w High Pressure Sodium","70S",null,null,null,null,"LED Ignis 1 -Veh","NG1V"]
[null,null,null,null,null,null,null,null,null,"0080012007PC6BC",202,null,null,null,null,"70w HPS Electronic Ballast","70SB",null,null,null,null,"LED Ignis 2","NG2V"]
[null,null,null,null,null,null,null,null,null,"0011002914PC95C",203,null,null,null,null,"75w Metal Halide","75MH",null,null,null,null,"LED Terraled Mini PX1","PX1"]
[null,null,null,null,null,null,null,null,null,"1001138558UN-349",204,null,null,null,null,"80w Mercury Vapour","80M",null,null,null,null,"LED Terraled Mini XPG2","TMG2"]
[null,null,null,null,null,null,null,null,null,"0000018794HB0E7",205,null,null,null,null,"80w High Pressure Sodium","80S",null,null,null,null,"LED Terraled Mini XPG3","TMG3"]
[null,null,null,null,null,null,null,null,null,"0000018792HB168",206,null,null,null,null,"90w Low Pressure Sodium (SOX)","90L",null,null,null,null,"LED Terraled Mini Nichia","TMN"]
[null,null,null,null,null,null,null,null,null,"0000740571EN424",207,null,null,null,null,"Compact Fluorescent 26w","CF26",null,null,null,null,"LED Terraled Mini Osram & PMMA lens","TMOS"]
[null,null,null,null,null,null,null,null,null,"0000740684ENA7F",208,null,null,null,null,"Compact Fluorescent 32w","CF32",null,null,null,null,"LED TransLEDer-A-1","TRA1"]
[null,null,null,null,null,null,null,null,null,"0000740680ENB75",209,null,null,null,null,"Compact Fluorescent 42w","CF42",null,null,null,null,"LED TransLEDer-A-3","TRA3"]
[null,null,null,null,null,null,null,null,null,"0000740682ENBF0",210,null,null,null,null,"Compact Fluorescent 57w","CF57",null,null,null,null,"LED TransLEDer-A-4","TRA4"]
[null,null,null,null,null,null,null,null,null,"0000740688EN961",211,null,null,null,null,"Fluorescent 14w","F14",null,null,null,null,"LED TransLEDer-B-1","TRB1"]
[null,null,null,null,null,null,null,null,null,"000740686ENAFA",212,null,null,null,null,"Fluorescent 176w","F176",null,null,null,null,"LED TransLEDer-B-2","TRB2"]
[null,null,null,null,null,null,null,null,null,"0000740678EN976",213,null,null,null,null,"Fluorescent 20w","F20",null,null,null,null,"LED TransLEDer-B-3","TRB3"]
[null,null,null,null,null,null,null,null,null,"0000009978WW0F3",214,null,null,null,null,"Fluorescent 236w","F236",null,null,null,null,"LED TransLEDer-B-4","TRB4"]
[null,null,null,null,null,null,null,null,null,"0000009343WW3D5",215,null,null,null,null,"Fluorescent 25w","F25",null,null,null,null,"LED TransLEDer-C-4","TRC4"]
[null,null,null,null,null,null,null,null,null,"0000708757HB622",216,null,null,null,null,"Fluorescent 32w","F32",null,null,null,null,"LED TransLEDer- Peds","TRN1"]
[null,null,null,null,null,null,null,null,null,"0000934950WWBA3",217,null,null,null,null,"Fluorescent 36w","F36",null,null,null,null,"LED TransLEDer-Veh","TRN2"]
[null,null,null,null,null,null,null,null,null,"1000597465PC006",218,null,null,null,null,"Fluorescent 40w","F40",null,null,null,null,"100w High Pressure Sodium","100S"]
[null,null,null,null,null,null,null,null,null,"1000597466PCCC6",219,null,null,null,null,"Fluorescent 42w","F42",null,null,null,null,"150w High Pressure Sodium","150S"]
[null,null,null,null,null,null,null,null,null,"1000597467PC083",220,null,null,null,null,"Fluorescent 48w","F48",null,null,null,null,"250w High Pressure Sodium","250S"]
[null,null,null,null,null,null,null,null,null,"1000597468PCF5D",221,null,null,null,null,"Fluorescent 58w","F58",null,null,null,null,"400w High Pressure Sodium","400S"]
[null,null,null,null,null,null,null,null,null,"1000597469PC318",222,null,null,null,null,"Fluorescent 65w","F65",null,null,null,null,"600w High Pressure Sodium","600S"]
[null,null,null,null,null,null,null,null,null,"1000597470PC7E4",223,null,null,null,null,"Fluorescent 7w","F7",null,null,null,null,"70w High Pressure Sodium","70S"]
[null,null,null,null,null,null,null,null,null,"1000592741PC87A",224,null,null,null,null,"Fluorescent 80w","F80",null,null,null,null,"Belisha Beacon 100W","BB"]
[null,null,null,null,null,null,null,null,null,"1000597471PCBA1",225,null,null,null,null,"Typical for Fluorescent (2 x 20)","TF",null,null,null,null,"Fluorescent compact PL11W","FC11"]
[null,null,null,null,null,null,null,null,null,"1000592743PC8FF",226,null,null,null,null,"Typical for Fluorescent (2 x 30)","TF30",null,null,null,null,"Fluorescent 2 x 20W","FT20"]
[null,null,null,null,null,null,null,null,null,"1000597472PC761",227,null,null,null,null,"1000w Metal Halide","100H",null,null,null,null,"Fluorescent 2 x 30W","FT30"]
[null,null,null,null,null,null,null,null,null,"1000597473PCB24",228,null,null,null,null,"100w High Pressure Sodium","100S",null,null,null,null,"LED Roadstar GPLM","GPLM"]
[null,null,null,null,null,null,null,null,null,"1000597474PC6EE",229,null,null,null,null,"100w Metal Halide","10MH",null,null,null,null,"LED Roadstar GPLS","GPLS"]
[null,null,null,null,null,null,null,null,null,"1000597475PCAAB",230,null,null,null,null,"100w HPS Electronic Ballast","10SB",null,null,null,null,"Halogen 400W","H400"]
[null,null,null,null,null,null,null,null,null,"1000597478PC5F0",231,null,null,null,null,"110w High Pressure Sodium","110S",null,null,null,null,"Halogen 50W","H50"]
[null,null,null,null,null,null,null,null,null,"1000597480PC7F3",232,null,null,null,null,"110w Metal Halide","11MH",null,null,null,null,"Halogen 500W","H500"]
[null,null,null,null,null,null,null,null,null,"1000597481PCBB6",233,null,null,null,null,"120w Mercury Vapour","120M",null,null,null,null,"Incandescent 100W","I100"]
[null,null,null,null,null,null,null,null,null,"1000597482PC776",234,null,null,null,null,"120w High Pressure Sodium","120S",null,null,null,null,"Incandescent 150W","I150"]
[null,null,null,null,null,null,null,null,null,"1000597483PCB33",235,null,null,null,null,"125w Low Pressure Sodium (SOX)","125L",null,null,null,null,"Incandescent 60W","I60"]
[null,null,null,null,null,null,null,null,null,"1000597484PC6F9",236,null,null,null,null,"125w Mercury Vapour","125M",null,null,null,null,"Incandescent 75W","I75"]
[null,null,null,null,null,null,null,null,null,"1000597485PCABC",237,null,null,null,null,"125w High Pressure Sodium","125S",null,null,null,null,"Mercury vapour 100W","M100"]
[null,null,null,null,null,null,null,null,null,"1000597487PCA39",238,null,null,null,null,"135w Low Pressure Sodium (SOX)","135L",null,null,null,null,"Mercury vapour 125W","M125"]
[null,null,null,null,null,null,null,null,null,"1000592782PC355",239,null,null,null,null,"13w High Pressure Sodium","13S",null,null,null,null,"Mercury vapour 250W","M250"]
[null,null,null,null,null,null,null,null,null,"1000597489PC9A2",240,null,null,null,null,"140w Low Pressure Sodium (SOX)","140L",null,null,null,null,"Mercury vapour 400W","M400"]
[null,null,null,null,null,null,null,null,null,"1000597492PCDDB",241,null,null,null,null,"1500w Metal Halide","150H",null,null,null,null,"Mercury vapour 50W","M50"]
[null,null,null,null,null,null,null,null,null,"1000597493PC19E",242,null,null,null,null,"150w Low Pressure Sodium (SOX)","150L",null,null,null,null,"Mercury vapour 80W","M80"]
[null,null,null,null,null,null,null,null,null,"1000592858PC389",243,null,null,null,null,"150w Mercury Vapour","150M",null,null,null,null,"Mercury blended 160W","MB"]
[null,null,null,null,null,null,null,null,null,"1000597433PC981",244,null,null,null,null,"150w High Pressure Sodium","150S",null,null,null,null,"1000w Metal Halide","MH10"]
[null,null,null,null,null,null,null,null,null,"1000597435PC80E",245,null,null,null,null,"150w Metal Halide","15MH",null,null,null,null,"Metal Halide 150W","MH15"]
[null,null,null,null,null,null,null,null,null,"1000597437PC88B",246,null,null,null,null,"150w HPS Electronic Ballast","15SB",null,null,null,null,"Metal halide 175W","MH17"]
[null,null,null,null,null,null,null,null,null,"1000597438PC755",247,null,null,null,null,"160w Low Pressure Sodium (SOX)","160L",null,null,null,null,"Metal Halide 250W","MH25"]
[null,null,null,null,null,null,null,null,null,"1000597439PCB10",248,null,null,null,null,"160w Mercury Vapour","160M",null,null,null,null,"Metal halide 400W","MH40"]
[null,null,null,null,null,null,null,null,null,"1000597441PCC59",249,null,null,null,null,"175w Mercury Vapour","175M",null,null,null,null,"Sodium vapour SON 100W","S100"]
[null,null,null,null,null,null,null,null,null,"1000592752PCE17",250,null,null,null,null,"175w Metal Halide","17MH",null,null,null,null,"Sodium vapour SON 100W,tubular","S10T"]
[null,null,null,null,null,null,null,null,null,"1000597503PC77D",251,null,null,null,null,"180w Low Pressure Sodium (SOX)","180L",null,null,null,null,"Sodium vapour SON 150W","S150"]
[null,null,null,null,null,null,null,null,null,"1000597504PCAB7",252,null,null,null,null,"18w Low Pressure Sodium (SOX)","18L",null,null,null,null,"Sodium vapour SON 150W,tubular","S15T"]
[null,null,null,null,null,null,null,null,null,"1000592781PCF95",253,null,null,null,null,"2000w Metal Halide","200H",null,null,null,null,"Sodium vapour SON 250W","S250"]
[null,null,null,null,null,null,null,null,null,"1000597509PC5EC",254,null,null,null,null,"250w Mercury Vapour","250M",null,null,null,null,"Sodium vapour SON 250W,tubular","S25T"]
[null,null,null,null,null,null,null,null,null,"1000592776PC248",255,null,null,null,null,"250w High Pressure Sodium","250S",null,null,null,null,"Sodium vapour SON 400W","S400"]
[null,null,null,null,null,null,null,null,null,"1000592735PCC2D",256,null,null,null,null,"250w Metal Halide","25MH",null,null,null,null,"Sodium vapour SON 400W,tubular","S40T"]
[null,null,null,null,null,null,null,null,null,"1000597510PC110",257,null,null,null,null,"26w Low Pressure Sodium (SOX)","26L",null,null,null,null,"Sodium vapour SON 50W","S50"]
[null,null,null,null,null,null,null,null,null,"1000597511PCD55",258,null,null,null,null,"310w Low Pressure Sodium (SOX)","310L",null,null,null,null,"Sodium vapour SON 50W,tubular","S50T"]
[null,null,null,null,null,null,null,null,null,"1000597512PC195",259,null,null,null,null,"35w Low Pressure Sodium (SOX)","35L",null,null,null,null,"Sodium vapour SON 70W","S70"]
[null,null,null,null,null,null,null,null,null,"1000597514PC01A",260,null,null,null,null,"35w Metal Halide","35MH",null,null,null,null,"Sodium vapour SON 70W - E","S70E"]
[null,null,null,null,null,null,null,null,null,"1000597516PC09F",261,null,null,null,null,"35w High Pressure Sodium","35S",null,null,null,null,"Sodium vapour SON 70W - I","S70I"]
[null,null,null,null,null,null,null,null,null,"1000597518PC304",262,null,null,null,null,"3745w Metal Halide","374H",null,null,null,null,"Sodium vapour SON 70W,tubular","S70T"]
[null,null,null,null,null,null,null,null,null,"1000597521PCAAD",263,null,null,null,null,"400w Mercury Vapour","400M",null,null,null,null,"LPS 26W Solar Light Lamp","SL26"]
[null,null,null,null,null,null,null,null,null,"1000597522PC66D",264,null,null,null,null,"400w Metal Halide","40MH",null,null,null,null,"HPS 65W Solar Light","SL65"]
[null,null,null,null,null,null,null,null,null,"1000597523PCA28",265,null,null,null,null,"500w Metal Halide","500H",null,null,null,null,"LED Stela+ (gen2)","STEL"]
[null,null,null,null,null,null,null,null,null,"1000597524PC7E2",266,null,null,null,null,"500w Mercury Vapour","500M",null,null,null,null,"Tornado ES 24W","TES"]
[null,null,null,null,null,null,null,null,null,"1000597525PCBA7",267,null,null,null,null,"50w Mercury Vapour","50M",null,null,null,null,"Sodium vapour SOX 135W","X135"]
[null,null,null,null,null,null,null,null,null,"1000597530PCC45",268,null,null,null,null,"50w Metal Halide","50MH",null,null,null,null,"Sodium vapour SOX 90W","X90"]
[null,null,null,null,null,null,null,null,null,"1000592739PCF33",269,null,null,null,null,"50w High Pressure Sodium","50S",null,null,null,null,"LED P862 (32 LED)","C862"]
[null,null,null,null,null,null,null,null,null,"1000597531PC000",270,null,null,null,null,"50w HPS Electronic Ballast","50SB",null,null,null,null,"LED P863 (32 LED)","C863"]
[null,null,null,null,null,null,null,null,null,"1000597532PCCC0",271,null,null,null,null,"55w Low Pressure Sodium (SOX)","55L",null,null,null,null,"LED P852K","P852"]
[null,null,null,null,null,null,null,null,null,"1000597533PC085",272,null,null,null,null,"60w Low Pressure Sodium (SOX)","60L",null,null,null,null,"LED P860","P860"]
[null,null,null,null,null,null,null,null,null,"1000592755PC3DD",273,null,null,null,null,"60w High Pressure Sodium","60S",null,null,null,null,"LED P861","P861"]
[null,null,null,null,null,null,null,null,null,"1000597535PC10A",274,null,null,null,null,"700w Mercury Vapour","700M",null,null,null,null,"LED P863 (16 LED)","P863"]
[null,null,null,null,null,null,null,null,null,"1000592780PC3D0",275,null,null,null,null,"70w Metal Halide","70MH",null,null,null,null,"LED P862 (32/64 LED)","V862"]
[null,null,null,null,null,null,null,null,null,"0036514036PC141",276,null,null,null,null,"70w High Pressure Sodium","70S",null,null,null,null,"LED P863 (16/32 LED)","V863"]
[null,null,null,null,null,null,null,null,null,"0036512055PC7B1",277,null,null,null,null,"70w HPS Electronic Ballast","70SB",null,null,null,null,"150w High Pressure Sodium","150S"]
[null,null,null,null,null,null,null,null,null,"0036514027PC7A9",278,null,null,null,null,"75w Metal Halide","75MH",null,null,null,null,"LED PIANO 1","PNO1"]
[null,null,null,null,null,null,null,null,null,"0036510244PC81E",279,null,null,null,null,"80w Mercury Vapour","80M",null,null,null,null,"LED PIANO 2","PNO2"]
[null,null,null,null,null,null,null,null,null,"0033300517PCE00",280,null,null,null,null,"80w High Pressure Sodium","80S",null,null,null,null,"LED TECEO 1 XP-G2","TEC1"]
[null,null,null,null,null,null,null,null,null,"0036514024PCB69",281,null,null,null,null,"90w Low Pressure Sodium (SOX)","90L",null,null,null,null,"LED TECEO 2 XP-G2","TEC2"]
[null,null,null,null,null,null,null,null,null,"1000576785PC562",282,null,null,null,null,"Compact Fluorescent 26w","CF26",null,null,null,null,"LED TECEO 1 XP - G3","TECG"]
[null,null,null,null,null,null,null,null,null,"0011002949PCE0F",283,null,null,null,null,"Compact Fluorescent 32w","CF32",null,null,null,null,"LED TECEO 1 XP-L","TECL"]
[null,null,null,null,null,null,null,null,null,"0011002950PCAF3",284,null,null,null,null,"Compact Fluorescent 42w","CF42",null,null,null,null,"LED TECEO 2 XP- G3","TEG3"]
[null,null,null,null,null,null,null,null,null,"0011007882PC910",285,null,null,null,null,"Compact Fluorescent 57w","CF57",null,null,null,null,"Luma 1 80","LUMA"]
[null,null,null,null,null,null,null,null,null,"0042250922PC4AB",286,null,null,null,null,"Fluorescent 14w","F14",null,null,null,null,"Roadcharm BRP471","R471"]
[null,null,null,null,null,null,null,null,null,"0080011453PC15F",287,null,null,null,null,"Fluorescent 176w","F176",null,null,null,null,"Roadcharm BRP472","R472"]
[null,null,null,null,null,null,null,null,null,"0080011613PC9FD",288,null,null,null,null,"Fluorescent 20w","F20",null,null,null,null,"Roadcharm BRP711","R711"]
[null,null,null,null,null,null,null,null,null,"0080011699PCE26",289,null,null,null,null,"Fluorescent 236w","F236",null,null,null,null,"Roadcharm BRP712","R712"]
[null,null,null,null,null,null,null,null,null,"0080011700PC694",290,null,null,null,null,"Fluorescent 25w","F25",null,null,null,null,"Stela+ GEN2","STLA"]
[null,null,null,null,null,null,null,null,null,"0080011994PCE72",291,null,null,null,null,"Fluorescent 32w","F32",null,null,null,null,"Nath - S","NATH"]
[null,null,null,null,null,null,null,null,null,"1000597447PCDD6",292,null,null,null,null,"Fluorescent 36w","F36",null,null,null,null,"100w High Pressure Sodium","100S"]
[null,null,null,null,null,null,null,null,null,"0033300320PC234",293,null,null,null,null,"Fluorescent 40w","F40",null,null,null,null,"150w High Pressure Sodium","150S"]
[null,null,null,null,null,null,null,null,null,"0033300327PCFFE",294,null,null,null,null,"Fluorescent 42w","F42",null,null,null,null,"250w HPS Coated","250C"]
[null,null,null,null,null,null,null,null,null,"0033300381PC66E",295,null,null,null,null,"Fluorescent 48w","F48",null,null,null,null,"250w High Pressure Sodium","250S"]
[null,null,null,null,null,null,null,null,null,"0033300418PC8DA",296,null,null,null,null,"Fluorescent 58w","F58",null,null,null,null,"400w High Pressure Sodium","400S"]
[null,null,null,null,null,null,null,null,null,"0035513050PC095",297,null,null,null,null,"Fluorescent 65w","F65",null,null,null,null,"600w High Pressure Sodium","600S"]
[null,null,null,null,null,null,null,null,null,"0036514030PC0CE",298,null,null,null,null,"Fluorescent 7w","F7",null,null,null,null,"Belisha Beacon 100W","BB"]
[null,null,null,null,null,null,null,null,null,"0036810007PCADE",299,null,null,null,null,"Fluorescent 80w","F80",null,null,null,null,"Fluorescent compact PL11W","FC11"]
[null,null,null,null,null,null,null,null,null,"0009104000CAB5C",300,null,null,null,null,"Typical for 0w","T0",null,null,null,null,"Fluorescent 2 x 20W","FT20"]
[null,null,null,null,null,null,null,null,null,"0033301944PC764",301,null,null,null,null,"Typical for 100W","T100",null,null,null,null,"Fluorescent 2 x 30W","FT30"]
[null,null,null,null,null,null,null,null,null,"0033513020PCA51",302,null,null,null,null,"Typical for 125W (MV)","T125",null,null,null,null,"Halogen 400W","H400"]
[null,null,null,null,null,null,null,null,null,"0110001368EL96A",304,null,null,null,null,"Typical for 135W (SOX)","T135",null,null,null,null,"Halogen 50W","H50"]
[null,null,null,null,null,null,null,null,null,"0016099060EL730",305,null,null,null,null,"Typical for 150W","T150",null,null,null,null,"Halogen 500W","H500"]
[null,null,null,null,null,null,null,null,null,"0037942142PCED1",306,null,null,null,null,"Typical for 18w","T18",null,null,null,null,"Incandescent 100W","I100"]
[null,null,null,null,null,null,null,null,null,null,null,null,null,null,null,"Typical for 250W","T250",null,null,null,null,"Incandescent 150W","I150"]
[null,null,null,null,null,null,null,null,null,null,null,null,null,null,null,"Typical for 250W (MV)","T25M",null,null,null,null,"Incandescent 60W","I60"]
[null,null,null,null,null,null,null,null,null,null,null,null,null,null,null,"Typical for 400W","T400",null,null,null,null,"Incandescent 75W","I75"]
[null,null,null,null,null,null,null,null,null,null,null,null,null,null,null,"Typical for 50W","T50",null,null,null,null,"Mercury vapour 125W","M125"]
[null,null,null,null,null,null,null,null,null,null,null,null,null,null,null,"Typical for 70W","T70",null,null,null,null,"Mercury vapour 250W","M250"]
[null,null,null,null,null,null,null,null,null,null,null,null,null,null,null,"Typical for 80W (MV)","T80",null,null,null,null,"Mercury vapour 400W","M400"]
[null,null,null,null,null,null,null,null,null,null,null,null,null,null,null,"Typical for 90W (SOX)","T90",null,null,null,null,"Mercury vapour 50W","M50"]
[null,null,null,null,null,null,null,null,null,null,null,null,null,null,null,"Typical for Fluorescent (2 x 20)","TF",null,null,null,null,"Mercury vapour 80W","M80"]
[null,null,null,null,null,null,null,null,null,null,null,null,null,null,null,"Typical for Fluorescent (2 x 30)","TF30",null,null,null,null,"1000w Metal Halide","MH10"]
[null,null,null,null,null,null,null,null,null,null,null,null,null,null,null,"1000w Metal Halide","100H",null,null,null,null,"Sodium vapour SON 100W","S100"]
[null,null,null,null,null,null,null,null,null,null,null,null,null,null,null,"100w High Pressure Sodium","100S",null,null,null,null,"Sodium vapour SON 100W,tubular","S10T"]
[null,null,null,null,null,null,null,null,null,null,null,null,null,null,null,"100w Metal Halide","10MH",null,null,null,null,"Sodium vapour SON 150W","S150"]
[null,null,null,null,null,null,null,null,null,null,null,null,null,null,null,"100w HPS Electronic Ballast","10SB",null,null,null,null,"Sodium vapour SON 150W,tubular","S15T"]
[null,null,null,null,null,null,null,null,null,null,null,null,null,null,null,"110w High Pressure Sodium","110S",null,null,null,null,"Sodium vapour SON 250W","S250"]
[null,null,null,null,null,null,null,null,null,null,null,null,null,null,null,"110w Metal Halide","11MH",null,null,null,null,"Sodium vapour SON 250W,tubular","S25T"]
[null,null,null,null,null,null,null,null,null,null,null,null,null,null,null,"120w Mercury Vapour","120M",null,null,null,null,"Sodium vapour SON 400W","S400"]
[null,null,null,null,null,null,null,null,null,null,null,null,null,null,null,"120w High Pressure Sodium","120S",null,null,null,null,"Sodium vapour SON 400W,tubular","S40T"]
[null,null,null,null,null,null,null,null,null,null,null,null,null,null,null,"125w Low Pressure Sodium (SOX)","125L",null,null,null,null,"Sodium vapour SON 50W","S50"]
[null,null,null,null,null,null,null,null,null,null,null,null,null,null,null,"125w Mercury Vapour","125M",null,null,null,null,"Sodium vapour SON 50W,tubular","S50T"]
[null,null,null,null,null,null,null,null,null,null,null,null,null,null,null,"125w High Pressure Sodium","125S",null,null,null,null,"Sodium vapour SON 70W","S70"]
[null,null,null,null,null,null,null,null,null,null,null,null,null,null,null,"135w Low Pressure Sodium","135L",null,null,null,null,"Sodium vapour SON 70W - E","S70E"]
[null,null,null,null,null,null,null,null,null,null,null,null,null,null,null,"13w High Pressure Sodium","13S",null,null,null,null,"Sodium vapour SON 70W - I","S70I"]
[null,null,null,null,null,null,null,null,null,null,null,null,null,null,null,"140w Low Pressure Sodium (SOX)","140L",null,null,null,null,"Sodium vapour SON 70W,tubular","S70T"]
[null,null,null,null,null,null,null,null,null,null,null,null,null,null,null,"1500w Metal Halide","150H",null,null,null,null,"SastaLED Size 1 (Small)","SAS1"]
[null,null,null,null,null,null,null,null,null,null,null,null,null,null,null,"150w Low Pressure Sodium (SOX)","150L",null,null,null,null,"SastaLED Size 2 (Large)","SAS2"]
[null,null,null,null,null,null,null,null,null,null,null,null,null,null,null,"150w Mercury Vapour","150M",null,null,null,null,"LED StreetLED","STL"]
[null,null,null,null,null,null,null,null,null,null,null,null,null,null,null,"150w High Pressure Sodium","150S",null,null,null,null,"Sodium vapour SOX 135W","X135"]
[null,null,null,null,null,null,null,null,null,null,null,null,null,null,null,"150w Metal Halide","15MH",null,null,null,null,"Sodium vapour SOX 90W","X90"]
[null,null,null,null,null,null,null,null,null,null,null,null,null,null,null,"150w HPS Electronic Ballast","15SB",null,null,null,null,"LED Luxtella S12XPL-20AT","LX12"]
[null,null,null,null,null,null,null,null,null,null,null,null,null,null,null,"160w Low Pressure Sodium (SOX)","160L",null,null,null,null,"Belisha Beacon 100W","BB"]
[null,null,null,null,null,null,null,null,null,null,null,null,null,null,null,"160w Mercury Vapour","160M",null,null,null,null,"Fluorescent compact PL11W","FC11"]
[null,null,null,null,null,null,null,null,null,null,null,null,null,null,null,"175w Mercury Vapour","175M",null,null,null,null,"Fluorescent 2 x 20W","FT20"]
[null,null,null,null,null,null,null,null,null,null,null,null,null,null,null,"175w Metal Halide","17MH",null,null,null,null,"Fluorescent 2 x 30W","FT30"]
[null,null,null,null,null,null,null,null,null,null,null,null,null,null,null,"180w Low Pressure Sodium (SOX)","180L",null,null,null,null,"Halogen 400W","H400"]
[null,null,null,null,null,null,null,null,null,null,null,null,null,null,null,"18w Low Pressure Sodium (SOX)","18L",null,null,null,null,"Halogen 50W","H50"]
[null,null,null,null,null,null,null,null,null,null,null,null,null,null,null,"2000w Metal Halide","200H",null,null,null,null,"Halogen 500W","H500"]
[null,null,null,null,null,null,null,null,null,null,null,null,null,null,null,"250w Mercury Vapour","250M",null,null,null,null,"Incandescent 100W","I100"]
[null,null,null,null,null,null,null,null,null,null,null,null,null,null,null,"250w High Pressure Sodium","250S",null,null,null,null,"Incandescent 150W","I150"]
[null,null,null,null,null,null,null,null,null,null,null,null,null,null,null,"250w Metal Halide","25MH",null,null,null,null,"Incandescent 60W","I60"]
[null,null,null,null,null,null,null,null,null,null,null,null,null,null,null,"26w Low Pressure Sodium (SOX)","26L",null,null,null,null,"Incandescent 75W","I75"]
[null,null,null,null,null,null,null,null,null,null,null,null,null,null,null,"310w Low Pressure Sodium (SOX)","310L",null,null,null,null,"Mercury vapour 125W","M125"]
[null,null,null,null,null,null,null,null,null,null,null,null,null,null,null,"35w Low Pressure Sodium (SOX)","35L",null,null,null,null,"Mercury vapour 250W","M250"]
[null,null,null,null,null,null,null,null,null,null,null,null,null,null,null,"35w Metal Halide","35MH",null,null,null,null,"Mercury vapour 400W","M400"]
[null,null,null,null,null,null,null,null,null,null,null,null,null,null,null,"35w High Pressure Sodium","35S",null,null,null,null,"Mercury vapour 50W","M50"]
[null,null,null,null,null,null,null,null,null,null,null,null,null,null,null,"36w High Pressure Sodium","36S",null,null,null,null,"Mercury vapour 80W","M80"]
[null,null,null,null,null,null,null,null,null,null,null,null,null,null,null,"3745w Metal Halide","374H",null,null,null,null,"Sodium vapour SON 100W","S100"]
[null,null,null,null,null,null,null,null,null,null,null,null,null,null,null,"400w Mercury Vapour","400M",null,null,null,null,"Sodium vapour SON 100W,tubular","S10T"]
[null,null,null,null,null,null,null,null,null,null,null,null,null,null,null,"400W High Pressure Sodium","400S",null,null,null,null,"Sodium vapour SON 150W","S150"]
[null,null,null,null,null,null,null,null,null,null,null,null,null,null,null,"400w Metal Halide","40MH",null,null,null,null,"Sodium vapour SON 150W,tubular","S15T"]
[null,null,null,null,null,null,null,null,null,null,null,null,null,null,null,"500w Metal Halide","500H",null,null,null,null,"Sodium vapour SON 250W","S250"]
[null,null,null,null,null,null,null,null,null,null,null,null,null,null,null,"500w Mercury Vapour","500M",null,null,null,null,"Sodium vapour SON 250W,tubular","S25T"]
[null,null,null,null,null,null,null,null,null,null,null,null,null,null,null,"50w Mercury Vapour","50M",null,null,null,null,"Sodium vapour SON 400W","S400"]
[null,null,null,null,null,null,null,null,null,null,null,null,null,null,null,"50w Metal Halide","50MH",null,null,null,null,"Sodium vapour SON 400W,tubular","S40T"]
[null,null,null,null,null,null,null,null,null,null,null,null,null,null,null,"50w High Pressure Sodium","50S",null,null,null,null,"Sodium vapour SON 50W","S50"]
[null,null,null,null,null,null,null,null,null,null,null,null,null,null,null,"50w HPS Electronic Ballast","50SB",null,null,null,null,"Sodium vapour SON 50W,tubular","S50T"]
[null,null,null,null,null,null,null,null,null,null,null,null,null,null,null,"55w Low Pressure Sodium (SOX)","55L",null,null,null,null,"Sodium vapour SON 70W","S70"]
[null,null,null,null,null,null,null,null,null,null,null,null,null,null,null,"60w Low Pressure Sodium (SOX)","60L",null,null,null,null,"Sodium vapour SON 70W - E","S70E"]
[null,null,null,null,null,null,null,null,null,null,null,null,null,null,null,"60w High Pressure Sodium","60S",null,null,null,null,"Sodium vapour SON 70W - I","S70I"]
[null,null,null,null,null,null,null,null,null,null,null,null,null,null,null,"700w Mercury Vapour","700M",null,null,null,null,"Sodium vapour SON 70W,tubular","S70T"]
[null,null,null,null,null,null,null,null,null,null,null,null,null,null,null,"70w Metal Halide","70MH",null,null,null,null,"Sodium vapour SOX 135W","X135"]
[null,null,null,null,null,null,null,null,null,null,null,null,null,null,null,"70w High Pressure Sodium","70S",null,null,null,null,"Sodium vapour SOX 90W","X90"]
[null,null,null,null,null,null,null,null,null,null,null,null,null,null,null,"70w HPS Electronic Ballast","70SB",null,null,null,null,"Mini Martin 12 LED","MARN"]
[null,null,null,null,null,null,null,null,null,null,null,null,null,null,null,"75w Metal Halide","75MH",null,null,null,null,"Mini Stork","STOR"]
[null,null,null,null,null,null,null,null,null,null,null,null,null,null,null,"80w Mercury Vapour","80M",null,null,null,null,"V3630-0.1Cu","V363"]
[null,null,null,null,null,null,null,null,null,null,null,null,null,null,null,"80w High Pressure Sodium","80S",null,null,null,null,"LED PFL 540-SE","P540"]
[null,null,null,null,null,null,null,null,null,null,null,null,null,null,null,"90w Low Pressure Sodium (SOX)","90L",null,null,null,null,"LED WE-EF VFL530","V530"]
[null,null,null,null,null,null,null,null,null,null,null,null,null,null,null,"Compact Fluorescent 26w","CF26",null,null,null,null,"LED WE-EF VFL540","V540"]
[null,null,null,null,null,null,null,null,null,null,null,null,null,null,null,"Compact Fluroscent 32w","CF32",null,null,null,null,"Halswell","HALS"]
[null,null,null,null,null,null,null,null,null,null,null,null,null,null,null,"Compact Fluorescent 42w","CF42",null,null,null,null,"Palmerston","PALM"]
[null,null,null,null,null,null,null,null,null,null,null,null,null,null,null,"Compact Fluorescent 57w","CF57",null,null,null,null,"CRUX PLUS [NB-SL-CRUX-P]","CRUX"]
[null,null,null,null,null,null,null,null,null,null,null,null,null,null,null,"Fluorescent 14w","F14",null,null,null,null,"CRUX PLUS [NB-SL-CRUX-P] Peds","PCRX"]
[null,null,null,null,null,null,null,null,null,null,null,null,null,null,null,"Fluorescent 176w","F176",null,null,null,null,"CRUX PLUS [NB-SL-CRUX-P] Veh","VCRX"]
[null,null,null,null,null,null,null,null,null,null,null,null,null,null,null,"Fluorescent 20w","F20"]
[null,null,null,null,null,null,null,null,null,null,null,null,null,null,null,"Fluorescent 236w","F236"]
[null,null,null,null,null,null,null,null,null,null,null,null,null,null,null,"Fluorescent 25w","F25"]
[null,null,null,null,null,null,null,null,null,null,null,null,null,null,null,"Fluorescent 32w","F32"]
[null,null,null,null,null,null,null,null,null,null,null,null,null,null,null,"Fluorescent 36w","F36"]
[null,null,null,null,null,null,null,null,null,null,null,null,null,null,null,"Fluorescent 40w","F40"]
[null,null,null,null,null,null,null,null,null,null,null,null,null,null,null,"Fluorescent 42w","F42"]
[null,null,null,null,null,null,null,null,null,null,null,null,null,null,null,"Fluorescent 48w","F48"]
[null,null,null,null,null,null,null,null,null,null,null,null,null,null,null,"Fluorescent 58w","F58"]
[null,null,null,null,null,null,null,null,null,null,null,null,null,null,null,"Fluorescent 65w","F65"]
[null,null,null,null,null,null,null,null,null,null,null,null,null,null,null,"Fluorescent 7w","F7"]
[null,null,null,null,null,null,null,null,null,null,null,null,null,null,null,"Fluorescent 80w","F80"]
[null,null,null,null,null,null,null,null,null,null,null,null,null,null,null,"Typical for 0w","T0"]
[null,null,null,null,null,null,null,null,null,null,null,null,null,null,null,"Typical for 100W","T100"]
[null,null,null,null,null,null,null,null,null,null,null,null,null,null,null,"Typical for 125W (MV)","T125"]
[null,null,null,null,null,null,null,null,null,null,null,null,null,null,null,"Typical for 135W (SOX)","T135"]
[null,null,null,null,null,null,null,null,null,null,null,null,null,null,null,"Typical for 150W","T150"]
[null,null,null,null,null,null,null,null,null,null,null,null,null,null,null,"Typical for 18w","T18"]
[null,null,null,null,null,null,null,null,null,null,null,null,null,null,null,"Typical for 250W","T250"]
[null,null,null,null,null,null,null,null,null,null,null,null,null,null,null,"Typical for 250W (MV)","T25M"]
[null,null,null,null,null,null,null,null,null,null,null,null,null,null,null,"Typical for 26W (Solar Light)","T26"]
[null,null,null,null,null,null,null,null,null,null,null,null,null,null,null,"Typical for 28w","T28"]
[null,null,null,null,null,null,null,null,null,null,null,null,null,null,null,"Typical for 400W","T400"]
[null,null,null,null,null,null,null,null,null,null,null,null,null,null,null,"Typical for 50W","T50"]
[null,null,null,null,null,null,null,null,null,null,null,null,null,null,null,"Typical for 70W","T70"]
[null,null,null,null,null,null,null,null,null,null,null,null,null,null,null,"Typical for 80W (MV)","T80"]
[null,null,null,null,null,null,null,null,null,null,null,null,null,null,null,"Typical for 90W (SOX)","T90"]
[null,null,null,null,null,null,null,null,null,null,null,null,null,null,null,"Typical for Fluorescent (2 x 20)","TF"]
[null,null,null,null,null,null,null,null,null,null,null,null,null,null,null,"Typical for Fluorescent (2 x 30)","TF30"]
[null,null,null,null,null,null,null,null,null,null,null,null,null,null,null,"1000w Metal Halide","100H"]
[null,null,null,null,null,null,null,null,null,null,null,null,null,null,null,"100w Metal Halide","10MH"]
[null,null,null,null,null,null,null,null,null,null,null,null,null,null,null,"100w HPS Electronic Ballast","10SB"]
[null,null,null,null,null,null,null,null,null,null,null,null,null,null,null,"110w High Pressure Sodium","110S"]
[null,null,null,null,null,null,null,null,null,null,null,null,null,null,null,"110w Metal Halide","11MH"]
[null,null,null,null,null,null,null,null,null,null,null,null,null,null,null,"120w Mercury Vapour","120M"]
[null,null,null,null,null,null,null,null,null,null,null,null,null,null,null,"120w High Pressure Sodium","120S"]
[null,null,null,null,null,null,null,null,null,null,null,null,null,null,null,"125w Low Pressure Sodium (SOX)","125L"]
[null,null,null,null,null,null,null,null,null,null,null,null,null,null,null,"125w Mercury Vapour","125M"]
[null,null,null,null,null,null,null,null,null,null,null,null,null,null,null,"125w High Pressure Sodium","125S"]
[null,null,null,null,null,null,null,null,null,null,null,null,null,null,null,"135w Low Pressure Sodium (SOX)","135L"]
[null,null,null,null,null,null,null,null,null,null,null,null,null,null,null,"140w Low Pressure Sodium (SOX)","140L"]
[null,null,null,null,null,null,null,null,null,null,null,null,null,null,null,"1500w Metal Halide","150H"]
[null,null,null,null,null,null,null,null,null,null,null,null,null,null,null,"150w Low Pressure Sodium (SOX)","150L"]
[null,null,null,null,null,null,null,null,null,null,null,null,null,null,null,"150w Mercury Vapour","150M"]
[null,null,null,null,null,null,null,null,null,null,null,null,null,null,null,"150w High Pressure Sodium","150S"]
[null,null,null,null,null,null,null,null,null,null,null,null,null,null,null,"150w HPS Electronic Ballast","15SB"]
[null,null,null,null,null,null,null,null,null,null,null,null,null,null,null,"160w Low Pressure Sodium (SOX)","160L"]
[null,null,null,null,null,null,null,null,null,null,null,null,null,null,null,"160w Mercury Vapour","160M"]
[null,null,null,null,null,null,null,null,null,null,null,null,null,null,null,"175w Mercury Vapour","175M"]
[null,null,null,null,null,null,null,null,null,null,null,null,null,null,null,"175w Metal Halide","17MH"]
[null,null,null,null,null,null,null,null,null,null,null,null,null,null,null,"180w Low Pressure Sodium (SOX)","180L"]
[null,null,null,null,null,null,null,null,null,null,null,null,null,null,null,"18w Low Pressure Sodium (SOX)","18L"]
[null,null,null,null,null,null,null,null,null,null,null,null,null,null,null,"2000w Metal Halide","200H"]
[null,null,null,null,null,null,null,null,null,null,null,null,null,null,null,"250w Mercury Vapour","250M"]
[null,null,null,null,null,null,null,null,null,null,null,null,null,null,null,"26w Low Pressure Sodium (SOX)","26L"]
[null,null,null,null,null,null,null,null,null,null,null,null,null,null,null,"310w Low Pressure Sodium (SOX)","310L"]
[null,null,null,null,null,null,null,null,null,null,null,null,null,null,null,"35w Low Pressure Sodium (SOX)","35L"]
[null,null,null,null,null,null,null,null,null,null,null,null,null,null,null,"35w Metal Halide","35MH"]
[null,null,null,null,null,null,null,null,null,null,null,null,null,null,null,"35w High Pressure Sodium","35S"]
[null,null,null,null,null,null,null,null,null,null,null,null,null,null,null,"3745w Metal Halide","374H"]
[null,null,null,null,null,null,null,null,null,null,null,null,null,null,null,"400w Mercury Vapour","400M"]
[null,null,null,null,null,null,null,null,null,null,null,null,null,null,null,"400w Metal Halide","40MH"]
[null,null,null,null,null,null,null,null,null,null,null,null,null,null,null,"500w Metal Halide","500H"]
[null,null,null,null,null,null,null,null,null,null,null,null,null,null,null,"500w Mercury Vapour","500M"]
[null,null,null,null,null,null,null,null,null,null,null,null,null,null,null,"50w Mercury Vapour","50M"]
[null,null,null,null,null,null,null,null,null,null,null,null,null,null,null,"50w Metal Halide","50MH"]
[null,null,null,null,null,null,null,null,null,null,null,null,null,null,null,"50w High Pressure Sodium","50S"]
[null,null,null,null,null,null,null,null,null,null,null,null,null,null,null,"50w HPS Electronic Ballast","50SB"]
[null,null,null,null,null,null,null,null,null,null,null,null,null,null,null,"55w Low Pressure Sodium (SOX)","55L"]
[null,null,null,null,null,null,null,null,null,null,null,null,null,null,null,"60w Low Pressure Sodium (SOX)","60L"]
[null,null,null,null,null,null,null,null,null,null,null,null,null,null,null,"60w High Pressure Sodium","60S"]
[null,null,null,null,null,null,null,null,null,null,null,null,null,null,null,"700w Mercury Vapour","700M"]
[null,null,null,null,null,null,null,null,null,null,null,null,null,null,null,"70w Metal Halide","70MH"]
[null,null,null,null,null,null,null,null,null,null,null,null,null,null,null,"70w High Pressure Sodium","70S"]
[null,null,null,null,null,null,null,null,null,null,null,null,null,null,null,"70w HPS Electronic Ballast","70SB"]
[null,null,null,null,null,null,null,null,null,null,null,null,null,null,null,"75w Metal Halide","75MH"]
[null,null,null,null,null,null,null,null,null,null,null,null,null,null,null,"80w Mercury Vapour","80M"]
[null,null,null,null,null,null,null,null,null,null,null,null,null,null,null,"80w High Pressure Sodium","80S"]
[null,null,null,null,null,null,null,null,null,null,null,null,null,null,null,"90w Low Pressure Sodium (SOX)","90L"]
[null,null,null,null,null,null,null,null,null,null,null,null,null,null,null,"Compact Fluorescent 26w","CF26"]
[null,null,null,null,null,null,null,null,null,null,null,null,null,null,null,"Compact Fluorescent 32w","CF32"]
[null,null,null,null,null,null,null,null,null,null,null,null,null,null,null,"Compact Fluorescent 42w","CF42"]
[null,null,null,null,null,null,null,null,null,null,null,null,null,null,null,"Compact Fluorescent 57w","CF57"]
[null,null,null,null,null,null,null,null,null,null,null,null,null,null,null,"Fluorescent 14w","F14"]
[null,null,null,null,null,null,null,null,null,null,null,null,null,null,null,"Fluorescent 176w","F176"]
[null,null,null,null,null,null,null,null,null,null,null,null,null,null,null,"Fluorescent 20w","F20"]
[null,null,null,null,null,null,null,null,null,null,null,null,null,null,null,"Fluorescent 236w","F236"]
[null,null,null,null,null,null,null,null,null,null,null,null,null,null,null,"Fluorescent 25w","F25"]
[null,null,null,null,null,null,null,null,null,null,null,null,null,null,null,"Fluorescent 32w","F32"]
[null,null,null,null,null,null,null,null,null,null,null,null,null,null,null,"Fluorescent 36w","F36"]
[null,null,null,null,null,null,null,null,null,null,null,null,null,null,null,"Fluorescent 40w","F40"]
[null,null,null,null,null,null,null,null,null,null,null,null,null,null,null,"Fluorescent 42w","F42"]
[null,null,null,null,null,null,null,null,null,null,null,null,null,null,null,"Fluorescent 48w","F48"]
[null,null,null,null,null,null,null,null,null,null,null,null,null,null,null,"Fluorescent 58w","F58"]
[null,null,null,null,null,null,null,null,null,null,null,null,null,null,null,"Fluorescent 65w","F65"]
[null,null,null,null,null,null,null,null,null,null,null,null,null,null,null,"Fluorescent 7w","F7"]
[null,null,null,null,null,null,null,null,null,null,null,null,null,null,null,"Fluorescent 80w","F80"]
[null,null,null,null,null,null,null,null,null,null,null,null,null,null,null,"Typical for Fluorescent (2 x 20)","TF"]
[null,null,null,null,null,null,null,null,null,null,null,null,null,null,null,"Typical for Fluorescent (2 x 30)","TF30"]
[null,null,null,null,null,null,null,null,null,null,null,null,null,null,null,"No Gear","NG"]
[null,null,null,null,null,null,null,null,null,null,null,null,null,null,null,"1000w Metal Halide","100H"]
[null,null,null,null,null,null,null,null,null,null,null,null,null,null,null,"100w Metal Halide","10MH"]
[null,null,null,null,null,null,null,null,null,null,null,null,null,null,null,"100w HPS Electronic Ballast","10SB"]
[null,null,null,null,null,null,null,null,null,null,null,null,null,null,null,"110w High Pressure Sodium","110S"]
[null,null,null,null,null,null,null,null,null,null,null,null,null,null,null,"110w Metal Halide","11MH"]
[null,null,null,null,null,null,null,null,null,null,null,null,null,null,null,"120w Mercury Vapour","120M"]
[null,null,null,null,null,null,null,null,null,null,null,null,null,null,null,"120w High Pressure Sodium","120S"]
[null,null,null,null,null,null,null,null,null,null,null,null,null,null,null,"125w Low Pressure Sodium (SOX)","125L"]
[null,null,null,null,null,null,null,null,null,null,null,null,null,null,null,"125w Mercury Vapour","125M"]
[null,null,null,null,null,null,null,null,null,null,null,null,null,null,null,"125w High Pressure Sodium","125S"]
[null,null,null,null,null,null,null,null,null,null,null,null,null,null,null,"135w Low Pressure Sodium (SOX)","135L"]
[null,null,null,null,null,null,null,null,null,null,null,null,null,null,null,"140w Low Pressure Sodium (SOX)","140L"]
[null,null,null,null,null,null,null,null,null,null,null,null,null,null,null,"1500w Metal Halide","150H"]
[null,null,null,null,null,null,null,null,null,null,null,null,null,null,null,"150w Low Pressure Sodium (SOX)","150L"]
[null,null,null,null,null,null,null,null,null,null,null,null,null,null,null,"150w Metal Halide","150M"]
[null,null,null,null,null,null,null,null,null,null,null,null,null,null,null,"150w High Pressure Sodium","150S"]
[null,null,null,null,null,null,null,null,null,null,null,null,null,null,null,"150w Mercury Vapour","150V"]
[null,null,null,null,null,null,null,null,null,null,null,null,null,null,null,"150w HPS Electronic Ballast","15SB"]
[null,null,null,null,null,null,null,null,null,null,null,null,null,null,null,"160w Low Pressure Sodium (SOX)","160L"]
[null,null,null,null,null,null,null,null,null,null,null,null,null,null,null,"160w Mercury Vapour","160M"]
[null,null,null,null,null,null,null,null,null,null,null,null,null,null,null,"175w Mercury Vapour","175M"]
[null,null,null,null,null,null,null,null,null,null,null,null,null,null,null,"175w Metal Halide","17MH"]
[null,null,null,null,null,null,null,null,null,null,null,null,null,null,null,"180w Low Pressure Sodium (SOX)","180L"]
[null,null,null,null,null,null,null,null,null,null,null,null,null,null,null,"18w Low Pressure Sodium (SOX)","18L"]
[null,null,null,null,null,null,null,null,null,null,null,null,null,null,null,"2000w Metal Halide","200H"]
[null,null,null,null,null,null,null,null,null,null,null,null,null,null,null,"250w Metal Halide","250M"]
[null,null,null,null,null,null,null,null,null,null,null,null,null,null,null,"250w High Pressure Sodium","250S"]
[null,null,null,null,null,null,null,null,null,null,null,null,null,null,null,"250w Mercury Vapour","250V"]
[null,null,null,null,null,null,null,null,null,null,null,null,null,null,null,"26w Low Pressure Sodium (SOX)","26L"]
[null,null,null,null,null,null,null,null,null,null,null,null,null,null,null,"310w Low Pressure Sodium (SOX)","310L"]
[null,null,null,null,null,null,null,null,null,null,null,null,null,null,null,"35w Low Pressure Sodium (SOX)","35L"]
[null,null,null,null,null,null,null,null,null,null,null,null,null,null,null,"35w Metal Halide","35MH"]
[null,null,null,null,null,null,null,null,null,null,null,null,null,null,null,"35w High Pressure Sodium","35S"]
[null,null,null,null,null,null,null,null,null,null,null,null,null,null,null,"3745w Metal Halide","374H"]
[null,null,null,null,null,null,null,null,null,null,null,null,null,null,null,"400w Mercury Vapour","400M"]
[null,null,null,null,null,null,null,null,null,null,null,null,null,null,null,"400w Metal Halide","40MH"]
[null,null,null,null,null,null,null,null,null,null,null,null,null,null,null,"500w Metal Halide","500H"]
[null,null,null,null,null,null,null,null,null,null,null,null,null,null,null,"500w Mercury Vapour","500M"]
[null,null,null,null,null,null,null,null,null,null,null,null,null,null,null,"50w Mercury Vapour","50M"]
[null,null,null,null,null,null,null,null,null,null,null,null,null,null,null,"50w Metal Halide","50MH"]
[null,null,null,null,null,null,null,null,null,null,null,null,null,null,null,"50w High Pressure Sodium","50S"]
[null,null,null,null,null,null,null,null,null,null,null,null,null,null,null,"50w HPS Electronic Ballast","50SB"]
[null,null,null,null,null,null,null,null,null,null,null,null,null,null,null,"55w Low Pressure Sodium (SOX)","55L"]
[null,null,null,null,null,null,null,null,null,null,null,null,null,null,null,"60w Low Pressure Sodium (SOX)","60L"]
[null,null,null,null,null,null,null,null,null,null,null,null,null,null,null,"60w High Pressure Sodium","60S"]
[null,null,null,null,null,null,null,null,null,null,null,null,null,null,null,"700w Mercury Vapour","700M"]
[null,null,null,null,null,null,null,null,null,null,null,null,null,null,null,"70w Metal Halide","70MH"]
[null,null,null,null,null,null,null,null,null,null,null,null,null,null,null,"70w High Pressure Sodium","70S"]
[null,null,null,null,null,null,null,null,null,null,null,null,null,null,null,"70w HPS Electronic Ballast","70SB"]
[null,null,null,null,null,null,null,null,null,null,null,null,null,null,null,"75w Metal Halide","75MH"]
[null,null,null,null,null,null,null,null,null,null,null,null,null,null,null,"80w Mercury Vapour","80M"]
[null,null,null,null,null,null,null,null,null,null,null,null,null,null,null,"80w High Pressure Sodium","80S"]
[null,null,null,null,null,null,null,null,null,null,null,null,null,null,null,"90w Low Pressure Sodium (SOX)","90L"]
[null,null,null,null,null,null,null,null,null,null,null,null,null,null,null,"Compact Fluorescent 26w","CF26"]
[null,null,null,null,null,null,null,null,null,null,null,null,null,null,null,"Compact Fluorescent 32w","CF32"]
[null,null,null,null,null,null,null,null,null,null,null,null,null,null,null,"Compact Fluorescent 42w","CF42"]
[null,null,null,null,null,null,null,null,null,null,null,null,null,null,null,"Compact Fluorescent 57w","CF57"]
[null,null,null,null,null,null,null,null,null,null,null,null,null,null,null,"Cosmo Polis 140w","CP14"]
[null,null,null,null,null,null,null,null,null,null,null,null,null,null,null,"Cosmo Polis 45w","CP45"]
[null,null,null,null,null,null,null,null,null,null,null,null,null,null,null,"Cosmo Polis 60w","CP60"]
[null,null,null,null,null,null,null,null,null,null,null,null,null,null,null,"Cosmo Polis 90w","CP90"]
[null,null,null,null,null,null,null,null,null,null,null,null,null,null,null,"Elite 315w","EL31"]
[null,null,null,null,null,null,null,null,null,null,null,null,null,null,null,"Elite 210w","ET21"]
[null,null,null,null,null,null,null,null,null,null,null,null,null,null,null,"Fluorescent 14w","F14"]
[null,null,null,null,null,null,null,null,null,null,null,null,null,null,null,"Fluorescent 176w","F176"]
[null,null,null,null,null,null,null,null,null,null,null,null,null,null,null,"Fluorescent 20w","F20"]
[null,null,null,null,null,null,null,null,null,null,null,null,null,null,null,"Fluorescent 236w","F236"]
[null,null,null,null,null,null,null,null,null,null,null,null,null,null,null,"Fluorescent 25w","F25"]
[null,null,null,null,null,null,null,null,null,null,null,null,null,null,null,"Fluorescent 32w","F32"]
[null,null,null,null,null,null,null,null,null,null,null,null,null,null,null,"Fluorescent 36w","F36"]
[null,null,null,null,null,null,null,null,null,null,null,null,null,null,null,"Fluorescent 40w","F40"]
[null,null,null,null,null,null,null,null,null,null,null,null,null,null,null,"Fluorescent 42w","F42"]
[null,null,null,null,null,null,null,null,null,null,null,null,null,null,null,"Fluorescent 48w","F48"]
[null,null,null,null,null,null,null,null,null,null,null,null,null,null,null,"Fluorescent 58w","F58"]
[null,null,null,null,null,null,null,null,null,null,null,null,null,null,null,"Fluorescent 65w","F65"]
[null,null,null,null,null,null,null,null,null,null,null,null,null,null,null,"Fluorescent 7w","F7"]
[null,null,null,null,null,null,null,null,null,null,null,null,null,null,null,"Fluorescent 80w","F80"]
[null,null,null,null,null,null,null,null,null,null,null,null,null,null,null,"Typical for 250W","T250"]
[null,null,null,null,null,null,null,null,null,null,null,null,null,null,null,"Typical for Fluorescent (2 x 20)","TF"]
[null,null,null,null,null,null,null,null,null,null,null,null,null,null,null,"Typical for Fluorescent (2 x 30)","TF30"]
[null,null,null,null,null,null,null,null,null,null,null,null,null,null,null,"Xitanium - DALI 2.0","XI-D"]
[null,null,null,null,null,null,null,null,null,null,null,null,null,null,null,"Xitanium - Lineswitch","XI-L"]
[null,null,null,null,null,null,null,null,null,null,null,null,null,null,null,"Xitanium - 1-10V","XI-V"]
[null,null,null,null,null,null,null,null,null,null,null,null,null,null,null,"1000w Metal Halide","100H"]
[null,null,null,null,null,null,null,null,null,null,null,null,null,null,null,"100w Metal Halide","10MH"]
[null,null,null,null,null,null,null,null,null,null,null,null,null,null,null,"100w HPS Electronic Ballast","10SB"]
[null,null,null,null,null,null,null,null,null,null,null,null,null,null,null,"110w High Pressure Sodium","110S"]
[null,null,null,null,null,null,null,null,null,null,null,null,null,null,null,"110w Metal Halide","11MH"]
[null,null,null,null,null,null,null,null,null,null,null,null,null,null,null,"120w Mercury Vapour","120M"]
[null,null,null,null,null,null,null,null,null,null,null,null,null,null,null,"120w High Pressure Sodium","120S"]
[null,null,null,null,null,null,null,null,null,null,null,null,null,null,null,"125w Low Pressure Sodium (SOX)","125L"]
[null,null,null,null,null,null,null,null,null,null,null,null,null,null,null,"125w Mercury Vapour","125M"]
[null,null,null,null,null,null,null,null,null,null,null,null,null,null,null,"125w High Pressure Sodium","125S"]
[null,null,null,null,null,null,null,null,null,null,null,null,null,null,null,"135w Low Pressure Sodium (SOX)","135L"]
[null,null,null,null,null,null,null,null,null,null,null,null,null,null,null,"140w Low Pressure Sodium (SOX)","140L"]
[null,null,null,null,null,null,null,null,null,null,null,null,null,null,null,"1500w Metal Halide","150H"]
[null,null,null,null,null,null,null,null,null,null,null,null,null,null,null,"150w Low Pressure Sodium (SOX)","150L"]
[null,null,null,null,null,null,null,null,null,null,null,null,null,null,null,"150w Metal Halide","150M"]
[null,null,null,null,null,null,null,null,null,null,null,null,null,null,null,"150w High Pressure Sodium","150S"]
[null,null,null,null,null,null,null,null,null,null,null,null,null,null,null,"150w Mecury Vapour","150V"]
[null,null,null,null,null,null,null,null,null,null,null,null,null,null,null,"150w HPS Electronic Ballast","15SB"]
[null,null,null,null,null,null,null,null,null,null,null,null,null,null,null,"160w Low Pressure Sodium (SOX)","160L"]
[null,null,null,null,null,null,null,null,null,null,null,null,null,null,null,"160w Mercury Vapour","160M"]
[null,null,null,null,null,null,null,null,null,null,null,null,null,null,null,"175w Mercury Vapour","175M"]
[null,null,null,null,null,null,null,null,null,null,null,null,null,null,null,"175w Metal Halide","17MH"]
[null,null,null,null,null,null,null,null,null,null,null,null,null,null,null,"180w Low Pressure Sodium (SOX)","180L"]
[null,null,null,null,null,null,null,null,null,null,null,null,null,null,null,"18w Low Pressure Sodium (SOX)","18L"]
[null,null,null,null,null,null,null,null,null,null,null,null,null,null,null,"2000w Metal Halide","200H"]
[null,null,null,null,null,null,null,null,null,null,null,null,null,null,null,"250w Metal Halide","250M"]
[null,null,null,null,null,null,null,null,null,null,null,null,null,null,null,"250w High Pressure Sodium","250S"]
[null,null,null,null,null,null,null,null,null,null,null,null,null,null,null,"250w Mercury Vapour","250V"]
[null,null,null,null,null,null,null,null,null,null,null,null,null,null,null,"26w Low Pressure Sodium (SOX)","26L"]
[null,null,null,null,null,null,null,null,null,null,null,null,null,null,null,"310w Low Pressure Sodium (SOX)","310L"]
[null,null,null,null,null,null,null,null,null,null,null,null,null,null,null,"35w Low Pressure Sodium (SOX)","35L"]
[null,null,null,null,null,null,null,null,null,null,null,null,null,null,null,"35w Metal Halide","35MH"]
[null,null,null,null,null,null,null,null,null,null,null,null,null,null,null,"35w High Pressure Sodium","35S"]
[null,null,null,null,null,null,null,null,null,null,null,null,null,null,null,"3745w Metal Halide","374H"]
[null,null,null,null,null,null,null,null,null,null,null,null,null,null,null,"400w Mercury Vapour","400M"]
[null,null,null,null,null,null,null,null,null,null,null,null,null,null,null,"400w Metal Halide","40MH"]
[null,null,null,null,null,null,null,null,null,null,null,null,null,null,null,"500w Metal Halide","500H"]
[null,null,null,null,null,null,null,null,null,null,null,null,null,null,null,"500w Mercury Vapour","500M"]
[null,null,null,null,null,null,null,null,null,null,null,null,null,null,null,"50w Mercury Vapour","50M"]
[null,null,null,null,null,null,null,null,null,null,null,null,null,null,null,"50w Metal Halide","50MH"]
[null,null,null,null,null,null,null,null,null,null,null,null,null,null,null,"50w High Pressure Sodium","50S"]
[null,null,null,null,null,null,null,null,null,null,null,null,null,null,null,"50w HPS Electronic Ballast","50SB"]
[null,null,null,null,null,null,null,null,null,null,null,null,null,null,null,"55w Low Pressure Sodium (SOX)","55L"]
[null,null,null,null,null,null,null,null,null,null,null,null,null,null,null,"60w Low Pressure Sodium (SOX)","60L"]
[null,null,null,null,null,null,null,null,null,null,null,null,null,null,null,"60w High Pressure Sodium","60S"]
[null,null,null,null,null,null,null,null,null,null,null,null,null,null,null,"700w Mercury Vapour","700M"]
[null,null,null,null,null,null,null,null,null,null,null,null,null,null,null,"70w Metal Halide","70MH"]
[null,null,null,null,null,null,null,null,null,null,null,null,null,null,null,"70w High Pressure Sodium","70S"]
[null,null,null,null,null,null,null,null,null,null,null,null,null,null,null,"70w HPS Electronic Ballast","70SB"]
[null,null,null,null,null,null,null,null,null,null,null,null,null,null,null,"75w Metal Halide","75MH"]
[null,null,null,null,null,null,null,null,null,null,null,null,null,null,null,"80w Mercury Vapour","80M"]
[null,null,null,null,null,null,null,null,null,null,null,null,null,null,null,"80w High Pressure Sodium","80S"]
[null,null,null,null,null,null,null,null,null,null,null,null,null,null,null,"90w Low Pressure Sodium (SOX)","90L"]
[null,null,null,null,null,null,null,null,null,null,null,null,null,null,null,"Compact Fluorescent 26w","CF26"]
[null,null,null,null,null,null,null,null,null,null,null,null,null,null,null,"Compact Fluorescent 32w","CF32"]
[null,null,null,null,null,null,null,null,null,null,null,null,null,null,null,"Compact Fluorescent 42w","CF42"]
[null,null,null,null,null,null,null,null,null,null,null,null,null,null,null,"Compact Fluorescent 57w","CF57"]
[null,null,null,null,null,null,null,null,null,null,null,null,null,null,null,"Fluorescent 14w","F14"]
[null,null,null,null,null,null,null,null,null,null,null,null,null,null,null,"Fluorescent 176w","F176"]
[null,null,null,null,null,null,null,null,null,null,null,null,null,null,null,"Fluorescent 20w","F20"]
[null,null,null,null,null,null,null,null,null,null,null,null,null,null,null,"Fluorescent 236w","F236"]
[null,null,null,null,null,null,null,null,null,null,null,null,null,null,null,"Fluorescent 25w","F25"]
[null,null,null,null,null,null,null,null,null,null,null,null,null,null,null,"Fluorescent 32w","F32"]
[null,null,null,null,null,null,null,null,null,null,null,null,null,null,null,"Fluorescent 36w","F36"]
[null,null,null,null,null,null,null,null,null,null,null,null,null,null,null,"Fluorescent 40w","F40"]
[null,null,null,null,null,null,null,null,null,null,null,null,null,null,null,"Fluorescent 42w","F42"]
[null,null,null,null,null,null,null,null,null,null,null,null,null,null,null,"Fluorescent 48w","F48"]
[null,null,null,null,null,null,null,null,null,null,null,null,null,null,null,"Fluorescent 58w","F58"]
[null,null,null,null,null,null,null,null,null,null,null,null,null,null,null,"Fluorescent 65w","F65"]
[null,null,null,null,null,null,null,null,null,null,null,null,null,null,null,"Fluorescent 7w","F7"]
[null,null,null,null,null,null,null,null,null,null,null,null,null,null,null,"Fluorescent 80w","F80"]
[null,null,null,null,null,null,null,null,null,null,null,null,null,null,null,"Typical for 150W","T150"]
[null,null,null,null,null,null,null,null,null,null,null,null,null,null,null,"Typical for Fluorescent (2 x 20)","TF"]
[null,null,null,null,null,null,null,null,null,null,null,null,null,null,null,"Typical for Fluorescent (2 x 30)","TF30"]
[null,null,null,null,null,null,null,null,null,null,null,null,null,null,null,"1000w Metal Halide","100H"]
[null,null,null,null,null,null,null,null,null,null,null,null,null,null,null,"100w Metal Halide","10MH"]
[null,null,null,null,null,null,null,null,null,null,null,null,null,null,null,"100w HPS Electronic Ballast","10SB"]
[null,null,null,null,null,null,null,null,null,null,null,null,null,null,null,"110w High Pressure Sodium","110S"]
[null,null,null,null,null,null,null,null,null,null,null,null,null,null,null,"110w Metal Halide","11MH"]
[null,null,null,null,null,null,null,null,null,null,null,null,null,null,null,"120w Mercury Vapour","120M"]
[null,null,null,null,null,null,null,null,null,null,null,null,null,null,null,"120w High Pressure Sodium","120S"]
[null,null,null,null,null,null,null,null,null,null,null,null,null,null,null,"125w Low Pressure Sodium (SOX)","125L"]
[null,null,null,null,null,null,null,null,null,null,null,null,null,null,null,"125w Mercury Vapour","125M"]
[null,null,null,null,null,null,null,null,null,null,null,null,null,null,null,"125w High Pressure Sodium","125S"]
[null,null,null,null,null,null,null,null,null,null,null,null,null,null,null,"135w Low Pressure Sodium (SOX)","135L"]
[null,null,null,null,null,null,null,null,null,null,null,null,null,null,null,"140w Low Pressure Sodium (SOX)","140L"]
[null,null,null,null,null,null,null,null,null,null,null,null,null,null,null,"1500w Metal Halide","150H"]
[null,null,null,null,null,null,null,null,null,null,null,null,null,null,null,"150w Low Pressure Sodium (SOX)","150L"]
[null,null,null,null,null,null,null,null,null,null,null,null,null,null,null,"150w Mercury Vapour","150M"]
[null,null,null,null,null,null,null,null,null,null,null,null,null,null,null,"150w Metal Halide","15MH"]
[null,null,null,null,null,null,null,null,null,null,null,null,null,null,null,"150w HPS Electronic Ballast","15SB"]
[null,null,null,null,null,null,null,null,null,null,null,null,null,null,null,"160w Low Pressure Sodium (SOX)","160L"]
[null,null,null,null,null,null,null,null,null,null,null,null,null,null,null,"160w Mercury Vapour","160M"]
[null,null,null,null,null,null,null,null,null,null,null,null,null,null,null,"175w Mercury Vapour","175M"]
[null,null,null,null,null,null,null,null,null,null,null,null,null,null,null,"175w Metal Halide","17MH"]
[null,null,null,null,null,null,null,null,null,null,null,null,null,null,null,"180w Low Pressure Sodium (SOX)","180L"]
[null,null,null,null,null,null,null,null,null,null,null,null,null,null,null,"18w Low Pressure Sodium (SOX)","18L"]
[null,null,null,null,null,null,null,null,null,null,null,null,null,null,null,"2000w Metal Halide","200H"]
[null,null,null,null,null,null,null,null,null,null,null,null,null,null,null,"250w Mercury Vapour","250M"]
[null,null,null,null,null,null,null,null,null,null,null,null,null,null,null,"250w Metal Halide","25MH"]
[null,null,null,null,null,null,null,null,null,null,null,null,null,null,null,"26w Low Pressure Sodium (SOX)","26L"]
[null,null,null,null,null,null,null,null,null,null,null,null,null,null,null,"310w Low Pressure Sodium (SOX)","310L"]
[null,null,null,null,null,null,null,null,null,null,null,null,null,null,null,"35w Low Pressure Sodium (SOX)","35L"]
[null,null,null,null,null,null,null,null,null,null,null,null,null,null,null,"35w Metal Halide","35MH"]
[null,null,null,null,null,null,null,null,null,null,null,null,null,null,null,"35w High Pressure Sodium","35S"]
[null,null,null,null,null,null,null,null,null,null,null,null,null,null,null,"3745w Metal Halide","374H"]
[null,null,null,null,null,null,null,null,null,null,null,null,null,null,null,"400w Mercury Vapour","400M"]
[null,null,null,null,null,null,null,null,null,null,null,null,null,null,null,"400w Metal Halide","40MH"]
[null,null,null,null,null,null,null,null,null,null,null,null,null,null,null,"500w Metal Halide","500H"]
[null,null,null,null,null,null,null,null,null,null,null,null,null,null,null,"500w Mercury Vapour","500M"]
[null,null,null,null,null,null,null,null,null,null,null,null,null,null,null,"50w Mercury Vapour","50M"]
[null,null,null,null,null,null,null,null,null,null,null,null,null,null,null,"50w Metal Halide","50MH"]
[null,null,null,null,null,null,null,null,null,null,null,null,null,null,null,"50w High Pressure Sodium","50S"]
[null,null,null,null,null,null,null,null,null,null,null,null,null,null,null,"50w HPS Electronic Ballast","50SB"]
[null,null,null,null,null,null,null,null,null,null,null,null,null,null,null,"55w Low Pressure Sodium (SOX)","55L"]
[null,null,null,null,null,null,null,null,null,null,null,null,null,null,null,"60w Low Pressure Sodium (SOX)","60L"]
[null,null,null,null,null,null,null,null,null,null,null,null,null,null,null,"60w High Pressue Sodium","60S"]
[null,null,null,null,null,null,null,null,null,null,null,null,null,null,null,"700w Mercury Vapour","700M"]
[null,null,null,null,null,null,null,null,null,null,null,null,null,null,null,"70w Metal Halide","70MH"]
[null,null,null,null,null,null,null,null,null,null,null,null,null,null,null,"70w High Pressure Sodium","70S"]
[null,null,null,null,null,null,null,null,null,null,null,null,null,null,null,"70w HPS Electronic Ballast","70SB"]
[null,null,null,null,null,null,null,null,null,null,null,null,null,null,null,"75w Metal Halide","75MH"]
[null,null,null,null,null,null,null,null,null,null,null,null,null,null,null,"80w Mercury Vapour","80M"]
[null,null,null,null,null,null,null,null,null,null,null,null,null,null,null,"80w High Pressure Sodium","80S"]
[null,null,null,null,null,null,null,null,null,null,null,null,null,null,null,"90w Low Pressure Sodium (SOX)","90L"]
[null,null,null,null,null,null,null,null,null,null,null,null,null,null,null,"Compact Fluorescent 26w","CF26"]
[null,null,null,null,null,null,null,null,null,null,null,null,null,null,null,"Compact Fluorescent 32w","CF32"]
[null,null,null,null,null,null,null,null,null,null,null,null,null,null,null,"Compact Fluorescent 42w","CF42"]
[null,null,null,null,null,null,null,null,null,null,null,null,null,null,null,"Compact Fluorescent 57w","CF57"]
[null,null,null,null,null,null,null,null,null,null,null,null,null,null,null,"Fluorescent 14w","F14"]
[null,null,null,null,null,null,null,null,null,null,null,null,null,null,null,"Fluorescent 176w","F176"]
[null,null,null,null,null,null,null,null,null,null,null,null,null,null,null,"Fluorescent 20w","F20"]
[null,null,null,null,null,null,null,null,null,null,null,null,null,null,null,"Fluorescent 236w","F236"]
[null,null,null,null,null,null,null,null,null,null,null,null,null,null,null,"Fluorescent 25w","F25"]
[null,null,null,null,null,null,null,null,null,null,null,null,null,null,null,"Fluorescent 32w","F32"]
[null,null,null,null,null,null,null,null,null,null,null,null,null,null,null,"Fluorescent 36w","F36"]
[null,null,null,null,null,null,null,null,null,null,null,null,null,null,null,"Fluorescent 40w","F40"]
[null,null,null,null,null,null,null,null,null,null,null,null,null,null,null,"Fluorescent 42w","F42"]
[null,null,null,null,null,null,null,null,null,null,null,null,null,null,null,"Fluorescent 48w","F48"]
[null,null,null,null,null,null,null,null,null,null,null,null,null,null,null,"Fluorescent 58w","F58"]
[null,null,null,null,null,null,null,null,null,null,null,null,null,null,null,"Fluorescent 65w","F65"]
[null,null,null,null,null,null,null,null,null,null,null,null,null,null,null,"Fluorescent 7w","F7"]
[null,null,null,null,null,null,null,null,null,null,null,null,null,null,null,"Fluorescent 80w","F80"]
[null,null,null,null,null,null,null,null,null,null,null,null,null,null,null,"62w LED Teceo 2","T262"]
[null,null,null,null,null,null,null,null,null,null,null,null,null,null,null,"Typical for Fluorescent (2 x 20)","TF"]
[null,null,null,null,null,null,null,null,null,null,null,null,null,null,null,"Typical for Fluorescent (2 x 30)","TF30"]
[null,null,null,null,null,null,null,null,null,null,null,null,null,null,null,"1000w Metal Halide","100H"]
[null,null,null,null,null,null,null,null,null,null,null,null,null,null,null,"100w High Pressure Sodium","100S"]
[null,null,null,null,null,null,null,null,null,null,null,null,null,null,null,"100w Metal Halide","10MH"]
[null,null,null,null,null,null,null,null,null,null,null,null,null,null,null,"100w HPS Electronic Ballast","10SB"]
[null,null,null,null,null,null,null,null,null,null,null,null,null,null,null,"110w High Pressure Sodium","110S"]
[null,null,null,null,null,null,null,null,null,null,null,null,null,null,null,"110w Metal Halide","11MH"]
[null,null,null,null,null,null,null,null,null,null,null,null,null,null,null,"120w Mercury Vapour","120M"]
[null,null,null,null,null,null,null,null,null,null,null,null,null,null,null,"120w High Pressure Sodium","120S"]
[null,null,null,null,null,null,null,null,null,null,null,null,null,null,null,"125w Low Pressure Sodium (SOX)","125L"]
[null,null,null,null,null,null,null,null,null,null,null,null,null,null,null,"125w Mercury Vapour","125M"]
[null,null,null,null,null,null,null,null,null,null,null,null,null,null,null,"125w High Pressure Sodium","125S"]
[null,null,null,null,null,null,null,null,null,null,null,null,null,null,null,"135w Low Pressure Sodium (SOX)","135L"]
[null,null,null,null,null,null,null,null,null,null,null,null,null,null,null,"140w Low Pressure Sodium (SOX)","140L"]
[null,null,null,null,null,null,null,null,null,null,null,null,null,null,null,"1500w Metal Halide","150H"]
[null,null,null,null,null,null,null,null,null,null,null,null,null,null,null,"150w Low Pressure Sodium (SOX)","150L"]
[null,null,null,null,null,null,null,null,null,null,null,null,null,null,null,"150w Mercury Vapour","150M"]
[null,null,null,null,null,null,null,null,null,null,null,null,null,null,null,"150w High Pressure Sodium","150S"]
[null,null,null,null,null,null,null,null,null,null,null,null,null,null,null,"150w Metal Halide","15MH"]
[null,null,null,null,null,null,null,null,null,null,null,null,null,null,null,"150w HPS Electronic Ballast","15SB"]
[null,null,null,null,null,null,null,null,null,null,null,null,null,null,null,"160w Low Pressure Sodium (SOX)","160L"]
[null,null,null,null,null,null,null,null,null,null,null,null,null,null,null,"160w Mercury Vapour","160M"]
[null,null,null,null,null,null,null,null,null,null,null,null,null,null,null,"175w Mercury Vapour","175M"]
[null,null,null,null,null,null,null,null,null,null,null,null,null,null,null,"175w Metal Halide","17MH"]
[null,null,null,null,null,null,null,null,null,null,null,null,null,null,null,"180w Low Pressure Sodium (SOX)","180L"]
[null,null,null,null,null,null,null,null,null,null,null,null,null,null,null,"18w Low Pressure Sodium (SOX)","18L"]
[null,null,null,null,null,null,null,null,null,null,null,null,null,null,null,"2000w Metal Halide","200H"]
[null,null,null,null,null,null,null,null,null,null,null,null,null,null,null,"250w Mercury Vapour","250M"]
[null,null,null,null,null,null,null,null,null,null,null,null,null,null,null,"250w High Pressure Sodium","250S"]
[null,null,null,null,null,null,null,null,null,null,null,null,null,null,null,"250w Metal Halide","25MH"]
[null,null,null,null,null,null,null,null,null,null,null,null,null,null,null,"26w Low Pressure Sodium (SOX)","26L"]
[null,null,null,null,null,null,null,null,null,null,null,null,null,null,null,"310w Low Pressure Sodium (SOX)","310L"]
[null,null,null,null,null,null,null,null,null,null,null,null,null,null,null,"35w Metal Halide","35MH"]
[null,null,null,null,null,null,null,null,null,null,null,null,null,null,null,"35w High Pressure Sodium","35S"]
[null,null,null,null,null,null,null,null,null,null,null,null,null,null,null,"3745w Metal Halide","374H"]
[null,null,null,null,null,null,null,null,null,null,null,null,null,null,null,"400w Mercury Vapour","400M"]
[null,null,null,null,null,null,null,null,null,null,null,null,null,null,null,"400w Metal Halide","40MH"]
[null,null,null,null,null,null,null,null,null,null,null,null,null,null,null,"500w Metal Halide","500H"]
[null,null,null,null,null,null,null,null,null,null,null,null,null,null,null,"500w Mercury Vapour","500M"]
[null,null,null,null,null,null,null,null,null,null,null,null,null,null,null,"50w Mercury Vapour","50M"]
[null,null,null,null,null,null,null,null,null,null,null,null,null,null,null,"50w Metal Halide","50MH"]
[null,null,null,null,null,null,null,null,null,null,null,null,null,null,null,"50w High Pressure Sodium","50S"]
[null,null,null,null,null,null,null,null,null,null,null,null,null,null,null,"50w HPS Electronic Ballast","50SB"]
[null,null,null,null,null,null,null,null,null,null,null,null,null,null,null,"55w Low Pressure Sodium (SOX)","55L"]
[null,null,null,null,null,null,null,null,null,null,null,null,null,null,null,"60w Low Pressure Sodium (SOX)","60L"]
[null,null,null,null,null,null,null,null,null,null,null,null,null,null,null,"60w High Pressure Sodium","60S"]
[null,null,null,null,null,null,null,null,null,null,null,null,null,null,null,"700w Mercury Vapour","700M"]
[null,null,null,null,null,null,null,null,null,null,null,null,null,null,null,"70w Metal Halide","70MH"]
[null,null,null,null,null,null,null,null,null,null,null,null,null,null,null,"70w High Pressure Sodium","70S"]
[null,null,null,null,null,null,null,null,null,null,null,null,null,null,null,"70w HPS Electronic Ballast","70SB"]
[null,null,null,null,null,null,null,null,null,null,null,null,null,null,null,"75w Metal Halide","75MH"]
[null,null,null,null,null,null,null,null,null,null,null,null,null,null,null,"80w Mercury Vapour","80M"]
[null,null,null,null,null,null,null,null,null,null,null,null,null,null,null,"80w High Pressure Sodium","80S"]
[null,null,null,null,null,null,null,null,null,null,null,null,null,null,null,"90w Low Pressure Sodium (SOX)","90L"]
[null,null,null,null,null,null,null,null,null,null,null,null,null,null,null,"Compact Fluorescent 26w","CF26"]
[null,null,null,null,null,null,null,null,null,null,null,null,null,null,null,"Compact Fluorescent 32w","CF32"]
[null,null,null,null,null,null,null,null,null,null,null,null,null,null,null,"Compact Fluorescent 42w","CF42"]
[null,null,null,null,null,null,null,null,null,null,null,null,null,null,null,"Compact Fluorescent 57w","CF57"]
[null,null,null,null,null,null,null,null,null,null,null,null,null,null,null,"Fluorescent 14w","F14"]
[null,null,null,null,null,null,null,null,null,null,null,null,null,null,null,"Fluorescent 176w","F176"]
[null,null,null,null,null,null,null,null,null,null,null,null,null,null,null,"Fluorescent 20w","F20"]
[null,null,null,null,null,null,null,null,null,null,null,null,null,null,null,"Fluorescent 236w","F236"]
[null,null,null,null,null,null,null,null,null,null,null,null,null,null,null,"Fluorescent 25w","F25"]
[null,null,null,null,null,null,null,null,null,null,null,null,null,null,null,"Fluorescent 32w","F32"]
[null,null,null,null,null,null,null,null,null,null,null,null,null,null,null,"Fluorescent 36w","F36"]
[null,null,null,null,null,null,null,null,null,null,null,null,null,null,null,"Fluorescent 40w","F40"]
[null,null,null,null,null,null,null,null,null,null,null,null,null,null,null,"Fluorescent 42w","F42"]
[null,null,null,null,null,null,null,null,null,null,null,null,null,null,null,"Fluorescent 48w","F48"]
[null,null,null,null,null,null,null,null,null,null,null,null,null,null,null,"Fluorescent 58w","F58"]
[null,null,null,null,null,null,null,null,null,null,null,null,null,null,null,"Fluorescent 65w","F65"]
[null,null,null,null,null,null,null,null,null,null,null,null,null,null,null,"Fluorescent 7w","F7"]
[null,null,null,null,null,null,null,null,null,null,null,null,null,null,null,"Fluorescent 80w","F80"]
[null,null,null,null,null,null,null,null,null,null,null,null,null,null,null,"Typical for 100W","T100"]
[null,null,null,null,null,null,null,null,null,null,null,null,null,null,null,"Typical for 125W (MV)","T125"]
[null,null,null,null,null,null,null,null,null,null,null,null,null,null,null,"Typical for 135W (SOX)","T135"]
[null,null,null,null,null,null,null,null,null,null,null,null,null,null,null,"Typical for 150W","T150"]
[null,null,null,null,null,null,null,null,null,null,null,null,null,null,null,"Typical for 250W","T250"]
[null,null,null,null,null,null,null,null,null,null,null,null,null,null,null,"Typical for 250W (MV)","T25M"]
[null,null,null,null,null,null,null,null,null,null,null,null,null,null,null,"Typical for 400W","T400"]
[null,null,null,null,null,null,null,null,null,null,null,null,null,null,null,"Typical for 50W","T50"]
[null,null,null,null,null,null,null,null,null,null,null,null,null,null,null,"Typical for 70W","T70"]
[null,null,null,null,null,null,null,null,null,null,null,null,null,null,null,"Typical for 80W (MV)","T80"]
[null,null,null,null,null,null,null,null,null,null,null,null,null,null,null,"Typical for 90W (SOX)","T90"]
[null,null,null,null,null,null,null,null,null,null,null,null,null,null,null,"Typical for Fluorescent (2 x 20)","TF"]
[null,null,null,null,null,null,null,null,null,null,null,null,null,null,null,"Typical for Fluorescent (2 x 30)","TF0"]
[null,null,null,null,null,null,null,null,null,null,null,null,null,null,null,"1000w Metal Halide","100H"]
[null,null,null,null,null,null,null,null,null,null,null,null,null,null,null,"100w High Pressure Sodium","100S"]
[null,null,null,null,null,null,null,null,null,null,null,null,null,null,null,"100w Metal Halide","10MH"]
[null,null,null,null,null,null,null,null,null,null,null,null,null,null,null,"100w HPS Electronic Ballast","10SB"]
[null,null,null,null,null,null,null,null,null,null,null,null,null,null,null,"110w High Pressure Sodium","110S"]
[null,null,null,null,null,null,null,null,null,null,null,null,null,null,null,"110w Metal Halide","11MH"]
[null,null,null,null,null,null,null,null,null,null,null,null,null,null,null,"120w Mercury Vapour","120M"]
[null,null,null,null,null,null,null,null,null,null,null,null,null,null,null,"120w High Pressure Sodium","120S"]
[null,null,null,null,null,null,null,null,null,null,null,null,null,null,null,"125w Low Pressure Sodium (SOX)","125L"]
[null,null,null,null,null,null,null,null,null,null,null,null,null,null,null,"125w Mercury Vapour","125M"]
[null,null,null,null,null,null,null,null,null,null,null,null,null,null,null,"125w High Pressure Sodium","125S"]
[null,null,null,null,null,null,null,null,null,null,null,null,null,null,null,"135w Low Pressure Sodium (SOX)","135L"]
[null,null,null,null,null,null,null,null,null,null,null,null,null,null,null,"140w Low Pressure Sodium (SOX)","140L"]
[null,null,null,null,null,null,null,null,null,null,null,null,null,null,null,"1500w Metal Halide","150H"]
[null,null,null,null,null,null,null,null,null,null,null,null,null,null,null,"150w Low Pressure Sodium (SOX)","150L"]
[null,null,null,null,null,null,null,null,null,null,null,null,null,null,null,"150w Mercury Vapour","150M"]
[null,null,null,null,null,null,null,null,null,null,null,null,null,null,null,"150w High Pressure Sodium","150S"]
[null,null,null,null,null,null,null,null,null,null,null,null,null,null,null,"150w Metal Halide","15MH"]
[null,null,null,null,null,null,null,null,null,null,null,null,null,null,null,"150w HPS Electronic Ballast","15SB"]
[null,null,null,null,null,null,null,null,null,null,null,null,null,null,null,"160w Low Pressure Sodium (SOX)","160L"]
[null,null,null,null,null,null,null,null,null,null,null,null,null,null,null,"160w Mercury Vapour","160M"]
[null,null,null,null,null,null,null,null,null,null,null,null,null,null,null,"175w Mercury Vapour","175M"]
[null,null,null,null,null,null,null,null,null,null,null,null,null,null,null,"175w Metal Halide","17MH"]
[null,null,null,null,null,null,null,null,null,null,null,null,null,null,null,"180w Low Pressure Sodium (SOX)","180L"]
[null,null,null,null,null,null,null,null,null,null,null,null,null,null,null,"18w Low Pressure Sodium (SOX)","18L"]
[null,null,null,null,null,null,null,null,null,null,null,null,null,null,null,"2000w Metal Halide","200H"]
[null,null,null,null,null,null,null,null,null,null,null,null,null,null,null,"250w Mercury Vapour","250M"]
[null,null,null,null,null,null,null,null,null,null,null,null,null,null,null,"250w High Pressure Sodium","250S"]
[null,null,null,null,null,null,null,null,null,null,null,null,null,null,null,"250w Metal Halide","25MH"]
[null,null,null,null,null,null,null,null,null,null,null,null,null,null,null,"26w Low Pressure Sodium (SOX)","26L"]
[null,null,null,null,null,null,null,null,null,null,null,null,null,null,null,"310w Low Pressure Sodium (SOX)","310L"]
[null,null,null,null,null,null,null,null,null,null,null,null,null,null,null,"35w Low Pressure Sodium (SOX)","35L"]
[null,null,null,null,null,null,null,null,null,null,null,null,null,null,null,"35w Metal Halide","35MH"]
[null,null,null,null,null,null,null,null,null,null,null,null,null,null,null,"35w High Pressure Sodium","35S"]
[null,null,null,null,null,null,null,null,null,null,null,null,null,null,null,"3745w Metal Halide","374H"]
[null,null,null,null,null,null,null,null,null,null,null,null,null,null,null,"400w Mercury Vapour","400M"]
[null,null,null,null,null,null,null,null,null,null,null,null,null,null,null,"400w Metal Halide","40MH"]
[null,null,null,null,null,null,null,null,null,null,null,null,null,null,null,"500w Metal Halide","500H"]
[null,null,null,null,null,null,null,null,null,null,null,null,null,null,null,"500w Mercury Vapour","500M"]
[null,null,null,null,null,null,null,null,null,null,null,null,null,null,null,"50w Mercury Vapour","50M"]
[null,null,null,null,null,null,null,null,null,null,null,null,null,null,null,"50w Metal Halide","50MH"]
[null,null,null,null,null,null,null,null,null,null,null,null,null,null,null,"50w High Pressure Sodium","50S"]
[null,null,null,null,null,null,null,null,null,null,null,null,null,null,null,"50w HPS Electronic Ballast","50SB"]
[null,null,null,null,null,null,null,null,null,null,null,null,null,null,null,"55w Low Pressure Sodium (SOX)","55L"]
[null,null,null,null,null,null,null,null,null,null,null,null,null,null,null,"60w Low Pressure Sodium (SOX)","60L"]
[null,null,null,null,null,null,null,null,null,null,null,null,null,null,null,"60w High Pressure Sodium","60S"]
[null,null,null,null,null,null,null,null,null,null,null,null,null,null,null,"700w Mercury Vapour","700M"]
[null,null,null,null,null,null,null,null,null,null,null,null,null,null,null,"70w Metal Halide","70MH"]
[null,null,null,null,null,null,null,null,null,null,null,null,null,null,null,"70w High Pressure Sodium","70S"]
[null,null,null,null,null,null,null,null,null,null,null,null,null,null,null,"70w HPS Electronic Ballast","70SB"]
[null,null,null,null,null,null,null,null,null,null,null,null,null,null,null,"75w Metal Halide","75MH"]
[null,null,null,null,null,null,null,null,null,null,null,null,null,null,null,"80w Mercury Vapour","80M"]
[null,null,null,null,null,null,null,null,null,null,null,null,null,null,null,"80w High Pressure Sodium","80S"]
[null,null,null,null,null,null,null,null,null,null,null,null,null,null,null,"90w Low Pressure Sodium (SOX)","90L"]
[null,null,null,null,null,null,null,null,null,null,null,null,null,null,null,"Compact Fluorescent 26w","CF26"]
[null,null,null,null,null,null,null,null,null,null,null,null,null,null,null,"Compact Fluorescent 32w","CF32"]
[null,null,null,null,null,null,null,null,null,null,null,null,null,null,null,"Compact Fluorescent 42w","CF42"]
[null,null,null,null,null,null,null,null,null,null,null,null,null,null,null,"Compact Fluorescent 57w","CF57"]
[null,null,null,null,null,null,null,null,null,null,null,null,null,null,null,"Fluorescent 14w","F14"]
[null,null,null,null,null,null,null,null,null,null,null,null,null,null,null,"Fluorescent 176w","F176"]
[null,null,null,null,null,null,null,null,null,null,null,null,null,null,null,"Fluorescent 20w","F20"]
[null,null,null,null,null,null,null,null,null,null,null,null,null,null,null,"Fluorescent 236w","F236"]
[null,null,null,null,null,null,null,null,null,null,null,null,null,null,null,"Fluorescent 25w","F25"]
[null,null,null,null,null,null,null,null,null,null,null,null,null,null,null,"Fluorescent 32w","F32"]
[null,null,null,null,null,null,null,null,null,null,null,null,null,null,null,"Fluorescent 36w","F36"]
[null,null,null,null,null,null,null,null,null,null,null,null,null,null,null,"Fluorescent 40w","F40"]
[null,null,null,null,null,null,null,null,null,null,null,null,null,null,null,"Fluorescent 42w","F42"]
[null,null,null,null,null,null,null,null,null,null,null,null,null,null,null,"Fluorescent 48w","F48"]
[null,null,null,null,null,null,null,null,null,null,null,null,null,null,null,"Fluorescent 58w","F58"]
[null,null,null,null,null,null,null,null,null,null,null,null,null,null,null,"Fluorescent 65w","F65"]
[null,null,null,null,null,null,null,null,null,null,null,null,null,null,null,"Fluorescent 7w","F7"]
[null,null,null,null,null,null,null,null,null,null,null,null,null,null,null,"Fluorescent 80w","F80"]
[null,null,null,null,null,null,null,null,null,null,null,null,null,null,null,"Typical for Fluorescent (2 x 20)","TF"]
[null,null,null,null,null,null,null,null,null,null,null,null,null,null,null,"Typical for Fluorescent (2 x 30)","TF30"]